Workbook

Sheet Notes
A1: TheCAMIndicator.xlsm; Traders Tip spreadsheet created for the January 2018 Issue
A2: Coded beginning 2017-November-01 by Ronald McAllister (rpmac_xltt@sprynet.com)
A4: This Workbook demonstrates an EXCEL version of the ideas presented
A5: by Barbara Star, PhD in an article titled "The CAM Indicator For Trends And Countertrends"
A6: which originally appeared in the January 2018 issue of
A7: "Technical Analysis of Stocks and Commodities" magazine.
A9: CalculationsAndCharts construction Notes:
B10: Various charts from the article can be approximated by downloading the appropriate symbol and selecting an appropriate date range.
B11: From there it is just a matter of working the chart clutter controls. (All of the symbols used in this article are available for double click loading on the "Follow" tab)
B12: Examples:
B13: Fig 4 from the article can be approximated by downloading data for symbol USO and setting the I would like to chart dates to 10/18/2016 and 1/10/2017.
C14: Then Click the "I Would Like to Chart These Dates" button.
A16: Development Notes:
C17: This workbook contains and uses VBA macros and may use VBA Class structures.
C18: Input Data
C19: The data in this workbook is sorted date descending (most recent date at the top). All formulas and
C20: VBA routines are built accordingly.
A22: This spreadsheet incorporates my first cut at retrieving historical data from the "New", and not necessarily "Improved", Yahoo Finance History Download interface.
B24: My sincere apologies to our Macintosh based readers: MSXML is not supported in your environment. So as it stands this version of the spreadsheet will not work for you.
B25: See "Why this approach does not work for Macintosh" below.
B26: I am investigating cURL as a non-Querytable based approach for the Macintosh environment.
B27: This is taking longer than I thought so perhaps the March or April 2018 Traders tip. Please stay tuned.
A29: The new Yahoo Finance history download interface has changed rather radically. The biggest hurdle being a pseudo-security requirement of adding a
B30: crumb character string to any URL requesting any type of history download. That crumb must match up (by way of some sort of hash algorithm) with
B31: the Yahoo Finance cookie that must also be sent with any request to the new Yahoo History down load interface.
B33: A crumb value is returned, buried in the HTML for any of what I call the "entry level" Yahoo Finance web pages (no crumb security requirement for entry level pages).
B34: A crumb may come with other Yahoo Finance pages. A crumb may even accompany some of the secured pages as well. I have not checked.
B36: Entry level pages are the top level pages of the various Yahoo Finance dialogs and include: Quote Lookup, Stock Summary Quote, and any of the pages
B37: with links in the horizontal row with the "Summary" link on the quote summary page such as Options, Historical Data, and the rest.
B39: To date I have found no way to get at this crumb value using any native EXCEL capabilities.
B41: So this crumb requirement effectively shuts out any solution that attempts to exclusively use built-in facilities of EXCEL, which is to say a purely Querytables solution.
B43: The approach built for this Traders Tip spreadsheet uses a combination of MSXML and EXCEL QueryTable calls to Load the InputPriceData worksheet.
B45: First I call MSXML to get the HTML text for the Yahoo Summary Quote page using the requested symbol. From this HTML text I extract the full company name,
B46: the market it trades, the market status and time stamp, and finally the associated crumb string. There is a bunch of other useful bits buried in this HTML
B47: text that do not necessarily appear on the web page your browser presents. Perhaps some day I will go after and build a worksheet with these other bits.
B49: Next I add the freshly extracted crumb string to the URLs I use in three separate Querytable calls to retrieve Price history, Split history, and Dividend history respectively.
B51: From there VBA code proceeds as in the past to fill in the cell formulas and formatting that make the "prettied up" InputPriceData sheet.
A53: Why this approach works for Windows:
B54: First, MSXML shares the permanent Internet Explorer web cache where cookies are maintained. Both IE and MSXML automatically
B55: update this cache when a "set cookie" header accompanies a web response. And they both automatically search this shared cache for
B56: cookies and add any "appropriate" cookies to the headers of any web requests they send out.
B57: This cookie handling automation means that even if the response to our MSXML call for the Summary web page includes a new version of
B58: the Yahoo Finance cookie, the imbedded Crumb value will always match the cookie newly installed in the cache!
B60: Second, in the Windows environment the EXCEL Querytable mechanism leans heavily on bits from Internet Explorer. This means that cookie
B61: handling is also automated from the shared cache for Querytable calls. We can count on any appropriate cookies being added to any Querytable call.
B62: We only need to do our part by adding the corresponding Crumb value to complete the security for the Querytable to access Yahoo History downloads.
A64: Why this approach does not work for Macintosh:
B65: For what it is worth, the Macintosh version of the MS Office suite of products do in fact maintain a special, shared amongst themselves only, cookie cache.
B66: They automate cookie handling into and from this cache JUST for the Office products and any Querytable activity they might originate.
B68: This cache is not tied to, nor shared with, any browser that might be installed on the MAC. And I have not found anything with HTTP capabilities similar to
B69: MSXML that can work with that Office product cookie cache.
B71: When working in the MAC EXCEL environment, without that MSXML like capability against the office shared cache, l have no mechanism
B72: to obtain a crumb value that would be a valid match to the Yahoo Finance cookie that will be automatically attached to a Querytable call.
B73: This missing facility pretty much eliminates the use of Mac environment Querytables to access the new Yahoo Finance history download interface.
A75: One very low probability potential "Gottcha" for any Querytables approach.
B76: Yahoo Finance cookies typically have an assigned expiration that is a year out (to the second) from the time they are issued.
B77: Further, these cookies are unique. Yours will not match mine.
B79: If for testing purposes, instead of MSXML, you use a fresh instance of Winhttp (Fresh instance = empty cache = no cookie to automatically send)
B80: every time you call an entry level page, the Yahoo server says "What? Entry level page? With no inbound cookie? Get them a cookie!!"
B81: and will send you a new, unique cookie and will imbed the matching crumb value in the response text for each of these "no cookie attached" calls.
B83: The Gottcha: Lets say that the Yahoo Finance cookie presently in the IE cache has an expiration date and time that just happens
B84: to fall between our MSXML call to the summary page to fetch our crumb and our first (or second, or third) Querytable call.
B85: The Querytable call after the cookie expiration may fail with a cookie and crumb validation error.
B87: Querytable error reporting is atrocious. So we will not get any sort of helpful message here. Just a very generalized message like "failed to connect".
B89: The workaround is to simply go to the InputPriceData tab and click the download button.
B90: This second time through the retrieval process should not fail on a mismatch.
B91: After all, you now have a year before the new cookie that just got put into the cache expires!
A93: Calculation and Chart Worksheet Usage Comments:
C94: In General, Items in Bolded BLUE are items you may freely change to play what-if games.
C95: Be sure to have a backup copy of the spreadsheet before you alter anything else.
A97: Features carried forward from the June 2016 version of my T-Tips Template
A98: Added a pair of buttons near cell F12 that will allow the user to step the charting window forward or backward one bar for each click.
A99: I find this to be a good way to test my understanding of the author's ideas as I step through the evolution of the price behavior and the indicators.
B101: First: In the "Help! I would like to plot data" area.
B102: Added button to resolve #NA problems by locating the bar in the input data with a slightly more recent date than what the user actually requested.
B103: I find this particularly useful when I have a general idea of where I want to be date wise. Now I can pick a set of dates "out of the air".
B104: If either (or both) of my date specifications fall between dates that are available in the price history,
B105: this button will resolve them to the dates of the nearest, slightly more recent input bars.
B106: I can then refine my data interval search as necessary from there.
B107: Really great when working with Weekly or Monthly studies!
C108: 2016Jun11 - added logic to the "I would like to chart.." button to detect #N/A values and terminate
C109: gracefully with a message instead of blowing up in the charting logic.
B111: Second: In the "Price Chart Windowing Controls" area. (A11 and A12)
B112: When retrieving data for a new symbol or when changing from daily to weekly or monthly data, there was the possibility that the
B113: residual settings in A11 and A12 would fall outside of the number bars available on the input data tab after the new data retrieval.
B114: In certain combinations, this could create a serious error in the chart sizing logic and crash the spreadsheet.
B115: I have taken this opportunity to update the validity checking logic used in the chart sizing macros
B116: to adjust these values as necessary so that they fall within the boundaries of the newly retrieved input data.
A117: Features carried forward from the October 2015 Traders Tips Template
B118: Improved automation: changes to any of the following will automatically initiate calculations appropriate to reflect a change.
C119: Changing either of cells A11 (pan) or A12 (zoom) will automatically initiate the same chart sizing macros that the manual
C120: "Set Chart" button uses.

Sheet InputPriceData
A1: United States Oil (USO) -NYSEArca (Daily)
F2: Market State == > | G2: At close: | H2: 16:00:00 | I2: EDT | IJ2: 241.79
A3: Request Online Yahoo History for:
A4: Symbol | B4: USO | D4: Valid | I4: =OFFSET(I4,-2,0,1,1) -> EDT
A5: From | B5: 1950-01-01 | D5: Data | AF5: Trailing 12 Div return (Cur Close)
A6: To | B6: =NOW() -> 2017-11-07T14:54:10.730 | D6: Types | E6: =VLOOKUP(B7,D7:E10,2,FALSE) -> d
A7: Data Type | B7: Daily | D7: Daily | E7: d
B8: dbtX2VDkalH | D8: Weekly | E8: w
A9: Available Data | D9: Monthly | E9: m
A10: Bar Count: | B10: 2915 | AF10: =OFFSET(AC15,1,0,1,1)/OFFSET(N15,1,0,1,1) -> 0
A11: From: | B11: =IF(B10<=0,"",OFFSET(B15,B10,IF(HistReqDataType="v",1,0),1,1)) -> 2006-04-10 | W11: Trailing 12 Month Dividend Returns
A12: To: | B12: =IF(B10<=0,"",IF(HistReqDataType="v",OFFSET(B15,2,1,1,1),OFFSET(B15,1,0,1,1))) -> 2017-11-03 | W12: Raw Close price on Dividend date | X12: Div Year and Month | Y12: Looking for year ago Div Year and Month | Z12: Year ago Div Date we found | AA12: row offset to year ago div Date | AB12: Same month flag | AC12: Trailing 12 Div Total | AD12: Trailing 12 Div return
Q13: Split History | S13: 0 | T13: Running | U13: Dividend History
B14: Raw Data Values | H14: Adjusted | I14: Price Adjust | J14: Vol Adjust | K14: Adjusted Values | P14: Last | Q14: Effective | R14: Shares | T14: Vol Adjust | V14: 0
A15: RelRow | B15: Date | C15: Open | D15: High | E15: Low | F15: Close | G15: Volume | H15: Close | I15: Factor | J15: Factor | K15: Open | L15: High | M15: Low | N15: Close | O15: Volume | P15: Trade | Q15: 43044 | R15: New | S15: Old | T15: 1 | U15: Date | V15: $ / Share
A16: 1 | B16: 2017-11-03 | C16: 11 | D16: 11.2 | E16: 10.93 | F16: 11.18 | G16: 18453900 | H16: 11.18 | I16: =IF(F16=0,1,H16/F16) -> 1 | J16: =INDEX(OFFSET($T$15,0,0,$S$13+1,1),MATCH(B16,OFFSET($Q$15,0,0,$S$13+1,1),-1)) -> 1 | K16: =ROUND($I16*C16,2) -> 11 | L16: =ROUND($I16*D16,2) -> 11.2 | M16: 10.93 | N16: 11.18 | O16: =G16*J16 -> 18453900
A17: 2 | B17: 2017-11-02 | C17: 10.9 | D17: 11.01 | E17: 10.87 | F17: 10.99 | G17: 10079300 | H17: 10.99 | I17: =IF(F17=0,1,H17/F17) -> 1 | J17: =INDEX(OFFSET($T$15,0,0,$S$13+1,1),MATCH(B17,OFFSET($Q$15,0,0,$S$13+1,1),-1)) -> 1 | K17: =ROUND($I17*C17,2) -> 10.9 | L17: =ROUND($I17*D17,2) -> 11.01 | M17: =ROUND($I17*E17,2) -> 10.87 | N17: =ROUND($I17*F17,2) -> 10.99 | O17: =G17*J17 -> 10079300
A18: 3 | B18: 2017-11-01 | C18: 11.03 | D18: 11.06 | E18: 10.82 | F18: 10.9 | G18: 21152000 | H18: 10.9 | I18: 1 | J18: 1 | K18: 11.03 | L18: 11.06 | M18: 10.82 | N18: 10.9 | O18: 21152000
A19: 4 | B19: 2017-10-31 | C19: 10.85 | D19: 10.96 | E19: 10.83 | F19: 10.93 | G19: 14033200 | H19: 10.93 | I19: 1 | J19: 1 | K19: 10.85 | L19: 10.96 | M19: 10.83 | N19: 10.93 | O19: 14033200
A20: 5 | B20: 2017-10-30 | C20: 10.56 | D20: 10.93 | E20: 10.56 | F20: 10.87 | G20: 12586400 | H20: 10.87 | I20: 1 | J20: 1 | K20: 10.56 | L20: 10.93 | M20: 10.56 | N20: 10.87 | O20: 12586400
A21: 6 | B21: 2017-10-27 | C21: 10.56 | D21: 10.85 | E21: 10.55 | F21: 10.84 | G21: 24699000 | H21: 10.84 | I21: 1 | J21: 1 | K21: 10.56 | L21: 10.85 | M21: 10.55 | N21: 10.84 | O21: 24699000
A22: 7 | B22: 2017-10-26 | C22: 10.45 | D22: 10.58 | E22: 10.43 | F22: 10.57 | G22: 15344000 | H22: 10.57 | I22: 1 | J22: 1 | K22: 10.45 | L22: 10.58 | M22: 10.43 | N22: 10.57 | O22: 15344000
A23: 8 | B23: 2017-10-25 | C23: 10.48 | D23: 10.52 | E23: 10.42 | F23: 10.48 | G23: 17233000 | H23: 10.48 | I23: 1 | J23: 1 | K23: 10.48 | L23: 10.52 | M23: 10.42 | N23: 10.48 | O23: 17233000
A24: 9 | B24: 2017-10-24 | C24: 10.48 | D24: 10.55 | E24: 10.39 | F24: 10.54 | G24: 18370700 | H24: 10.54 | I24: 1 | J24: 1 | K24: 10.48 | L24: 10.55 | M24: 10.39 | N24: 10.54 | O24: 18370700
A25: 10 | B25: 2017-10-23 | C25: 10.47 | D25: 10.49 | E25: 10.37 | F25: 10.42 | G25: 11346200 | H25: 10.42 | I25: 1 | J25: 1 | K25: 10.47 | L25: 10.49 | M25: 10.37 | N25: 10.42 | O25: 11346200
A26: 11 | B26: 2017-10-20 | C26: 10.29 | D26: 10.44 | E26: 10.29 | F26: 10.43 | G26: 11985300 | H26: 10.43 | I26: 1 | J26: 1 | K26: 10.29 | L26: 10.44 | M26: 10.29 | N26: 10.43 | O26: 11985300
A27: 12 | B27: 2017-10-19 | C27: 10.34 | D27: 10.42 | E27: 10.32 | F27: 10.35 | G27: 11579100 | H27: 10.35 | I27: 1 | J27: 1 | K27: 10.34 | L27: 10.42 | M27: 10.32 | N27: 10.35 | O27: 11579100
A28: 13 | B28: 2017-10-18 | C28: 10.51 | D28: 10.55 | E28: 10.43 | F28: 10.48 | G28: 13461900 | H28: 10.48 | I28: 1 | J28: 1 | K28: 10.51 | L28: 10.55 | M28: 10.43 | N28: 10.48 | O28: 13461900
A29: 14 | B29: 2017-10-17 | C29: 10.47 | D29: 10.53 | E29: 10.33 | F29: 10.49 | G29: 16405100 | H29: 10.49 | I29: 1 | J29: 1 | K29: 10.47 | L29: 10.53 | M29: 10.33 | N29: 10.49 | O29: 16405100
A30: 15 | B30: 2017-10-16 | C30: 10.53 | D30: 10.54 | E30: 10.42 | F30: 10.46 | G30: 16045700 | H30: 10.46 | I30: 1 | J30: 1 | K30: 10.53 | L30: 10.54 | M30: 10.42 | N30: 10.46 | O30: 16045700
A31: 16 | B31: 2017-10-13 | C31: 10.38 | D31: 10.4 | E31: 10.29 | F31: 10.37 | G31: 18411900 | H31: 10.37 | I31: 1 | J31: 1 | K31: 10.38 | L31: 10.4 | M31: 10.29 | N31: 10.37 | O31: 18411900
A32: 17 | B32: 2017-10-12 | C32: 10.17 | D32: 10.29 | E32: 10.13 | F32: 10.23 | G32: 15218500 | H32: 10.23 | I32: 1 | J32: 1 | K32: 10.17 | L32: 10.29 | M32: 10.13 | N32: 10.23 | O32: 15218500
A33: 18 | B33: 2017-10-11 | C33: 10.31 | D33: 10.37 | E33: 10.22 | F33: 10.36 | G33: 13904300 | H33: 10.36 | I33: 1 | J33: 1 | K33: 10.31 | L33: 10.37 | M33: 10.22 | N33: 10.36 | O33: 13904300
A34: 19 | B34: 2017-10-10 | C34: 10.2 | D34: 10.32 | E34: 10.19 | F34: 10.28 | G34: 15506600 | H34: 10.28 | I34: 1 | J34: 1 | K34: 10.2 | L34: 10.32 | M34: 10.19 | N34: 10.28 | O34: 15506600
A35: 20 | B35: 2017-10-09 | C35: 10.03 | D35: 10.06 | E35: 9.96 | F35: 10 | G35: 10976300 | H35: 10 | I35: 1 | J35: 1 | K35: 10.03 | L35: 10.06 | M35: 9.96 | N35: 10 | O35: 10976300
A36: 21 | B36: 2017-10-06 | C36: 10.01 | D36: 10.02 | E36: 9.92 | F36: 9.97 | G36: 23509600 | H36: 9.97 | I36: 1 | J36: 1 | K36: 10.01 | L36: 10.02 | M36: 9.92 | N36: 9.97 | O36: 23509600
A37: 22 | B37: 2017-10-05 | C37: 10.14 | D37: 10.35 | E37: 10.13 | F37: 10.25 | G37: 12987400 | H37: 10.25 | I37: 1 | J37: 1 | K37: 10.14 | L37: 10.35 | M37: 10.13 | N37: 10.25 | O37: 12987400
A38: 23 | B38: 2017-10-04 | C38: 10.18 | D38: 10.24 | E38: 10.06 | F38: 10.08 | G38: 13078000 | H38: 10.08 | I38: 1 | J38: 1 | K38: 10.18 | L38: 10.24 | M38: 10.06 | N38: 10.08 | O38: 13078000
A39: 24 | B39: 2017-10-03 | C39: 10.21 | D39: 10.25 | E39: 10.16 | F39: 10.18 | G39: 11278900 | H39: 10.18 | I39: 1 | J39: 1 | K39: 10.21 | L39: 10.25 | M39: 10.16 | N39: 10.18 | O39: 11278900
A40: 25 | B40: 2017-10-02 | C40: 10.17 | D40: 10.23 | E40: 10.12 | F40: 10.21 | G40: 17721000 | H40: 10.21 | I40: 1 | J40: 1 | K40: 10.17 | L40: 10.23 | M40: 10.12 | N40: 10.21 | O40: 17721000
A41: 26 | B41: 2017-09-29 | C41: 10.39 | D41: 10.46 | E41: 10.36 | F41: 10.43 | G41: 13117200 | H41: 10.43 | I41: 1 | J41: 1 | K41: 10.39 | L41: 10.46 | M41: 10.36 | N41: 10.43 | O41: 13117200
A42: 27 | B42: 2017-09-28 | C42: 10.63 | D42: 10.65 | E42: 10.35 | F42: 10.43 | G42: 18687200 | H42: 10.43 | I42: 1 | J42: 1 | K42: 10.63 | L42: 10.65 | M42: 10.35 | N42: 10.43 | O42: 18687200
A43: 28 | B43: 2017-09-27 | C43: 10.52 | D43: 10.56 | E43: 10.44 | F43: 10.52 | G43: 16026500 | H43: 10.52 | I43: 1 | J43: 1 | K43: 10.52 | L43: 10.56 | M43: 10.44 | N43: 10.52 | O43: 16026500
A44: 29 | B44: 2017-09-26 | C44: 10.46 | D44: 10.51 | E44: 10.39 | F44: 10.49 | G44: 14392000 | H44: 10.49 | I44: 1 | J44: 1 | K44: 10.46 | L44: 10.51 | M44: 10.39 | N44: 10.49 | O44: 14392000
A45: 30 | B45: 2017-09-25 | C45: 10.34 | D45: 10.56 | E45: 10.34 | F45: 10.55 | G45: 29848200 | H45: 10.55 | I45: 1 | J45: 1 | K45: 10.34 | L45: 10.56 | M45: 10.34 | N45: 10.55 | O45: 29848200
A46: 31 | B46: 2017-09-22 | C46: 10.2 | D46: 10.26 | E46: 10.18 | F46: 10.24 | G46: 13084800 | H46: 10.24 | I46: 1 | J46: 1 | K46: 10.2 | L46: 10.26 | M46: 10.18 | N46: 10.24 | O46: 13084800
A47: 32 | B47: 2017-09-21 | C47: 10.18 | D47: 10.26 | E47: 10.13 | F47: 10.25 | G47: 11603300 | H47: 10.25 | I47: 1 | J47: 1 | K47: 10.18 | L47: 10.26 | M47: 10.13 | N47: 10.25 | O47: 11603300
A48: 33 | B48: 2017-09-20 | C48: 10.19 | D48: 10.33 | E48: 10.13 | F48: 10.24 | G48: 23015500 | H48: 10.24 | I48: 1 | J48: 1 | K48: 10.19 | L48: 10.33 | M48: 10.13 | N48: 10.24 | O48: 23015500
A49: 34 | B49: 2017-09-19 | C49: 10.22 | D49: 10.24 | E49: 10.05 | F49: 10.11 | G49: 15231800 | H49: 10.11 | I49: 1 | J49: 1 | K49: 10.22 | L49: 10.24 | M49: 10.05 | N49: 10.11 | O49: 15231800
A50: 35 | B50: 2017-09-18 | C50: 10.14 | D50: 10.2 | E50: 10.04 | F50: 10.17 | G50: 18930500 | H50: 10.17 | I50: 1 | J50: 1 | K50: 10.14 | L50: 10.2 | M50: 10.04 | N50: 10.17 | O50: 18930500
A51: 36 | B51: 2017-09-15 | C51: 10.19 | D51: 10.22 | E51: 10.14 | F51: 10.2 | G51: 16084400 | H51: 10.2 | I51: 1 | J51: 1 | K51: 10.19 | L51: 10.22 | M51: 10.14 | N51: 10.2 | O51: 16084400
A52: 37 | B52: 2017-09-14 | C52: 10.17 | D52: 10.28 | E52: 10.11 | F52: 10.13 | G52: 25561000 | H52: 10.13 | I52: 1 | J52: 1 | K52: 10.17 | L52: 10.28 | M52: 10.11 | N52: 10.13 | O52: 25561000
A53: 38 | B53: 2017-09-13 | C53: 9.92 | D53: 10.07 | E53: 9.89 | F53: 10.07 | G53: 22545000 | H53: 10.07 | I53: 1 | J53: 1 | K53: 9.92 | L53: 10.07 | M53: 9.89 | N53: 10.07 | O53: 22545000
A54: 39 | B54: 2017-09-12 | C54: 9.83 | D54: 9.89 | E54: 9.8 | F54: 9.87 | G54: 14170300 | H54: 9.87 | I54: 1 | J54: 1 | K54: 9.83 | L54: 9.89 | M54: 9.8 | N54: 9.87 | O54: 14170300
A55: 40 | B55: 2017-09-11 | C55: 9.66 | D55: 9.86 | E55: 9.61 | F55: 9.82 | G55: 16411100 | H55: 9.82 | I55: 1 | J55: 1 | K55: 9.66 | L55: 9.86 | M55: 9.61 | N55: 9.82 | O55: 16411100
A56: 41 | B56: 2017-09-08 | C56: 9.99 | D56: 10.02 | E56: 9.66 | F56: 9.73 | G56: 24078300 | H56: 9.73 | I56: 1 | J56: 1 | K56: 9.99 | L56: 10.02 | M56: 9.66 | N56: 9.73 | O56: 24078300
A57: 42 | B57: 2017-09-07 | C57: 9.98 | D57: 10.06 | E57: 9.96 | F57: 10.03 | G57: 20804800 | H57: 10.03 | I57: 1 | J57: 1 | K57: 9.98 | L57: 10.06 | M57: 9.96 | N57: 10.03 | O57: 20804800
A58: 43 | B58: 2017-09-06 | C58: 10.02 | D58: 10.09 | E58: 9.96 | F58: 10.04 | G58: 20626800 | H58: 10.04 | I58: 1 | J58: 1 | K58: 10.02 | L58: 10.09 | M58: 9.96 | N58: 10.04 | O58: 20626800
A59: 44 | B59: 2017-09-05 | C59: 9.91 | D59: 10 | E59: 9.89 | F59: 9.92 | G59: 24644300 | H59: 9.92 | I59: 1 | J59: 1 | K59: 9.91 | L59: 10 | M59: 9.89 | N59: 9.92 | O59: 24644300
A60: 45 | B60: 2017-09-01 | C60: 9.6 | D60: 9.67 | E60: 9.51 | F60: 9.67 | G60: 16012300 | H60: 9.67 | I60: 1 | J60: 1 | K60: 9.6 | L60: 9.67 | M60: 9.51 | N60: 9.67 | O60: 16012300
A61: 46 | B61: 2017-08-31 | C61: 9.49 | D61: 9.69 | E61: 9.49 | F61: 9.63 | G61: 25509700 | H61: 9.63 | I61: 1 | J61: 1 | K61: 9.49 | L61: 9.69 | M61: 9.49 | N61: 9.63 | O61: 25509700
A62: 47 | B62: 2017-08-30 | C62: 9.4 | D62: 9.54 | E62: 9.36 | F62: 9.38 | G62: 18890600 | H62: 9.38 | I62: 1 | J62: 1 | K62: 9.4 | L62: 9.54 | M62: 9.36 | N62: 9.38 | O62: 18890600
A63: 48 | B63: 2017-08-29 | C63: 9.48 | D63: 9.5 | E63: 9.34 | F63: 9.46 | G63: 19661000 | H63: 9.46 | I63: 1 | J63: 1 | K63: 9.48 | L63: 9.5 | M63: 9.34 | N63: 9.46 | O63: 19661000
A64: 49 | B64: 2017-08-28 | C64: 9.69 | D64: 9.7 | E64: 9.42 | F64: 9.53 | G64: 32482400 | H64: 9.53 | I64: 1 | J64: 1 | K64: 9.69 | L64: 9.7 | M64: 9.42 | N64: 9.53 | O64: 32482400
A65: 50 | B65: 2017-08-25 | C65: 9.71 | D65: 9.78 | E65: 9.69 | F65: 9.75 | G65: 15187500 | H65: 9.75 | I65: 1 | J65: 1 | K65: 9.71 | L65: 9.78 | M65: 9.69 | N65: 9.75 | O65: 15187500
A66: 51 | B66: 2017-08-24 | C66: 9.79 | D66: 9.8 | E66: 9.61 | F66: 9.71 | G66: 18166700 | H66: 9.71 | I66: 1 | J66: 1 | K66: 9.79 | L66: 9.8 | M66: 9.61 | N66: 9.71 | O66: 18166700
A67: 52 | B67: 2017-08-23 | C67: 9.76 | D67: 9.9 | E67: 9.73 | F67: 9.88 | G67: 16572400 | H67: 9.88 | I67: 1 | J67: 1 | K67: 9.76 | L67: 9.9 | M67: 9.73 | N67: 9.88 | O67: 16572400
A68: 53 | B68: 2017-08-22 | C68: 9.76 | D68: 9.84 | E68: 9.72 | F68: 9.77 | G68: 14248600 | H68: 9.77 | I68: 1 | J68: 1 | K68: 9.76 | L68: 9.84 | M68: 9.72 | N68: 9.77 | O68: 14248600
A69: 54 | B69: 2017-08-21 | C69: 9.87 | D69: 9.91 | E69: 9.64 | F69: 9.71 | G69: 30279000 | H69: 9.71 | I69: 1 | J69: 1 | K69: 9.87 | L69: 9.91 | M69: 9.64 | N69: 9.71 | O69: 30279000
A70: 55 | B70: 2017-08-18 | C70: 9.66 | D70: 9.98 | E70: 9.59 | F70: 9.97 | G70: 30468000 | H70: 9.97 | I70: 1 | J70: 1 | K70: 9.66 | L70: 9.98 | M70: 9.59 | N70: 9.97 | O70: 30468000
A71: 56 | B71: 2017-08-17 | C71: 9.54 | D71: 9.66 | E71: 9.52 | F71: 9.62 | G71: 15970800 | H71: 9.62 | I71: 1 | J71: 1 | K71: 9.54 | L71: 9.66 | M71: 9.52 | N71: 9.62 | O71: 15970800
A72: 57 | B72: 2017-08-16 | C72: 9.77 | D72: 9.85 | E72: 9.56 | F72: 9.57 | G72: 37689700 | H72: 9.57 | I72: 1 | J72: 1 | K72: 9.77 | L72: 9.85 | M72: 9.56 | N72: 9.57 | O72: 37689700
A73: 58 | B73: 2017-08-15 | C73: 9.66 | D73: 9.76 | E73: 9.63 | F73: 9.75 | G73: 19875800 | H73: 9.75 | I73: 1 | J73: 1 | K73: 9.66 | L73: 9.76 | M73: 9.63 | N73: 9.75 | O73: 19875800
A74: 59 | B74: 2017-08-14 | C74: 9.98 | D74: 10.06 | E74: 9.71 | F74: 9.72 | G74: 25130200 | H74: 9.72 | I74: 1 | J74: 1 | K74: 9.98 | L74: 10.06 | M74: 9.71 | N74: 9.72 | O74: 25130200
A75: 60 | B75: 2017-08-11 | C75: 9.88 | D75: 10.03 | E75: 9.83 | F75: 9.99 | G75: 14900200 | H75: 9.99 | I75: 1 | J75: 1 | K75: 9.88 | L75: 10.03 | M75: 9.83 | N75: 9.99 | O75: 14900200
A76: 61 | B76: 2017-08-10 | C76: 10.24 | D76: 10.25 | E76: 9.9 | F76: 9.91 | G76: 24936600 | H76: 9.91 | I76: 1 | J76: 1 | K76: 10.24 | L76: 10.25 | M76: 9.9 | N76: 9.91 | O76: 24936600
A77: 62 | B77: 2017-08-09 | C77: 10.12 | D77: 10.15 | E77: 10.04 | F77: 10.15 | G77: 17346600 | H77: 10.15 | I77: 1 | J77: 1 | K77: 10.12 | L77: 10.15 | M77: 10.04 | N77: 10.15 | O77: 17346600
A78: 63 | B78: 2017-08-08 | C78: 10.03 | D78: 10.15 | E78: 10.01 | F78: 10.06 | G78: 23435400 | H78: 10.06 | I78: 1 | J78: 1 | K78: 10.03 | L78: 10.15 | M78: 10.01 | N78: 10.06 | O78: 23435400
A79: 64 | B79: 2017-08-07 | C79: 10.02 | D79: 10.12 | E79: 9.94 | F79: 10.1 | G79: 19825500 | H79: 10.1 | I79: 1 | J79: 1 | K79: 10.02 | L79: 10.12 | M79: 9.94 | N79: 10.1 | O79: 19825500
A80: 65 | B80: 2017-08-04 | C80: 10.05 | D80: 10.16 | E80: 9.97 | F80: 10.13 | G80: 17626300 | H80: 10.13 | I80: 1 | J80: 1 | K80: 10.05 | L80: 10.16 | M80: 9.97 | N80: 10.13 | O80: 17626300
A81: 66 | B81: 2017-08-03 | C81: 10.21 | D81: 10.23 | E81: 9.99 | F81: 10.02 | G81: 23288000 | H81: 10.02 | I81: =IF(F81=0,1,H81/F81) -> 1 | J81: =INDEX(OFFSET($T$15,0,0,$S$13+1,1),MATCH(B81,OFFSET($Q$15,0,0,$S$13+1,1),-1)) -> 1 | K81: =ROUND($I81*C81,2) -> 10.21 | L81: =ROUND($I81*D81,2) -> 10.23 | M81: =ROUND($I81*E81,2) -> 9.99 | N81: =ROUND($I81*F81,2) -> 10.02 | O81: =G81*J81 -> 23288000
A82: 67 | B82: 2017-08-02 | C82: 10.07 | D82: 10.17 | E82: 9.95 | F82: 10.14 | G82: 27049600 | H82: 10.14 | I82: 1 | J82: 1 | K82: 10.07 | L82: 10.17 | M82: 9.95 | N82: 10.14 | O82: 27049600
A83: 68 | B83: 2017-08-01 | C83: 10.17 | D83: 10.18 | E83: 9.9 | F83: 10.09 | G83: 41539700 | H83: 10.09 | I83: 1 | J83: 1 | K83: 10.17 | L83: 10.18 | M83: 9.9 | N83: 10.09 | O83: 41539700
A84: 69 | B84: 2017-07-31 | C84: 10.15 | D84: 10.32 | E84: 10.07 | F84: 10.28 | G84: 32549200 | H84: 10.28 | I84: 1 | J84: 1 | K84: 10.15 | L84: 10.32 | M84: 10.07 | N84: 10.28 | O84: 32549200
A85: 70 | B85: 2017-07-28 | C85: 10.09 | D85: 10.2 | E85: 10.08 | F85: 10.17 | G85: 33308000 | H85: 10.17 | I85: 1 | J85: 1 | K85: 10.09 | L85: 10.2 | M85: 10.08 | N85: 10.17 | O85: 33308000
A86: 71 | B86: 2017-07-27 | C86: 10.03 | D86: 10.08 | E86: 9.93 | F86: 10.06 | G86: 26971000 | H86: 10.06 | I86: 1 | J86: 1 | K86: 10.03 | L86: 10.08 | M86: 9.93 | N86: 10.06 | O86: 26971000
A87: 72 | B87: 2017-07-26 | C87: 9.9 | D87: 10.01 | E87: 9.8 | F87: 9.96 | G87: 38918300 | H87: 9.96 | I87: 1 | J87: 1 | K87: 9.9 | L87: 10.01 | M87: 9.8 | N87: 9.96 | O87: 38918300
A88: 73 | B88: 2017-07-25 | C88: 9.69 | D88: 9.82 | E88: 9.65 | F88: 9.81 | G88: 27615000 | H88: 9.81 | I88: 1 | J88: 1 | K88: 9.69 | L88: 9.82 | M88: 9.65 | N88: 9.81 | O88: 27615000
A89: 74 | B89: 2017-07-24 | C89: 9.47 | D89: 9.52 | E89: 9.44 | F89: 9.5 | G89: 19736600 | H89: 9.5 | I89: 1 | J89: 1 | K89: 9.47 | L89: 9.52 | M89: 9.44 | N89: 9.5 | O89: 19736600
A90: 75 | B90: 2017-07-21 | C90: 9.56 | D90: 9.57 | E90: 9.32 | F90: 9.34 | G90: 37452800 | H90: 9.34 | I90: 1 | J90: 1 | K90: 9.56 | L90: 9.57 | M90: 9.32 | N90: 9.34 | O90: 37452800
A91: 76 | B91: 2017-07-20 | C91: 9.77 | D91: 9.78 | E91: 9.58 | F91: 9.61 | G91: 20593500 | H91: 9.61 | I91: 1 | J91: 1 | K91: 9.77 | L91: 9.78 | M91: 9.58 | N91: 9.61 | O91: 20593500
A92: 77 | B92: 2017-07-19 | C92: 9.57 | D92: 9.72 | E92: 9.57 | F92: 9.69 | G92: 25576700 | H92: 9.69 | I92: 1 | J92: 1 | K92: 9.57 | L92: 9.72 | M92: 9.57 | N92: 9.69 | O92: 25576700
A93: 78 | B93: 2017-07-18 | C93: 9.6 | D93: 9.61 | E93: 9.47 | F93: 9.54 | G93: 26992800 | H93: 9.54 | I93: 1 | J93: 1 | K93: 9.6 | L93: 9.61 | M93: 9.47 | N93: 9.54 | O93: 26992800
A94: 79 | B94: 2017-07-17 | C94: 9.54 | D94: 9.6 | E94: 9.45 | F94: 9.45 | G94: 25032500 | H94: 9.45 | I94: 1 | J94: 1 | K94: 9.54 | L94: 9.6 | M94: 9.45 | N94: 9.45 | O94: 25032500
A95: 80 | B95: 2017-07-14 | C95: 9.53 | D95: 9.61 | E95: 9.48 | F95: 9.59 | G95: 24820300 | H95: 9.59 | I95: 1 | J95: 1 | K95: 9.53 | L95: 9.61 | M95: 9.48 | N95: 9.59 | O95: 24820300
A96: 81 | B96: 2017-07-13 | C96: 9.39 | D96: 9.5 | E96: 9.36 | F96: 9.47 | G96: 20580600 | H96: 9.47 | I96: 1 | J96: 1 | K96: 9.39 | L96: 9.5 | M96: 9.36 | N96: 9.47 | O96: 20580600
A97: 82 | B97: 2017-07-12 | C97: 9.46 | D97: 9.55 | E97: 9.27 | F97: 9.33 | G97: 38201300 | H97: 9.33 | I97: 1 | J97: 1 | K97: 9.46 | L97: 9.55 | M97: 9.27 | N97: 9.33 | O97: 38201300
A98: 83 | B98: 2017-07-11 | C98: 9.11 | D98: 9.31 | E98: 9.08 | F98: 9.27 | G98: 24638500 | H98: 9.27 | I98: 1 | J98: 1 | K98: 9.11 | L98: 9.31 | M98: 9.08 | N98: 9.27 | O98: 24638500
A99: 84 | B99: 2017-07-10 | C99: 9.04 | D99: 9.22 | E99: 9.02 | F99: 9.13 | G99: 27664400 | H99: 9.13 | I99: 1 | J99: 1 | K99: 9.04 | L99: 9.22 | M99: 9.02 | N99: 9.13 | O99: 27664400
A100: 85 | B100: 2017-07-07 | C100: 9.19 | D100: 9.2 | E100: 9 | F100: 9.1 | G100: 43291300 | H100: 9.1 | I100: 1 | J100: 1 | K100: 9.19 | L100: 9.2 | M100: 9 | N100: 9.1 | O100: 43291300
A101: 86 | B101: 2017-07-06 | C101: 9.44 | D101: 9.56 | E101: 9.29 | F101: 9.31 | G101: 41881900 | H101: 9.31 | I101: 1 | J101: 1 | K101: 9.44 | L101: 9.56 | M101: 9.29 | N101: 9.31 | O101: 41881900
A102: 87 | B102: 2017-07-05 | C102: 9.56 | D102: 9.58 | E102: 9.23 | F102: 9.25 | G102: 68182000 | H102: 9.25 | I102: 1 | J102: 1 | K102: 9.56 | L102: 9.58 | M102: 9.23 | N102: 9.25 | O102: 68182000
A103: 88 | B103: 2017-07-03 | C103: 9.55 | D103: 9.63 | E103: 9.54 | F103: 9.62 | G103: 20200800 | H103: 9.62 | I103: 1 | J103: 1 | K103: 9.55 | L103: 9.63 | M103: 9.54 | N103: 9.62 | O103: 20200800
A104: 89 | B104: 2017-06-30 | C104: 9.32 | D104: 9.5 | E104: 9.29 | F104: 9.5 | G104: 32678800 | H104: 9.5 | I104: 1 | J104: 1 | K104: 9.32 | L104: 9.5 | M104: 9.29 | N104: 9.5 | O104: 32678800
A105: 90 | B105: 2017-06-29 | C105: 9.27 | D105: 9.34 | E105: 9.18 | F105: 9.21 | G105: 31259000 | H105: 9.21 | I105: 1 | J105: 1 | K105: 9.27 | L105: 9.34 | M105: 9.18 | N105: 9.21 | O105: 31259000
A106: 91 | B106: 2017-06-28 | C106: 9.1 | D106: 9.22 | E106: 9.03 | F106: 9.2 | G106: 29368000 | H106: 9.2 | I106: 1 | J106: 1 | K106: 9.1 | L106: 9.22 | M106: 9.03 | N106: 9.2 | O106: 29368000
A107: 92 | B107: 2017-06-27 | C107: 8.99 | D107: 9.14 | E107: 8.98 | F107: 9.1 | G107: 29140000 | H107: 9.1 | I107: 1 | J107: 1 | K107: 8.99 | L107: 9.14 | M107: 8.98 | N107: 9.1 | O107: 29140000
A108: 93 | B108: 2017-06-26 | C108: 8.88 | D108: 8.96 | E108: 8.77 | F108: 8.93 | G108: 37263000 | H108: 8.93 | I108: 1 | J108: 1 | K108: 8.88 | L108: 8.96 | M108: 8.77 | N108: 8.93 | O108: 37263000
A109: 94 | B109: 2017-06-23 | C109: 8.8 | D109: 8.89 | E109: 8.75 | F109: 8.86 | G109: 31028400 | H109: 8.86 | I109: 1 | J109: 1 | K109: 8.8 | L109: 8.89 | M109: 8.75 | N109: 8.86 | O109: 31028400
A110: 95 | B110: 2017-06-22 | C110: 8.8 | D110: 8.91 | E110: 8.77 | F110: 8.78 | G110: 31594100 | H110: 8.78 | I110: 1 | J110: 1 | K110: 8.8 | L110: 8.91 | M110: 8.77 | N110: 8.78 | O110: 31594100
A111: 96 | B111: 2017-06-21 | C111: 8.97 | D111: 9.08 | E111: 8.65 | F111: 8.71 | G111: 61198200 | H111: 8.71 | I111: 1 | J111: 1 | K111: 8.97 | L111: 9.08 | M111: 8.65 | N111: 8.71 | O111: 61198200
A112: 97 | B112: 2017-06-20 | C112: 8.93 | D112: 8.97 | E112: 8.83 | F112: 8.95 | G112: 48635000 | H112: 8.95 | I112: 1 | J112: 1 | K112: 8.93 | L112: 8.97 | M112: 8.83 | N112: 8.95 | O112: 48635000
A113: 98 | B113: 2017-06-19 | C113: 9.27 | D113: 9.3 | E113: 9.11 | F113: 9.12 | G113: 25802300 | H113: 9.12 | I113: 1 | J113: 1 | K113: 9.27 | L113: 9.3 | M113: 9.11 | N113: 9.12 | O113: 25802300
A114: 99 | B114: 2017-06-16 | C114: 9.26 | D114: 9.27 | E114: 9.2 | F114: 9.24 | G114: 21403800 | H114: 9.24 | I114: 1 | J114: 1 | K114: 9.26 | L114: 9.27 | M114: 9.2 | N114: 9.24 | O114: 21403800
A115: 100 | B115: 2017-06-15 | C115: 9.22 | D115: 9.24 | E115: 9.16 | F115: 9.18 | G115: 31606500 | H115: 9.18 | I115: 1 | J115: 1 | K115: 9.22 | L115: 9.24 | M115: 9.16 | N115: 9.18 | O115: 31606500
A116: 101 | B116: 2017-06-14 | C116: 9.54 | D116: 9.59 | E116: 9.2 | F116: 9.23 | G116: 60687800 | H116: 9.23 | I116: 1 | J116: 1 | K116: 9.54 | L116: 9.59 | M116: 9.2 | N116: 9.23 | O116: 60687800
A117: 102 | B117: 2017-06-13 | C117: 9.51 | D117: 9.62 | E117: 9.41 | F117: 9.6 | G117: 25996700 | H117: 9.6 | I117: 1 | J117: 1 | K117: 9.51 | L117: 9.62 | M117: 9.41 | N117: 9.6 | O117: 25996700
A118: 103 | B118: 2017-06-12 | C118: 9.61 | D118: 9.65 | E118: 9.51 | F118: 9.52 | G118: 25478800 | H118: 9.52 | I118: 1 | J118: 1 | K118: 9.61 | L118: 9.65 | M118: 9.51 | N118: 9.52 | O118: 25478800
A119: 104 | B119: 2017-06-09 | C119: 9.44 | D119: 9.55 | E119: 9.41 | F119: 9.49 | G119: 25624700 | H119: 9.49 | I119: 1 | J119: 1 | K119: 9.44 | L119: 9.55 | M119: 9.41 | N119: 9.49 | O119: 25624700
A120: 105 | B120: 2017-06-08 | C120: 9.4 | D120: 9.53 | E120: 9.37 | F120: 9.43 | G120: 39626600 | H120: 9.43 | I120: 1 | J120: 1 | K120: 9.4 | L120: 9.53 | M120: 9.37 | N120: 9.43 | O120: 39626600
A121: 106 | B121: 2017-06-07 | C121: 9.84 | D121: 9.88 | E121: 9.44 | F121: 9.46 | G121: 58698800 | H121: 9.46 | I121: 1 | J121: 1 | K121: 9.84 | L121: 9.88 | M121: 9.44 | N121: 9.46 | O121: 58698800
A122: 107 | B122: 2017-06-06 | C122: 9.74 | D122: 9.99 | E122: 9.73 | F122: 9.97 | G122: 26368100 | H122: 9.97 | I122: 1 | J122: 1 | K122: 9.74 | L122: 9.99 | M122: 9.73 | N122: 9.97 | O122: 26368100
A123: 108 | B123: 2017-06-05 | C123: 9.72 | D123: 9.82 | E123: 9.68 | F123: 9.8 | G123: 28136700 | H123: 9.8 | I123: 1 | J123: 1 | K123: 9.72 | L123: 9.82 | M123: 9.68 | N123: 9.8 | O123: 28136700
A124: 109 | B124: 2017-06-02 | C124: 9.83 | D124: 9.93 | E124: 9.73 | F124: 9.86 | G124: 30743200 | H124: 9.86 | I124: 1 | J124: 1 | K124: 9.83 | L124: 9.93 | M124: 9.73 | N124: 9.86 | O124: 30743200
A125: 110 | B125: 2017-06-01 | C125: 10.01 | D125: 10.16 | E125: 9.91 | F125: 9.91 | G125: 30181300 | H125: 9.91 | I125: 1 | J125: 1 | K125: 10.01 | L125: 10.16 | M125: 9.91 | N125: 9.91 | O125: 30181300
A126: 111 | B126: 2017-05-31 | C126: 9.99 | D126: 10.05 | E126: 9.86 | F126: 9.96 | G126: 33314100 | H126: 9.96 | I126: 1 | J126: 1 | K126: 9.99 | L126: 10.05 | M126: 9.86 | N126: 9.96 | O126: 33314100
A127: 112 | B127: 2017-05-30 | C127: 10.17 | D127: 10.3 | E127: 10.13 | F127: 10.24 | G127: 15950800 | H127: 10.24 | I127: 1 | J127: 1 | K127: 10.17 | L127: 10.3 | M127: 10.13 | N127: 10.24 | O127: 15950800
A128: 113 | B128: 2017-05-26 | C128: 10.14 | D128: 10.3 | E128: 10.09 | F128: 10.28 | G128: 31424500 | H128: 10.28 | I128: 1 | J128: 1 | K128: 10.14 | L128: 10.3 | M128: 10.09 | N128: 10.28 | O128: 31424500
A129: 114 | B129: 2017-05-25 | C129: 10.5 | D129: 10.58 | E129: 10.01 | F129: 10.04 | G129: 83813000 | H129: 10.04 | I129: 1 | J129: 1 | K129: 10.5 | L129: 10.58 | M129: 10.01 | N129: 10.04 | O129: 83813000
A130: 115 | B130: 2017-05-24 | C130: 10.62 | D130: 10.7 | E130: 10.54 | F130: 10.6 | G130: 32217200 | H130: 10.6 | I130: 1 | J130: 1 | K130: 10.62 | L130: 10.7 | M130: 10.54 | N130: 10.6 | O130: 32217200
A131: 116 | B131: 2017-05-23 | C131: 10.58 | D131: 10.65 | E131: 10.54 | F131: 10.64 | G131: 26251000 | H131: 10.64 | I131: 1 | J131: 1 | K131: 10.58 | L131: 10.65 | M131: 10.54 | N131: 10.64 | O131: 26251000
A132: 117 | B132: 2017-05-22 | C132: 10.55 | D132: 10.6 | E132: 10.5 | F132: 10.54 | G132: 24494100 | H132: 10.54 | I132: 1 | J132: 1 | K132: 10.55 | L132: 10.6 | M132: 10.5 | N132: 10.54 | O132: 24494100
A133: 118 | B133: 2017-05-19 | C133: 10.4 | D133: 10.49 | E133: 10.38 | F133: 10.48 | G133: 24768200 | H133: 10.48 | I133: 1 | J133: 1 | K133: 10.4 | L133: 10.49 | M133: 10.38 | N133: 10.48 | O133: 24768200
A134: 119 | B134: 2017-05-18 | C134: 10.13 | D134: 10.31 | E134: 10.09 | F134: 10.26 | G134: 21291700 | H134: 10.26 | I134: 1 | J134: 1 | K134: 10.13 | L134: 10.31 | M134: 10.09 | N134: 10.26 | O134: 21291700
A135: 120 | B135: 2017-05-17 | C135: 10.19 | D135: 10.29 | E135: 10.1 | F135: 10.19 | G135: 27053700 | H135: 10.19 | I135: 1 | J135: 1 | K135: 10.19 | L135: 10.29 | M135: 10.1 | N135: 10.19 | O135: 27053700
A136: 121 | B136: 2017-05-16 | C136: 10.22 | D136: 10.26 | E136: 10.09 | F136: 10.11 | G136: 16824900 | H136: 10.11 | I136: 1 | J136: 1 | K136: 10.22 | L136: 10.26 | M136: 10.09 | N136: 10.11 | O136: 16824900
A137: 122 | B137: 2017-05-15 | C137: 10.27 | D137: 10.28 | E137: 10.13 | F137: 10.17 | G137: 36712500 | H137: 10.17 | I137: 1 | J137: 1 | K137: 10.27 | L137: 10.28 | M137: 10.13 | N137: 10.17 | O137: 36712500
A138: 123 | B138: 2017-05-12 | C138: 9.97 | D138: 9.98 | E138: 9.85 | F138: 9.95 | G138: 19435600 | H138: 9.95 | I138: 1 | J138: 1 | K138: 9.97 | L138: 9.98 | M138: 9.85 | N138: 9.95 | O138: 19435600
A139: 124 | B139: 2017-05-11 | C139: 9.99 | D139: 10.04 | E139: 9.9 | F139: 9.94 | G139: 19372200 | H139: 9.94 | I139: 1 | J139: 1 | K139: 9.99 | L139: 10.04 | M139: 9.9 | N139: 9.94 | O139: 19372200
A140: 125 | B140: 2017-05-10 | C140: 9.7 | D140: 9.95 | E140: 9.68 | F140: 9.86 | G140: 33397600 | H140: 9.86 | I140: 1 | J140: 1 | K140: 9.7 | L140: 9.95 | M140: 9.68 | N140: 9.86 | O140: 33397600
A141: 126 | B141: 2017-05-09 | C141: 9.64 | D141: 9.67 | E141: 9.48 | F141: 9.57 | G141: 20430200 | H141: 9.57 | I141: 1 | J141: 1 | K141: 9.64 | L141: 9.67 | M141: 9.48 | N141: 9.57 | O141: 20430200
A142: 127 | B142: 2017-05-08 | C142: 9.65 | D142: 9.75 | E142: 9.53 | F142: 9.67 | G142: 30537500 | H142: 9.67 | I142: 1 | J142: 1 | K142: 9.65 | L142: 9.75 | M142: 9.53 | N142: 9.67 | O142: 30537500
A143: 128 | B143: 2017-05-05 | C143: 9.47 | D143: 9.72 | E143: 9.47 | F143: 9.66 | G143: 35582100 | H143: 9.66 | I143: 1 | J143: 1 | K143: 9.47 | L143: 9.72 | M143: 9.47 | N143: 9.66 | O143: 35582100
A144: 129 | B144: 2017-05-04 | C144: 9.75 | D144: 9.76 | E144: 9.43 | F144: 9.46 | G144: 70243500 | H144: 9.46 | I144: 1 | J144: 1 | K144: 9.75 | L144: 9.76 | M144: 9.43 | N144: 9.46 | O144: 70243500
A145: 130 | B145: 2017-05-03 | C145: 9.96 | D145: 10.01 | E145: 9.86 | F145: 9.93 | G145: 36540400 | H145: 9.93 | I145: =IF(F145=0,1,H145/F145) -> 1 | J145: =INDEX(OFFSET($T$15,0,0,$S$13+1,1),MATCH(B145,OFFSET($Q$15,0,0,$S$13+1,1),-1)) -> 1 | K145: =ROUND($I145*C145,2) -> 9.96 | L145: =ROUND($I145*D145,2) -> 10.01 | M145: =ROUND($I145*E145,2) -> 9.86 | N145: =ROUND($I145*F145,2) -> 9.93 | O145: =G145*J145 -> 36540400
A146: 131 | B146: 2017-05-02 | C146: 10.17 | D146: 10.17 | E146: 9.86 | F146: 9.92 | G146: 44146300 | H146: 9.92 | I146: 1 | J146: 1 | K146: 10.17 | L146: 10.17 | M146: 9.86 | N146: 9.92 | O146: 44146300
A147: 132 | B147: 2017-05-01 | C147: 10.19 | D147: 10.21 | E147: 10.12 | F147: 10.15 | G147: 16116300 | H147: 10.15 | I147: 1 | J147: 1 | K147: 10.19 | L147: 10.21 | M147: 10.12 | N147: 10.15 | O147: 16116300
A148: 133 | B148: 2017-04-28 | C148: 10.29 | D148: 10.33 | E148: 10.17 | F148: 10.24 | G148: 15798000 | H148: 10.24 | I148: 1 | J148: 1 | K148: 10.29 | L148: 10.33 | M148: 10.17 | N148: 10.24 | O148: 15798000
A149: 134 | B149: 2017-04-27 | C149: 10.13 | D149: 10.26 | E149: 10.04 | F149: 10.24 | G149: 34004000 | H149: 10.24 | I149: 1 | J149: 1 | K149: 10.13 | L149: 10.26 | M149: 10.04 | N149: 10.24 | O149: 34004000
A150: 135 | B150: 2017-04-26 | C150: 10.24 | D150: 10.46 | E150: 10.22 | F150: 10.26 | G150: 26806700 | H150: 10.26 | I150: 1 | J150: 1 | K150: 10.24 | L150: 10.46 | M150: 10.22 | N150: 10.26 | O150: 26806700
A151: 136 | B151: 2017-04-25 | C151: 10.25 | D151: 10.38 | E151: 10.18 | F151: 10.36 | G151: 23694300 | H151: 10.36 | I151: 1 | J151: 1 | K151: 10.25 | L151: 10.38 | M151: 10.18 | N151: 10.36 | O151: 23694300
A152: 137 | B152: 2017-04-24 | C152: 10.29 | D152: 10.31 | E152: 10.21 | F152: 10.25 | G152: 27837300 | H152: 10.25 | I152: 1 | J152: 1 | K152: 10.29 | L152: 10.31 | M152: 10.21 | N152: 10.25 | O152: 27837300
A153: 138 | B153: 2017-04-21 | C153: 10.55 | D153: 10.55 | E153: 10.25 | F153: 10.32 | G153: 38664800 | H153: 10.32 | I153: 1 | J153: 1 | K153: 10.55 | L153: 10.55 | M153: 10.25 | N153: 10.32 | O153: 38664800
A154: 139 | B154: 2017-04-20 | C154: 10.58 | D154: 10.68 | E154: 10.52 | F154: 10.54 | G154: 29358300 | H154: 10.54 | I154: 1 | J154: 1 | K154: 10.58 | L154: 10.68 | M154: 10.52 | N154: 10.54 | O154: 29358300
A155: 140 | B155: 2017-04-19 | C155: 11.03 | D155: 11.05 | E155: 10.52 | F155: 10.62 | G155: 50463000 | H155: 10.62 | I155: 1 | J155: 1 | K155: 11.03 | L155: 11.05 | M155: 10.52 | N155: 10.62 | O155: 50463000
A156: 141 | B156: 2017-04-18 | C156: 11 | D156: 11.1 | E156: 10.94 | F156: 11.04 | G156: 14503600 | H156: 11.04 | I156: 1 | J156: 1 | K156: 11 | L156: 11.1 | M156: 10.94 | N156: 11.04 | O156: 14503600
A157: 142 | B157: 2017-04-17 | C157: 11.13 | D157: 11.15 | E157: 11.04 | F157: 11.06 | G157: 14853400 | H157: 11.06 | I157: 1 | J157: 1 | K157: 11.13 | L157: 11.15 | M157: 11.04 | N157: 11.06 | O157: 14853400
A158: 143 | B158: 2017-04-13 | C158: 11.18 | D158: 11.2 | E158: 11.1 | F158: 11.13 | G158: 17369800 | H158: 11.13 | I158: 1 | J158: 1 | K158: 11.18 | L158: 11.2 | M158: 11.1 | N158: 11.13 | O158: 17369800
A159: 144 | B159: 2017-04-12 | C159: 11.24 | D159: 11.26 | E159: 11.08 | F159: 11.11 | G159: 25773000 | H159: 11.11 | I159: 1 | J159: 1 | K159: 11.24 | L159: 11.26 | M159: 11.08 | N159: 11.11 | O159: 25773000
A160: 145 | B160: 2017-04-11 | C160: 11.13 | D160: 11.21 | E160: 11.06 | F160: 11.17 | G160: 24549100 | H160: 11.17 | I160: 1 | J160: 1 | K160: 11.13 | L160: 11.21 | M160: 11.06 | N160: 11.17 | O160: 24549100
A161: 146 | B161: 2017-04-10 | C161: 11.07 | D161: 11.14 | E161: 11.04 | F161: 11.14 | G161: 22166500 | H161: 11.14 | I161: 1 | J161: 1 | K161: 11.07 | L161: 11.14 | M161: 11.04 | N161: 11.14 | O161: 22166500
A162: 147 | B162: 2017-04-07 | C162: 10.89 | D162: 10.97 | E162: 10.87 | F162: 10.96 | G162: 19212800 | H162: 10.96 | I162: 1 | J162: 1 | K162: 10.89 | L162: 10.97 | M162: 10.87 | N162: 10.96 | O162: 19212800
A163: 148 | B163: 2017-04-06 | C163: 10.82 | D163: 10.88 | E163: 10.8 | F163: 10.86 | G163: 21920900 | H163: 10.86 | I163: 1 | J163: 1 | K163: 10.82 | L163: 10.88 | M163: 10.8 | N163: 10.86 | O163: 21920900
A164: 149 | B164: 2017-04-05 | C164: 10.84 | D164: 10.89 | E164: 10.65 | F164: 10.68 | G164: 28988000 | H164: 10.68 | I164: 1 | J164: 1 | K164: 10.84 | L164: 10.89 | M164: 10.65 | N164: 10.68 | O164: 28988000
A165: 150 | B165: 2017-04-04 | C165: 10.63 | D165: 10.74 | E165: 10.59 | F165: 10.71 | G165: 24385600 | H165: 10.71 | I165: 1 | J165: 1 | K165: 10.63 | L165: 10.74 | M165: 10.59 | N165: 10.71 | O165: 24385600
A166: 151 | B166: 2017-04-03 | C166: 10.62 | D166: 10.63 | E166: 10.52 | F166: 10.55 | G166: 16796100 | H166: 10.55 | I166: 1 | J166: 1 | K166: 10.62 | L166: 10.63 | M166: 10.52 | N166: 10.55 | O166: 16796100
A167: 152 | B167: 2017-03-31 | C167: 10.52 | D167: 10.66 | E167: 10.51 | F167: 10.64 | G167: 19430600 | H167: 10.64 | I167: 1 | J167: 1 | K167: 10.52 | L167: 10.66 | M167: 10.51 | N167: 10.64 | O167: 19430600
A168: 153 | B168: 2017-03-30 | C168: 10.47 | D168: 10.59 | E168: 10.44 | F168: 10.57 | G168: 28570800 | H168: 10.57 | I168: 1 | J168: 1 | K168: 10.47 | L168: 10.59 | M168: 10.44 | N168: 10.57 | O168: 28570800
A169: 154 | B169: 2017-03-29 | C169: 10.18 | D169: 10.4 | E169: 10.17 | F169: 10.37 | G169: 23155500 | H169: 10.37 | I169: 1 | J169: 1 | K169: 10.18 | L169: 10.4 | M169: 10.17 | N169: 10.37 | O169: 23155500
A170: 155 | B170: 2017-03-28 | C170: 10.11 | D170: 10.23 | E170: 10.09 | F170: 10.15 | G170: 17808800 | H170: 10.15 | I170: 1 | J170: 1 | K170: 10.11 | L170: 10.23 | M170: 10.09 | N170: 10.15 | O170: 17808800
A171: 156 | B171: 2017-03-27 | C171: 9.93 | D171: 10.05 | E171: 9.88 | F171: 10.04 | G171: 22504200 | H171: 10.04 | I171: 1 | J171: 1 | K171: 9.93 | L171: 10.05 | M171: 9.88 | N171: 10.04 | O171: 22504200
A172: 157 | B172: 2017-03-24 | C172: 10.05 | D172: 10.1 | E172: 9.98 | F172: 10.09 | G172: 16115000 | H172: 10.09 | I172: 1 | J172: 1 | K172: 10.05 | L172: 10.1 | M172: 9.98 | N172: 10.09 | O172: 16115000
A173: 158 | B173: 2017-03-23 | C173: 10.04 | D173: 10.07 | E173: 9.99 | F173: 10.01 | G173: 18601100 | H173: 10.01 | I173: 1 | J173: 1 | K173: 10.04 | L173: 10.07 | M173: 9.99 | N173: 10.01 | O173: 18601100
A174: 159 | B174: 2017-03-22 | C174: 10.02 | D174: 10.14 | E174: 9.88 | F174: 10.12 | G174: 22442800 | H174: 10.12 | I174: 1 | J174: 1 | K174: 10.02 | L174: 10.14 | M174: 9.88 | N174: 10.12 | O174: 22442800
A175: 160 | B175: 2017-03-21 | C175: 10.3 | D175: 10.33 | E175: 10.07 | F175: 10.11 | G175: 24905200 | H175: 10.11 | I175: 1 | J175: 1 | K175: 10.3 | L175: 10.33 | M175: 10.07 | N175: 10.11 | O175: 24905200
A176: 161 | B176: 2017-03-20 | C176: 10.26 | D176: 10.36 | E176: 10.22 | F176: 10.27 | G176: 13767800 | H176: 10.27 | I176: 1 | J176: 1 | K176: 10.26 | L176: 10.36 | M176: 10.22 | N176: 10.27 | O176: 13767800
A177: 162 | B177: 2017-03-17 | C177: 10.42 | D177: 10.43 | E177: 10.32 | F177: 10.33 | G177: 17883700 | H177: 10.33 | I177: 1 | J177: 1 | K177: 10.42 | L177: 10.43 | M177: 10.32 | N177: 10.33 | O177: 17883700
A178: 163 | B178: 2017-03-16 | C178: 10.39 | D178: 10.4 | E178: 10.29 | F178: 10.36 | G178: 22429000 | H178: 10.36 | I178: 1 | J178: 1 | K178: 10.39 | L178: 10.4 | M178: 10.29 | N178: 10.36 | O178: 22429000
A179: 164 | B179: 2017-03-15 | C179: 10.31 | D179: 10.41 | E179: 10.24 | F179: 10.38 | G179: 34094800 | H179: 10.38 | I179: 1 | J179: 1 | K179: 10.31 | L179: 10.41 | M179: 10.24 | N179: 10.38 | O179: 34094800
A180: 165 | B180: 2017-03-14 | C180: 10.11 | D180: 10.21 | E180: 10.02 | F180: 10.19 | G180: 43678900 | H180: 10.19 | I180: 1 | J180: 1 | K180: 10.11 | L180: 10.21 | M180: 10.02 | N180: 10.19 | O180: 43678900
A181: 166 | B181: 2017-03-13 | C181: 10.29 | D181: 10.34 | E181: 10.22 | F181: 10.28 | G181: 41080000 | H181: 10.28 | I181: 1 | J181: 1 | K181: 10.29 | L181: 10.34 | M181: 10.22 | N181: 10.28 | O181: 41080000
A182: 167 | B182: 2017-03-10 | C182: 10.52 | D182: 10.52 | E182: 10.25 | F182: 10.29 | G182: 43623400 | H182: 10.29 | I182: 1 | J182: 1 | K182: 10.52 | L182: 10.52 | M182: 10.25 | N182: 10.29 | O182: 43623400
A183: 168 | B183: 2017-03-09 | C183: 10.57 | D183: 10.59 | E183: 10.32 | F183: 10.53 | G183: 48216300 | H183: 10.53 | I183: 1 | J183: 1 | K183: 10.57 | L183: 10.59 | M183: 10.32 | N183: 10.53 | O183: 48216300
A184: 169 | B184: 2017-03-08 | C184: 11.11 | D184: 11.22 | E184: 10.62 | F184: 10.67 | G184: 65761200 | H184: 10.67 | I184: 1 | J184: 1 | K184: 11.11 | L184: 11.22 | M184: 10.62 | N184: 10.67 | O184: 65761200
A185: 170 | B185: 2017-03-07 | C185: 11.38 | D185: 11.39 | E185: 11.26 | F185: 11.27 | G185: 10927500 | H185: 11.27 | I185: 1 | J185: 1 | K185: 11.38 | L185: 11.39 | M185: 11.26 | N185: 11.27 | O185: 10927500
A186: 171 | B186: 2017-03-06 | C186: 11.32 | D186: 11.36 | E186: 11.24 | F186: 11.28 | G186: 15630400 | H186: 11.28 | I186: 1 | J186: 1 | K186: 11.32 | L186: 11.36 | M186: 11.24 | N186: 11.28 | O186: 15630400
A187: 172 | B187: 2017-03-03 | C187: 11.19 | D187: 11.33 | E187: 11.18 | F187: 11.29 | G187: 14425600 | H187: 11.29 | I187: 1 | J187: 1 | K187: 11.19 | L187: 11.33 | M187: 11.18 | N187: 11.29 | O187: 14425600
A188: 173 | B188: 2017-03-02 | C188: 11.21 | D188: 11.3 | E188: 11.15 | F188: 11.17 | G188: 21734400 | H188: 11.17 | I188: 1 | J188: 1 | K188: 11.21 | L188: 11.3 | M188: 11.15 | N188: 11.17 | O188: 21734400
A189: 174 | B189: 2017-03-01 | C189: 11.51 | D189: 11.55 | E189: 11.4 | F189: 11.4 | G189: 14578500 | H189: 11.4 | I189: 1 | J189: 1 | K189: 11.51 | L189: 11.55 | M189: 11.4 | N189: 11.4 | O189: 14578500
A190: 175 | B190: 2017-02-28 | C190: 11.36 | D190: 11.47 | E190: 11.28 | F190: 11.45 | G190: 16896500 | H190: 11.45 | I190: 1 | J190: 1 | K190: 11.36 | L190: 11.47 | M190: 11.28 | N190: 11.45 | O190: 16896500
A191: 176 | B191: 2017-02-27 | C191: 11.56 | D191: 11.57 | E191: 11.45 | F191: 11.47 | G191: 10362500 | H191: 11.47 | I191: 1 | J191: 1 | K191: 11.56 | L191: 11.57 | M191: 11.45 | N191: 11.47 | O191: 10362500
A192: 177 | B192: 2017-02-24 | C192: 11.44 | D192: 11.51 | E192: 11.44 | F192: 11.46 | G192: 11322100 | H192: 11.46 | I192: 1 | J192: 1 | K192: 11.44 | L192: 11.51 | M192: 11.44 | N192: 11.46 | O192: 11322100
A193: 178 | B193: 2017-02-23 | C193: 11.61 | D193: 11.65 | E193: 11.5 | F193: 11.53 | G193: 19254600 | H193: 11.53 | I193: 1 | J193: 1 | K193: 11.61 | L193: 11.65 | M193: 11.5 | N193: 11.53 | O193: 19254600
A194: 179 | B194: 2017-02-22 | C194: 11.38 | D194: 11.4 | E194: 11.32 | F194: 11.36 | G194: 18527400 | H194: 11.36 | I194: 1 | J194: 1 | K194: 11.38 | L194: 11.4 | M194: 11.32 | N194: 11.36 | O194: 18527400
A195: 180 | B195: 2017-02-21 | C195: 11.63 | D195: 11.64 | E195: 11.51 | F195: 11.54 | G195: 25221400 | H195: 11.54 | I195: 1 | J195: 1 | K195: 11.63 | L195: 11.64 | M195: 11.51 | N195: 11.54 | O195: 25221400
A196: 181 | B196: 2017-02-17 | C196: 11.32 | D196: 11.42 | E196: 11.31 | F196: 11.39 | G196: 13810200 | H196: 11.39 | I196: 1 | J196: 1 | K196: 11.32 | L196: 11.42 | M196: 11.31 | N196: 11.39 | O196: 13810200
A197: 182 | B197: 2017-02-16 | C197: 11.44 | D197: 11.45 | E197: 11.27 | F197: 11.41 | G197: 13772400 | H197: 11.41 | I197: 1 | J197: 1 | K197: 11.44 | L197: 11.45 | M197: 11.27 | N197: 11.41 | O197: 13772400
A198: 183 | B198: 2017-02-15 | C198: 11.33 | D198: 11.45 | E198: 11.32 | F198: 11.36 | G198: 19615800 | H198: 11.36 | I198: 1 | J198: 1 | K198: 11.33 | L198: 11.45 | M198: 11.32 | N198: 11.36 | O198: 19615800
A199: 184 | B199: 2017-02-14 | C199: 11.48 | D199: 11.49 | E199: 11.35 | F199: 11.38 | G199: 18470900 | H199: 11.38 | I199: 1 | J199: 1 | K199: 11.48 | L199: 11.49 | M199: 11.35 | N199: 11.38 | O199: 18470900
A200: 185 | B200: 2017-02-13 | C200: 11.37 | D200: 11.4 | E200: 11.3 | F200: 11.32 | G200: 20504000 | H200: 11.32 | I200: 1 | J200: 1 | K200: 11.37 | L200: 11.4 | M200: 11.3 | N200: 11.32 | O200: 20504000
... 2730 more rows

Sheet CalculationsAndCharts
A1: The CAM Indicator For Trends And Countertrends | Q1: Clutter and What-If Controls
A2: =InputPriceData!A1 -> United States Oil (USO) -NYSEArca (Daily)
A4: User Charting Controls | E4: Click to Shift Chart One Bar: | Q4: TRUE
A5: Data Control
A6: =InputPriceData!$B$10 -> 2915 | B6: Available Input Data Rows | E6: Earliest: | F6: =OFFSET(InputPriceData!B15,CalculationsAndCharts!A6,0,1,1) -> 2006-04-10
B7: Use Close Adjusted: | C7: FALSE | E7: Latest: | F7: =OFFSET(InputPriceData!B15,1,0,1,1) -> 2017-11-03 | Q7: Per Footnote in Metastock CAM Formula Sidebar
A8: =MIN(A6-A11,LOOKUP(2,1/(C:C<>0),ROW(A:A))-32) -> 2500 | B8: Logically Available for Calc / Plot | E8: $ Change: | F8: =G33-G34 -> -0.24
A10: Price Chart Windowing Controls | F10: Y-axis Range | Q10: FALSE
A11: 207 | B11: Input Data Offset (Pan) | E11: Max High+ | F11: =CEILING(MAX(MAX(OFFSET($E$33,0,0,$A$12,1)))+2*F14,0.1) -> 12.3
A12: 58 | B12: Data Points to Plot (Zoom) | E12: Min Low- | F12: =FLOOR(MIN(MIN(OFFSET($F$33,0,0,$A$12,1)))-2*F14,0.1) -> 9.2
B13: First: | C13: =OFFSET(B32,A12,0,1,1) -> 2016-10-18 | E13: White space %: | F13: 0.05
B14: ="Last: " & IF(OFFSET(InputPriceData!P15,1+A11,0,1,1)="","",TEXT(OFFSET(InputPriceData!P15,1+A11,0,1,1),"H:MM AM/PM")) -> Last: | C14: =B33 -> 2017-01-10 | E14: Allowance: | F14: =FLOOR((CEILING(MAX(MAX(OFFSET($E$33,0,0,$A$12,1))),1)-FLOOR(MIN(MIN(OFFSET($F$33,0,0,$A$12,1))),1))*F13,0.01) -> 0.15
A15: User Controls
A16: ADX | B16: Period | C16: Wilders Alpha | D16: 1 - W_Alpha | F16: Price SMA
B17: 10 | C17: =1/B17 -> 0.1 | D17: =1-C17 -> 0.9 | F17: 14
B19: Bar Count | C19: Alpha | D19: 1 - Alpha | F19: CCI Bar Count
A20: MACD | B20: 12 | C20: =2/(B20+1) -> 0.1538461538 | D20: =1-C20 -> 0.8461538462
B21: 26 | C21: =2/(B21+1) -> 0.07407407407 | D21: =1-C21 -> 0.9259259259 | F21: 14
A22: Signal | B22: 9 | C22: =2/(B22+1) -> 0.2 | D22: =1-C22 -> 0.8
A23: Help! I would like to plot data | X23: ADX Decimal Place Rounding Spec
A24: From | B24: 2016-10-18 | C24: =OFFSET(InputPriceData!$A$15,MATCH(B24,OFFSET(InputPriceData!B15,1,0,InputPriceData!$B$10,1),0),0,1,1)-C25 -> 58 | E24: 41
A25: To | B25: 2017-01-10 | C25: =OFFSET(InputPriceData!$A$15,MATCH(B25,OFFSET(InputPriceData!$B$15,1,0,InputPriceData!$B$10,1),0),0,1,1)-1 -> 207 | E25: =$A$12-$E$24+1 -> 18
H28: @ Cursor => | I28: =OFFSET(A32,$E$25,0,1,1)&"(RR)" -> 18(RR) | J28: =OFFSET($B$32,E25,0,1,1) -> 2016-12-14 | K28: =TEXT(OFFSET(D32,$E$25,0,1,1),"#,##0.00")&"(o)" -> 11.59(o) | L28: =TEXT(OFFSET(E32,$E$25,0,1,1),"#,##0.00")&"(h)" -> 11.73(h) | M28: =TEXT(OFFSET(F32,$E$25,0,1,1),"#,##0.00")&"(l)" -> 11.30(l) | N28: =TEXT(OFFSET(G32,$E$25,0,1,1),"#,##0.00")&"(c)" -> 11.32(c) | X28: =IF($Q$10,0,5) -> 5
E29: Cursor ==> | AT29: Chart cursors
AD30: Clutter Control work area for CAM Color Bars | AH30: =$F$21 & " Bar Commodity Channel Index Computations" -> 14 Bar Commodity Channel Index Computations | AL30: CCI Color Plot Work Area | AT30: Work area
A31: Rel Row | H31: MACD Daily | J31: ="MACD (" & $B$20 & ", "&$B$21 & ")" -> MACD (12, 26) | K31: ="Signal("&B22&")" -> Signal(9) | P31: =$B$17 -> 10 | Q31: Period ADX Calculations Area | Z31: CAM Indicator Signals | AD31: CAM UP | AE31: CAM Pull Back | AF31: CAM Down | AG31: CAM Counter Trend | AH31: Typical Price | AI31: ="AVG("&$F$21&")" -> AVG(14) | AJ31: ="Mean Dev(" & $F$21 & ")" -> Mean Dev(14) | AK31: ="CCI(" & $F$21 & ")" -> CCI(14) | AO31: Used To Color Vol Bars
B32: Date | C32: Volume | D32: Open | E32: High | F32: Low | G32: Close | H32: ="EMA(" & B20 & ")" -> EMA(12) | I32: ="EMA(" & B21 & ")" -> EMA(26) | L32: Zero Line | M32: TrueRange | N32: +DM | O32: -DM | P32: ="ATR " & $B$17 -> ATR 10 | Q32: ="+DM " &$B$17 -> +DM 10 | R32: ="-DM " & $B$17 -> -DM 10 | S32: ="+DI " & $B$17 -> +DI 10 | T32: ="-DI " & $B$17 -> -DI 10 | U32: ="DI " &$B$17 & " DIFF" -> DI 10 DIFF | V32: ="DI " & $B$17 & " SUM" -> DI 10 SUM | W32: ="DX " &$B$17 -> DX 10 | X32: ="ADX " & $B$17 -> ADX 10 | Y32: ="SMA(" & F17 & ")" -> SMA(14) | Z32: CAM-UP | AA32: CAM-PB | AB32: CAM-DN | AC32: CAM-CT | AL32: CCI UP | AM32: CCI Dn | AO32: Up Vol | AP32: Dn Vol | AT32: Volume Cursor | AV32: =MAX(OFFSET(C33,0,0,A12,1)) -> 110265700 | AW32: MACD Chart Cursor | AY32: Price Chart Cursor | BA32: ADX Chart Cursor | BC32: CCI Chart Cursor
A33: 1 | B33: =OFFSET(InputPriceData!B$15,CalculationsAndCharts!$A33+$A$11,0,1,1) -> 2017-01-10 | C33: =OFFSET(InputPriceData!G$15,CalculationsAndCharts!$A33+$A$11,IF($C$7,8,0),1,1) -> 23861600 | D33: =OFFSET(InputPriceData!C$15,CalculationsAndCharts!$A33+$A$11,IF($C$7,8,0),1,1) -> 11.37 | E33: =OFFSET(InputPriceData!D$15,CalculationsAndCharts!$A33+$A$11,IF($C$7,8,0),1,1) -> 11.37 | F33: =OFFSET(InputPriceData!E$15,CalculationsAndCharts!$A33+$A$11,IF($C$7,8,0),1,1) -> 11.07 | G33: =OFFSET(InputPriceData!F$15,CalculationsAndCharts!$A33+$A$11,IF($C$7,8,0),1,1) -> 11.07 | H33: =IF($A33>$A$8,NA(),IF($A33=$A$8,$G33,$G33*$C$20+H34*$D$20)) -> 11.47657391 | I33: =IF($A33>$A$8,NA(),IF($A33=$A$8,$G33,$G33*$C$21+I34*$D$21)) -> 11.38053316 | J33: =H33-I33 -> 0.09604075328 | K33: =IF($A33>$A$8,NA(),IF($A33=$A$8,$G33,$J33*$C$22+K34*$D$22)) -> 0.1732723587 | L33: 0 | M33: =IF($A33<$A$8,MAX($E33-$F33,ABS($E33-$G34),ABS($F33-$G34)),"") -> 0.3 | N33: =IF($A33<$A$8,IF($E33-$E34>$F34-$F33,MAX($E33-$E34,0),0),"") -> 0 | O33: =IF($A33<$A$8,IF($F34-$F33>$E33-$E34,MAX($F34-$F33,0),0),"") -> 0.23 | P33: =IF(($A$8-$A33)<$B$17,"",IF(($A$8-$A33)=$B$17,AVERAGE(OFFSET(M33,0,0,$B$17,1)),P34*$D$17+M33*$C$17)) -> 0.2704998992 | Q33: =IF(($A$8-$A33)<$B$17,"",IF(($A$8-$A33)=$B$17,AVERAGE(OFFSET(N33,0,0,$B$17,1)),Q34*$D$17+N33*$C$17)) -> 0.05158116101 | R33: =IF(($A$8-$A33)<$B$17,"",IF(($A$8-$A33)=$B$17,AVERAGE(OFFSET(O33,0,0,$B$17,1)),R34*$D$17+O33*$C$17)) -> 0.09497881109 | S33: =IF(($A$8-$A33)<$B$17,"",Q33/P33*100) -> 19.06882818 | T33: =IF(($A$8-$A33)<$B$17,"",R33/P33*100) -> 35.11232772 | U33: =IF(($A$8-$A33)<$B$17,"",ABS(S33-T33)) -> 16.04349954 | V33: =IF(($A$8-$A33)<$B$17,"",S33+T33) -> 54.1811559 | W33: =IF(($A$8-$A33)<$B$17,"",U33/V33*100) -> 29.61084767 | X33: =IF(($A$8-$A33)<(2*$B$17),"",ROUND(IF(($A$8-$A33)=(2*$B$17),AVERAGE(OFFSET(W33,0,0,$B$17,1)),(X34*$D$17+W33*$C$17)),$X$28)) -> 18.59688 | Y33: =IF($A33>$A$8,NA(),IF($A33=$A$8,$G33,AVERAGE(OFFSET(G33,0,0,$F$17,1)))) -> 11.55571429 | Z33: =IF(($A$8-$A33)<(2*$B$17+1),NA(),AND(X33>=X34,J33>J34)) -> FALSE | AA33: =IF(($A$8-$A33)<(2*$B$17+1),NA(),AND(X33<=X34,J33<J34)) -> FALSE | AB33: =IF(($A$8-$A33)<(2*$B$17+1),NA(),AND(X33>=X34,J33<J34)) -> TRUE | AC33: =IF(($A$8-$A33)<(2*$B$17+1),NA(),AND(X33<=X34,J33>J34)) -> FALSE | AD33: =IF($Q$4,IF(Z33,$AZ$34,0),NA()) -> 0 | AE33: =IF($Q$4,IF(AA33,$AZ$34,0),NA()) -> 0 | AF33: 12.3 | AG33: 0 | AH33: =AVERAGE(E33:G33) -> 11.17 | AI33: =IF(($A$8-$A33)<($F$21-1),NA(),AVERAGE(OFFSET(AH33,0,0,$F$21,1))) -> 11.58142857 | AJ33: =IF(($A$8-$A33)<($F$21-1),NA(),AVEDEV(OFFSET(AH33,0,0,$F$21,1))) -> 0.126462585 | AK33: =IF(($A$8-$A33)<($F$21-1),NA(),(AH33-AI33)/(0.015*AJ33)) -> -216.8908015 | AL33: =IF(AK33>=0,AK33,0) -> 0 | AM33: =IF(AK33<0,AK33,0) -> -216.8908015 | AO33: =IF(G33>=D33,C33,NA()) ->  | AP33: =IF(G33<D33,C33,NA()) -> 23861600 | AT33: =$E$25 -> 18 | AV33: 0 | AW33: =$E$25 -> 18 | AX33: -0.4 | AY33: =$E$25 -> 18 | AZ33: 9.321 | BA33: =$E$25 -> 18 | BB33: 15.7042665 | BC33: =$E$25 -> 18 | BD33: -252.6363636
A34: 2 | B34: =OFFSET(InputPriceData!B$15,CalculationsAndCharts!$A34+$A$11,0,1,1) -> 2017-01-09 | C34: =OFFSET(InputPriceData!G$15,CalculationsAndCharts!$A34+$A$11,IF($C$7,8,0),1,1) -> 20055400 | D34: =OFFSET(InputPriceData!C$15,CalculationsAndCharts!$A34+$A$11,IF($C$7,8,0),1,1) -> 11.52 | E34: =OFFSET(InputPriceData!D$15,CalculationsAndCharts!$A34+$A$11,IF($C$7,8,0),1,1) -> 11.53 | F34: =OFFSET(InputPriceData!E$15,CalculationsAndCharts!$A34+$A$11,IF($C$7,8,0),1,1) -> 11.3 | G34: =OFFSET(InputPriceData!F$15,CalculationsAndCharts!$A34+$A$11,IF($C$7,8,0),1,1) -> 11.31 | H34: =IF($A34>$A$8,NA(),IF(A34=$A$8,G34,G34*$C$20+H35*$D$20)) -> 11.55049644 | I34: 11.40537581 | J34: =H34-I34 -> 0.1451206299 | K34: =IF($A34>$A$8,NA(),IF($A34=$A$8,$G34,$J34*$C$22+K35*$D$22)) -> 0.19258026 | L34: 0 | M34: 0.38 | N34: 0 | O34: 0.32 | P34: 0.2672221102 | Q34: 0.05731240112 | R34: 0.07997645676 | S34: 21.44747719 | T34: 29.92883212 | U34: 8.481354939 | V34: 51.37630931 | W34: 16.50829936 | X34: =IF(($A$8-$A34)<(2*$B$17),"",ROUND(IF(($A$8-$A34)=(2*$B$17),AVERAGE(OFFSET(W34,0,0,$B$17,1)),(X35*$D$17+W34*$C$17)),$X$28)) -> 17.37311 | Y34: =IF($A34>$A$8,NA(),IF($A34=$A$8,$G34,AVERAGE(OFFSET(G34,0,0,$F$17,1)))) -> 11.58642857 | Z34: FALSE | AA34: =IF(($A$8-$A34)<(2*$B$17+1),NA(),AND(X34<=X35,J34<J35)) -> TRUE | AB34: =IF(($A$8-$A34)<(2*$B$17+1),NA(),AND(X34>=X35,J34<J35)) -> FALSE | AC34: =IF(($A$8-$A34)<(2*$B$17+1),NA(),AND(X34<=X35,J34>J35)) -> FALSE | AD34: =IF($Q$4,IF(Z34,$AZ$34,0),NA()) -> 0 | AE34: =IF($Q$4,IF(AA34,$AZ$34,0),NA()) -> 12.3 | AF34: =IF($Q$4,IF(AB34,$AZ$34,0),NA()) -> 0 | AG34: =IF($Q$4,IF(AC34,$AZ$34,0),NA()) -> 0 | AH34: =AVERAGE(E34:G34) -> 11.38 | AI34: =IF(($A$8-$A34)<($F$21-1),NA(),AVERAGE(OFFSET(AH34,0,0,$F$21,1))) -> 11.60690476 | AJ34: =IF(($A$8-$A34)<($F$21-1),NA(),AVEDEV(OFFSET(AH34,0,0,$F$21,1))) -> 0.09833333333 | AK34: =IF(($A$8-$A34)<($F$21-1),NA(),(AH34-AI34)/(0.015*AJ34)) -> -153.8337369 | AL34: =IF(AK34>=0,AK34,0) -> 0 | AM34: =IF(AK34<0,AK34,0) -> -153.8337369 | AP34: 20055400 | AT34: =$E$25 -> 18 | AV34: =1.2*AV32 -> 132318840 | AW34: =$E$25 -> 18 | AX34: 0.4 | AY34: =$E$25 -> 18 | AZ34: 12.3 | BA34: =$E$25 -> 18 | BB34: 42.52967925 | BC34: =$E$25 -> 18 | BD34: 227.2804464
A35: 3 | B35: =OFFSET(InputPriceData!B$15,CalculationsAndCharts!$A35+$A$11,0,1,1) -> 2017-01-06 | C35: =OFFSET(InputPriceData!G$15,CalculationsAndCharts!$A35+$A$11,IF($C$7,8,0),1,1) -> 15279600 | D35: =OFFSET(InputPriceData!C$15,CalculationsAndCharts!$A35+$A$11,IF($C$7,8,0),1,1) -> 11.76 | E35: =OFFSET(InputPriceData!D$15,CalculationsAndCharts!$A35+$A$11,IF($C$7,8,0),1,1) -> 11.81 | F35: =OFFSET(InputPriceData!E$15,CalculationsAndCharts!$A35+$A$11,IF($C$7,8,0),1,1) -> 11.62 | G35: =OFFSET(InputPriceData!F$15,CalculationsAndCharts!$A35+$A$11,IF($C$7,8,0),1,1) -> 11.68 | H35: 11.59422306 | I35: 11.41300587 | J35: 0.1812171904 | K35: 0.2044451676 | L35: 0 | M35: 0.19 | N35: 0.02 | O35: 0 | P35: 0.2546912336 | Q35: 0.06368044569 | R35: 0.05330717418 | S35: 25.00299865 | T35: 20.9301174 | U35: 4.072881255 | V35: 45.93311605 | W35: 8.866982267 | X35: 17.4692 | Y35: 11.60357143 | Z35: FALSE | AA35: TRUE | AB35: FALSE | AC35: FALSE | AD35: 0 | AE35: 12.3 | AF35: 0 | AG35: 0 | AH35: 11.70333333 | AI35: 11.61619048 | AJ35: 0.08904761905 | AK35: 65.24064171 | AL35: 65.24064171 | AM35: 0 | AP35: 15279600
A36: 4 | B36: =OFFSET(InputPriceData!B$15,CalculationsAndCharts!$A36+$A$11,0,1,1) -> 2017-01-05 | C36: =OFFSET(InputPriceData!G$15,CalculationsAndCharts!$A36+$A$11,IF($C$7,8,0),1,1) -> 21346700 | D36: =OFFSET(InputPriceData!C$15,CalculationsAndCharts!$A36+$A$11,IF($C$7,8,0),1,1) -> 11.69 | E36: =OFFSET(InputPriceData!D$15,CalculationsAndCharts!$A36+$A$11,IF($C$7,8,0),1,1) -> 11.79 | F36: =OFFSET(InputPriceData!E$15,CalculationsAndCharts!$A36+$A$11,IF($C$7,8,0),1,1) -> 11.51 | G36: =OFFSET(InputPriceData!F$15,CalculationsAndCharts!$A36+$A$11,IF($C$7,8,0),1,1) -> 11.7 | H36: 11.57862726 | I36: 11.39164634 | J36: 0.1869809141 | K36: 0.2102521619 | L36: 0 | M36: 0.28 | N36: 0.16 | O36: 0 | P36: 0.2618791484 | Q36: 0.06853382854 | R36: 0.05923019353 | S36: 26.17002116 | T36: 22.61737672 | U36: 3.552644442 | V36: 48.78739787 | W36: 7.281889579 | X36: 18.425 | Y36: 11.58071429 | Z36: FALSE | AA36: TRUE | AB36: FALSE | AC36: FALSE | AD36: 0 | AE36: 12.3 | AF36: 0 | AG36: 0 | AH36: 11.66666667 | AI36: 11.58928571 | AJ36: 0.1011904762 | AK36: 50.98039216 | AL36: 50.98039216 | AM36: 0 | AO36: 21346700
A37: 5 | B37: =OFFSET(InputPriceData!B$15,CalculationsAndCharts!$A37+$A$11,0,1,1) -> 2017-01-04 | C37: =OFFSET(InputPriceData!G$15,CalculationsAndCharts!$A37+$A$11,IF($C$7,8,0),1,1) -> 18067800 | D37: =OFFSET(InputPriceData!C$15,CalculationsAndCharts!$A37+$A$11,IF($C$7,8,0),1,1) -> 11.42 | E37: =OFFSET(InputPriceData!D$15,CalculationsAndCharts!$A37+$A$11,IF($C$7,8,0),1,1) -> 11.63 | F37: =OFFSET(InputPriceData!E$15,CalculationsAndCharts!$A37+$A$11,IF($C$7,8,0),1,1) -> 11.36 | G37: =OFFSET(InputPriceData!F$15,CalculationsAndCharts!$A37+$A$11,IF($C$7,8,0),1,1) -> 11.58 | H37: 11.55655949 | I37: 11.36697805 | J37: 0.1895814353 | K37: 0.2160699738 | L37: 0 | M37: 0.27 | N37: 0 | O37: 0 | P37: 0.2598657204 | Q37: 0.0583709206 | R37: 0.06581132615 | S37: 22.46195478 | T37: 25.32512793 | U37: 2.863173154 | V37: 47.78708271 | W37: 5.991521122 | X37: 19.66312 | Y37: 11.55357143 | Z37: FALSE | AA37: TRUE | AB37: FALSE | AC37: FALSE | AD37: 0 | AE37: 12.3 | AF37: 0 | AG37: 0 | AH37: 11.52333333 | AI37: 11.57380952 | AJ37: 0.1034013605 | AK37: -32.54385965 | AL37: 0 | AM37: -32.54385965 | AO37: 18067800
A38: 6 | B38: =OFFSET(InputPriceData!B$15,CalculationsAndCharts!$A38+$A$11,0,1,1) -> 2017-01-03 | C38: =OFFSET(InputPriceData!G$15,CalculationsAndCharts!$A38+$A$11,IF($C$7,8,0),1,1) -> 36183500 | D38: =OFFSET(InputPriceData!C$15,CalculationsAndCharts!$A38+$A$11,IF($C$7,8,0),1,1) -> 11.98 | E38: =OFFSET(InputPriceData!D$15,CalculationsAndCharts!$A38+$A$11,IF($C$7,8,0),1,1) -> 12 | F38: =OFFSET(InputPriceData!E$15,CalculationsAndCharts!$A38+$A$11,IF($C$7,8,0),1,1) -> 11.36 | G38: =OFFSET(InputPriceData!F$15,CalculationsAndCharts!$A38+$A$11,IF($C$7,8,0),1,1) -> 11.44 | H38: 11.55229758 | I38: 11.3499363 | J38: 0.2023612797 | K38: 0.2226921084 | L38: 0 | M38: 0.64 | N38: 0 | O38: 0.28 | P38: 0.2587396894 | Q38: 0.06485657845 | R38: 0.07312369572 | S38: 25.06634317 | T38: 28.26149165 | U38: 3.195148487 | V38: 53.32783482 | W38: 5.991521122 | X38: 21.18219 | Y38: 11.56428571 | Z38: FALSE | AA38: TRUE | AB38: FALSE | AC38: FALSE | AD38: 0 | AE38: 12.3 | AF38: 0 | AG38: 0 | AH38: 11.6 | AI38: 11.58785714 | AJ38: 0.1102380952 | AK38: 7.343412527 | AL38: 7.343412527 | AM38: 0 | AP38: 36183500
A39: 7 | B39: =OFFSET(InputPriceData!B$15,CalculationsAndCharts!$A39+$A$11,0,1,1) -> 2016-12-30 | C39: =OFFSET(InputPriceData!G$15,CalculationsAndCharts!$A39+$A$11,IF($C$7,8,0),1,1) -> 14844300 | D39: =OFFSET(InputPriceData!C$15,CalculationsAndCharts!$A39+$A$11,IF($C$7,8,0),1,1) -> 11.66 | E39: =OFFSET(InputPriceData!D$15,CalculationsAndCharts!$A39+$A$11,IF($C$7,8,0),1,1) -> 11.72 | F39: =OFFSET(InputPriceData!E$15,CalculationsAndCharts!$A39+$A$11,IF($C$7,8,0),1,1) -> 11.64 | G39: =OFFSET(InputPriceData!F$15,CalculationsAndCharts!$A39+$A$11,IF($C$7,8,0),1,1) -> 11.72 | H39: 11.57271532 | I39: 11.3427312 | J39: 0.229984117 | K39: 0.2277748156 | L39: 0 | M39: 0.08 | N39: 0 | O39: 0.04 | P39: 0.2163774326 | Q39: 0.07206286494 | R39: 0.05013743969 | S39: 33.30424253 | T39: 23.17128874 | U39: 10.13295379 | V39: 56.47553127 | W39: 17.9422018 | X39: 22.87004 | Y39: 11.57714286 | Z39: FALSE | AA39: TRUE | AB39: FALSE | AC39: FALSE | AD39: 0 | AE39: 12.3 | AF39: 0 | AG39: 0 | AH39: 11.69333333 | AI39: 11.59595238 | AJ39: 0.1183333333 | AK39: 54.86250838 | AL39: 54.86250838 | AM39: 0 | AO39: 14844300
A40: 8 | B40: =OFFSET(InputPriceData!B$15,CalculationsAndCharts!$A40+$A$11,0,1,1) -> 2016-12-29 | C40: =OFFSET(InputPriceData!G$15,CalculationsAndCharts!$A40+$A$11,IF($C$7,8,0),1,1) -> 16032300 | D40: =OFFSET(InputPriceData!C$15,CalculationsAndCharts!$A40+$A$11,IF($C$7,8,0),1,1) -> 11.75 | E40: =OFFSET(InputPriceData!D$15,CalculationsAndCharts!$A40+$A$11,IF($C$7,8,0),1,1) -> 11.81 | F40: =OFFSET(InputPriceData!E$15,CalculationsAndCharts!$A40+$A$11,IF($C$7,8,0),1,1) -> 11.68 | G40: =OFFSET(InputPriceData!F$15,CalculationsAndCharts!$A40+$A$11,IF($C$7,8,0),1,1) -> 11.72 | H40: 11.54593628 | I40: 11.3125497 | J40: 0.2333865877 | K40: 0.2272224903 | L40: 0 | M40: 0.13 | N40: 0 | O40: 0.06 | P40: 0.2315304807 | Q40: 0.08006984994 | R40: 0.05126382188 | S40: 34.58285479 | T40: 22.14128426 | U40: 12.44157053 | V40: 56.72413905 | W40: 21.93346737 | X40: 23.41758 | Y40: 11.55714286 | Z40: FALSE | AA40: TRUE | AB40: FALSE | AC40: FALSE | AD40: 0 | AE40: 12.3 | AF40: 0 | AG40: 0 | AH40: 11.73666667 | AI40: 11.57642857 | AJ40: 0.1211564626 | AK40: 88.17143927 | AL40: 88.17143927 | AM40: 0 | AP40: 16032300
A41: 9 | B41: =OFFSET(InputPriceData!B$15,CalculationsAndCharts!$A41+$A$11,0,1,1) -> 2016-12-28 | C41: =OFFSET(InputPriceData!G$15,CalculationsAndCharts!$A41+$A$11,IF($C$7,8,0),1,1) -> 17743600 | D41: =OFFSET(InputPriceData!C$15,CalculationsAndCharts!$A41+$A$11,IF($C$7,8,0),1,1) -> 11.78 | E41: =OFFSET(InputPriceData!D$15,CalculationsAndCharts!$A41+$A$11,IF($C$7,8,0),1,1) -> 11.84 | F41: =OFFSET(InputPriceData!E$15,CalculationsAndCharts!$A41+$A$11,IF($C$7,8,0),1,1) -> 11.74 | G41: =OFFSET(InputPriceData!F$15,CalculationsAndCharts!$A41+$A$11,IF($C$7,8,0),1,1) -> 11.75 | H41: 11.51428833 | I41: 11.27995367 | J41: 0.2343346636 | K41: 0.2256814659 | L41: 0 | M41: 0.11 | N41: 0.05 | O41: 0 | P41: 0.2428116452 | Q41: 0.08896649993 | R41: 0.05029313542 | S41: 36.64012895 | T41: 20.71281852 | U41: 15.92731044 | V41: 57.35294747 | W41: 27.77069207 | X41: 23.58248 | Y41: 11.52785714 | Z41: TRUE | AA41: FALSE | AB41: FALSE | AC41: FALSE | AD41: 12.3 | AE41: 0 | AF41: 0 | AG41: 0 | AH41: 11.77666667 | AI41: 11.54047619 | AJ41: 0.1239455782 | AK41: 127.0398829 | AL41: 127.0398829 | AM41: 0 | AP41: 17743600
A42: 10 | B42: =OFFSET(InputPriceData!B$15,CalculationsAndCharts!$A42+$A$11,0,1,1) -> 2016-12-27 | C42: =OFFSET(InputPriceData!G$15,CalculationsAndCharts!$A42+$A$11,IF($C$7,8,0),1,1) -> 14143300 | D42: =OFFSET(InputPriceData!C$15,CalculationsAndCharts!$A42+$A$11,IF($C$7,8,0),1,1) -> 11.64 | E42: =OFFSET(InputPriceData!D$15,CalculationsAndCharts!$A42+$A$11,IF($C$7,8,0),1,1) -> 11.79 | F42: =OFFSET(InputPriceData!E$15,CalculationsAndCharts!$A42+$A$11,IF($C$7,8,0),1,1) -> 11.64 | G42: =OFFSET(InputPriceData!F$15,CalculationsAndCharts!$A42+$A$11,IF($C$7,8,0),1,1) -> 11.73 | H42: 11.47143167 | I42: 11.24234996 | J42: 0.2290817034 | K42: 0.2235181665 | L42: 0 | M42: 0.23 | N42: 0.22 | O42: 0 | P42: 0.2575684947 | Q42: 0.09329611103 | R42: 0.05588126158 | S42: 36.22186446 | T42: 21.69568978 | U42: 14.52617468 | V42: 57.91755423 | W42: 25.08078055 | X42: 23.11712 | Y42: 11.48071429 | Z42: TRUE | AA42: FALSE | AB42: FALSE | AC42: FALSE | AD42: 12.3 | AE42: 0 | AF42: 0 | AG42: 0 | AH42: 11.72 | AI42: 11.495 | AJ42: 0.1292857143 | AK42: 116.0220994 | AL42: 116.0220994 | AM42: 0 | AO42: 14143300
A43: 11 | B43: =OFFSET(InputPriceData!B$15,CalculationsAndCharts!$A43+$A$11,0,1,1) -> 2016-12-23 | C43: =OFFSET(InputPriceData!G$15,CalculationsAndCharts!$A43+$A$11,IF($C$7,8,0),1,1) -> 10548200 | D43: =OFFSET(InputPriceData!C$15,CalculationsAndCharts!$A43+$A$11,IF($C$7,8,0),1,1) -> 11.45 | E43: =OFFSET(InputPriceData!D$15,CalculationsAndCharts!$A43+$A$11,IF($C$7,8,0),1,1) -> 11.57 | F43: =OFFSET(InputPriceData!E$15,CalculationsAndCharts!$A43+$A$11,IF($C$7,8,0),1,1) -> 11.44 | G43: =OFFSET(InputPriceData!F$15,CalculationsAndCharts!$A43+$A$11,IF($C$7,8,0),1,1) -> 11.56 | H43: 11.42441924 | I43: 11.20333796 | J43: =H43-I43 -> 0.2210812823 | K43: 0.2221272822 | L43: 0 | M43: 0.13 | N43: 0 | O43: 0.02 | P43: 0.2606316608 | Q43: 0.07921790115 | R43: 0.06209029064 | S43: 30.39458096 | T43: 23.82300387 | U43: 6.571577089 | V43: 54.21758483 | W43: 12.12074848 | X43: 22.89894 | Y43: 11.44928571 | Z43: FALSE | AA43: TRUE | AB43: FALSE | AC43: FALSE | AD43: 0 | AE43: 12.3 | AF43: 0 | AG43: 0 | AH43: 11.52333333 | AI43: 11.46309524 | AJ43: 0.1336054422 | AK43: 30.05770536 | AL43: 30.05770536 | AM43: 0 | AO43: 10548200
A44: 12 | B44: =OFFSET(InputPriceData!B$15,CalculationsAndCharts!$A44+$A$11,0,1,1) -> 2016-12-22 | C44: =OFFSET(InputPriceData!G$15,CalculationsAndCharts!$A44+$A$11,IF($C$7,8,0),1,1) -> 18279200 | D44: =OFFSET(InputPriceData!C$15,CalculationsAndCharts!$A44+$A$11,IF($C$7,8,0),1,1) -> 11.5 | E44: =OFFSET(InputPriceData!D$15,CalculationsAndCharts!$A44+$A$11,IF($C$7,8,0),1,1) -> 11.59 | F44: =OFFSET(InputPriceData!E$15,CalculationsAndCharts!$A44+$A$11,IF($C$7,8,0),1,1) -> 11.46 | G44: =OFFSET(InputPriceData!F$15,CalculationsAndCharts!$A44+$A$11,IF($C$7,8,0),1,1) -> 11.46 | H44: 11.3997682 | I44: 11.174805 | J44: 0.2249631988 | K44: 0.2223887822 | L44: 0 | M44: 0.15 | N44: 0 | O44: 0 | P44: 0.2751462898 | Q44: 0.08801989017 | R44: 0.0667669896 | S44: 31.99021518 | T44: 24.2659967 | U44: 7.724218481 | V44: 56.25621189 | W44: 13.73042767 | X44: 24.09652 | Y44: 11.43428571 | Z44: FALSE | AA44: TRUE | AB44: FALSE | AC44: FALSE | AD44: 0 | AE44: 12.3 | AF44: 0 | AG44: 0 | AH44: 11.50333333 | AI44: 11.45714286 | AJ44: 0.130952381 | AK44: 23.51515152 | AL44: 23.51515152 | AM44: 0 | AP44: 18279200
A45: 13 | B45: =OFFSET(InputPriceData!B$15,CalculationsAndCharts!$A45+$A$11,0,1,1) -> 2016-12-21 | C45: =OFFSET(InputPriceData!G$15,CalculationsAndCharts!$A45+$A$11,IF($C$7,8,0),1,1) -> 23070300 | D45: =OFFSET(InputPriceData!C$15,CalculationsAndCharts!$A45+$A$11,IF($C$7,8,0),1,1) -> 11.65 | E45: =OFFSET(InputPriceData!D$15,CalculationsAndCharts!$A45+$A$11,IF($C$7,8,0),1,1) -> 11.67 | F45: =OFFSET(InputPriceData!E$15,CalculationsAndCharts!$A45+$A$11,IF($C$7,8,0),1,1) -> 11.4 | G45: =OFFSET(InputPriceData!F$15,CalculationsAndCharts!$A45+$A$11,IF($C$7,8,0),1,1) -> 11.44 | H45: 11.38881696 | I45: 11.1519894 | J45: 0.2368275622 | K45: 0.2217451781 | L45: 0 | M45: 0.27 | N45: 0 | O45: 0.18 | P45: 0.2890514331 | Q45: 0.09779987796 | R45: 0.074185544 | S45: 33.83476668 | T45: 25.6651708 | U45: 8.169595877 | V45: 59.49993748 | W45: 13.73042767 | X45: 25.24831 | Y45: 11.43571429 | Z45: FALSE | AA45: TRUE | AB45: FALSE | AC45: FALSE | AD45: 0 | AE45: 12.3 | AF45: 0 | AG45: 0 | AH45: 11.50333333 | AI45: 11.45238095 | AJ45: 0.1284353741 | AK45: 26.44774011 | AL45: 26.44774011 | AM45: 0 | AP45: 23070300
A46: 14 | B46: =OFFSET(InputPriceData!B$15,CalculationsAndCharts!$A46+$A$11,0,1,1) -> 2016-12-20 | C46: =OFFSET(InputPriceData!G$15,CalculationsAndCharts!$A46+$A$11,IF($C$7,8,0),1,1) -> 19031900 | D46: =OFFSET(InputPriceData!C$15,CalculationsAndCharts!$A46+$A$11,IF($C$7,8,0),1,1) -> 11.67 | E46: =OFFSET(InputPriceData!D$15,CalculationsAndCharts!$A46+$A$11,IF($C$7,8,0),1,1) -> 11.72 | F46: =OFFSET(InputPriceData!E$15,CalculationsAndCharts!$A46+$A$11,IF($C$7,8,0),1,1) -> 11.58 | G46: =OFFSET(InputPriceData!F$15,CalculationsAndCharts!$A46+$A$11,IF($C$7,8,0),1,1) -> 11.62 | H46: 11.37951095 | I46: 11.12894855 | J46: 0.2505624032 | K46: 0.217974582 | L46: 0 | M46: 0.22 | N46: 0.11 | O46: 0 | P46: 0.291168259 | Q46: 0.1086665311 | R46: 0.06242838222 | S46: 37.32087126 | T46: 21.44065512 | U46: 15.88021614 | V46: 58.76152638 | W46: 27.02485302 | X46: 26.52808 | Y46: 11.42785714 | Z46: TRUE | AA46: FALSE | AB46: FALSE | AC46: FALSE | AD46: 12.3 | AE46: 0 | AF46: 0 | AG46: 0 | AH46: 11.64 | AI46: 11.44285714 | AJ46: 0.1289795918 | AK46: 101.8987342 | AL46: 101.8987342 | AM46: 0 | AP46: 19031900
A47: 15 | B47: =OFFSET(InputPriceData!B$15,CalculationsAndCharts!$A47+$A$11,0,1,1) -> 2016-12-19 | C47: =OFFSET(InputPriceData!G$15,CalculationsAndCharts!$A47+$A$11,IF($C$7,8,0),1,1) -> 19235200 | D47: =OFFSET(InputPriceData!C$15,CalculationsAndCharts!$A47+$A$11,IF($C$7,8,0),1,1) -> 11.52 | E47: =OFFSET(InputPriceData!D$15,CalculationsAndCharts!$A47+$A$11,IF($C$7,8,0),1,1) -> 11.61 | F47: =OFFSET(InputPriceData!E$15,CalculationsAndCharts!$A47+$A$11,IF($C$7,8,0),1,1) -> 11.47 | G47: =OFFSET(InputPriceData!F$15,CalculationsAndCharts!$A47+$A$11,IF($C$7,8,0),1,1) -> 11.5 | H47: 11.33578567 | I47: 11.08966443 | J47: 0.246121238 | K47: 0.2098276268 | L47: 0 | M47: 0.14 | N47: 0.03 | O47: 0 | P47: 0.2990758433 | Q47: 0.1085183679 | R47: 0.06936486914 | S47: 36.2845647 | T47: 23.19306982 | U47: 13.09149488 | V47: 59.47763451 | W47: 22.01078605 | X47: 26.47288 | Y47: 11.37857143 | Z47: FALSE | AA47: TRUE | AB47: FALSE | AC47: FALSE | AD47: 0 | AE47: 12.3 | AF47: 0 | AG47: 0 | AH47: 11.52666667 | AI47: 11.37547619 | AJ47: 0.1732653061 | AK47: 58.173014 | AL47: 58.173014 | AM47: 0 | AP47: 19235200
A48: 16 | B48: =OFFSET(InputPriceData!B$15,CalculationsAndCharts!$A48+$A$11,0,1,1) -> 2016-12-16 | C48: =OFFSET(InputPriceData!G$15,CalculationsAndCharts!$A48+$A$11,IF($C$7,8,0),1,1) -> 32435200 | D48: =OFFSET(InputPriceData!C$15,CalculationsAndCharts!$A48+$A$11,IF($C$7,8,0),1,1) -> 11.44 | E48: =OFFSET(InputPriceData!D$15,CalculationsAndCharts!$A48+$A$11,IF($C$7,8,0),1,1) -> 11.58 | F48: =OFFSET(InputPriceData!E$15,CalculationsAndCharts!$A48+$A$11,IF($C$7,8,0),1,1) -> 11.4 | G48: =OFFSET(InputPriceData!F$15,CalculationsAndCharts!$A48+$A$11,IF($C$7,8,0),1,1) -> 11.55 | H48: 11.30592852 | I48: 11.05683759 | J48: 0.2490909328 | K48: 0.2007542239 | L48: 0 | M48: 0.22 | N48: 0.13 | O48: 0 | P48: 0.316750937 | Q48: 0.1172426309 | R48: 0.07707207682 | S48: 37.01413864 | T48: 24.3320754 | U48: 12.68206324 | V48: 61.34621404 | W48: 20.67293546 | X48: 26.96867 | Y48: 11.27571429 | Z48: FALSE | AA48: FALSE | AB48: FALSE | AC48: TRUE | AD48: 0 | AE48: 0 | AF48: 0 | AG48: 12.3 | AH48: 11.51 | AI48: 11.27071429 | AJ48: 0.2789795918 | AK48: 57.18117532 | AL48: 57.18117532 | AM48: 0 | AO48: 32435200
A49: 17 | B49: =OFFSET(InputPriceData!B$15,CalculationsAndCharts!$A49+$A$11,0,1,1) -> 2016-12-15 | C49: =OFFSET(InputPriceData!G$15,CalculationsAndCharts!$A49+$A$11,IF($C$7,8,0),1,1) -> 36588500 | D49: =OFFSET(InputPriceData!C$15,CalculationsAndCharts!$A49+$A$11,IF($C$7,8,0),1,1) -> 11.19 | E49: =OFFSET(InputPriceData!D$15,CalculationsAndCharts!$A49+$A$11,IF($C$7,8,0),1,1) -> 11.45 | F49: =OFFSET(InputPriceData!E$15,CalculationsAndCharts!$A49+$A$11,IF($C$7,8,0),1,1) -> 11.17 | G49: =OFFSET(InputPriceData!F$15,CalculationsAndCharts!$A49+$A$11,IF($C$7,8,0),1,1) -> 11.36 | H49: 11.26155189 | I49: 11.0173846 | J49: 0.2441672933 | K49: 0.1886700467 | L49: 0 | M49: 0.28 | N49: 0 | O49: 0.13 | P49: 0.3275010411 | Q49: 0.1158251455 | R49: 0.08563564091 | S49: 35.36634421 | T49: 26.14820418 | U49: 9.218140036 | V49: 61.51454839 | W49: 14.98530068 | X49: 27.6682 | Y49: 11.19642857 | Z49: FALSE | AA49: TRUE | AB49: FALSE | AC49: FALSE | AD49: 0 | AE49: 12.3 | AF49: 0 | AG49: 0 | AH49: 11.32666667 | AI49: 11.19595238 | AJ49: 0.3462585034 | AK49: 25.16699411 | AL49: 25.16699411 | AM49: 0 | AO49: 36588500
A50: 18 | B50: =OFFSET(InputPriceData!B$15,CalculationsAndCharts!$A50+$A$11,0,1,1) -> 2016-12-14 | C50: =OFFSET(InputPriceData!G$15,CalculationsAndCharts!$A50+$A$11,IF($C$7,8,0),1,1) -> 40786600 | D50: =OFFSET(InputPriceData!C$15,CalculationsAndCharts!$A50+$A$11,IF($C$7,8,0),1,1) -> 11.59 | E50: =OFFSET(InputPriceData!D$15,CalculationsAndCharts!$A50+$A$11,IF($C$7,8,0),1,1) -> 11.73 | F50: =OFFSET(InputPriceData!E$15,CalculationsAndCharts!$A50+$A$11,IF($C$7,8,0),1,1) -> 11.3 | G50: =OFFSET(InputPriceData!F$15,CalculationsAndCharts!$A50+$A$11,IF($C$7,8,0),1,1) -> 11.32 | H50: 11.24365223 | I50: 10.98997536 | J50: 0.2536768692 | K50: 0.1747957351 | L50: 0 | M50: 0.43 | N50: 0 | O50: 0.32 | P50: 0.3327789346 | Q50: 0.1286946061 | R50: 0.08070626768 | S50: 38.67270213 | T50: 24.2522165 | U50: 14.42048563 | V50: 62.92491863 | W50: 22.91697143 | X50: 29.07741 | Y50: 11.12285714 | Z50: FALSE | AA50: TRUE | AB50: FALSE | AC50: FALSE | AD50: 0 | AE50: 12.3 | AF50: 0 | AG50: 0 | AH50: 11.45 | AI50: 11.12880952 | AJ50: 0.4155102041 | AK50: 51.53350797 | AL50: 51.53350797 | AM50: 0 | AP50: 40786600
A51: 19 | B51: =OFFSET(InputPriceData!B$15,CalculationsAndCharts!$A51+$A$11,0,1,1) -> 2016-12-13 | C51: =OFFSET(InputPriceData!G$15,CalculationsAndCharts!$A51+$A$11,IF($C$7,8,0),1,1) -> 33284600 | D51: =OFFSET(InputPriceData!C$15,CalculationsAndCharts!$A51+$A$11,IF($C$7,8,0),1,1) -> 11.79 | E51: =OFFSET(InputPriceData!D$15,CalculationsAndCharts!$A51+$A$11,IF($C$7,8,0),1,1) -> 11.81 | F51: =OFFSET(InputPriceData!E$15,CalculationsAndCharts!$A51+$A$11,IF($C$7,8,0),1,1) -> 11.62 | G51: =OFFSET(InputPriceData!F$15,CalculationsAndCharts!$A51+$A$11,IF($C$7,8,0),1,1) -> 11.73 | H51: 11.22977082 | I51: 10.96357339 | J51: 0.266197428 | K51: 0.1550754515 | L51: 0 | M51: 0.19 | N51: 0 | O51: 0 | P51: 0.321976594 | Q51: 0.1429940068 | R51: 0.0541180752 | S51: 44.41130488 | T51: 16.80807742 | U51: 27.60322746 | V51: 61.21938231 | W51: 45.08903295 | X51: 29.7619 | Y51: 11.07642857 | Z51: TRUE | AA51: FALSE | AB51: FALSE | AC51: FALSE | AD51: 12.3 | AE51: 0 | AF51: 0 | AG51: 0 | AH51: 11.72 | AI51: 11.07285714 | AJ51: 0.4415646259 | AK51: 97.70451394 | AL51: 97.70451394 | AM51: 0 | AP51: 33284600
A52: 20 | B52: =OFFSET(InputPriceData!B$15,CalculationsAndCharts!$A52+$A$11,0,1,1) -> 2016-12-12 | C52: =OFFSET(InputPriceData!G$15,CalculationsAndCharts!$A52+$A$11,IF($C$7,8,0),1,1) -> 52840100 | D52: =OFFSET(InputPriceData!C$15,CalculationsAndCharts!$A52+$A$11,IF($C$7,8,0),1,1) -> 11.9 | E52: =OFFSET(InputPriceData!D$15,CalculationsAndCharts!$A52+$A$11,IF($C$7,8,0),1,1) -> 11.94 | F52: =OFFSET(InputPriceData!E$15,CalculationsAndCharts!$A52+$A$11,IF($C$7,8,0),1,1) -> 11.58 | G52: =OFFSET(InputPriceData!F$15,CalculationsAndCharts!$A52+$A$11,IF($C$7,8,0),1,1) -> 11.62 | H52: 11.13882006 | I52: 10.90225927 | J52: 0.2365607968 | K52: 0.1272949574 | L52: 0 | M52: 0.5 | N52: 0.48 | O52: 0 | P52: 0.33664066 | Q52: 0.1588822298 | R52: 0.06013119467 | S52: 47.19638732 | T52: 17.8621307 | U52: 29.33425663 | V52: 65.05851802 | W52: 45.08903295 | X52: 28.05888 | Y52: 10.99785714 | Z52: TRUE | AA52: FALSE | AB52: FALSE | AC52: FALSE | AD52: 12.3 | AE52: 0 | AF52: 0 | AG52: 0 | AH52: 11.71333333 | AI52: 10.99595238 | AJ52: 0.4370068027 | AK52: 109.4385637 | AL52: 109.4385637 | AM52: 0 | AP52: 52840100
A53: 21 | B53: =OFFSET(InputPriceData!B$15,CalculationsAndCharts!$A53+$A$11,0,1,1) -> 2016-12-09 | C53: =OFFSET(InputPriceData!G$15,CalculationsAndCharts!$A53+$A$11,IF($C$7,8,0),1,1) -> 32887600 | D53: =OFFSET(InputPriceData!C$15,CalculationsAndCharts!$A53+$A$11,IF($C$7,8,0),1,1) -> 11.43 | E53: =OFFSET(InputPriceData!D$15,CalculationsAndCharts!$A53+$A$11,IF($C$7,8,0),1,1) -> 11.46 | F53: =OFFSET(InputPriceData!E$15,CalculationsAndCharts!$A53+$A$11,IF($C$7,8,0),1,1) -> 11.36 | G53: =OFFSET(InputPriceData!F$15,CalculationsAndCharts!$A53+$A$11,IF($C$7,8,0),1,1) -> 11.44 | H53: 11.0513328 | I53: 10.84484001 | J53: 0.2064927942 | K53: 0.09997849757 | L53: 0 | M53: 0.15 | N53: 0.15 | O53: 0 | P53: 0.3184896222 | Q53: 0.1232024775 | R53: 0.06681243852 | S53: 38.68335699 | T53: 20.97790128 | U53: 17.70545571 | V53: 59.66125827 | W53: 29.67663812 | X53: 26.16664 | Y53: 10.93714286 | Z53: TRUE | AA53: FALSE | AB53: FALSE | AC53: FALSE | AD53: 12.3 | AE53: 0 | AF53: 0 | AG53: 0 | AH53: 11.42 | AI53: 10.92404762 | AJ53: 0.4064285714 | AK53: 81.35129857 | AL53: 81.35129857 | AM53: 0 | AO53: 32887600
A54: 22 | B54: =OFFSET(InputPriceData!B$15,CalculationsAndCharts!$A54+$A$11,0,1,1) -> 2016-12-08 | C54: =OFFSET(InputPriceData!G$15,CalculationsAndCharts!$A54+$A$11,IF($C$7,8,0),1,1) -> 32712100 | D54: =OFFSET(InputPriceData!C$15,CalculationsAndCharts!$A54+$A$11,IF($C$7,8,0),1,1) -> 11.15 | E54: =OFFSET(InputPriceData!D$15,CalculationsAndCharts!$A54+$A$11,IF($C$7,8,0),1,1) -> 11.31 | F54: =OFFSET(InputPriceData!E$15,CalculationsAndCharts!$A54+$A$11,IF($C$7,8,0),1,1) -> 11.08 | G54: =OFFSET(InputPriceData!F$15,CalculationsAndCharts!$A54+$A$11,IF($C$7,8,0),1,1) -> 11.31 | H54: 10.98066604 | I54: 10.79722721 | J54: 0.1834388301 | K54: 0.07334992342 | L54: 0 | M54: 0.23 | N54: 0.05 | O54: 0 | P54: 0.3372106913 | Q54: 0.120224975 | R54: 0.0742360428 | S54: 35.65277677 | T54: 22.01473581 | U54: 13.63804097 | V54: 57.66751258 | W54: 23.64943511 | X54: 25.77664 | Y54: 10.85714286 | Z54: FALSE | AA54: FALSE | AB54: FALSE | AC54: TRUE | AD54: 0 | AE54: 0 | AF54: 0 | AG54: 12.3 | AH54: 11.23333333 | AI54: 10.84071429 | AJ54: 0.4070068027 | AK54: 64.30998941 | AL54: 64.30998941 | AM54: 0 | AO54: 32712100
A55: 23 | B55: =OFFSET(InputPriceData!B$15,CalculationsAndCharts!$A55+$A$11,0,1,1) -> 2016-12-07 | C55: =OFFSET(InputPriceData!G$15,CalculationsAndCharts!$A55+$A$11,IF($C$7,8,0),1,1) -> 42365200 | D55: =OFFSET(InputPriceData!C$15,CalculationsAndCharts!$A55+$A$11,IF($C$7,8,0),1,1) -> 11.16 | E55: =OFFSET(InputPriceData!D$15,CalculationsAndCharts!$A55+$A$11,IF($C$7,8,0),1,1) -> 11.26 | F55: =OFFSET(InputPriceData!E$15,CalculationsAndCharts!$A55+$A$11,IF($C$7,8,0),1,1) -> 11.07 | G55: =OFFSET(InputPriceData!F$15,CalculationsAndCharts!$A55+$A$11,IF($C$7,8,0),1,1) -> 11.09 | H55: 10.92078713 | I55: 10.75620538 | J55: 0.1645817512 | K55: 0.04582769675 | L55: 0 | M55: 0.22 | N55: 0 | O55: 0.11 | P55: 0.3491229903 | Q55: 0.12802775 | R55: 0.082484492 | S55: 36.67124583 | T55: 23.62619887 | U55: 13.04504696 | V55: 60.2974447 | W55: 21.63449384 | X55: 26.013 | Y55: 10.77285714 | Z55: FALSE | AA55: FALSE | AB55: FALSE | AC55: TRUE | AD55: 0 | AE55: 0 | AF55: 0 | AG55: 12.3 | AH55: 11.14 | AI55: 10.77 | AJ55: 0.4014285714 | AK55: 61.44721234 | AL55: 61.44721234 | AM55: 0 | AP55: 42365200
A56: 24 | B56: =OFFSET(InputPriceData!B$15,CalculationsAndCharts!$A56+$A$11,0,1,1) -> 2016-12-06 | C56: =OFFSET(InputPriceData!G$15,CalculationsAndCharts!$A56+$A$11,IF($C$7,8,0),1,1) -> 30302200 | D56: =OFFSET(InputPriceData!C$15,CalculationsAndCharts!$A56+$A$11,IF($C$7,8,0),1,1) -> 11.22 | E56: =OFFSET(InputPriceData!D$15,CalculationsAndCharts!$A56+$A$11,IF($C$7,8,0),1,1) -> 11.35 | F56: =OFFSET(InputPriceData!E$15,CalculationsAndCharts!$A56+$A$11,IF($C$7,8,0),1,1) -> 11.18 | G56: =OFFSET(InputPriceData!F$15,CalculationsAndCharts!$A56+$A$11,IF($C$7,8,0),1,1) -> 11.29 | H56: 10.89002116 | I56: 10.72950181 | J56: 0.160519345 | K56: 0.01613918313 | L56: 0 | M56: 0.17 | N56: 0 | O56: 0.16 | P56: 0.3634699893 | Q56: 0.1422530556 | R56: 0.07942721333 | S56: 39.13749684 | T56: 21.85248182 | U56: 17.28501502 | V56: 60.98997867 | W56: 28.34074614 | X56: 26.4995 | Y56: 10.71142857 | Z56: TRUE | AA56: FALSE | AB56: FALSE | AC56: FALSE | AD56: 12.3 | AE56: 0 | AF56: 0 | AG56: 0 | AH56: 11.27333333 | AI56: 10.70857143 | AJ56: 0.3836734694 | AK56: 98.13238771 | AL56: 98.13238771 | AM56: 0 | AO56: 30302200
A57: 25 | B57: =OFFSET(InputPriceData!B$15,CalculationsAndCharts!$A57+$A$11,0,1,1) -> 2016-12-05 | C57: =OFFSET(InputPriceData!G$15,CalculationsAndCharts!$A57+$A$11,IF($C$7,8,0),1,1) -> 45355700 | D57: =OFFSET(InputPriceData!C$15,CalculationsAndCharts!$A57+$A$11,IF($C$7,8,0),1,1) -> 11.61 | E57: =OFFSET(InputPriceData!D$15,CalculationsAndCharts!$A57+$A$11,IF($C$7,8,0),1,1) -> 11.63 | F57: =OFFSET(InputPriceData!E$15,CalculationsAndCharts!$A57+$A$11,IF($C$7,8,0),1,1) -> 11.34 | G57: =OFFSET(InputPriceData!F$15,CalculationsAndCharts!$A57+$A$11,IF($C$7,8,0),1,1) -> 11.35 | H57: 10.81729773 | I57: 10.68466196 | J57: 0.1326357742 | K57: -0.01995585733 | L57: 0 | M57: 0.29 | N57: 0.12 | O57: 0 | P57: 0.3849666547 | Q57: 0.1580589506 | R57: 0.07047468148 | S57: 41.05782896 | T57: 18.30669764 | U57: 22.75113132 | V57: 59.36452659 | W57: 38.32445507 | X57: 26.29492 | Y57: 10.64357143 | Z57: TRUE | AA57: FALSE | AB57: FALSE | AC57: FALSE | AD57: 12.3 | AE57: 0 | AF57: 0 | AG57: 0 | AH57: 11.44 | AI57: 10.63714286 | AJ57: 0.3571428571 | AK57: 149.8666667 | AL57: 149.8666667 | AM57: 0 | AP57: 45355700
A58: 26 | B58: =OFFSET(InputPriceData!B$15,CalculationsAndCharts!$A58+$A$11,0,1,1) -> 2016-12-02 | C58: =OFFSET(InputPriceData!G$15,CalculationsAndCharts!$A58+$A$11,IF($C$7,8,0),1,1) -> 38122300 | D58: =OFFSET(InputPriceData!C$15,CalculationsAndCharts!$A58+$A$11,IF($C$7,8,0),1,1) -> 11.4 | E58: =OFFSET(InputPriceData!D$15,CalculationsAndCharts!$A58+$A$11,IF($C$7,8,0),1,1) -> 11.51 | F58: =OFFSET(InputPriceData!E$15,CalculationsAndCharts!$A58+$A$11,IF($C$7,8,0),1,1) -> 11.32 | G58: =OFFSET(InputPriceData!F$15,CalculationsAndCharts!$A58+$A$11,IF($C$7,8,0),1,1) -> 11.48 | H58: 10.72044278 | I58: 10.63143492 | J58: 0.08900785993 | K58: -0.05810376522 | L58: 0 | M58: 0.19 | N58: 0 | O58: 0 | P58: 0.3955185053 | Q58: 0.1622877229 | R58: 0.07830520164 | S58: 41.03163841 | T58: 19.79811326 | U58: 21.23352515 | V58: 60.82975168 | W58: 34.90648008 | X58: 24.95831 | Y58: 10.53785714 | Z58: TRUE | AA58: FALSE | AB58: FALSE | AC58: FALSE | AD58: 12.3 | AE58: 0 | AF58: 0 | AG58: 0 | AH58: 11.43666667 | AI58: 10.51785714 | AJ58: 0.3446938776 | AK58: 177.7054141 | AL58: 177.7054141 | AM58: 0 | AO58: 38122300
A59: 27 | B59: =OFFSET(InputPriceData!B$15,CalculationsAndCharts!$A59+$A$11,0,1,1) -> 2016-12-01 | C59: =OFFSET(InputPriceData!G$15,CalculationsAndCharts!$A59+$A$11,IF($C$7,8,0),1,1) -> 90865600 | D59: =OFFSET(InputPriceData!C$15,CalculationsAndCharts!$A59+$A$11,IF($C$7,8,0),1,1) -> 11.32 | E59: =OFFSET(InputPriceData!D$15,CalculationsAndCharts!$A59+$A$11,IF($C$7,8,0),1,1) -> 11.52 | F59: =OFFSET(InputPriceData!E$15,CalculationsAndCharts!$A59+$A$11,IF($C$7,8,0),1,1) -> 11.26 | G59: =OFFSET(InputPriceData!F$15,CalculationsAndCharts!$A59+$A$11,IF($C$7,8,0),1,1) -> 11.33 | H59: 10.58234146 | I59: 10.56354971 | J59: 0.01879175317 | K59: -0.09488167151 | L59: 0 | M59: 0.59 | N59: 0.42 | O59: 0 | P59: 0.4183538947 | Q59: 0.1803196922 | R59: 0.0870057796 | S59: 43.10219038 | T59: 20.79717213 | U59: 22.30501824 | V59: 63.89936251 | W59: 34.90648008 | X59: 23.85296 | Y59: 10.41571429 | Z59: TRUE | AA59: FALSE | AB59: FALSE | AC59: FALSE | AD59: 12.3 | AE59: 0 | AF59: 0 | AG59: 0 | AH59: 11.37 | AI59: 10.40119048 | AJ59: 0.3056462585 | AK59: 211.3138957 | AL59: 211.3138957 | AM59: 0 | AO59: 90865600
A60: 28 | B60: =OFFSET(InputPriceData!B$15,CalculationsAndCharts!$A60+$A$11,0,1,1) -> 2016-11-30 | C60: =OFFSET(InputPriceData!G$15,CalculationsAndCharts!$A60+$A$11,IF($C$7,8,0),1,1) -> 110265700 | D60: =OFFSET(InputPriceData!C$15,CalculationsAndCharts!$A60+$A$11,IF($C$7,8,0),1,1) -> 10.06 | E60: =OFFSET(InputPriceData!D$15,CalculationsAndCharts!$A60+$A$11,IF($C$7,8,0),1,1) -> 11.1 | F60: =OFFSET(InputPriceData!E$15,CalculationsAndCharts!$A60+$A$11,IF($C$7,8,0),1,1) -> 10.06 | G60: =OFFSET(InputPriceData!F$15,CalculationsAndCharts!$A60+$A$11,IF($C$7,8,0),1,1) -> 10.93 | H60: 10.44640355 | I60: 10.50223369 | J60: -0.0558301395 | K60: -0.1233000277 | L60: 0 | M60: 1.04 | N60: 0.95 | O60: 0 | P60: 0.3992821053 | Q60: 0.1536885468 | R60: 0.09667308845 | S60: 38.49121832 | T60: 24.21172579 | U60: 14.27949253 | V60: 62.70294411 | W60: 22.77324093 | X60: 22.62479 | Y60: 10.32357143 | Z60: TRUE | AA60: FALSE | AB60: FALSE | AC60: FALSE | AD60: 12.3 | AE60: 0 | AF60: 0 | AG60: 0 | AH60: 10.69666667 | AI60: 10.3102381 | AJ60: 0.2431292517 | AK60: 105.959709 | AL60: 105.959709 | AM60: 0 | AO60: 110265700
A61: 29 | B61: =OFFSET(InputPriceData!B$15,CalculationsAndCharts!$A61+$A$11,0,1,1) -> 2016-11-29 | C61: =OFFSET(InputPriceData!G$15,CalculationsAndCharts!$A61+$A$11,IF($C$7,8,0),1,1) -> 66923800 | D61: =OFFSET(InputPriceData!C$15,CalculationsAndCharts!$A61+$A$11,IF($C$7,8,0),1,1) -> 10.1 | E61: =OFFSET(InputPriceData!D$15,CalculationsAndCharts!$A61+$A$11,IF($C$7,8,0),1,1) -> 10.15 | F61: =OFFSET(InputPriceData!E$15,CalculationsAndCharts!$A61+$A$11,IF($C$7,8,0),1,1) -> 9.97 | G61: =OFFSET(InputPriceData!F$15,CalculationsAndCharts!$A61+$A$11,IF($C$7,8,0),1,1) -> 10.06 | H61: 10.35847692 | I61: 10.46801238 | J61: -0.1095354623 | K61: -0.1401674997 | L61: 0 | M61: 0.47 | N61: 0 | O61: 0.38 | P61: 0.3280912281 | Q61: 0.06520949649 | R61: 0.1074145427 | S61: 19.87541601 | T61: 32.73923029 | U61: 12.86381428 | V61: 52.6146463 | W61: 24.4491129 | X61: 22.60829 | Y61: 10.27714286 | Z61: FALSE | AA61: FALSE | AB61: TRUE | AC61: FALSE | AD61: 0 | AE61: 0 | AF61: 12.3 | AG61: 0 | AH61: 10.06 | AI61: 10.27690476 | AJ61: 0.2121768707 | AK61: -68.15218553 | AL61: 0 | AM61: -68.15218553 | AP61: 66923800
A62: 30 | B62: =OFFSET(InputPriceData!B$15,CalculationsAndCharts!$A62+$A$11,0,1,1) -> 2016-11-28 | C62: =OFFSET(InputPriceData!G$15,CalculationsAndCharts!$A62+$A$11,IF($C$7,8,0),1,1) -> 58180100 | D62: =OFFSET(InputPriceData!C$15,CalculationsAndCharts!$A62+$A$11,IF($C$7,8,0),1,1) -> 10.47 | E62: =OFFSET(InputPriceData!D$15,CalculationsAndCharts!$A62+$A$11,IF($C$7,8,0),1,1) -> 10.6 | F62: =OFFSET(InputPriceData!E$15,CalculationsAndCharts!$A62+$A$11,IF($C$7,8,0),1,1) -> 10.35 | G62: =OFFSET(InputPriceData!F$15,CalculationsAndCharts!$A62+$A$11,IF($C$7,8,0),1,1) -> 10.44 | H62: 10.41274545 | I62: 10.50065337 | J62: -0.08790792213 | K62: -0.1478255091 | L62: 0 | M62: 0.27 | N62: 0.05 | O62: 0 | P62: 0.3123235867 | Q62: 0.07245499609 | R62: 0.07712726969 | S62: 23.19869493 | T62: 24.69466699 | U62: 1.49597206 | V62: 47.89336193 | W62: 3.123547815 | X62: 22.40375 | Y62: 10.28 | Z62: FALSE | AA62: FALSE | AB62: FALSE | AC62: TRUE | AD62: 0 | AE62: 0 | AF62: 0 | AG62: 12.3 | AH62: 10.46333333 | AI62: 10.28166667 | AJ62: 0.2083333333 | AK62: 58.13333333 | AL62: 58.13333333 | AM62: 0 | AP62: 58180100
A63: 31 | B63: =OFFSET(InputPriceData!B$15,CalculationsAndCharts!$A63+$A$11,0,1,1) -> 2016-11-25 | C63: =OFFSET(InputPriceData!G$15,CalculationsAndCharts!$A63+$A$11,IF($C$7,8,0),1,1) -> 29733900 | D63: =OFFSET(InputPriceData!C$15,CalculationsAndCharts!$A63+$A$11,IF($C$7,8,0),1,1) -> 10.5 | E63: =OFFSET(InputPriceData!D$15,CalculationsAndCharts!$A63+$A$11,IF($C$7,8,0),1,1) -> 10.55 | F63: =OFFSET(InputPriceData!E$15,CalculationsAndCharts!$A63+$A$11,IF($C$7,8,0),1,1) -> 10.28 | G63: =OFFSET(InputPriceData!F$15,CalculationsAndCharts!$A63+$A$11,IF($C$7,8,0),1,1) -> 10.33 | H63: 10.40779008 | I63: 10.50550564 | J63: -0.09771556472 | K63: -0.1628049058 | L63: 0 | M63: 0.39 | N63: 0 | O63: 0.28 | P63: 0.3170262075 | Q63: 0.07494999566 | R63: 0.08569696632 | S63: 23.64157722 | T63: 27.03150853 | U63: 3.389931308 | V63: 50.67308575 | W63: 6.689806348 | X63: 24.546 | Y63: 10.26 | Z63: FALSE | AA63: TRUE | AB63: FALSE | AC63: FALSE | AD63: 0 | AE63: 12.3 | AF63: 0 | AG63: 0 | AH63: 10.38666667 | AI63: 10.2552381 | AJ63: 0.2036054422 | AK63: 43.03374541 | AL63: 43.03374541 | AM63: 0 | AP63: 29733900
A64: 32 | B64: =OFFSET(InputPriceData!B$15,CalculationsAndCharts!$A64+$A$11,0,1,1) -> 2016-11-23 | C64: =OFFSET(InputPriceData!G$15,CalculationsAndCharts!$A64+$A$11,IF($C$7,8,0),1,1) -> 25907100 | D64: =OFFSET(InputPriceData!C$15,CalculationsAndCharts!$A64+$A$11,IF($C$7,8,0),1,1) -> 10.6 | E64: =OFFSET(InputPriceData!D$15,CalculationsAndCharts!$A64+$A$11,IF($C$7,8,0),1,1) -> 10.77 | F64: =OFFSET(InputPriceData!E$15,CalculationsAndCharts!$A64+$A$11,IF($C$7,8,0),1,1) -> 10.56 | G64: =OFFSET(InputPriceData!F$15,CalculationsAndCharts!$A64+$A$11,IF($C$7,8,0),1,1) -> 10.67 | H64: 10.42193373 | I64: 10.51954609 | J64: -0.09761236578 | K64: -0.1790772411 | L64: 0 | M64: 0.21 | N64: 0 | O64: 0 | P64: 0.3089180083 | Q64: 0.08327777296 | R64: 0.06410774036 | S64: 26.95788873 | T64: 20.75234808 | U64: 6.205540655 | V64: 47.71023681 | W64: 13.00672784 | X64: 26.53002 | Y64: 10.235 | Z64: FALSE | AA64: FALSE | AB64: FALSE | AC64: TRUE | AD64: 0 | AE64: 0 | AF64: 0 | AG64: 12.3 | AH64: 10.66666667 | AI64: 10.22619048 | AJ64: 0.2124489796 | AK64: 138.2217953 | AL64: 138.2217953 | AM64: 0 | AO64: 25907100
A65: 33 | B65: =OFFSET(InputPriceData!B$15,CalculationsAndCharts!$A65+$A$11,0,1,1) -> 2016-11-22 | C65: =OFFSET(InputPriceData!G$15,CalculationsAndCharts!$A65+$A$11,IF($C$7,8,0),1,1) -> 44315500 | D65: =OFFSET(InputPriceData!C$15,CalculationsAndCharts!$A65+$A$11,IF($C$7,8,0),1,1) -> 10.74 | E65: =OFFSET(InputPriceData!D$15,CalculationsAndCharts!$A65+$A$11,IF($C$7,8,0),1,1) -> 10.81 | F65: =OFFSET(InputPriceData!E$15,CalculationsAndCharts!$A65+$A$11,IF($C$7,8,0),1,1) -> 10.49 | G65: =OFFSET(InputPriceData!F$15,CalculationsAndCharts!$A65+$A$11,IF($C$7,8,0),1,1) -> 10.63 | H65: 10.37683077 | I65: 10.50750978 | J65: -0.130679012 | K65: -0.1994434599 | L65: 0 | M65: 0.32 | N65: 0 | O65: 0.07 | P65: 0.3199088981 | Q65: 0.09253085884 | R65: 0.07123082262 | S65: 28.92412789 | T65: 22.26597104 | U65: 6.658156852 | V65: 51.19009894 | W65: 13.00672784 | X65: 28.03261 | Y65: 10.19285714 | Z65: FALSE | AA65: FALSE | AB65: FALSE | AC65: TRUE | AD65: 0 | AE65: 0 | AF65: 0 | AG65: 12.3 | AH65: 10.64333333 | AI65: 10.18738095 | AJ65: 0.1883333333 | AK65: 161.3990729 | AL65: 161.3990729 | AM65: 0 | AP65: 44315500
A66: 34 | B66: =OFFSET(InputPriceData!B$15,CalculationsAndCharts!$A66+$A$11,0,1,1) -> 2016-11-21 | C66: =OFFSET(InputPriceData!G$15,CalculationsAndCharts!$A66+$A$11,IF($C$7,8,0),1,1) -> 42743200 | D66: =OFFSET(InputPriceData!C$15,CalculationsAndCharts!$A66+$A$11,IF($C$7,8,0),1,1) -> 10.6 | E66: =OFFSET(InputPriceData!D$15,CalculationsAndCharts!$A66+$A$11,IF($C$7,8,0),1,1) -> 10.79 | F66: =OFFSET(InputPriceData!E$15,CalculationsAndCharts!$A66+$A$11,IF($C$7,8,0),1,1) -> 10.56 | G66: =OFFSET(InputPriceData!F$15,CalculationsAndCharts!$A66+$A$11,IF($C$7,8,0),1,1) -> 10.77 | H66: 10.3308 | I66: 10.49771056 | J66: -0.1669105639 | K66: -0.2166345719 | L66: 0 | M66: 0.47 | N66: 0.46 | O66: 0 | P66: 0.3198987757 | Q66: 0.1028120654 | R66: 0.07136758069 | S66: 32.13893681 | T66: 22.30942601 | U66: 9.829510794 | V66: 54.44836282 | W66: 18.05290423 | X66: 29.70215 | Y66: 10.16785714 | Z66: FALSE | AA66: FALSE | AB66: FALSE | AC66: TRUE | AD66: 0 | AE66: 0 | AF66: 0 | AG66: 12.3 | AH66: 10.70666667 | AI66: 10.16261905 | AJ66: 0.1635714286 | AK66: 221.7370209 | AL66: 221.7370209 | AM66: 0 | AO66: 42743200
A67: 35 | B67: =OFFSET(InputPriceData!B$15,CalculationsAndCharts!$A67+$A$11,0,1,1) -> 2016-11-18 | C67: =OFFSET(InputPriceData!G$15,CalculationsAndCharts!$A67+$A$11,IF($C$7,8,0),1,1) -> 27769900 | D67: =OFFSET(InputPriceData!C$15,CalculationsAndCharts!$A67+$A$11,IF($C$7,8,0),1,1) -> 10.24 | E67: =OFFSET(InputPriceData!D$15,CalculationsAndCharts!$A67+$A$11,IF($C$7,8,0),1,1) -> 10.33 | F67: =OFFSET(InputPriceData!E$15,CalculationsAndCharts!$A67+$A$11,IF($C$7,8,0),1,1) -> 10.11 | G67: =OFFSET(InputPriceData!F$15,CalculationsAndCharts!$A67+$A$11,IF($C$7,8,0),1,1) -> 10.32 | H67: 10.25094545 | I67: 10.47592741 | J67: -0.2249819547 | K67: -0.2290655739 | L67: 0 | M67: 0.22 | N67: 0 | O67: 0.01 | P67: 0.3032208619 | Q67: 0.06312451709 | R67: 0.07929731188 | S67: 20.81799936 | T67: 26.15166759 | U67: 5.333668234 | V67: 46.96966695 | W67: 11.35555898 | X67: 30.99651 | Y67: 10.15357143 | Z67: FALSE | AA67: FALSE | AB67: FALSE | AC67: TRUE | AD67: 0 | AE67: 0 | AF67: 0 | AG67: 12.3 | AH67: 10.25333333 | AI67: 10.15238095 | AJ67: 0.1533333333 | AK67: 43.89233954 | AL67: 43.89233954 | AM67: 0 | AO67: 27769900
A68: 36 | B68: =OFFSET(InputPriceData!B$15,CalculationsAndCharts!$A68+$A$11,0,1,1) -> 2016-11-17 | C68: =OFFSET(InputPriceData!G$15,CalculationsAndCharts!$A68+$A$11,IF($C$7,8,0),1,1) -> 40356100 | D68: =OFFSET(InputPriceData!C$15,CalculationsAndCharts!$A68+$A$11,IF($C$7,8,0),1,1) -> 10.44 | E68: =OFFSET(InputPriceData!D$15,CalculationsAndCharts!$A68+$A$11,IF($C$7,8,0),1,1) -> 10.48 | F68: =OFFSET(InputPriceData!E$15,CalculationsAndCharts!$A68+$A$11,IF($C$7,8,0),1,1) -> 10.12 | G68: =OFFSET(InputPriceData!F$15,CalculationsAndCharts!$A68+$A$11,IF($C$7,8,0),1,1) -> 10.13 | H68: 10.23839008 | I68: 10.4884016 | J68: -0.2500115195 | K68: -0.2300864787 | L68: 0 | M68: 0.36 | N68: 0 | O68: 0.03 | P68: 0.3124676243 | Q68: 0.07013835232 | R68: 0.0869970132 | S68: 22.44659826 | T68: 27.84192871 | U68: 5.395330448 | V68: 50.28852696 | W68: 10.72875022 | X68: 33.17884 | Y68: 10.16857143 | Z68: FALSE | AA68: FALSE | AB68: FALSE | AC68: TRUE | AD68: 0 | AE68: 0 | AF68: 0 | AG68: 12.3 | AH68: 10.24333333 | AI68: 10.18047619 | AJ68: 0.1814285714 | AK68: 23.09711286 | AL68: 23.09711286 | AM68: 0 | AP68: 40356100
A69: 37 | B69: =OFFSET(InputPriceData!B$15,CalculationsAndCharts!$A69+$A$11,0,1,1) -> 2016-11-16 | C69: =OFFSET(InputPriceData!G$15,CalculationsAndCharts!$A69+$A$11,IF($C$7,8,0),1,1) -> 41035900 | D69: =OFFSET(InputPriceData!C$15,CalculationsAndCharts!$A69+$A$11,IF($C$7,8,0),1,1) -> 10.28 | E69: =OFFSET(InputPriceData!D$15,CalculationsAndCharts!$A69+$A$11,IF($C$7,8,0),1,1) -> 10.46 | F69: =OFFSET(InputPriceData!E$15,CalculationsAndCharts!$A69+$A$11,IF($C$7,8,0),1,1) -> 10.15 | G69: =OFFSET(InputPriceData!F$15,CalculationsAndCharts!$A69+$A$11,IF($C$7,8,0),1,1) -> 10.23 | H69: 10.25809737 | I69: 10.51707373 | J69: -0.2589763602 | K69: -0.2251052185 | L69: 0 | M69: 0.31 | N69: 0.06 | O69: 0 | P69: 0.3071862493 | Q69: 0.07793150258 | R69: 0.09333001466 | S69: 25.36946324 | T69: 30.3822241 | U69: 5.012760865 | V69: 55.75168734 | W69: 8.991227179 | X69: 35.67329 | Y69: 10.23142857 | Z69: FALSE | AA69: FALSE | AB69: FALSE | AC69: TRUE | AD69: 0 | AE69: 0 | AF69: 0 | AG69: 12.3 | AH69: 10.28 | AI69: 10.23857143 | AJ69: 0.2407482993 | AK69: 11.47216728 | AL69: 11.47216728 | AM69: 0 | AP69: 41035900
A70: 38 | B70: =OFFSET(InputPriceData!B$15,CalculationsAndCharts!$A70+$A$11,0,1,1) -> 2016-11-15 | C70: =OFFSET(InputPriceData!G$15,CalculationsAndCharts!$A70+$A$11,IF($C$7,8,0),1,1) -> 61884700 | D70: =OFFSET(InputPriceData!C$15,CalculationsAndCharts!$A70+$A$11,IF($C$7,8,0),1,1) -> 10.08 | E70: =OFFSET(InputPriceData!D$15,CalculationsAndCharts!$A70+$A$11,IF($C$7,8,0),1,1) -> 10.4 | F70: =OFFSET(InputPriceData!E$15,CalculationsAndCharts!$A70+$A$11,IF($C$7,8,0),1,1) -> 10.08 | G70: =OFFSET(InputPriceData!F$15,CalculationsAndCharts!$A70+$A$11,IF($C$7,8,0),1,1) -> 10.34 | H70: 10.26320598 | I70: 10.54003963 | J70: -0.2768336462 | K70: -0.2166374331 | L70: 0 | M70: 0.53 | N70: 0.52 | O70: 0 | P70: 0.3068736103 | Q70: 0.07992389175 | R70: 0.1037000163 | S70: 26.04456332 | T70: 33.79241903 | U70: 7.747855711 | V70: 59.83698236 | W70: 12.9482728 | X70: 38.63796 | Y70: 10.30142857 | Z70: FALSE | AA70: FALSE | AB70: FALSE | AC70: TRUE | AD70: 0 | AE70: 0 | AF70: 0 | AG70: 12.3 | AH70: 10.27333333 | AI70: 10.305 | AJ70: 0.3223809524 | AK70: -6.548498277 | AL70: 0 | AM70: -6.548498277 | AO70: 61884700
A71: 39 | B71: =OFFSET(InputPriceData!B$15,CalculationsAndCharts!$A71+$A$11,0,1,1) -> 2016-11-14 | C71: =OFFSET(InputPriceData!G$15,CalculationsAndCharts!$A71+$A$11,IF($C$7,8,0),1,1) -> 44721700 | D71: =OFFSET(InputPriceData!C$15,CalculationsAndCharts!$A71+$A$11,IF($C$7,8,0),1,1) -> 9.73 | E71: =OFFSET(InputPriceData!D$15,CalculationsAndCharts!$A71+$A$11,IF($C$7,8,0),1,1) -> 9.88 | F71: =OFFSET(InputPriceData!E$15,CalculationsAndCharts!$A71+$A$11,IF($C$7,8,0),1,1) -> 9.56 | G71: =OFFSET(InputPriceData!F$15,CalculationsAndCharts!$A71+$A$11,IF($C$7,8,0),1,1) -> 9.87 | H71: 10.24924343 | I71: 10.5560428 | J71: -0.3067993655 | K71: -0.2015883798 | L71: 0 | M71: 0.32 | N71: 0 | O71: 0.18 | P71: 0.2820817892 | Q71: 0.03102654639 | R71: 0.1152222403 | S71: 10.99913131 | T71: 40.84710348 | U71: 29.84797217 | V71: 51.84623478 | W71: 57.57018285 | X71: 41.49237 | Y71: 10.355 | Z71: FALSE | AA71: FALSE | AB71: TRUE | AC71: FALSE | AD71: 0 | AE71: 0 | AF71: 12.3 | AG71: 0 | AH71: 9.77 | AI71: 10.36714286 | AJ71: 0.397755102 | AK71: -100.0855139 | AL71: 0 | AM71: -100.0855139 | AO71: 44721700
A72: 40 | B72: =OFFSET(InputPriceData!B$15,CalculationsAndCharts!$A72+$A$11,0,1,1) -> 2016-11-11 | C72: =OFFSET(InputPriceData!G$15,CalculationsAndCharts!$A72+$A$11,IF($C$7,8,0),1,1) -> 48160800 | D72: =OFFSET(InputPriceData!C$15,CalculationsAndCharts!$A72+$A$11,IF($C$7,8,0),1,1) -> 9.88 | E72: =OFFSET(InputPriceData!D$15,CalculationsAndCharts!$A72+$A$11,IF($C$7,8,0),1,1) -> 9.9 | F72: =OFFSET(InputPriceData!E$15,CalculationsAndCharts!$A72+$A$11,IF($C$7,8,0),1,1) -> 9.74 | G72: =OFFSET(InputPriceData!F$15,CalculationsAndCharts!$A72+$A$11,IF($C$7,8,0),1,1) -> 9.77 | H72: 10.31819678 | I72: 10.61092622 | J72: -0.2927294382 | K72: -0.1752856334 | L72: 0 | M72: 0.3 | N72: 0 | O72: 0.3 | P72: 0.2778686547 | Q72: 0.03447394043 | R72: 0.1080247115 | S72: 12.40655967 | T72: 38.87617752 | U72: 26.46961786 | V72: 51.28273719 | W72: 51.61506446 | X72: 39.70595 | Y72: 10.45285714 | Z72: FALSE | AA72: FALSE | AB72: TRUE | AC72: FALSE | AD72: 0 | AE72: 0 | AF72: 12.3 | AG72: 0 | AH72: 9.803333333 | AI72: 10.47595238 | AJ72: 0.4368027211 | AK72: -102.6579453 | AL72: 0 | AM72: -102.6579453 | AP72: 48160800
A73: 41 | B73: =OFFSET(InputPriceData!B$15,CalculationsAndCharts!$A73+$A$11,0,1,1) -> 2016-11-10 | C73: =OFFSET(InputPriceData!G$15,CalculationsAndCharts!$A73+$A$11,IF($C$7,8,0),1,1) -> 34036000 | D73: =OFFSET(InputPriceData!C$15,CalculationsAndCharts!$A73+$A$11,IF($C$7,8,0),1,1) -> 10.1 | E73: =OFFSET(InputPriceData!D$15,CalculationsAndCharts!$A73+$A$11,IF($C$7,8,0),1,1) -> 10.21 | F73: =OFFSET(InputPriceData!E$15,CalculationsAndCharts!$A73+$A$11,IF($C$7,8,0),1,1) -> 10.04 | G73: =OFFSET(InputPriceData!F$15,CalculationsAndCharts!$A73+$A$11,IF($C$7,8,0),1,1) -> 10.04 | H73: 10.41786892 | I73: 10.67820032 | J73: -0.2603313937 | K73: -0.1459246822 | L73: 0 | M73: 0.24 | N73: 0 | O73: 0 | P73: 0.2754096163 | Q73: 0.03830437826 | R73: 0.08669412386 | S73: 13.90814844 | T73: 31.47824866 | U73: 17.57010022 | V73: 45.3863971 | W73: 38.71226037 | X73: 38.38271 | Y73: 10.57142857 | Z73: FALSE | AA73: FALSE | AB73: TRUE | AC73: FALSE | AD73: 0 | AE73: 0 | AF73: 12.3 | AG73: 0 | AH73: 10.09666667 | AI73: 10.58690476 | AJ73: 0.4550340136 | AK73: -71.8243883 | AL73: 0 | AM73: -71.8243883 | AP73: 34036000
A74: 42 | B74: =OFFSET(InputPriceData!B$15,CalculationsAndCharts!$A74+$A$11,0,1,1) -> 2016-11-09 | C74: =OFFSET(InputPriceData!G$15,CalculationsAndCharts!$A74+$A$11,IF($C$7,8,0),1,1) -> 40174100 | D74: =OFFSET(InputPriceData!C$15,CalculationsAndCharts!$A74+$A$11,IF($C$7,8,0),1,1) -> 10.14 | E74: =OFFSET(InputPriceData!D$15,CalculationsAndCharts!$A74+$A$11,IF($C$7,8,0),1,1) -> 10.37 | F74: =OFFSET(InputPriceData!E$15,CalculationsAndCharts!$A74+$A$11,IF($C$7,8,0),1,1) -> 10.04 | G74: =OFFSET(InputPriceData!F$15,CalculationsAndCharts!$A74+$A$11,IF($C$7,8,0),1,1) -> 10.28 | H74: 10.48657236 | I74: 10.72925634 | J74: -0.2426839785 | K74: -0.1173230043 | L74: 0 | M74: 0.33 | N74: 0.12 | O74: 0 | P74: 0.2793440181 | Q74: 0.04256042029 | R74: 0.09632680429 | S74: 15.23584452 | T74: 34.48321712 | U74: 19.2473726 | V74: 49.71906165 | W74: 38.71226037 | X74: 38.34609 | Y74: 10.67428571 | Z74: FALSE | AA74: FALSE | AB74: TRUE | AC74: FALSE | AD74: 0 | AE74: 0 | AF74: 12.3 | AG74: 0 | AH74: 10.23 | AI74: 10.68261905 | AJ74: 0.4858503401 | AK74: -62.10678615 | AL74: 0 | AM74: -62.10678615 | AO74: 40174100
A75: 43 | B75: =OFFSET(InputPriceData!B$15,CalculationsAndCharts!$A75+$A$11,0,1,1) -> 2016-11-08 | C75: =OFFSET(InputPriceData!G$15,CalculationsAndCharts!$A75+$A$11,IF($C$7,8,0),1,1) -> 28975700 | D75: =OFFSET(InputPriceData!C$15,CalculationsAndCharts!$A75+$A$11,IF($C$7,8,0),1,1) -> 10.06 | E75: =OFFSET(InputPriceData!D$15,CalculationsAndCharts!$A75+$A$11,IF($C$7,8,0),1,1) -> 10.25 | F75: =OFFSET(InputPriceData!E$15,CalculationsAndCharts!$A75+$A$11,IF($C$7,8,0),1,1) -> 10.03 | G75: =OFFSET(InputPriceData!F$15,CalculationsAndCharts!$A75+$A$11,IF($C$7,8,0),1,1) -> 10.1 | H75: 10.52413098 | I75: 10.76519685 | J75: -0.2410658743 | K75: -0.08598276075 | L75: 0 | M75: 0.22 | N75: 0.09 | O75: 0 | P75: 0.2737155757 | Q75: 0.03395602254 | R75: 0.1070297825 | S75: 12.40558651 | T75: 39.10255464 | U75: 26.69696812 | V75: 51.50814115 | W75: 51.83057965 | X75: 38.3054 | Y75: 10.75642857 | Z75: FALSE | AA75: FALSE | AB75: TRUE | AC75: FALSE | AD75: 0 | AE75: 0 | AF75: 12.3 | AG75: 0 | AH75: 10.12666667 | AI75: 10.77 | AJ75: 0.5085714286 | AK75: -84.33208489 | AL75: 0 | AM75: -84.33208489 | AO75: 28975700
A76: 44 | B76: =OFFSET(InputPriceData!B$15,CalculationsAndCharts!$A76+$A$11,0,1,1) -> 2016-11-07 | C76: =OFFSET(InputPriceData!G$15,CalculationsAndCharts!$A76+$A$11,IF($C$7,8,0),1,1) -> 34318700 | D76: =OFFSET(InputPriceData!C$15,CalculationsAndCharts!$A76+$A$11,IF($C$7,8,0),1,1) -> 10.06 | E76: =OFFSET(InputPriceData!D$15,CalculationsAndCharts!$A76+$A$11,IF($C$7,8,0),1,1) -> 10.16 | F76: =OFFSET(InputPriceData!E$15,CalculationsAndCharts!$A76+$A$11,IF($C$7,8,0),1,1) -> 9.96 | G76: =OFFSET(InputPriceData!F$15,CalculationsAndCharts!$A76+$A$11,IF($C$7,8,0),1,1) -> 10.16 | H76: 10.6012457 | I76: 10.8184126 | J76: -0.2171668994 | K76: -0.04721198237 | L76: 0 | M76: 0.2 | N76: 0.04 | O76: 0 | P76: 0.279683973 | Q76: 0.02772891394 | R76: 0.1189219806 | S76: 9.914373584 | T76: 42.52012703 | U76: 32.60575345 | V76: 52.43450061 | W76: 62.18377798 | X76: 36.8026 | Y76: 10.86785714 | Z76: FALSE | AA76: FALSE | AB76: TRUE | AC76: FALSE | AD76: 0 | AE76: 0 | AF76: 12.3 | AG76: 0 | AH76: 10.09333333 | AI76: 10.88 | AJ76: 0.510952381 | AK76: -102.6405716 | AL76: 0 | AM76: -102.6405716 | AO76: 34318700
A77: 45 | B77: =OFFSET(InputPriceData!B$15,CalculationsAndCharts!$A77+$A$11,0,1,1) -> 2016-11-04 | C77: =OFFSET(InputPriceData!G$15,CalculationsAndCharts!$A77+$A$11,IF($C$7,8,0),1,1) -> 55960200 | D77: =OFFSET(InputPriceData!C$15,CalculationsAndCharts!$A77+$A$11,IF($C$7,8,0),1,1) -> 9.97 | E77: =OFFSET(InputPriceData!D$15,CalculationsAndCharts!$A77+$A$11,IF($C$7,8,0),1,1) -> 10.12 | F77: =OFFSET(InputPriceData!E$15,CalculationsAndCharts!$A77+$A$11,IF($C$7,8,0),1,1) -> 9.84 | G77: =OFFSET(InputPriceData!F$15,CalculationsAndCharts!$A77+$A$11,IF($C$7,8,0),1,1) -> 9.98 | H77: 10.68147219 | I77: 10.87108561 | J77: -0.1896134167 | K77: -0.004723253099 | L77: 0 | M77: 0.28 | N77: 0 | O77: 0.18 | P77: 0.2885377478 | Q77: 0.02636545993 | R77: 0.132135534 | S77: 9.137612023 | T77: 45.79488646 | U77: 36.65727444 | V77: 54.93249849 | W77: 66.73148947 | X77: 33.98247 | Y77: 10.96 | Z77: FALSE | AA77: FALSE | AB77: TRUE | AC77: FALSE | AD77: 0 | AE77: 0 | AF77: 12.3 | AG77: 0 | AH77: 9.98 | AI77: 10.975 | AJ77: 0.4664285714 | AK77: -142.215416 | AL77: 0 | AM77: -142.215416 | AO77: 55960200
A78: 46 | B78: =OFFSET(InputPriceData!B$15,CalculationsAndCharts!$A78+$A$11,0,1,1) -> 2016-11-03 | C78: =OFFSET(InputPriceData!G$15,CalculationsAndCharts!$A78+$A$11,IF($C$7,8,0),1,1) -> 39030600 | D78: =OFFSET(InputPriceData!C$15,CalculationsAndCharts!$A78+$A$11,IF($C$7,8,0),1,1) -> 10.24 | E78: =OFFSET(InputPriceData!D$15,CalculationsAndCharts!$A78+$A$11,IF($C$7,8,0),1,1) -> 10.27 | F78: =OFFSET(InputPriceData!E$15,CalculationsAndCharts!$A78+$A$11,IF($C$7,8,0),1,1) -> 10.02 | G78: =OFFSET(InputPriceData!F$15,CalculationsAndCharts!$A78+$A$11,IF($C$7,8,0),1,1) -> 10.08 | H78: 10.80901259 | I78: 10.94237245 | J78: -0.1333598672 | K78: 0.0414992878 | L78: 0 | M78: 0.26 | N78: 0 | O78: 0.13 | P78: 0.2894863864 | Q78: 0.02929495548 | R78: 0.12681726 | S78: 10.11963148 | T78: 43.80767661 | U78: 33.68804514 | V78: 53.92730809 | W78: 62.46936168 | X78: 30.34369 | Y78: 11.05928571 | Z78: FALSE | AA78: FALSE | AB78: TRUE | AC78: FALSE | AD78: 0 | AE78: 0 | AF78: 12.3 | AG78: 0 | AH78: 10.12333333 | AI78: 11.07333333 | AJ78: 0.3828571429 | AK78: -165.4228856 | AL78: 0 | AM78: -165.4228856 | AP78: 39030600
A79: 47 | B79: =OFFSET(InputPriceData!B$15,CalculationsAndCharts!$A79+$A$11,0,1,1) -> 2016-11-02 | C79: =OFFSET(InputPriceData!G$15,CalculationsAndCharts!$A79+$A$11,IF($C$7,8,0),1,1) -> 49610200 | D79: =OFFSET(InputPriceData!C$15,CalculationsAndCharts!$A79+$A$11,IF($C$7,8,0),1,1) -> 10.35 | E79: =OFFSET(InputPriceData!D$15,CalculationsAndCharts!$A79+$A$11,IF($C$7,8,0),1,1) -> 10.46 | F79: =OFFSET(InputPriceData!E$15,CalculationsAndCharts!$A79+$A$11,IF($C$7,8,0),1,1) -> 10.15 | G79: =OFFSET(InputPriceData!F$15,CalculationsAndCharts!$A79+$A$11,IF($C$7,8,0),1,1) -> 10.28 | H79: 10.94156033 | I79: 11.01136225 | J79: -0.06980192048 | K79: 0.08521407655 | L79: 0 | M79: 0.42 | N79: 0 | O79: 0.28 | P79: 0.2927626516 | Q79: 0.03254995053 | R79: 0.1264636222 | S79: 11.11820458 | T79: 43.1966378 | U79: 32.07843322 | V79: 54.31484238 | W79: 59.06016075 | X79: 26.77417 | Y79: 11.15642857 | Z79: FALSE | AA79: FALSE | AB79: TRUE | AC79: FALSE | AD79: 0 | AE79: 0 | AF79: 12.3 | AG79: 0 | AH79: 10.29666667 | AI79: 11.16690476 | AJ79: 0.3039795918 | AK79: -190.8545 | AL79: 0 | AM79: -190.8545 | AP79: 49610200
A80: 48 | B80: =OFFSET(InputPriceData!B$15,CalculationsAndCharts!$A80+$A$11,0,1,1) -> 2016-11-01 | C80: =OFFSET(InputPriceData!G$15,CalculationsAndCharts!$A80+$A$11,IF($C$7,8,0),1,1) -> 34298900 | D80: =OFFSET(InputPriceData!C$15,CalculationsAndCharts!$A80+$A$11,IF($C$7,8,0),1,1) -> 10.65 | E80: =OFFSET(InputPriceData!D$15,CalculationsAndCharts!$A80+$A$11,IF($C$7,8,0),1,1) -> 10.69 | F80: =OFFSET(InputPriceData!E$15,CalculationsAndCharts!$A80+$A$11,IF($C$7,8,0),1,1) -> 10.43 | G80: =OFFSET(InputPriceData!F$15,CalculationsAndCharts!$A80+$A$11,IF($C$7,8,0),1,1) -> 10.57 | H80: 11.06184403 | I80: 11.06987123 | J80: -0.008027204205 | K80: 0.1239680758 | L80: 0 | M80: 0.26 | N80: 0 | O80: 0.1 | P80: 0.2786251684 | Q80: 0.0361666117 | R80: 0.1094040247 | S80: 12.98038218 | T80: 39.26566481 | U80: 26.28528263 | V80: 52.24604698 | W80: 50.3105673 | X80: 23.18684 | Y80: 11.24285714 | Z80: FALSE | AA80: FALSE | AB80: TRUE | AC80: FALSE | AD80: 0 | AE80: 0 | AF80: 12.3 | AG80: 0 | AH80: 10.56333333 | AI80: 11.24666667 | AJ80: 0.2304761905 | AK80: -197.6584022 | AL80: 0 | AM80: -197.6584022 | AP80: 34298900
A81: 49 | B81: =OFFSET(InputPriceData!B$15,CalculationsAndCharts!$A81+$A$11,0,1,1) -> 2016-10-31 | C81: =OFFSET(InputPriceData!G$15,CalculationsAndCharts!$A81+$A$11,IF($C$7,8,0),1,1) -> 45276300 | D81: =OFFSET(InputPriceData!C$15,CalculationsAndCharts!$A81+$A$11,IF($C$7,8,0),1,1) -> 10.84 | E81: =OFFSET(InputPriceData!D$15,CalculationsAndCharts!$A81+$A$11,IF($C$7,8,0),1,1) -> 10.88 | F81: =OFFSET(InputPriceData!E$15,CalculationsAndCharts!$A81+$A$11,IF($C$7,8,0),1,1) -> 10.53 | G81: =OFFSET(InputPriceData!F$15,CalculationsAndCharts!$A81+$A$11,IF($C$7,8,0),1,1) -> 10.53 | H81: 11.15127021 | I81: 11.10986093 | J81: 0.0414092839 | K81: 0.1569668958 | L81: 0 | M81: 0.48 | N81: 0 | O81: 0.4 | P81: 0.2806946316 | Q81: 0.04018512411 | R81: 0.1104489163 | S81: 14.31631374 | T81: 39.34842491 | U81: 25.03211117 | V81: 53.66473865 | W81: 46.64536117 | X81: 20.17309 | Y81: 11.30428571 | Z81: FALSE | AA81: FALSE | AB81: TRUE | AC81: FALSE | AD81: 0 | AE81: 0 | AF81: 12.3 | AG81: 0 | AH81: 10.64666667 | AI81: 11.30833333 | AJ81: 0.1702380952 | AK81: -259.1142191 | AL81: 0 | AM81: -259.1142191 | AP81: 45276300
A82: 50 | B82: =OFFSET(InputPriceData!B$15,CalculationsAndCharts!$A82+$A$11,0,1,1) -> 2016-10-28 | C82: =OFFSET(InputPriceData!G$15,CalculationsAndCharts!$A82+$A$11,IF($C$7,8,0),1,1) -> 28970400 | D82: =OFFSET(InputPriceData!C$15,CalculationsAndCharts!$A82+$A$11,IF($C$7,8,0),1,1) -> 11.1 | E82: =OFFSET(InputPriceData!D$15,CalculationsAndCharts!$A82+$A$11,IF($C$7,8,0),1,1) -> 11.23 | F82: =OFFSET(InputPriceData!E$15,CalculationsAndCharts!$A82+$A$11,IF($C$7,8,0),1,1) -> 10.93 | G82: =OFFSET(InputPriceData!F$15,CalculationsAndCharts!$A82+$A$11,IF($C$7,8,0),1,1) -> 11.01 | H82: 11.26422843 | I82: 11.1562498 | J82: 0.1079786301 | K82: 0.1858562988 | L82: 0 | M82: 0.3 | N82: 0 | O82: 0.19 | P82: 0.2585495906 | Q82: 0.0446501379 | R82: 0.07827657369 | S82: 17.26946765 | T82: 30.27526499 | U82: 13.00579734 | V82: 47.54473264 | W82: 27.35486482 | X82: 17.23173 | Y82: 11.37928571 | Z82: FALSE | AA82: FALSE | AB82: TRUE | AC82: FALSE | AD82: 0 | AE82: 0 | AF82: 12.3 | AG82: 0 | AH82: 11.05666667 | AI82: 11.37642857 | AJ82: 0.1202721088 | AK82: -177.2435897 | AL82: 0 | AM82: -177.2435897 | AP82: 28970400
A83: 51 | B83: =OFFSET(InputPriceData!B$15,CalculationsAndCharts!$A83+$A$11,0,1,1) -> 2016-10-27 | C83: =OFFSET(InputPriceData!G$15,CalculationsAndCharts!$A83+$A$11,IF($C$7,8,0),1,1) -> 24672900 | D83: =OFFSET(InputPriceData!C$15,CalculationsAndCharts!$A83+$A$11,IF($C$7,8,0),1,1) -> 11.21 | E83: =OFFSET(InputPriceData!D$15,CalculationsAndCharts!$A83+$A$11,IF($C$7,8,0),1,1) -> 11.3 | F83: =OFFSET(InputPriceData!E$15,CalculationsAndCharts!$A83+$A$11,IF($C$7,8,0),1,1) -> 11.12 | G83: =OFFSET(InputPriceData!F$15,CalculationsAndCharts!$A83+$A$11,IF($C$7,8,0),1,1) -> 11.21 | H83: 11.31045178 | I83: 11.16794979 | J83: 0.1425019972 | K83: 0.205325716 | L83: 0 | M83: 0.21 | N83: 0 | O83: 0 | P83: 0.2539439896 | Q83: 0.04961126434 | R83: 0.06586285966 | S83: 19.53630185 | T83: 25.93597894 | U83: 6.399677089 | V83: 45.47228079 | W83: 14.07379832 | X83: 16.10694 | Y83: 11.42642857 | Z83: FALSE | AA83: TRUE | AB83: FALSE | AC83: FALSE | AD83: 0 | AE83: 12.3 | AF83: 0 | AG83: 0 | AH83: 11.21 | AI83: 11.41904762 | AJ83: 0.1058503401 | AK83: -131.6623822 | AL83: 0 | AM83: -131.6623822 | AO83: 24672900
A84: 52 | B84: =OFFSET(InputPriceData!B$15,CalculationsAndCharts!$A84+$A$11,0,1,1) -> 2016-10-26 | C84: =OFFSET(InputPriceData!G$15,CalculationsAndCharts!$A84+$A$11,IF($C$7,8,0),1,1) -> 57531500 | D84: =OFFSET(InputPriceData!C$15,CalculationsAndCharts!$A84+$A$11,IF($C$7,8,0),1,1) -> 11.07 | E84: =OFFSET(InputPriceData!D$15,CalculationsAndCharts!$A84+$A$11,IF($C$7,8,0),1,1) -> 11.31 | F84: =OFFSET(InputPriceData!E$15,CalculationsAndCharts!$A84+$A$11,IF($C$7,8,0),1,1) -> 11.03 | G84: =OFFSET(InputPriceData!F$15,CalculationsAndCharts!$A84+$A$11,IF($C$7,8,0),1,1) -> 11.09 | H84: 11.32871574 | I84: 11.16458577 | J84: 0.164129975 | K84: 0.2210316456 | L84: 0 | M84: 0.28 | N84: 0 | O84: 0.19 | P84: 0.2588266551 | Q84: 0.05512362704 | R84: 0.07318095518 | S84: 21.29750779 | T84: 28.2741185 | U84: 6.976610708 | V84: 49.5716263 | W84: 14.07379832 | X84: 16.33284 | Y84: 11.435 | Z84: FALSE | AA84: TRUE | AB84: FALSE | AC84: FALSE | AD84: 0 | AE84: 12.3 | AF84: 0 | AG84: 0 | AH84: 11.14333333 | AI84: 11.43047619 | AJ84: 0.0943537415 | AK84: -202.8839221 | AL84: 0 | AM84: -202.8839221 | AO84: 57531500
A85: 53 | B85: =OFFSET(InputPriceData!B$15,CalculationsAndCharts!$A85+$A$11,0,1,1) -> 2016-10-25 | C85: =OFFSET(InputPriceData!G$15,CalculationsAndCharts!$A85+$A$11,IF($C$7,8,0),1,1) -> 46612700 | D85: =OFFSET(InputPriceData!C$15,CalculationsAndCharts!$A85+$A$11,IF($C$7,8,0),1,1) -> 11.34 | E85: =OFFSET(InputPriceData!D$15,CalculationsAndCharts!$A85+$A$11,IF($C$7,8,0),1,1) -> 11.42 | F85: =OFFSET(InputPriceData!E$15,CalculationsAndCharts!$A85+$A$11,IF($C$7,8,0),1,1) -> 11.22 | G85: =OFFSET(InputPriceData!F$15,CalculationsAndCharts!$A85+$A$11,IF($C$7,8,0),1,1) -> 11.24 | H85: 11.37211861 | I85: 11.17055263 | J85: 0.2015659762 | K85: 0.2352570633 | L85: 0 | M85: 0.21 | N85: 0 | O85: 0 | P85: 0.2564740612 | Q85: 0.06124847449 | R85: 0.06020106131 | S85: 23.88096254 | T85: 23.47257302 | U85: 0.4083895191 | V85: 47.35353557 | W85: 0.8624266682 | X85: 16.58384 | Y85: 11.465 | Z85: FALSE | AA85: TRUE | AB85: FALSE | AC85: FALSE | AD85: 0 | AE85: 12.3 | AF85: 0 | AG85: 0 | AH85: 11.29333333 | AI85: 11.45428571 | AJ85: 0.08278911565 | AK85: -129.6083265 | AL85: 0 | AM85: -129.6083265 | AP85: 46612700
A86: 54 | B86: =OFFSET(InputPriceData!B$15,CalculationsAndCharts!$A86+$A$11,0,1,1) -> 2016-10-24 | C86: =OFFSET(InputPriceData!G$15,CalculationsAndCharts!$A86+$A$11,IF($C$7,8,0),1,1) -> 50940300 | D86: =OFFSET(InputPriceData!C$15,CalculationsAndCharts!$A86+$A$11,IF($C$7,8,0),1,1) -> 11.35 | E86: =OFFSET(InputPriceData!D$15,CalculationsAndCharts!$A86+$A$11,IF($C$7,8,0),1,1) -> 11.44 | F86: =OFFSET(InputPriceData!E$15,CalculationsAndCharts!$A86+$A$11,IF($C$7,8,0),1,1) -> 11.2 | G86: =OFFSET(InputPriceData!F$15,CalculationsAndCharts!$A86+$A$11,IF($C$7,8,0),1,1) -> 11.43 | H86: 11.39614017 | I86: 11.16499684 | J86: 0.2311433307 | K86: 0.2436798351 | L86: 0 | M86: 0.28 | N86: 0 | O86: 0.13 | P86: 0.2616378458 | Q86: 0.06805386055 | R86: 0.06689006812 | S86: 26.0107097 | T86: 25.56589927 | U86: 0.4448104304 | V86: 51.57660898 | W86: 0.8624266682 | X86: 18.33066 | Y86: 11.47285714 | Z86: FALSE | AA86: TRUE | AB86: FALSE | AC86: FALSE | AD86: 0 | AE86: 12.3 | AF86: 0 | AG86: 0 | AH86: 11.35666667 | AI86: 11.45666667 | AJ86: 0.08142857143 | AK86: -81.87134503 | AL86: 0 | AM86: -81.87134503 | AO86: 50940300
A87: 55 | B87: =OFFSET(InputPriceData!B$15,CalculationsAndCharts!$A87+$A$11,0,1,1) -> 2016-10-21 | C87: =OFFSET(InputPriceData!G$15,CalculationsAndCharts!$A87+$A$11,IF($C$7,8,0),1,1) -> 39657300 | D87: =OFFSET(InputPriceData!C$15,CalculationsAndCharts!$A87+$A$11,IF($C$7,8,0),1,1) -> 11.4 | E87: =OFFSET(InputPriceData!D$15,CalculationsAndCharts!$A87+$A$11,IF($C$7,8,0),1,1) -> 11.5 | F87: =OFFSET(InputPriceData!E$15,CalculationsAndCharts!$A87+$A$11,IF($C$7,8,0),1,1) -> 11.33 | G87: =OFFSET(InputPriceData!F$15,CalculationsAndCharts!$A87+$A$11,IF($C$7,8,0),1,1) -> 11.48 | H87: 11.38998384 | I87: 11.14379659 | J87: 0.2461872511 | K87: 0.2468139612 | L87: 0 | M87: 0.17 | N87: 0 | O87: 0.06 | P87: 0.2595976064 | Q87: 0.07561540061 | R87: 0.05987785347 | S87: 29.12792673 | T87: 23.06564159 | U87: 6.062285149 | V87: 52.19356832 | W87: 11.61500419 | X87: 20.27157 | Y87: 11.44857143 | Z87: FALSE | AA87: TRUE | AB87: FALSE | AC87: FALSE | AD87: 0 | AE87: 12.3 | AF87: 0 | AG87: 0 | AH87: 11.43666667 | AI87: 11.43904762 | AJ87: 0.09353741497 | AK87: -1.696969697 | AL87: 0 | AM87: -1.696969697 | AO87: 39657300
A88: 56 | B88: =OFFSET(InputPriceData!B$15,CalculationsAndCharts!$A88+$A$11,0,1,1) -> 2016-10-20 | C88: =OFFSET(InputPriceData!G$15,CalculationsAndCharts!$A88+$A$11,IF($C$7,8,0),1,1) -> 45205200 | D88: =OFFSET(InputPriceData!C$15,CalculationsAndCharts!$A88+$A$11,IF($C$7,8,0),1,1) -> 11.49 | E88: =OFFSET(InputPriceData!D$15,CalculationsAndCharts!$A88+$A$11,IF($C$7,8,0),1,1) -> 11.54 | F88: =OFFSET(InputPriceData!E$15,CalculationsAndCharts!$A88+$A$11,IF($C$7,8,0),1,1) -> 11.39 | G88: =OFFSET(InputPriceData!F$15,CalculationsAndCharts!$A88+$A$11,IF($C$7,8,0),1,1) -> 11.43 | H88: 11.37361727 | I88: 11.11690032 | J88: 0.2567169494 | K88: 0.2469706387 | L88: 0 | M88: 0.27 | N88: 0 | O88: 0.16 | P88: 0.269552896 | Q88: 0.08401711179 | R88: 0.05986428163 | S88: 31.16906293 | T88: 22.2087325 | U88: 8.960330426 | V88: 53.37779543 | W88: 16.78662514 | X88: 21.23341 | Y88: 11.42142857 | Z88: FALSE | AA88: TRUE | AB88: FALSE | AC88: FALSE | AD88: 0 | AE88: 12.3 | AF88: 0 | AG88: 0 | AH88: 11.45333333 | AI88: 11.41238095 | AJ88: 0.1193197279 | AK88: 22.88103383 | AL88: 22.88103383 | AM88: 0 | AP88: 45205200
A89: 57 | B89: =OFFSET(InputPriceData!B$15,CalculationsAndCharts!$A89+$A$11,0,1,1) -> 2016-10-19 | C89: =OFFSET(InputPriceData!G$15,CalculationsAndCharts!$A89+$A$11,IF($C$7,8,0),1,1) -> 48222300 | D89: =OFFSET(InputPriceData!C$15,CalculationsAndCharts!$A89+$A$11,IF($C$7,8,0),1,1) -> 11.57 | E89: =OFFSET(InputPriceData!D$15,CalculationsAndCharts!$A89+$A$11,IF($C$7,8,0),1,1) -> 11.79 | F89: =OFFSET(InputPriceData!E$15,CalculationsAndCharts!$A89+$A$11,IF($C$7,8,0),1,1) -> 11.55 | G89: =OFFSET(InputPriceData!F$15,CalculationsAndCharts!$A89+$A$11,IF($C$7,8,0),1,1) -> 11.66 | H89: 11.36336586 | I89: 11.09185234 | J89: 0.2715135179 | K89: 0.244534061 | L89: 0 | M89: 0.34 | N89: 0.29 | O89: 0 | P89: 0.2695032178 | Q89: 0.09335234643 | R89: 0.0487380907 | S89: 34.638676 | T89: 18.08441884 | U89: 16.55425716 | V89: 52.72309484 | W89: 31.39849284 | X89: 21.7275 | Y89: 11.38571429 | Z89: TRUE | AA89: FALSE | AB89: FALSE | AC89: FALSE | AD89: 12.3 | AE89: 0 | AF89: 0 | AG89: 0 | AH89: 11.66666667 | AI89: 11.37595238 | AJ89: 0.1551020408 | AK89: 124.9561404 | AL89: 124.9561404 | AM89: 0 | AO89: 48222300
A90: 58 | B90: =OFFSET(InputPriceData!B$15,CalculationsAndCharts!$A90+$A$11,0,1,1) -> 2016-10-18 | C90: =OFFSET(InputPriceData!G$15,CalculationsAndCharts!$A90+$A$11,IF($C$7,8,0),1,1) -> 37787100 | D90: =OFFSET(InputPriceData!C$15,CalculationsAndCharts!$A90+$A$11,IF($C$7,8,0),1,1) -> 11.48 | E90: =OFFSET(InputPriceData!D$15,CalculationsAndCharts!$A90+$A$11,IF($C$7,8,0),1,1) -> 11.5 | F90: =OFFSET(InputPriceData!E$15,CalculationsAndCharts!$A90+$A$11,IF($C$7,8,0),1,1) -> 11.32 | G90: =OFFSET(InputPriceData!F$15,CalculationsAndCharts!$A90+$A$11,IF($C$7,8,0),1,1) -> 11.45 | H90: 11.30943238 | I90: 11.04640053 | J90: 0.2630318505 | K90: 0.2377891968 | L90: 0 | M90: 0.18 | N90: 0.07 | O90: 0 | P90: 0.261670242 | Q90: 0.07150260714 | R90: 0.05415343411 | S90: 27.32546375 | T90: 20.69529714 | U90: 6.630166617 | V90: 48.02076089 | W90: 13.80687539 | X90: 20.65295 | Y90: 11.32928571 | Z90: FALSE | AA90: TRUE | AB90: FALSE | AC90: FALSE | AD90: 0 | AE90: 12.3 | AF90: 0 | AG90: 0 | AH90: 11.42333333 | AI90: 11.31880952 | AJ90: 0.1845578231 | AK90: 37.75648114 | AL90: 37.75648114 | AM90: 0 | AP90: 37787100
A91: 59 | B91: =OFFSET(InputPriceData!B$15,CalculationsAndCharts!$A91+$A$11,0,1,1) -> 2016-10-17 | C91: =OFFSET(InputPriceData!G$15,CalculationsAndCharts!$A91+$A$11,IF($C$7,8,0),1,1) -> 36033900 | D91: =OFFSET(InputPriceData!C$15,CalculationsAndCharts!$A91+$A$11,IF($C$7,8,0),1,1) -> 11.41 | E91: =OFFSET(InputPriceData!D$15,CalculationsAndCharts!$A91+$A$11,IF($C$7,8,0),1,1) -> 11.43 | F91: =OFFSET(InputPriceData!E$15,CalculationsAndCharts!$A91+$A$11,IF($C$7,8,0),1,1) -> 11.27 | G91: =OFFSET(InputPriceData!F$15,CalculationsAndCharts!$A91+$A$11,IF($C$7,8,0),1,1) -> 11.37 | H91: 11.28387463 | I91: 11.01411257 | J91: 0.2697620591 | K91: 0.2314785334 | L91: 0 | M91: 0.17 | N91: 0 | O91: 0.08 | P91: 0.2707447134 | Q91: 0.07166956349 | R91: 0.06017048234 | S91: 26.47126978 | T91: 22.22406547 | U91: 4.247204315 | V91: 48.69533525 | W91: 8.721994199 | X91: 21.41362 | Y91: 11.27214286 | Z91: FALSE | AA91: TRUE | AB91: FALSE | AC91: FALSE | AD91: 0 | AE91: 12.3 | AF91: 0 | AG91: 0 | AH91: 11.35666667 | AI91: 11.255 | AJ91: 0.2516666667 | AK91: 26.93156733 | AL91: 26.93156733 | AM91: 0 | AP91: 36033900
A92: 60 | B92: =OFFSET(InputPriceData!B$15,CalculationsAndCharts!$A92+$A$11,0,1,1) -> 2016-10-14 | C92: =OFFSET(InputPriceData!G$15,CalculationsAndCharts!$A92+$A$11,IF($C$7,8,0),1,1) -> 53206600 | D92: =OFFSET(InputPriceData!C$15,CalculationsAndCharts!$A92+$A$11,IF($C$7,8,0),1,1) -> 11.5 | E92: =OFFSET(InputPriceData!D$15,CalculationsAndCharts!$A92+$A$11,IF($C$7,8,0),1,1) -> 11.51 | F92: =OFFSET(InputPriceData!E$15,CalculationsAndCharts!$A92+$A$11,IF($C$7,8,0),1,1) -> 11.35 | G92: =OFFSET(InputPriceData!F$15,CalculationsAndCharts!$A92+$A$11,IF($C$7,8,0),1,1) -> 11.44 | H92: 11.26821547 | I92: 10.98564158 | J92: 0.2825738952 | K92: 0.2219076519 | L92: 0 | M92: 0.16 | N92: 0 | O92: 0 | P92: 0.2819385704 | Q92: 0.07963284833 | R92: 0.0579672026 | S92: 28.2447514 | T92: 20.56022435 | U92: 7.684527055 | V92: 48.80497575 | W92: 15.74537624 | X92: 22.8238 | Y92: 11.185 | Z92: FALSE | AA92: TRUE | AB92: FALSE | AC92: FALSE | AD92: 0 | AE92: 12.3 | AF92: 0 | AG92: 0 | AH92: 11.43333333 | AI92: 11.17047619 | AJ92: 0.3337414966 | AK92: 52.50713412 | AL92: 52.50713412 | AM92: 0 | AP92: 53206600
A93: 61 | B93: =OFFSET(InputPriceData!B$15,CalculationsAndCharts!$A93+$A$11,0,1,1) -> 2016-10-13 | C93: =OFFSET(InputPriceData!G$15,CalculationsAndCharts!$A93+$A$11,IF($C$7,8,0),1,1) -> 61376900 | D93: =OFFSET(InputPriceData!C$15,CalculationsAndCharts!$A93+$A$11,IF($C$7,8,0),1,1) -> 11.42 | E93: =OFFSET(InputPriceData!D$15,CalculationsAndCharts!$A93+$A$11,IF($C$7,8,0),1,1) -> 11.51 | F93: =OFFSET(InputPriceData!E$15,CalculationsAndCharts!$A93+$A$11,IF($C$7,8,0),1,1) -> 11.24 | G93: =OFFSET(InputPriceData!F$15,CalculationsAndCharts!$A93+$A$11,IF($C$7,8,0),1,1) -> 11.49 | H93: 11.23698192 | I93: 10.9492929 | J93: 0.2876890186 | K93: 0.2067410911 | L93: 0 | M93: 0.27 | N93: 0 | O93: 0.12 | P93: 0.2954873005 | Q93: 0.08848094258 | R93: 0.06440800289 | S93: 29.94407626 | T93: 21.79721524 | U93: 8.146861017 | V93: 51.7412915 | W93: 15.74537624 | X93: 23.61029 | Y93: 11.11285714 | Z93: FALSE | AA93: FALSE | AB93: FALSE | AC93: TRUE | AD93: 0 | AE93: 0 | AF93: 0 | AG93: 12.3 | AH93: 11.41333333 | AI93: 11.09857143 | AJ93: 0.3697278912 | AK93: 56.75559644 | AL93: 56.75559644 | AM93: 0 | AO93: 61376900
A94: 62 | B94: =OFFSET(InputPriceData!B$15,CalculationsAndCharts!$A94+$A$11,0,1,1) -> 2016-10-12 | C94: =OFFSET(InputPriceData!G$15,CalculationsAndCharts!$A94+$A$11,IF($C$7,8,0),1,1) -> 46290300 | D94: =OFFSET(InputPriceData!C$15,CalculationsAndCharts!$A94+$A$11,IF($C$7,8,0),1,1) -> 11.46 | E94: =OFFSET(InputPriceData!D$15,CalculationsAndCharts!$A94+$A$11,IF($C$7,8,0),1,1) -> 11.49 | F94: =OFFSET(InputPriceData!E$15,CalculationsAndCharts!$A94+$A$11,IF($C$7,8,0),1,1) -> 11.36 | G94: =OFFSET(InputPriceData!F$15,CalculationsAndCharts!$A94+$A$11,IF($C$7,8,0),1,1) -> 11.43 | H94: 11.19097864 | I94: 10.90603634 | J94: 0.2849422994 | K94: 0.1865041092 | L94: 0 | M94: 0.22 | N94: 0 | O94: 0.12 | P94: 0.2983192227 | Q94: 0.09831215843 | R94: 0.05823111433 | S94: 32.95535485 | T94: 19.51973252 | U94: 13.43562233 | V94: 52.47508736 | W94: 25.60381126 | X94: 24.48417 | Y94: 11.02 | Z94: TRUE | AA94: FALSE | AB94: FALSE | AC94: FALSE | AD94: 12.3 | AE94: 0 | AF94: 0 | AG94: 0 | AH94: 11.42666667 | AI94: 11.01809524 | AJ94: 0.4117006803 | AK94: 66.15994712 | AL94: 66.15994712 | AM94: 0 | AP94: 46290300
A95: 63 | B95: =OFFSET(InputPriceData!B$15,CalculationsAndCharts!$A95+$A$11,0,1,1) -> 2016-10-11 | C95: =OFFSET(InputPriceData!G$15,CalculationsAndCharts!$A95+$A$11,IF($C$7,8,0),1,1) -> 61357600 | D95: =OFFSET(InputPriceData!C$15,CalculationsAndCharts!$A95+$A$11,IF($C$7,8,0),1,1) -> 11.69 | E95: =OFFSET(InputPriceData!D$15,CalculationsAndCharts!$A95+$A$11,IF($C$7,8,0),1,1) -> 11.74 | F95: =OFFSET(InputPriceData!E$15,CalculationsAndCharts!$A95+$A$11,IF($C$7,8,0),1,1) -> 11.48 | G95: =OFFSET(InputPriceData!F$15,CalculationsAndCharts!$A95+$A$11,IF($C$7,8,0),1,1) -> 11.58 | H95: 11.14752021 | I95: 10.86411924 | J95: 0.2834009626 | K95: 0.1618945617 | L95: 0 | M95: 0.26 | N95: 0 | O95: 0.04 | P95: 0.3070213586 | Q95: 0.1092357316 | R95: 0.05136790481 | S95: 35.57919621 | T95: 16.73105254 | U95: 18.84814367 | V95: 52.31024875 | W95: 36.03145488 | X95: 24.35976 | Y95: 10.95571429 | Z95: TRUE | AA95: FALSE | AB95: FALSE | AC95: FALSE | AD95: 12.3 | AE95: 0 | AF95: 0 | AG95: 0 | AH95: 11.6 | AI95: 10.9547619 | AJ95: 0.4166666667 | AK95: 103.2380952 | AL95: 103.2380952 | AM95: 0 | AP95: 61357600
A96: 64 | B96: =OFFSET(InputPriceData!B$15,CalculationsAndCharts!$A96+$A$11,0,1,1) -> 2016-10-10 | C96: =OFFSET(InputPriceData!G$15,CalculationsAndCharts!$A96+$A$11,IF($C$7,8,0),1,1) -> 51699700 | D96: =OFFSET(InputPriceData!C$15,CalculationsAndCharts!$A96+$A$11,IF($C$7,8,0),1,1) -> 11.53 | E96: =OFFSET(InputPriceData!D$15,CalculationsAndCharts!$A96+$A$11,IF($C$7,8,0),1,1) -> 11.77 | F96: =OFFSET(InputPriceData!E$15,CalculationsAndCharts!$A96+$A$11,IF($C$7,8,0),1,1) -> 11.52 | G96: =OFFSET(InputPriceData!F$15,CalculationsAndCharts!$A96+$A$11,IF($C$7,8,0),1,1) -> 11.67 | H96: 11.06888752 | I96: 10.80684878 | J96: 0.2620387332 | K96: 0.1315179615 | L96: 0 | M96: 0.44 | N96: 0.26 | O96: 0 | P96: 0.312245954 | Q96: 0.1213730351 | R96: 0.05263100534 | S96: 38.87097128 | T96: 16.85562444 | U96: 22.01534684 | V96: 55.72659572 | W96: 39.50599629 | X96: 23.06291 | Y96: 10.87142857 | Z96: TRUE | AA96: FALSE | AB96: FALSE | AC96: FALSE | AD96: 12.3 | AE96: 0 | AF96: 0 | AG96: 0 | AH96: 11.65333333 | AI96: 10.8647619 | AJ96: 0.4131292517 | AK96: 127.2517701 | AL96: 127.2517701 | AM96: 0 | AO96: 51699700
A97: 65 | B97: =OFFSET(InputPriceData!B$15,CalculationsAndCharts!$A97+$A$11,0,1,1) -> 2016-10-07 | C97: =OFFSET(InputPriceData!G$15,CalculationsAndCharts!$A97+$A$11,IF($C$7,8,0),1,1) -> 54470000 | D97: =OFFSET(InputPriceData!C$15,CalculationsAndCharts!$A97+$A$11,IF($C$7,8,0),1,1) -> 11.49 | E97: =OFFSET(InputPriceData!D$15,CalculationsAndCharts!$A97+$A$11,IF($C$7,8,0),1,1) -> 11.51 | F97: =OFFSET(InputPriceData!E$15,CalculationsAndCharts!$A97+$A$11,IF($C$7,8,0),1,1) -> 11.27 | G97: =OFFSET(InputPriceData!F$15,CalculationsAndCharts!$A97+$A$11,IF($C$7,8,0),1,1) -> 11.33 | H97: 10.95959434 | I97: =IF($A97>$A$8,NA(),IF($A97=$A$8,$G97,$G97*$C$21+I98*$D$21)) -> 10.73779668 | J97: 0.2217976515 | K97: 0.09888776853 | L97: 0 | M97: =IF($A97<$A$8,MAX($E97-$F97,ABS($E97-$G98),ABS($F97-$G98)),"") -> 0.24 | N97: =IF($A97<$A$8,IF($E97-$E98>$F98-$F97,MAX($E97-$E98,0),0),"") -> 0 | O97: =IF($A97<$A$8,IF($F98-$F97>$E97-$E98,MAX($F98-$F97,0),0),"") -> 0.11 | P97: =IF(($A$8-$A97)<$B$17,"",IF(($A$8-$A97)=$B$17,AVERAGE(OFFSET(M97,0,0,$B$17,1)),P98*$D$17+M97*$C$17)) -> 0.29805106 | Q97: =IF(($A$8-$A97)<$B$17,"",IF(($A$8-$A97)=$B$17,AVERAGE(OFFSET(N97,0,0,$B$17,1)),Q98*$D$17+N97*$C$17)) -> 0.105970039 | R97: =IF(($A$8-$A97)<$B$17,"",IF(($A$8-$A97)=$B$17,AVERAGE(OFFSET(O97,0,0,$B$17,1)),R98*$D$17+O97*$C$17)) -> 0.05847889482 | S97: =IF(($A$8-$A97)<$B$17,"",Q97/P97*100) -> 35.55432381 | T97: =IF(($A$8-$A97)<$B$17,"",R97/P97*100) -> 19.6204284 | U97: =IF(($A$8-$A97)<$B$17,"",ABS(S97-T97)) -> 15.93389541 | V97: =IF(($A$8-$A97)<$B$17,"",S97+T97) -> 55.17475221 | W97: =IF(($A$8-$A97)<$B$17,"",U97/V97*100) -> 28.87896143 | X97: 21.2359 | Y97: 10.75714286 | Z97: =IF(($A$8-$A97)<(2*$B$17+1),NA(),AND(X97>=X98,J97>J98)) -> TRUE | AA97: FALSE | AB97: FALSE | AC97: FALSE | AD97: 12.3 | AE97: 0 | AF97: 0 | AG97: 0 | AH97: 11.37 | AI97: 10.74714286 | AJ97: 0.4180952381 | AK97: 99.3166287 | AL97: 99.3166287 | AM97: 0 | AO97: =IF(G97>=D97,C97,NA()) ->  | AP97: =IF(G97<D97,C97,NA()) -> 54470000
A98: 66 | B98: =OFFSET(InputPriceData!B$15,CalculationsAndCharts!$A98+$A$11,0,1,1) -> 2016-10-06 | C98: =OFFSET(InputPriceData!G$15,CalculationsAndCharts!$A98+$A$11,IF($C$7,8,0),1,1) -> 42598800 | D98: =OFFSET(InputPriceData!C$15,CalculationsAndCharts!$A98+$A$11,IF($C$7,8,0),1,1) -> 11.47 | E98: =OFFSET(InputPriceData!D$15,CalculationsAndCharts!$A98+$A$11,IF($C$7,8,0),1,1) -> 11.54 | F98: =OFFSET(InputPriceData!E$15,CalculationsAndCharts!$A98+$A$11,IF($C$7,8,0),1,1) -> 11.38 | G98: =OFFSET(InputPriceData!F$15,CalculationsAndCharts!$A98+$A$11,IF($C$7,8,0),1,1) -> 11.51 | H98: =IF($A98>$A$8,NA(),IF(A98=$A$8,G98,G98*$C$20+H99*$D$20)) -> 10.89224785 | I98: 10.69042042 | J98: 0.2018274324 | K98: =IF($A98>$A$8,NA(),IF($A98=$A$8,$G98,$J98*$C$22+K99*$D$22)) -> 0.06816029777 | L98: 0 | M98: 0.19 | N98: 0.14 | O98: 0 | P98: 0.3045011778 | Q98: 0.1177444878 | R98: 0.05275432758 | S98: 38.66799092 | T98: 17.32483532 | U98: 21.34315561 | V98: 55.99282624 | W98: 38.11766085 | X98: =IF(($A$8-$A98)<(2*$B$17),"",ROUND(IF(($A$8-$A98)=(2*$B$17),AVERAGE(OFFSET(W98,0,0,$B$17,1)),(X99*$D$17+W98*$C$17)),$X$28)) -> 20.38667 | Y98: =IF($A98>$A$8,NA(),IF($A98=$A$8,$G98,AVERAGE(OFFSET(G98,0,0,$F$17,1)))) -> 10.66071429 | Z98: TRUE | AA98: =IF(($A$8-$A98)<(2*$B$17+1),NA(),AND(X98<=X99,J98<J99)) -> FALSE | AB98: =IF(($A$8-$A98)<(2*$B$17+1),NA(),AND(X98>=X99,J98<J99)) -> FALSE | AC98: =IF(($A$8-$A98)<(2*$B$17+1),NA(),AND(X98<=X99,J98>J99)) -> FALSE | AD98: =IF($Q$4,IF(Z98,$AZ$34,0),NA()) -> 12.3 | AE98: =IF($Q$4,IF(AA98,$AZ$34,0),NA()) -> 0 | AF98: =IF($Q$4,IF(AB98,$AZ$34,0),NA()) -> 0 | AG98: =IF($Q$4,IF(AC98,$AZ$34,0),NA()) -> 0 | AH98: =AVERAGE(E98:G98) -> 11.47666667 | AI98: =IF(($A$8-$A98)<($F$21-1),NA(),AVERAGE(OFFSET(AH98,0,0,$F$21,1))) -> 10.65309524 | AJ98: =IF(($A$8-$A98)<($F$21-1),NA(),AVEDEV(OFFSET(AH98,0,0,$F$21,1))) -> 0.4097278912 | AK98: =IF(($A$8-$A98)<($F$21-1),NA(),(AH98-AI98)/(0.015*AJ98)) -> 134.0029885 | AL98: =IF(AK98>=0,AK98,0) -> 134.0029885 | AM98: =IF(AK98<0,AK98,0) -> 0 | AO98: 42598800
A99: 67 | B99: =OFFSET(InputPriceData!B$15,CalculationsAndCharts!$A99+$A$11,0,1,1) -> 2016-10-05 | C99: =OFFSET(InputPriceData!G$15,CalculationsAndCharts!$A99+$A$11,IF($C$7,8,0),1,1) -> 46603300 | D99: =OFFSET(InputPriceData!C$15,CalculationsAndCharts!$A99+$A$11,IF($C$7,8,0),1,1) -> 11.33 | E99: =OFFSET(InputPriceData!D$15,CalculationsAndCharts!$A99+$A$11,IF($C$7,8,0),1,1) -> 11.4 | F99: =OFFSET(InputPriceData!E$15,CalculationsAndCharts!$A99+$A$11,IF($C$7,8,0),1,1) -> 11.23 | G99: =OFFSET(InputPriceData!F$15,CalculationsAndCharts!$A99+$A$11,IF($C$7,8,0),1,1) -> 11.35 | H99: 10.77992928 | I99: 10.62485405 | J99: 0.1550752264 | K99: 0.03474351411 | L99: 0 | M99: 0.31 | N99: 0.2 | O99: 0 | P99: 0.3172235308 | Q99: 0.1152716531 | R99: 0.05861591953 | S99: 36.33767419 | T99: 18.47779683 | U99: 17.85987735 | V99: 54.81547102 | W99: 32.58181864 | X99: 18.41656 | Y99: 10.55285714 | Z99: TRUE | AA99: FALSE | AB99: FALSE | AC99: FALSE | AD99: 12.3 | AE99: 0 | AF99: 0 | AG99: 0 | AH99: 11.32666667 | AI99: 10.54690476 | AJ99: 0.3679251701 | AK99: 141.2899448 | AL99: 141.2899448 | AM99: 0 | AO99: 46603300
A100: 68 | B100: =OFFSET(InputPriceData!B$15,CalculationsAndCharts!$A100+$A$11,0,1,1) -> 2016-10-04 | C100: =OFFSET(InputPriceData!G$15,CalculationsAndCharts!$A100+$A$11,IF($C$7,8,0),1,1) -> 58343500 | D100: =OFFSET(InputPriceData!C$15,CalculationsAndCharts!$A100+$A$11,IF($C$7,8,0),1,1) -> 11.18 | E100: =OFFSET(InputPriceData!D$15,CalculationsAndCharts!$A100+$A$11,IF($C$7,8,0),1,1) -> 11.2 | F100: =OFFSET(InputPriceData!E$15,CalculationsAndCharts!$A100+$A$11,IF($C$7,8,0),1,1) -> 11.04 | G100: =OFFSET(InputPriceData!F$15,CalculationsAndCharts!$A100+$A$11,IF($C$7,8,0),1,1) -> 11.09 | H100: 10.67628006 | I100: 10.56684238 | J100: 0.1094376802 | K100: 0.004660586029 | L100: 0 | M100: 0.16 | N100: 0.02 | O100: 0 | P100: 0.3180261454 | Q100: 0.1058573923 | R100: 0.06512879948 | S100: 33.28575145 | T100: 20.4790708 | U100: 12.80668065 | V100: 53.76482226 | W100: 23.81981399 | X100: 16.84264 | Y100: 10.46642857 | Z100: TRUE | AA100: FALSE | AB100: FALSE | AC100: FALSE | AD100: 12.3 | AE100: 0 | AF100: 0 | AG100: 0 | AH100: 11.11 | AI100: 10.46190476 | AJ100: 0.3259863946 | AK100: 132.540345 | AL100: 132.540345 | AM100: 0 | AP100: 58343500
A101: 69 | B101: =OFFSET(InputPriceData!B$15,CalculationsAndCharts!$A101+$A$11,0,1,1) -> 2016-10-03 | C101: =OFFSET(InputPriceData!G$15,CalculationsAndCharts!$A101+$A$11,IF($C$7,8,0),1,1) -> 37672500 | D101: =OFFSET(InputPriceData!C$15,CalculationsAndCharts!$A101+$A$11,IF($C$7,8,0),1,1) -> 11.04 | E101: =OFFSET(InputPriceData!D$15,CalculationsAndCharts!$A101+$A$11,IF($C$7,8,0),1,1) -> 11.18 | F101: =OFFSET(InputPriceData!E$15,CalculationsAndCharts!$A101+$A$11,IF($C$7,8,0),1,1) -> 10.91 | G101: =OFFSET(InputPriceData!F$15,CalculationsAndCharts!$A101+$A$11,IF($C$7,8,0),1,1) -> 11.1 | H101: 10.60105825 | I101: 10.52498977 | J101: 0.0760684823 | K101: -0.02153368753 | L101: 0 | M101: 0.27 | N101: 0.16 | O101: 0 | P101: 0.335584606 | Q101: 0.1153971026 | R101: 0.07236533276 | S101: 34.38688799 | T101: 21.56396076 | U101: 12.82292723 | V101: 55.95084875 | W101: 22.91819966 | X101: 16.0674 | Y101: 10.395 | Z101: TRUE | AA101: FALSE | AB101: FALSE | AC101: FALSE | AD101: 12.3 | AE101: 0 | AF101: 0 | AG101: 0 | AH101: 11.06333333 | AI101: 10.39595238 | AJ101: 0.2848979592 | AK101: 156.1684177 | AL101: 156.1684177 | AM101: 0 | AO101: 37672500
A102: 70 | B102: =OFFSET(InputPriceData!B$15,CalculationsAndCharts!$A102+$A$11,0,1,1) -> 2016-09-30 | C102: =OFFSET(InputPriceData!G$15,CalculationsAndCharts!$A102+$A$11,IF($C$7,8,0),1,1) -> 43621300 | D102: =OFFSET(InputPriceData!C$15,CalculationsAndCharts!$A102+$A$11,IF($C$7,8,0),1,1) -> 10.97 | E102: =OFFSET(InputPriceData!D$15,CalculationsAndCharts!$A102+$A$11,IF($C$7,8,0),1,1) -> 11.02 | F102: =OFFSET(InputPriceData!E$15,CalculationsAndCharts!$A102+$A$11,IF($C$7,8,0),1,1) -> 10.88 | G102: =OFFSET(InputPriceData!F$15,CalculationsAndCharts!$A102+$A$11,IF($C$7,8,0),1,1) -> 10.93 | H102: 10.51034157 | I102: 10.47898895 | J102: 0.031352619 | K102: -0.04593422998 | L102: 0 | M102: 0.15 | N102: 0 | O102: 0 | P102: 0.3428717844 | Q102: 0.1104412251 | R102: 0.08040592529 | S102: 32.21064844 | T102: 23.45072676 | U102: 8.759921682 | V102: 55.66137519 | W102: 15.73788224 | X102: 15.3062 | Y102: 10.34285714 | Z102: TRUE | AA102: FALSE | AB102: FALSE | AC102: FALSE | AD102: 12.3 | AE102: 0 | AF102: 0 | AG102: 0 | AH102: 10.94333333 | AI102: 10.35071429 | AJ102: 0.2331972789 | AK102: 169.4185142 | AL102: 169.4185142 | AM102: 0 | AP102: 43621300
A103: 71 | B103: =OFFSET(InputPriceData!B$15,CalculationsAndCharts!$A103+$A$11,0,1,1) -> 2016-09-29 | C103: =OFFSET(InputPriceData!G$15,CalculationsAndCharts!$A103+$A$11,IF($C$7,8,0),1,1) -> 63255900 | D103: =OFFSET(InputPriceData!C$15,CalculationsAndCharts!$A103+$A$11,IF($C$7,8,0),1,1) -> 10.77 | E103: =OFFSET(InputPriceData!D$15,CalculationsAndCharts!$A103+$A$11,IF($C$7,8,0),1,1) -> 11.02 | F103: =OFFSET(InputPriceData!E$15,CalculationsAndCharts!$A103+$A$11,IF($C$7,8,0),1,1) -> 10.71 | G103: =OFFSET(InputPriceData!F$15,CalculationsAndCharts!$A103+$A$11,IF($C$7,8,0),1,1) -> 10.87 | H103: 10.43404003 | I103: 10.44290806 | J103: -0.008868030069 | K103: -0.06525594223 | L103: 0 | M103: 0.37 | N103: 0.2 | O103: 0 | P103: 0.3643019827 | Q103: 0.1227124723 | R103: 0.08933991699 | S103: 33.68427243 | T103: 24.52358791 | U103: 9.160684515 | V103: 58.20786034 | W103: 15.73788224 | X103: 15.25824 | Y103: 10.32214286 | Z103: TRUE | AA103: FALSE | AB103: FALSE | AC103: FALSE | AD103: 12.3 | AE103: 0 | AF103: 0 | AG103: 0 | AH103: 10.86666667 | AI103: 10.325 | AJ103: 0.205952381 | AK103: 175.3371869 | AL103: 175.3371869 | AM103: 0 | AO103: 63255900
A104: 72 | B104: =OFFSET(InputPriceData!B$15,CalculationsAndCharts!$A104+$A$11,0,1,1) -> 2016-09-28 | C104: =OFFSET(InputPriceData!G$15,CalculationsAndCharts!$A104+$A$11,IF($C$7,8,0),1,1) -> 93841600 | D104: =OFFSET(InputPriceData!C$15,CalculationsAndCharts!$A104+$A$11,IF($C$7,8,0),1,1) -> 10.3 | E104: =OFFSET(InputPriceData!D$15,CalculationsAndCharts!$A104+$A$11,IF($C$7,8,0),1,1) -> 10.82 | F104: =OFFSET(InputPriceData!E$15,CalculationsAndCharts!$A104+$A$11,IF($C$7,8,0),1,1) -> 10.12 | G104: =OFFSET(InputPriceData!F$15,CalculationsAndCharts!$A104+$A$11,IF($C$7,8,0),1,1) -> 10.65 | H104: 10.35477459 | I104: 10.40874071 | J104: -0.05396612354 | K104: -0.07935292027 | L104: 0 | M104: 0.7 | N104: 0.53 | O104: 0 | P104: 0.3636688697 | Q104: 0.1141249692 | R104: 0.09926657443 | S104: 31.38156129 | T104: 27.29586795 | U104: 4.085693343 | V104: 58.67742924 | W104: 6.962972639 | X104: 15.20495 | Y104: 10.30214286 | Z104: FALSE | AA104: FALSE | AB104: FALSE | AC104: TRUE | AD104: 0 | AE104: 0 | AF104: 0 | AG104: 12.3 | AH104: 10.53 | AI104: 10.31047619 | AJ104: 0.1914285714 | AK104: 76.45107794 | AL104: 76.45107794 | AM104: 0 | AO104: 93841600
A105: 73 | B105: =OFFSET(InputPriceData!B$15,CalculationsAndCharts!$A105+$A$11,0,1,1) -> 2016-09-27 | C105: =OFFSET(InputPriceData!G$15,CalculationsAndCharts!$A105+$A$11,IF($C$7,8,0),1,1) -> 55523700 | D105: =OFFSET(InputPriceData!C$15,CalculationsAndCharts!$A105+$A$11,IF($C$7,8,0),1,1) -> 10.19 | E105: =OFFSET(InputPriceData!D$15,CalculationsAndCharts!$A105+$A$11,IF($C$7,8,0),1,1) -> 10.29 | F105: =OFFSET(InputPriceData!E$15,CalculationsAndCharts!$A105+$A$11,IF($C$7,8,0),1,1) -> 10.08 | G105: =OFFSET(InputPriceData!F$15,CalculationsAndCharts!$A105+$A$11,IF($C$7,8,0),1,1) -> 10.15 | H105: 10.30109724 | I105: 10.38943997 | J105: -0.08834272831 | K105: -0.08569961945 | L105: 0 | M105: 0.35 | N105: 0 | O105: 0.23 | P105: 0.3262987441 | Q105: 0.06791663248 | R105: 0.1102961938 | S105: 20.81424882 | T105: 33.80221218 | U105: 12.98796336 | V105: 54.616461 | W105: 23.78030932 | X105: 16.12072 | Y105: 10.32428571 | Z105: FALSE | AA105: FALSE | AB105: TRUE | AC105: FALSE | AD105: 0 | AE105: 0 | AF105: 12.3 | AG105: 0 | AH105: 10.17333333 | AI105: 10.33380952 | AJ105: 0.2147619048 | AK105: -49.81522542 | AL105: 0 | AM105: -49.81522542 | AP105: 55523700
A106: 74 | B106: =OFFSET(InputPriceData!B$15,CalculationsAndCharts!$A106+$A$11,0,1,1) -> 2016-09-26 | C106: =OFFSET(InputPriceData!G$15,CalculationsAndCharts!$A106+$A$11,IF($C$7,8,0),1,1) -> 42778100 | D106: =OFFSET(InputPriceData!C$15,CalculationsAndCharts!$A106+$A$11,IF($C$7,8,0),1,1) -> 10.34 | E106: =OFFSET(InputPriceData!D$15,CalculationsAndCharts!$A106+$A$11,IF($C$7,8,0),1,1) -> 10.54 | F106: =OFFSET(InputPriceData!E$15,CalculationsAndCharts!$A106+$A$11,IF($C$7,8,0),1,1) -> 10.31 | G106: =OFFSET(InputPriceData!F$15,CalculationsAndCharts!$A106+$A$11,IF($C$7,8,0),1,1) -> 10.43 | H106: 10.32856946 | I106: 10.40859516 | J106: -0.08002570054 | K106: -0.08503884224 | L106: 0 | M106: 0.35 | N106: 0 | O106: 0 | P106: 0.3236652712 | Q106: 0.07546292497 | R106: 0.0969957709 | S106: 23.31511339 | T106: 29.9679266 | U106: 6.652813213 | V106: 53.28303999 | W106: 12.48579889 | X106: 15.26965 | Y106: 10.35071429 | Z106: FALSE | AA106: FALSE | AB106: FALSE | AC106: TRUE | AD106: 0 | AE106: 0 | AF106: 0 | AG106: 12.3 | AH106: 10.42666667 | AI106: 10.35404762 | AJ106: 0.2111904762 | AK106: 22.92371289 | AL106: 22.92371289 | AM106: 0 | AO106: 42778100
A107: 75 | B107: =OFFSET(InputPriceData!B$15,CalculationsAndCharts!$A107+$A$11,0,1,1) -> 2016-09-23 | C107: =OFFSET(InputPriceData!G$15,CalculationsAndCharts!$A107+$A$11,IF($C$7,8,0),1,1) -> 51458800 | D107: =OFFSET(InputPriceData!C$15,CalculationsAndCharts!$A107+$A$11,IF($C$7,8,0),1,1) -> 10.49 | E107: =OFFSET(InputPriceData!D$15,CalculationsAndCharts!$A107+$A$11,IF($C$7,8,0),1,1) -> 10.58 | F107: =OFFSET(InputPriceData!E$15,CalculationsAndCharts!$A107+$A$11,IF($C$7,8,0),1,1) -> 10.09 | G107: =OFFSET(InputPriceData!F$15,CalculationsAndCharts!$A107+$A$11,IF($C$7,8,0),1,1) -> 10.19 | H107: 10.31012755 | I107: 10.40688278 | J107: =H107-I107 -> -0.09675522944 | K107: -0.08629212766 | L107: 0 | M107: 0.49 | N107: 0 | O107: 0.39 | P107: 0.3207391902 | Q107: 0.08384769441 | R107: 0.1077730788 | S107: 26.14201724 | T107: 33.60146875 | U107: 7.459451509 | V107: 59.743486 | W107: 12.48579889 | X107: 15.57897 | Y107: 10.34785714 | Z107: FALSE | AA107: TRUE | AB107: FALSE | AC107: FALSE | AD107: 0 | AE107: 12.3 | AF107: 0 | AG107: 0 | AH107: 10.28666667 | AI107: 10.34619048 | AJ107: 0.2075510204 | AK107: -19.1194144 | AL107: 0 | AM107: -19.1194144 | AP107: 51458800
A108: 76 | B108: =OFFSET(InputPriceData!B$15,CalculationsAndCharts!$A108+$A$11,0,1,1) -> 2016-09-22 | C108: =OFFSET(InputPriceData!G$15,CalculationsAndCharts!$A108+$A$11,IF($C$7,8,0),1,1) -> 53465000 | D108: =OFFSET(InputPriceData!C$15,CalculationsAndCharts!$A108+$A$11,IF($C$7,8,0),1,1) -> 10.57 | E108: =OFFSET(InputPriceData!D$15,CalculationsAndCharts!$A108+$A$11,IF($C$7,8,0),1,1) -> 10.61 | F108: =OFFSET(InputPriceData!E$15,CalculationsAndCharts!$A108+$A$11,IF($C$7,8,0),1,1) -> 10.48 | G108: =OFFSET(InputPriceData!F$15,CalculationsAndCharts!$A108+$A$11,IF($C$7,8,0),1,1) -> 10.53 | H108: 10.33196892 | I108: 10.4242334 | J108: -0.09226447937 | K108: -0.08367635221 | L108: 0 | M108: 0.21 | N108: 0.2 | O108: 0 | P108: 0.3019324336 | Q108: 0.0931641049 | R108: 0.07641453198 | S108: 30.85594476 | T108: 25.30848742 | U108: 5.547457334 | V108: 56.16443218 | W108: 9.877171581 | X108: 15.92266 | Y108: 10.35142857 | Z108: FALSE | AA108: FALSE | AB108: FALSE | AC108: TRUE | AD108: 0 | AE108: 0 | AF108: 0 | AG108: 12.3 | AH108: 10.54 | AI108: 10.34309524 | AJ108: 0.2102040816 | AK108: 62.44875944 | AL108: 62.44875944 | AM108: 0 | AP108: 53465000
A109: 77 | B109: =OFFSET(InputPriceData!B$15,CalculationsAndCharts!$A109+$A$11,0,1,1) -> 2016-09-21 | C109: =OFFSET(InputPriceData!G$15,CalculationsAndCharts!$A109+$A$11,IF($C$7,8,0),1,1) -> 44116600 | D109: =OFFSET(InputPriceData!C$15,CalculationsAndCharts!$A109+$A$11,IF($C$7,8,0),1,1) -> 10.25 | E109: =OFFSET(InputPriceData!D$15,CalculationsAndCharts!$A109+$A$11,IF($C$7,8,0),1,1) -> 10.41 | F109: =OFFSET(InputPriceData!E$15,CalculationsAndCharts!$A109+$A$11,IF($C$7,8,0),1,1) -> 10.21 | G109: =OFFSET(InputPriceData!F$15,CalculationsAndCharts!$A109+$A$11,IF($C$7,8,0),1,1) -> 10.4 | H109: 10.29596327 | I109: 10.41577207 | J109: -0.1198088023 | K109: -0.08152932043 | L109: 0 | M109: 0.34 | N109: 0.28 | O109: 0 | P109: 0.3121471484 | Q109: 0.08129344989 | R109: 0.08490503553 | S109: 26.04331012 | T109: 27.20032394 | U109: 1.157013816 | V109: 53.24363406 | W109: 2.173055684 | X109: 16.59438 | Y109: 10.31785714 | Z109: FALSE | AA109: FALSE | AB109: FALSE | AC109: TRUE | AD109: 0 | AE109: 0 | AF109: 0 | AG109: 12.3 | AH109: 10.34 | AI109: 10.31119048 | AJ109: 0.2097619048 | AK109: 9.156261824 | AL109: 9.156261824 | AM109: 0 | AO109: 44116600
A110: 78 | B110: =OFFSET(InputPriceData!B$15,CalculationsAndCharts!$A110+$A$11,0,1,1) -> 2016-09-20 | C110: =OFFSET(InputPriceData!G$15,CalculationsAndCharts!$A110+$A$11,IF($C$7,8,0),1,1) -> 44729900 | D110: =OFFSET(InputPriceData!C$15,CalculationsAndCharts!$A110+$A$11,IF($C$7,8,0),1,1) -> 9.87 | E110: =OFFSET(InputPriceData!D$15,CalculationsAndCharts!$A110+$A$11,IF($C$7,8,0),1,1) -> 10.13 | F110: =OFFSET(InputPriceData!E$15,CalculationsAndCharts!$A110+$A$11,IF($C$7,8,0),1,1) -> 9.82 | G110: =OFFSET(InputPriceData!F$15,CalculationsAndCharts!$A110+$A$11,IF($C$7,8,0),1,1) -> 10.07 | H110: 10.2770475 | I110: 10.41703384 | J110: -0.1399863373 | K110: -0.07195944996 | L110: 0 | M110: 0.31 | N110: 0 | O110: 0.16 | P110: 0.3090523871 | Q110: 0.05921494433 | R110: 0.09433892837 | S110: 19.16016403 | T110: 30.52522236 | U110: 11.36505832 | V110: 49.68538639 | W110: 22.87404637 | X110: 18.19675 | Y110: 10.315 | Z110: FALSE | AA110: FALSE | AB110: TRUE | AC110: FALSE | AD110: 0 | AE110: 0 | AF110: 12.3 | AG110: 0 | AH110: 10.00666667 | AI110: 10.31809524 | AJ110: 0.2168707483 | AK110: -95.73400251 | AL110: 0 | AM110: -95.73400251 | AO110: 44729900
A111: 79 | B111: =OFFSET(InputPriceData!B$15,CalculationsAndCharts!$A111+$A$11,0,1,1) -> 2016-09-19 | C111: =OFFSET(InputPriceData!G$15,CalculationsAndCharts!$A111+$A$11,IF($C$7,8,0),1,1) -> 45691100 | D111: =OFFSET(InputPriceData!C$15,CalculationsAndCharts!$A111+$A$11,IF($C$7,8,0),1,1) -> 10.03 | E111: =OFFSET(InputPriceData!D$15,CalculationsAndCharts!$A111+$A$11,IF($C$7,8,0),1,1) -> 10.2 | F111: =OFFSET(InputPriceData!E$15,CalculationsAndCharts!$A111+$A$11,IF($C$7,8,0),1,1) -> 9.98 | G111: =OFFSET(InputPriceData!F$15,CalculationsAndCharts!$A111+$A$11,IF($C$7,8,0),1,1) -> 9.98 | H111: 10.3146925 | I111: 10.44479654 | J111: -0.1301040444 | K111: -0.05495272811 | L111: 0 | M111: 0.22 | N111: 0.13 | O111: 0 | P111: 0.3089470968 | Q111: 0.06579438258 | R111: 0.08704325374 | S111: 21.29632654 | T111: 28.17416141 | U111: 6.87783487 | V111: 49.47048796 | W111: 13.90290485 | X111: 17.67705 | Y111: 10.36214286 | Z111: FALSE | AA111: TRUE | AB111: FALSE | AC111: FALSE | AD111: 0 | AE111: 12.3 | AF111: 0 | AG111: 0 | AH111: 10.05333333 | AI111: 10.37452381 | AJ111: 0.2288095238 | AK111: -93.58307319 | AL111: 0 | AM111: -93.58307319 | AP111: 45691100
A112: 80 | B112: =OFFSET(InputPriceData!B$15,CalculationsAndCharts!$A112+$A$11,0,1,1) -> 2016-09-16 | C112: =OFFSET(InputPriceData!G$15,CalculationsAndCharts!$A112+$A$11,IF($C$7,8,0),1,1) -> 39046900 | D112: =OFFSET(InputPriceData!C$15,CalculationsAndCharts!$A112+$A$11,IF($C$7,8,0),1,1) -> 9.93 | E112: =OFFSET(InputPriceData!D$15,CalculationsAndCharts!$A112+$A$11,IF($C$7,8,0),1,1) -> 10.07 | F112: =OFFSET(InputPriceData!E$15,CalculationsAndCharts!$A112+$A$11,IF($C$7,8,0),1,1) -> 9.9 | G112: =OFFSET(InputPriceData!F$15,CalculationsAndCharts!$A112+$A$11,IF($C$7,8,0),1,1) -> 10 | H112: 10.37554568 | I112: 10.48198027 | J112: -0.1064345863 | K112: -0.03616489903 | L112: 0 | M112: 0.24 | N112: 0 | O112: 0.11 | P112: 0.3188301076 | Q112: 0.05866042509 | R112: 0.09671472638 | S112: 18.39864671 | T112: 30.3342514 | U112: 11.93560469 | V112: 48.73289811 | W112: 24.49188363 | X112: 18.0964 | Y112: 10.42428571 | Z112: FALSE | AA112: FALSE | AB112: TRUE | AC112: FALSE | AD112: 0 | AE112: 0 | AF112: 12.3 | AG112: 0 | AH112: 9.99 | AI112: 10.43166667 | AJ112: 0.2321428571 | AK112: -126.8376068 | AL112: 0 | AM112: -126.8376068 | AO112: 39046900
A113: 81 | B113: =OFFSET(InputPriceData!B$15,CalculationsAndCharts!$A113+$A$11,0,1,1) -> 2016-09-15 | C113: =OFFSET(InputPriceData!G$15,CalculationsAndCharts!$A113+$A$11,IF($C$7,8,0),1,1) -> 37908400 | D113: =OFFSET(InputPriceData!C$15,CalculationsAndCharts!$A113+$A$11,IF($C$7,8,0),1,1) -> 10.14 | E113: =OFFSET(InputPriceData!D$15,CalculationsAndCharts!$A113+$A$11,IF($C$7,8,0),1,1) -> 10.26 | F113: =OFFSET(InputPriceData!E$15,CalculationsAndCharts!$A113+$A$11,IF($C$7,8,0),1,1) -> 10.01 | G113: =OFFSET(InputPriceData!F$15,CalculationsAndCharts!$A113+$A$11,IF($C$7,8,0),1,1) -> 10.14 | H113: 10.44382671 | I113: 10.52053869 | J113: -0.07671197487 | K113: -0.0185974772 | L113: 0 | M113: 0.25 | N113: 0 | O113: 0.03 | P113: 0.3275890084 | Q113: 0.0651782501 | R113: 0.09523858486 | S113: 19.8963483 | T113: 29.07258254 | U113: 9.176234241 | V113: 48.96893084 | W113: 18.73889032 | X113: 17.38579 | Y113: 10.49214286 | Z113: FALSE | AA113: FALSE | AB113: TRUE | AC113: FALSE | AD113: 0 | AE113: 0 | AF113: 12.3 | AG113: 0 | AH113: 10.13666667 | AI113: 10.50404762 | AJ113: 0.2474829932 | AK113: -98.96463258 | AL113: 0 | AM113: -98.96463258 | AO113: 37908400
A114: 82 | B114: =OFFSET(InputPriceData!B$15,CalculationsAndCharts!$A114+$A$11,0,1,1) -> 2016-09-14 | C114: =OFFSET(InputPriceData!G$15,CalculationsAndCharts!$A114+$A$11,IF($C$7,8,0),1,1) -> 53903600 | D114: =OFFSET(InputPriceData!C$15,CalculationsAndCharts!$A114+$A$11,IF($C$7,8,0),1,1) -> 10.27 | E114: =OFFSET(InputPriceData!D$15,CalculationsAndCharts!$A114+$A$11,IF($C$7,8,0),1,1) -> 10.43 | F114: =OFFSET(InputPriceData!E$15,CalculationsAndCharts!$A114+$A$11,IF($C$7,8,0),1,1) -> 10.04 | G114: =OFFSET(InputPriceData!F$15,CalculationsAndCharts!$A114+$A$11,IF($C$7,8,0),1,1) -> 10.09 | H114: 10.49906793 | I114: 10.55098178 | J114: -0.05191384936 | K114: -0.004068852785 | L114: 0 | M114: 0.39 | N114: 0 | O114: 0.31 | P114: 0.3362100093 | Q114: 0.07242027789 | R114: 0.1024873165 | S114: 21.54019092 | T114: 30.48312473 | U114: 8.942933817 | V114: 52.02331565 | W114: 17.19024192 | X114: 17.23545 | Y114: 10.55 | Z114: FALSE | AA114: TRUE | AB114: FALSE | AC114: FALSE | AD114: 0 | AE114: 12.3 | AF114: 0 | AG114: 0 | AH114: 10.18666667 | AI114: 10.55833333 | AJ114: 0.2492857143 | AK114: -99.3950971 | AL114: 0 | AM114: -99.3950971 | AP114: 53903600
A115: 83 | B115: =OFFSET(InputPriceData!B$15,CalculationsAndCharts!$A115+$A$11,0,1,1) -> 2016-09-13 | C115: =OFFSET(InputPriceData!G$15,CalculationsAndCharts!$A115+$A$11,IF($C$7,8,0),1,1) -> 38346600 | D115: =OFFSET(InputPriceData!C$15,CalculationsAndCharts!$A115+$A$11,IF($C$7,8,0),1,1) -> 10.49 | E115: =OFFSET(InputPriceData!D$15,CalculationsAndCharts!$A115+$A$11,IF($C$7,8,0),1,1) -> 10.57 | F115: =OFFSET(InputPriceData!E$15,CalculationsAndCharts!$A115+$A$11,IF($C$7,8,0),1,1) -> 10.35 | G115: =OFFSET(InputPriceData!F$15,CalculationsAndCharts!$A115+$A$11,IF($C$7,8,0),1,1) -> 10.37 | H115: 10.57344392 | I115: 10.58786033 | J115: -0.01441640407 | K115: 0.007892396357 | L115: 0 | M115: 0.29 | N115: 0 | O115: 0.02 | P115: 0.3302333437 | Q115: 0.08046697544 | R115: 0.07943035168 | S115: 24.3667022 | T115: 24.05279576 | U115: 0.3139064468 | V115: 48.41949796 | W115: 0.6483058686 | X115: 17.24047 | Y115: 10.60214286 | Z115: FALSE | AA115: TRUE | AB115: FALSE | AC115: FALSE | AD115: 0 | AE115: 12.3 | AF115: 0 | AG115: 0 | AH115: 10.43 | AI115: 10.60666667 | AJ115: 0.240952381 | AK115: -48.8801054 | AL115: 0 | AM115: -48.8801054 | AP115: 38346600
A116: 84 | B116: =OFFSET(InputPriceData!B$15,CalculationsAndCharts!$A116+$A$11,0,1,1) -> 2016-09-12 | C116: =OFFSET(InputPriceData!G$15,CalculationsAndCharts!$A116+$A$11,IF($C$7,8,0),1,1) -> 26830900 | D116: =OFFSET(InputPriceData!C$15,CalculationsAndCharts!$A116+$A$11,IF($C$7,8,0),1,1) -> 10.4 | E116: =OFFSET(InputPriceData!D$15,CalculationsAndCharts!$A116+$A$11,IF($C$7,8,0),1,1) -> 10.74 | F116: =OFFSET(InputPriceData!E$15,CalculationsAndCharts!$A116+$A$11,IF($C$7,8,0),1,1) -> 10.37 | G116: =OFFSET(InputPriceData!F$15,CalculationsAndCharts!$A116+$A$11,IF($C$7,8,0),1,1) -> 10.64 | H116: 10.61043373 | I116: 10.60528915 | J116: 0.005144573793 | K116: 0.01346959646 | L116: 0 | M116: 0.37 | N116: 0 | O116: 0.21 | P116: 0.3347037152 | Q116: 0.08940775049 | R116: 0.08603372409 | S116: 26.71250614 | T116: 25.70444252 | U116: 1.008063622 | V116: 52.41694866 | W116: 1.923163495 | X116: 19.08404 | Y116: 10.65357143 | Z116: FALSE | AA116: FALSE | AB116: FALSE | AC116: TRUE | AD116: 0 | AE116: 0 | AF116: 0 | AG116: 12.3 | AH116: 10.58333333 | AI116: 10.64857143 | AJ116: 0.2516326531 | AK116: -17.28395062 | AL116: 0 | AM116: -17.28395062 | AO116: 26830900
A117: 85 | B117: =OFFSET(InputPriceData!B$15,CalculationsAndCharts!$A117+$A$11,0,1,1) -> 2016-09-09 | C117: =OFFSET(InputPriceData!G$15,CalculationsAndCharts!$A117+$A$11,IF($C$7,8,0),1,1) -> 28882800 | D117: =OFFSET(InputPriceData!C$15,CalculationsAndCharts!$A117+$A$11,IF($C$7,8,0),1,1) -> 10.78 | E117: =OFFSET(InputPriceData!D$15,CalculationsAndCharts!$A117+$A$11,IF($C$7,8,0),1,1) -> 10.82 | F117: =OFFSET(InputPriceData!E$15,CalculationsAndCharts!$A117+$A$11,IF($C$7,8,0),1,1) -> 10.58 | G117: =OFFSET(InputPriceData!F$15,CalculationsAndCharts!$A117+$A$11,IF($C$7,8,0),1,1) -> 10.59 | H117: 10.60505804 | I117: 10.60251228 | J117: 0.002545755374 | K117: 0.01555085213 | L117: 0 | M117: 0.38 | N117: 0 | O117: 0 | P117: 0.3307819058 | Q117: 0.09934194499 | R117: 0.07225969344 | S117: 30.03246043 | T117: 21.84511673 | U117: 8.187343707 | V117: 51.87757716 | W117: 15.78204719 | X117: 20.9908 | Y117: 10.67714286 | Z117: FALSE | AA117: TRUE | AB117: FALSE | AC117: FALSE | AD117: 0 | AE117: 12.3 | AF117: 0 | AG117: 0 | AH117: 10.66333333 | AI117: 10.67904762 | AJ117: 0.2663265306 | AK117: -3.933588761 | AL117: 0 | AM117: -3.933588761 | AP117: 28882800
A118: 86 | B118: =OFFSET(InputPriceData!B$15,CalculationsAndCharts!$A118+$A$11,0,1,1) -> 2016-09-08 | C118: =OFFSET(InputPriceData!G$15,CalculationsAndCharts!$A118+$A$11,IF($C$7,8,0),1,1) -> 53504000 | D118: =OFFSET(InputPriceData!C$15,CalculationsAndCharts!$A118+$A$11,IF($C$7,8,0),1,1) -> 10.71 | E118: =OFFSET(InputPriceData!D$15,CalculationsAndCharts!$A118+$A$11,IF($C$7,8,0),1,1) -> 11.03 | F118: =OFFSET(InputPriceData!E$15,CalculationsAndCharts!$A118+$A$11,IF($C$7,8,0),1,1) -> 10.58 | G118: =OFFSET(InputPriceData!F$15,CalculationsAndCharts!$A118+$A$11,IF($C$7,8,0),1,1) -> 10.96 | H118: 10.60779586 | I118: 10.60351327 | J118: 0.004282597967 | K118: 0.01880212632 | L118: 0 | M118: 0.51 | N118: 0.49 | O118: 0 | P118: 0.3253132287 | Q118: 0.1103799389 | R118: 0.08028854826 | S118: 33.9303567 | T118: 24.68038222 | U118: 9.249974473 | V118: 58.61073892 | W118: 15.78204719 | X118: 21.56955 | Y118: 10.73071429 | Z118: FALSE | AA118: FALSE | AB118: FALSE | AC118: TRUE | AD118: 0 | AE118: 0 | AF118: 0 | AG118: 12.3 | AH118: 10.85666667 | AI118: 10.72571429 | AJ118: 0.297414966 | AK118: 29.35346142 | AL118: 29.35346142 | AM118: 0 | AO118: 53504000
A119: 87 | B119: =OFFSET(InputPriceData!B$15,CalculationsAndCharts!$A119+$A$11,0,1,1) -> 2016-09-07 | C119: =OFFSET(InputPriceData!G$15,CalculationsAndCharts!$A119+$A$11,IF($C$7,8,0),1,1) -> 35656800 | D119: =OFFSET(InputPriceData!C$15,CalculationsAndCharts!$A119+$A$11,IF($C$7,8,0),1,1) -> 10.4 | E119: =OFFSET(InputPriceData!D$15,CalculationsAndCharts!$A119+$A$11,IF($C$7,8,0),1,1) -> 10.54 | F119: =OFFSET(InputPriceData!E$15,CalculationsAndCharts!$A119+$A$11,IF($C$7,8,0),1,1) -> 10.31 | G119: =OFFSET(InputPriceData!F$15,CalculationsAndCharts!$A119+$A$11,IF($C$7,8,0),1,1) -> 10.52 | H119: 10.54375875 | I119: 10.57499433 | J119: -0.03123557891 | K119: 0.02243200841 | L119: 0 | M119: 0.23 | N119: 0.14 | O119: 0 | P119: 0.3047924763 | Q119: 0.06819993208 | R119: 0.08920949807 | S119: 22.37585813 | T119: 29.2689305 | U119: 6.893072376 | V119: 51.64478863 | W119: 13.34708217 | X119: 22.21261 | Y119: 10.755 | Z119: FALSE | AA119: FALSE | AB119: FALSE | AC119: TRUE | AD119: 0 | AE119: 0 | AF119: 0 | AG119: 12.3 | AH119: 10.45666667 | AI119: 10.75380952 | AJ119: 0.3174829932 | AK119: -62.39554318 | AL119: 0 | AM119: -62.39554318 | AO119: 35656800
A120: 88 | B120: =OFFSET(InputPriceData!B$15,CalculationsAndCharts!$A120+$A$11,0,1,1) -> 2016-09-06 | C120: =OFFSET(InputPriceData!G$15,CalculationsAndCharts!$A120+$A$11,IF($C$7,8,0),1,1) -> 33638100 | D120: =OFFSET(InputPriceData!C$15,CalculationsAndCharts!$A120+$A$11,IF($C$7,8,0),1,1) -> 10.21 | E120: =OFFSET(InputPriceData!D$15,CalculationsAndCharts!$A120+$A$11,IF($C$7,8,0),1,1) -> 10.4 | F120: =OFFSET(InputPriceData!E$15,CalculationsAndCharts!$A120+$A$11,IF($C$7,8,0),1,1) -> 10.16 | G120: =OFFSET(InputPriceData!F$15,CalculationsAndCharts!$A120+$A$11,IF($C$7,8,0),1,1) -> 10.39 | H120: 10.54807852 | I120: 10.57939387 | J120: -0.03131535262 | K120: 0.03584890524 | L120: 0 | M120: 0.24 | N120: 0.06 | O120: 0 | P120: 0.3131027515 | Q120: 0.06022214676 | R120: 0.09912166452 | S120: 19.23398836 | T120: 31.6578708 | U120: 12.42388244 | V120: 50.89185915 | W120: 24.4123179 | X120: 23.19767 | Y120: 10.78857143 | Z120: FALSE | AA120: FALSE | AB120: TRUE | AC120: FALSE | AD120: 0 | AE120: 0 | AF120: 12.3 | AG120: 0 | AH120: 10.31666667 | AI120: 10.78714286 | AJ120: 0.2940816327 | AK120: -106.6543296 | AL120: 0 | AM120: -106.6543296 | AO120: 33638100
A121: 89 | B121: =OFFSET(InputPriceData!B$15,CalculationsAndCharts!$A121+$A$11,0,1,1) -> 2016-09-02 | C121: =OFFSET(InputPriceData!G$15,CalculationsAndCharts!$A121+$A$11,IF($C$7,8,0),1,1) -> 37178500 | D121: =OFFSET(InputPriceData!C$15,CalculationsAndCharts!$A121+$A$11,IF($C$7,8,0),1,1) -> 10.2 | E121: =OFFSET(InputPriceData!D$15,CalculationsAndCharts!$A121+$A$11,IF($C$7,8,0),1,1) -> 10.34 | F121: =OFFSET(InputPriceData!E$15,CalculationsAndCharts!$A121+$A$11,IF($C$7,8,0),1,1) -> 10.15 | G121: =OFFSET(InputPriceData!F$15,CalculationsAndCharts!$A121+$A$11,IF($C$7,8,0),1,1) -> 10.24 | H121: 10.57682007 | I121: 10.59454538 | J121: -0.0177253132 | K121: 0.0526399697 | L121: 0 | M121: 0.28 | N121: 0.07 | O121: 0 | P121: 0.3212252794 | Q121: 0.06024682973 | R121: 0.1101351828 | S121: 18.7553202 | T121: 34.28596373 | U121: 15.53064353 | V121: 53.04128394 | W121: 29.28029334 | X121: 23.06271 | Y121: 10.82642857 | Z121: FALSE | AA121: FALSE | AB121: TRUE | AC121: FALSE | AD121: 0 | AE121: 0 | AF121: 12.3 | AG121: 0 | AH121: 10.24333333 | AI121: 10.82595238 | AJ121: 0.2476870748 | AK121: -156.8158931 | AL121: 0 | AM121: -156.8158931 | AO121: 37178500
A122: 90 | B122: =OFFSET(InputPriceData!B$15,CalculationsAndCharts!$A122+$A$11,0,1,1) -> 2016-09-01 | C122: =OFFSET(InputPriceData!G$15,CalculationsAndCharts!$A122+$A$11,IF($C$7,8,0),1,1) -> 59055100 | D122: =OFFSET(InputPriceData!C$15,CalculationsAndCharts!$A122+$A$11,IF($C$7,8,0),1,1) -> 10.19 | E122: =OFFSET(InputPriceData!D$15,CalculationsAndCharts!$A122+$A$11,IF($C$7,8,0),1,1) -> 10.27 | F122: =OFFSET(InputPriceData!E$15,CalculationsAndCharts!$A122+$A$11,IF($C$7,8,0),1,1) -> 9.95 | G122: =OFFSET(InputPriceData!F$15,CalculationsAndCharts!$A122+$A$11,IF($C$7,8,0),1,1) -> 10.06 | H122: 10.63806008 | I122: 10.62290901 | J122: 0.01515106894 | K122: 0.07023129043 | L122: 0 | M122: 0.41 | N122: 0 | O122: 0.34 | P122: 0.325805866 | Q122: 0.05916314414 | R122: 0.1223724253 | S122: 18.15901748 | T122: 37.55992083 | U122: 19.40090336 | V122: 55.71893831 | W122: 34.81922654 | X122: 22.37187 | Y122: 10.86357143 | Z122: FALSE | AA122: FALSE | AB122: TRUE | AC122: FALSE | AD122: 0 | AE122: 0 | AF122: 12.3 | AG122: 0 | AH122: 10.09333333 | AI122: 10.85857143 | AJ122: 0.2018367347 | AK122: -252.7581171 | AL122: 0 | AM122: -252.7581171 | AP122: 59055100
A123: 91 | B123: =OFFSET(InputPriceData!B$15,CalculationsAndCharts!$A123+$A$11,0,1,1) -> 2016-08-31 | C123: =OFFSET(InputPriceData!G$15,CalculationsAndCharts!$A123+$A$11,IF($C$7,8,0),1,1) -> 30520000 | D123: =OFFSET(InputPriceData!C$15,CalculationsAndCharts!$A123+$A$11,IF($C$7,8,0),1,1) -> 10.62 | E123: =OFFSET(InputPriceData!D$15,CalculationsAndCharts!$A123+$A$11,IF($C$7,8,0),1,1) -> 10.66 | F123: =OFFSET(InputPriceData!E$15,CalculationsAndCharts!$A123+$A$11,IF($C$7,8,0),1,1) -> 10.29 | G123: =OFFSET(InputPriceData!F$15,CalculationsAndCharts!$A123+$A$11,IF($C$7,8,0),1,1) -> 10.36 | H123: 10.74316192 | I123: 10.66794174 | J123: 0.07522018114 | K123: 0.0840013458 | L123: 0 | M123: 0.44 | N123: 0 | O123: 0.4 | P123: 0.3164509622 | Q123: 0.06573682683 | R123: 0.0981915837 | S123: 20.77314803 | T123: 31.02900463 | U123: 10.25585659 | V123: 51.80215266 | W123: 19.7981282 | X123: 20.98883 | Y123: 10.895 | Z123: FALSE | AA123: TRUE | AB123: FALSE | AC123: FALSE | AD123: 0 | AE123: 12.3 | AF123: 0 | AG123: 0 | AH123: 10.43666667 | AI123: 10.88190476 | AJ123: 0.1776190476 | AK123: -167.1134942 | AL123: 0 | AM123: -167.1134942 | AP123: 30520000
A124: 92 | B124: =OFFSET(InputPriceData!B$15,CalculationsAndCharts!$A124+$A$11,0,1,1) -> 2016-08-30 | C124: =OFFSET(InputPriceData!G$15,CalculationsAndCharts!$A124+$A$11,IF($C$7,8,0),1,1) -> 27491800 | D124: =OFFSET(InputPriceData!C$15,CalculationsAndCharts!$A124+$A$11,IF($C$7,8,0),1,1) -> 10.93 | E124: =OFFSET(InputPriceData!D$15,CalculationsAndCharts!$A124+$A$11,IF($C$7,8,0),1,1) -> 10.97 | F124: =OFFSET(InputPriceData!E$15,CalculationsAndCharts!$A124+$A$11,IF($C$7,8,0),1,1) -> 10.69 | G124: =OFFSET(InputPriceData!F$15,CalculationsAndCharts!$A124+$A$11,IF($C$7,8,0),1,1) -> 10.73 | H124: 10.81282772 | I124: 10.69257707 | J124: 0.1202506454 | K124: 0.08619663697 | L124: 0 | M124: 0.28 | N124: 0 | O124: 0.1 | P124: 0.3027232914 | Q124: 0.0730409187 | R124: 0.06465731523 | S124: 24.12794812 | T124: 21.3585532 | U124: 2.769394925 | V124: 45.48650132 | W124: 6.088388522 | X124: 21.12113 | Y124: 10.88428571 | Z124: FALSE | AA124: TRUE | AB124: FALSE | AC124: FALSE | AD124: 0 | AE124: 12.3 | AF124: 0 | AG124: 0 | AH124: 10.79666667 | AI124: 10.86 | AJ124: 0.2 | AK124: -21.11111111 | AL124: 0 | AM124: -21.11111111 | AP124: 27491800
A125: 93 | B125: =OFFSET(InputPriceData!B$15,CalculationsAndCharts!$A125+$A$11,0,1,1) -> 2016-08-29 | C125: =OFFSET(InputPriceData!G$15,CalculationsAndCharts!$A125+$A$11,IF($C$7,8,0),1,1) -> 24748400 | D125: =OFFSET(InputPriceData!C$15,CalculationsAndCharts!$A125+$A$11,IF($C$7,8,0),1,1) -> 10.83 | E125: =OFFSET(InputPriceData!D$15,CalculationsAndCharts!$A125+$A$11,IF($C$7,8,0),1,1) -> 10.92 | F125: =OFFSET(InputPriceData!E$15,CalculationsAndCharts!$A125+$A$11,IF($C$7,8,0),1,1) -> 10.79 | G125: =OFFSET(InputPriceData!F$15,CalculationsAndCharts!$A125+$A$11,IF($C$7,8,0),1,1) -> 10.85 | H125: 10.82788731 | I125: 10.68958324 | J125: 0.1383040648 | K125: 0.07768313487 | L125: 0 | M125: 0.16 | N125: 0 | O125: 0.06 | P125: 0.3052481015 | Q125: 0.08115657633 | R125: 0.06073035025 | S125: 26.58708635 | T125: 19.89540638 | U125: 6.691679973 | V125: 46.48249273 | W125: 14.39612977 | X125: 22.79143 | Y125: 10.81571429 | Z125: FALSE | AA125: TRUE | AB125: FALSE | AC125: FALSE | AD125: 0 | AE125: 12.3 | AF125: 0 | AG125: 0 | AH125: 10.85333333 | AI125: 10.79666667 | AJ125: 0.2895238095 | AK125: 13.04824561 | AL125: 13.04824561 | AM125: 0 | AO125: 24748400
A126: 94 | B126: =OFFSET(InputPriceData!B$15,CalculationsAndCharts!$A126+$A$11,0,1,1) -> 2016-08-26 | C126: =OFFSET(InputPriceData!G$15,CalculationsAndCharts!$A126+$A$11,IF($C$7,8,0),1,1) -> 26286500 | D126: =OFFSET(InputPriceData!C$15,CalculationsAndCharts!$A126+$A$11,IF($C$7,8,0),1,1) -> 10.94 | E126: =OFFSET(InputPriceData!D$15,CalculationsAndCharts!$A126+$A$11,IF($C$7,8,0),1,1) -> 11.21 | F126: =OFFSET(InputPriceData!E$15,CalculationsAndCharts!$A126+$A$11,IF($C$7,8,0),1,1) -> 10.85 | G126: =OFFSET(InputPriceData!F$15,CalculationsAndCharts!$A126+$A$11,IF($C$7,8,0),1,1) -> 10.95 | H126: 10.82386682 | I126: 10.6767499 | J126: 0.1471169157 | K126: 0.06252790238 | L126: 0 | M126: 0.36 | N126: 0.23 | O126: 0 | P126: 0.3213867795 | Q126: 0.0901739737 | R126: 0.06081150028 | S126: 28.05777321 | T126: 18.9215936 | U126: 9.136179611 | V126: 46.9793668 | W126: 19.44721743 | X126: 23.72424 | Y126: 10.76 | Z126: FALSE | AA126: FALSE | AB126: FALSE | AC126: TRUE | AD126: 0 | AE126: 0 | AF126: 0 | AG126: 12.3 | AH126: 11.00333333 | AI126: 10.74333333 | AJ126: 0.35 | AK126: 49.52380952 | AL126: 49.52380952 | AM126: 0 | AO126: 26286500
A127: 95 | B127: =OFFSET(InputPriceData!B$15,CalculationsAndCharts!$A127+$A$11,0,1,1) -> 2016-08-25 | C127: =OFFSET(InputPriceData!G$15,CalculationsAndCharts!$A127+$A$11,IF($C$7,8,0),1,1) -> 23730900 | D127: =OFFSET(InputPriceData!C$15,CalculationsAndCharts!$A127+$A$11,IF($C$7,8,0),1,1) -> 10.8 | E127: =OFFSET(InputPriceData!D$15,CalculationsAndCharts!$A127+$A$11,IF($C$7,8,0),1,1) -> 10.98 | F127: =OFFSET(InputPriceData!E$15,CalculationsAndCharts!$A127+$A$11,IF($C$7,8,0),1,1) -> 10.76 | G127: =OFFSET(InputPriceData!F$15,CalculationsAndCharts!$A127+$A$11,IF($C$7,8,0),1,1) -> 10.95 | H127: 10.80093351 | I127: 10.65488989 | J127: 0.1460436174 | K127: 0.04138064906 | L127: 0 | M127: 0.22 | N127: 0 | O127: 0 | P127: 0.3170964216 | Q127: 0.07463774855 | R127: 0.06756833364 | S127: 23.5378716 | T127: 21.30845038 | U127: 2.229421219 | V127: 44.84632197 | W127: 4.971246518 | X127: 24.19946 | Y127: 10.69928571 | Z127: FALSE | AA127: FALSE | AB127: FALSE | AC127: TRUE | AD127: 0 | AE127: 0 | AF127: 0 | AG127: 12.3 | AH127: 10.89666667 | AI127: 10.67952381 | AJ127: 0.388707483 | AK127: 37.24186209 | AL127: 37.24186209 | AM127: 0 | AO127: 23730900
A128: 96 | B128: =OFFSET(InputPriceData!B$15,CalculationsAndCharts!$A128+$A$11,0,1,1) -> 2016-08-24 | C128: =OFFSET(InputPriceData!G$15,CalculationsAndCharts!$A128+$A$11,IF($C$7,8,0),1,1) -> 29804500 | D128: =OFFSET(InputPriceData!C$15,CalculationsAndCharts!$A128+$A$11,IF($C$7,8,0),1,1) -> 10.94 | E128: =OFFSET(InputPriceData!D$15,CalculationsAndCharts!$A128+$A$11,IF($C$7,8,0),1,1) -> 11.03 | F128: =OFFSET(InputPriceData!E$15,CalculationsAndCharts!$A128+$A$11,IF($C$7,8,0),1,1) -> 10.74 | G128: =OFFSET(InputPriceData!F$15,CalculationsAndCharts!$A128+$A$11,IF($C$7,8,0),1,1) -> 10.82 | H128: 10.77383051 | I128: 10.63128108 | J128: 0.1425494277 | K128: 0.01521490697 | L128: 0 | M128: 0.35 | N128: 0 | O128: 0.04 | P128: 0.3278849129 | Q128: 0.08293083173 | R128: 0.07507592627 | S128: 25.29266473 | T128: 22.89703592 | U128: 2.395628815 | V128: 48.18970065 | W128: 4.971246518 | X128: 26.33593 | Y128: 10.62142857 | Z128: FALSE | AA128: TRUE | AB128: FALSE | AC128: FALSE | AD128: 0 | AE128: 12.3 | AF128: 0 | AG128: 0 | AH128: 10.86333333 | AI128: 10.60095238 | AJ128: 0.4474829932 | AK128: 39.08989561 | AL128: 39.08989561 | AM128: 0 | AP128: 29804500
A129: 97 | B129: =OFFSET(InputPriceData!B$15,CalculationsAndCharts!$A129+$A$11,0,1,1) -> 2016-08-23 | C129: =OFFSET(InputPriceData!G$15,CalculationsAndCharts!$A129+$A$11,IF($C$7,8,0),1,1) -> 47774500 | D129: =OFFSET(InputPriceData!C$15,CalculationsAndCharts!$A129+$A$11,IF($C$7,8,0),1,1) -> 10.8 | E129: =OFFSET(InputPriceData!D$15,CalculationsAndCharts!$A129+$A$11,IF($C$7,8,0),1,1) -> 11.18 | F129: =OFFSET(InputPriceData!E$15,CalculationsAndCharts!$A129+$A$11,IF($C$7,8,0),1,1) -> 10.78 | G129: =OFFSET(InputPriceData!F$15,CalculationsAndCharts!$A129+$A$11,IF($C$7,8,0),1,1) -> 11.09 | H129: 10.76543606 | I129: 10.61618357 | J129: 0.1492524885 | K129: -0.01661872323 | L129: 0 | M129: 0.4 | N129: 0 | O129: 0.17 | P129: 0.325427681 | Q129: 0.09214536858 | R129: 0.07897325141 | S129: 28.31516001 | T129: 24.26752733 | U129: 4.047632682 | V129: 52.58268733 | W129: 7.697652758 | X129: 28.70978 | Y129: 10.55142857 | Z129: FALSE | AA129: FALSE | AB129: FALSE | AC129: TRUE | AD129: 0 | AE129: 0 | AF129: 0 | AG129: 12.3 | AH129: 11.01666667 | AI129: 10.52238095 | AJ129: 0.4885714286 | AK129: 67.44639376 | AL129: 67.44639376 | AM129: 0 | AO129: 47774500
A130: 98 | B130: =OFFSET(InputPriceData!B$15,CalculationsAndCharts!$A130+$A$11,0,1,1) -> 2016-08-22 | C130: =OFFSET(InputPriceData!G$15,CalculationsAndCharts!$A130+$A$11,IF($C$7,8,0),1,1) -> 24924100 | D130: =OFFSET(InputPriceData!C$15,CalculationsAndCharts!$A130+$A$11,IF($C$7,8,0),1,1) -> 11.1 | E130: =OFFSET(InputPriceData!D$15,CalculationsAndCharts!$A130+$A$11,IF($C$7,8,0),1,1) -> 11.11 | F130: =OFFSET(InputPriceData!E$15,CalculationsAndCharts!$A130+$A$11,IF($C$7,8,0),1,1) -> 10.95 | G130: =OFFSET(InputPriceData!F$15,CalculationsAndCharts!$A130+$A$11,IF($C$7,8,0),1,1) -> 10.97 | H130: 10.70642443 | I130: 10.57827826 | J130: 0.1281461772 | K130: -0.05808652616 | L130: 0 | M130: 0.39 | N130: 0 | O130: 0.28 | P130: 0.3171418678 | Q130: 0.1023837429 | R130: 0.06885916824 | S130: 32.28326288 | T130: 21.71241808 | U130: 10.5708448 | V130: 53.99568096 | W130: 19.57720435 | X130: 31.04446 | Y130: 10.45142857 | Z130: FALSE | AA130: FALSE | AB130: FALSE | AC130: TRUE | AD130: 0 | AE130: 0 | AF130: 0 | AG130: 12.3 | AH130: 11.01 | AI130: 10.41666667 | AJ130: 0.509047619 | AK130: 77.70502027 | AL130: 77.70502027 | AM130: 0 | AP130: 24924100
A131: 99 | B131: =OFFSET(InputPriceData!B$15,CalculationsAndCharts!$A131+$A$11,0,1,1) -> 2016-08-19 | C131: =OFFSET(InputPriceData!G$15,CalculationsAndCharts!$A131+$A$11,IF($C$7,8,0),1,1) -> 30987000 | D131: =OFFSET(InputPriceData!C$15,CalculationsAndCharts!$A131+$A$11,IF($C$7,8,0),1,1) -> 11.34 | E131: =OFFSET(InputPriceData!D$15,CalculationsAndCharts!$A131+$A$11,IF($C$7,8,0),1,1) -> 11.38 | F131: =OFFSET(InputPriceData!E$15,CalculationsAndCharts!$A131+$A$11,IF($C$7,8,0),1,1) -> 11.23 | G131: =OFFSET(InputPriceData!F$15,CalculationsAndCharts!$A131+$A$11,IF($C$7,8,0),1,1) -> 11.34 | H131: 10.6585016 | I131: 10.54694052 | J131: 0.1115610863 | K131: -0.104644702 | L131: 0 | M131: 0.15 | N131: 0.04 | O131: 0 | P131: 0.3090465198 | Q131: 0.1137597143 | R131: 0.04539907582 | S131: 36.80989981 | T131: 14.69004597 | U131: 22.11985384 | V131: 51.49994578 | W131: 42.95121773 | X131: 32.3186 | Y131: 10.33428571 | Z131: TRUE | AA131: FALSE | AB131: FALSE | AC131: FALSE | AD131: 12.3 | AE131: 0 | AF131: 0 | AG131: 0 | AH131: 11.31666667 | AI131: 10.30166667 | AJ131: 0.5228571429 | AK131: 129.417122 | AL131: 129.417122 | AM131: 0 | AO131: 30987000
A132: 100 | B132: =OFFSET(InputPriceData!B$15,CalculationsAndCharts!$A132+$A$11,0,1,1) -> 2016-08-18 | C132: =OFFSET(InputPriceData!G$15,CalculationsAndCharts!$A132+$A$11,IF($C$7,8,0),1,1) -> 58903400 | D132: =OFFSET(InputPriceData!C$15,CalculationsAndCharts!$A132+$A$11,IF($C$7,8,0),1,1) -> 11.11 | E132: =OFFSET(InputPriceData!D$15,CalculationsAndCharts!$A132+$A$11,IF($C$7,8,0),1,1) -> 11.34 | F132: =OFFSET(InputPriceData!E$15,CalculationsAndCharts!$A132+$A$11,IF($C$7,8,0),1,1) -> 11.11 | G132: =OFFSET(InputPriceData!F$15,CalculationsAndCharts!$A132+$A$11,IF($C$7,8,0),1,1) -> 11.3 | H132: 10.5345928 | I132: 10.48349576 | J132: 0.05109704544 | K132: -0.1586961491 | L132: 0 | M132: 0.35 | N132: 0.32 | O132: 0 | P132: 0.3267183553 | Q132: 0.1219552381 | R132: 0.05044341758 | S132: 37.32732984 | T132: 15.43941954 | U132: 21.8879103 | V132: 52.76674937 | W132: 41.48049778 | X132: 31.1372 | Y132: 10.19642857 | Z132: TRUE | AA132: FALSE | AB132: FALSE | AC132: FALSE | AD132: 12.3 | AE132: 0 | AF132: 0 | AG132: 0 | AH132: 11.25 | AI132: 10.17047619 | AJ132: 0.4715646259 | AK132: 152.6158877 | AL132: 152.6158877 | AM132: 0 | AO132: 58903400
A133: 101 | B133: =OFFSET(InputPriceData!B$15,CalculationsAndCharts!$A133+$A$11,0,1,1) -> 2016-08-17 | C133: =OFFSET(InputPriceData!G$15,CalculationsAndCharts!$A133+$A$11,IF($C$7,8,0),1,1) -> 33402600 | D133: =OFFSET(InputPriceData!C$15,CalculationsAndCharts!$A133+$A$11,IF($C$7,8,0),1,1) -> 10.88 | E133: =OFFSET(InputPriceData!D$15,CalculationsAndCharts!$A133+$A$11,IF($C$7,8,0),1,1) -> 11.02 | F133: =OFFSET(InputPriceData!E$15,CalculationsAndCharts!$A133+$A$11,IF($C$7,8,0),1,1) -> 10.76 | G133: =OFFSET(InputPriceData!F$15,CalculationsAndCharts!$A133+$A$11,IF($C$7,8,0),1,1) -> 10.99 | H133: 10.39542786 | I133: 10.41817542 | J133: -0.02274756013 | K133: -0.2111444477 | L133: 0 | M133: 0.26 | N133: 0.06 | O133: 0 | P133: 0.3241315059 | Q133: 0.09995026457 | R133: 0.05604824175 | S133: 30.83633117 | T133: 17.2918216 | U133: 13.54450957 | V133: 48.12815277 | W133: 28.14259178 | X133: 29.98795 | Y133: 10.08642857 | Z133: FALSE | AA133: FALSE | AB133: FALSE | AC133: TRUE | AD133: 0 | AE133: 0 | AF133: 0 | AG133: 12.3 | AH133: 10.92333333 | AI133: 10.0602381 | AJ133: 0.404047619 | AK133: 142.4081713 | AL133: 142.4081713 | AM133: 0 | AO133: 33402600
A134: 102 | B134: =OFFSET(InputPriceData!B$15,CalculationsAndCharts!$A134+$A$11,0,1,1) -> 2016-08-16 | C134: =OFFSET(InputPriceData!G$15,CalculationsAndCharts!$A134+$A$11,IF($C$7,8,0),1,1) -> 34193800 | D134: =OFFSET(InputPriceData!C$15,CalculationsAndCharts!$A134+$A$11,IF($C$7,8,0),1,1) -> 10.79 | E134: =OFFSET(InputPriceData!D$15,CalculationsAndCharts!$A134+$A$11,IF($C$7,8,0),1,1) -> 10.96 | F134: =OFFSET(InputPriceData!E$15,CalculationsAndCharts!$A134+$A$11,IF($C$7,8,0),1,1) -> 10.7 | G134: =OFFSET(InputPriceData!F$15,CalculationsAndCharts!$A134+$A$11,IF($C$7,8,0),1,1) -> 10.92 | H134: 10.28732383 | I134: 10.37242945 | J134: -0.08510561944 | K134: -0.2582436696 | L134: 0 | M134: 0.26 | N134: 0.18 | O134: 0 | P134: 0.3312572288 | Q134: 0.1043891829 | R134: 0.06227582417 | S134: 31.51302788 | T134: 18.79983854 | U134: 12.71318934 | V134: 50.31286642 | W134: 25.26826683 | X134: 30.19299 | Y134: 9.992142857 | Z134: FALSE | AA134: FALSE | AB134: FALSE | AC134: TRUE | AD134: 0 | AE134: 0 | AF134: 0 | AG134: 12.3 | AH134: 10.86 | AI134: 9.975714286 | AJ134: 0.3531972789 | AK134: 166.9106317 | AL134: 166.9106317 | AM134: 0 | AO134: 34193800
A135: 103 | B135: =OFFSET(InputPriceData!B$15,CalculationsAndCharts!$A135+$A$11,0,1,1) -> 2016-08-15 | C135: =OFFSET(InputPriceData!G$15,CalculationsAndCharts!$A135+$A$11,IF($C$7,8,0),1,1) -> 33965200 | D135: =OFFSET(InputPriceData!C$15,CalculationsAndCharts!$A135+$A$11,IF($C$7,8,0),1,1) -> 10.59 | E135: =OFFSET(InputPriceData!D$15,CalculationsAndCharts!$A135+$A$11,IF($C$7,8,0),1,1) -> 10.78 | F135: =OFFSET(InputPriceData!E$15,CalculationsAndCharts!$A135+$A$11,IF($C$7,8,0),1,1) -> 10.56 | G135: =OFFSET(InputPriceData!F$15,CalculationsAndCharts!$A135+$A$11,IF($C$7,8,0),1,1) -> 10.76 | H135: 10.1722918 | I135: 10.32862381 | J135: -0.1563320061 | K135: -0.3015281821 | L135: 0 | M135: 0.28 | N135: 0.28 | O135: 0 | P135: 0.3391746986 | Q135: 0.09598798095 | R135: 0.06919536019 | S135: 28.30045441 | T135: 20.40109727 | U135: 7.899357138 | V135: 48.70155168 | W135: 16.21992907 | X135: 30.74018 | Y135: 9.919285714 | Z135: FALSE | AA135: FALSE | AB135: FALSE | AC135: TRUE | AD135: 0 | AE135: 0 | AF135: 0 | AG135: 12.3 | AH135: 10.7 | AI135: 9.911428571 | AJ135: 0.2797278912 | AK135: 187.9377432 | AL135: 187.9377432 | AM135: 0 | AO135: 33965200
A136: 104 | B136: =OFFSET(InputPriceData!B$15,CalculationsAndCharts!$A136+$A$11,0,1,1) -> 2016-08-12 | C136: =OFFSET(InputPriceData!G$15,CalculationsAndCharts!$A136+$A$11,IF($C$7,8,0),1,1) -> 31930100 | D136: =OFFSET(InputPriceData!C$15,CalculationsAndCharts!$A136+$A$11,IF($C$7,8,0),1,1) -> 10.3 | E136: =OFFSET(InputPriceData!D$15,CalculationsAndCharts!$A136+$A$11,IF($C$7,8,0),1,1) -> 10.5 | F136: =OFFSET(InputPriceData!E$15,CalculationsAndCharts!$A136+$A$11,IF($C$7,8,0),1,1) -> 10.26 | G136: =OFFSET(InputPriceData!F$15,CalculationsAndCharts!$A136+$A$11,IF($C$7,8,0),1,1) -> 10.5 | H136: 10.06543576 | I136: 10.29411371 | J136: -0.2286779469 | K136: -0.3378272261 | L136: 0 | M136: 0.29 | N136: 0.18 | O136: 0 | P136: 0.3457496651 | Q136: 0.07554220106 | R136: 0.07688373354 | S136: 21.84881395 | T136: 22.23682083 | U136: 0.3880068786 | V136: 44.08563477 | W136: 0.8801208842 | X136: 32.35354 | Y136: 9.870714286 | Z136: FALSE | AA136: FALSE | AB136: FALSE | AC136: TRUE | AD136: 0 | AE136: 0 | AF136: 0 | AG136: 12.3 | AH136: 10.42 | AI136: 9.867857143 | AJ136: 0.235952381 | AK136: 156.0040363 | AL136: 156.0040363 | AM136: 0 | AO136: 31930100
A137: 105 | B137: =OFFSET(InputPriceData!B$15,CalculationsAndCharts!$A137+$A$11,0,1,1) -> 2016-08-11 | C137: =OFFSET(InputPriceData!G$15,CalculationsAndCharts!$A137+$A$11,IF($C$7,8,0),1,1) -> 31426700 | D137: =OFFSET(InputPriceData!C$15,CalculationsAndCharts!$A137+$A$11,IF($C$7,8,0),1,1) -> 9.89 | E137: =OFFSET(InputPriceData!D$15,CalculationsAndCharts!$A137+$A$11,IF($C$7,8,0),1,1) -> 10.32 | F137: =OFFSET(InputPriceData!E$15,CalculationsAndCharts!$A137+$A$11,IF($C$7,8,0),1,1) -> 9.86 | G137: =OFFSET(InputPriceData!F$15,CalculationsAndCharts!$A137+$A$11,IF($C$7,8,0),1,1) -> 10.21 | H137: 9.986424086 | I137: 10.27764281 | J137: -0.2912187229 | K137: -0.365114546 | L137: 0 | M137: 0.55 | N137: 0.11 | O137: 0 | P137: 0.3519440724 | Q137: 0.06393577895 | R137: 0.0854263706 | S137: 18.16645995 | T137: 24.27271186 | U137: 6.106251912 | V137: 42.43917181 | W137: 14.38824475 | X137: 35.85059 | Y137: 9.844285714 | Z137: FALSE | AA137: FALSE | AB137: FALSE | AC137: TRUE | AD137: 0 | AE137: 0 | AF137: 0 | AG137: 12.3 | AH137: 10.13 | AI137: 9.849047619 | AJ137: 0.2171428571 | AK137: 86.25730994 | AL137: 86.25730994 | AM137: 0 | AO137: 31426700
A138: 106 | B138: =OFFSET(InputPriceData!B$15,CalculationsAndCharts!$A138+$A$11,0,1,1) -> 2016-08-10 | C138: =OFFSET(InputPriceData!G$15,CalculationsAndCharts!$A138+$A$11,IF($C$7,8,0),1,1) -> 31031800 | D138: =OFFSET(InputPriceData!C$15,CalculationsAndCharts!$A138+$A$11,IF($C$7,8,0),1,1) -> 10.1 | E138: =OFFSET(InputPriceData!D$15,CalculationsAndCharts!$A138+$A$11,IF($C$7,8,0),1,1) -> 10.21 | F138: =OFFSET(InputPriceData!E$15,CalculationsAndCharts!$A138+$A$11,IF($C$7,8,0),1,1) -> 9.75 | G138: =OFFSET(InputPriceData!F$15,CalculationsAndCharts!$A138+$A$11,IF($C$7,8,0),1,1) -> 9.77 | H138: 9.94577392 | I138: 10.28305423 | J138: -0.3372803139 | K138: -0.3835885017 | L138: 0 | M138: 0.46 | N138: 0 | O138: 0.26 | P138: 0.3299378582 | Q138: 0.05881753217 | R138: 0.09491818956 | S138: 17.82685154 | T138: 28.7685051 | U138: 10.94165355 | V138: 46.59535664 | W138: 23.48228309 | X138: 38.2353 | Y138: 9.859285714 | Z138: FALSE | AA138: FALSE | AB138: FALSE | AC138: TRUE | AD138: 0 | AE138: 0 | AF138: 0 | AG138: 12.3 | AH138: 9.91 | AI138: 9.868809524 | AJ138: 0.2369047619 | AK138: 11.59128978 | AL138: 11.59128978 | AM138: 0 | AP138: 31031800
A139: 107 | B139: =OFFSET(InputPriceData!B$15,CalculationsAndCharts!$A139+$A$11,0,1,1) -> 2016-08-09 | C139: =OFFSET(InputPriceData!G$15,CalculationsAndCharts!$A139+$A$11,IF($C$7,8,0),1,1) -> 25742400 | D139: =OFFSET(InputPriceData!C$15,CalculationsAndCharts!$A139+$A$11,IF($C$7,8,0),1,1) -> 10.19 | E139: =OFFSET(InputPriceData!D$15,CalculationsAndCharts!$A139+$A$11,IF($C$7,8,0),1,1) -> 10.24 | F139: =OFFSET(InputPriceData!E$15,CalculationsAndCharts!$A139+$A$11,IF($C$7,8,0),1,1) -> 10.01 | G139: =OFFSET(InputPriceData!F$15,CalculationsAndCharts!$A139+$A$11,IF($C$7,8,0),1,1) -> 10.07 | H139: 9.977732814 | I139: 10.32409857 | J139: -0.3463657581 | K139: -0.3951655487 | L139: 0 | M139: 0.23 | N139: 0.03 | O139: 0 | P139: 0.3154865091 | Q139: 0.06535281352 | R139: 0.07657576617 | S139: 20.71493127 | T139: 24.27227915 | U139: 3.557347883 | V139: 44.98721042 | W139: 7.907464921 | X139: 39.87452 | Y139: 9.910714286 | Z139: FALSE | AA139: FALSE | AB139: FALSE | AC139: TRUE | AD139: 0 | AE139: 0 | AF139: 0 | AG139: 12.3 | AH139: 10.10666667 | AI139: 9.916428571 | AJ139: 0.2845238095 | AK139: 44.57461646 | AL139: 44.57461646 | AM139: 0 | AP139: 25742400
A140: 108 | B140: =OFFSET(InputPriceData!B$15,CalculationsAndCharts!$A140+$A$11,0,1,1) -> 2016-08-08 | C140: =OFFSET(InputPriceData!G$15,CalculationsAndCharts!$A140+$A$11,IF($C$7,8,0),1,1) -> 28890900 | D140: =OFFSET(InputPriceData!C$15,CalculationsAndCharts!$A140+$A$11,IF($C$7,8,0),1,1) -> 10.03 | E140: =OFFSET(InputPriceData!D$15,CalculationsAndCharts!$A140+$A$11,IF($C$7,8,0),1,1) -> 10.21 | F140: =OFFSET(InputPriceData!E$15,CalculationsAndCharts!$A140+$A$11,IF($C$7,8,0),1,1) -> 10.02 | G140: =OFFSET(InputPriceData!F$15,CalculationsAndCharts!$A140+$A$11,IF($C$7,8,0),1,1) -> 10.1 | H140: 9.960956962 | I140: 10.34442646 | J140: -0.3834694958 | K140: -0.4073654963 | L140: 0 | M140: 0.35 | N140: 0.34 | O140: 0 | P140: 0.3249850101 | Q140: 0.06928090391 | R140: 0.08508418464 | S140: 21.31818446 | T140: 26.18095666 | U140: 4.8627722 | V140: 47.49914111 | W140: 10.23760027 | X140: 43.42641 | Y140: 9.957857143 | Z140: FALSE | AA140: FALSE | AB140: FALSE | AC140: TRUE | AD140: 0 | AE140: 0 | AF140: 0 | AG140: 12.3 | AH140: 10.11 | AI140: 9.958571429 | AJ140: 0.3266666667 | AK140: 30.90379009 | AL140: 30.90379009 | AM140: 0 | AO140: 28890900
A141: 109 | B141: =OFFSET(InputPriceData!B$15,CalculationsAndCharts!$A141+$A$11,0,1,1) -> 2016-08-05 | C141: =OFFSET(InputPriceData!G$15,CalculationsAndCharts!$A141+$A$11,IF($C$7,8,0),1,1) -> 30849000 | D141: =OFFSET(InputPriceData!C$15,CalculationsAndCharts!$A141+$A$11,IF($C$7,8,0),1,1) -> 9.83 | E141: =OFFSET(InputPriceData!D$15,CalculationsAndCharts!$A141+$A$11,IF($C$7,8,0),1,1) -> 9.87 | F141: =OFFSET(InputPriceData!E$15,CalculationsAndCharts!$A141+$A$11,IF($C$7,8,0),1,1) -> 9.66 | G141: =OFFSET(InputPriceData!F$15,CalculationsAndCharts!$A141+$A$11,IF($C$7,8,0),1,1) -> 9.86 | H141: 9.93567641 | I141: 10.36398057 | J141: -0.4283041648 | K141: -0.4133394964 | L141: 0 | M141: 0.21 | N141: 0 | O141: 0 | P141: 0.3222055668 | Q141: 0.03920100435 | R141: 0.09453798293 | S141: 12.16645781 | T141: 29.34089062 | U141: 17.17443281 | V141: 41.50734843 | W141: 41.37684882 | X141: 47.11405 | Y141: 10.00071429 | Z141: FALSE | AA141: FALSE | AB141: FALSE | AC141: TRUE | AD141: 0 | AE141: 0 | AF141: 0 | AG141: 12.3 | AH141: 9.796666667 | AI141: 10.00309524 | AJ141: 0.3773469388 | AK141: -36.47016405 | AL141: 0 | AM141: -36.47016405 | AO141: 30849000
A142: 110 | B142: =OFFSET(InputPriceData!B$15,CalculationsAndCharts!$A142+$A$11,0,1,1) -> 2016-08-04 | C142: =OFFSET(InputPriceData!G$15,CalculationsAndCharts!$A142+$A$11,IF($C$7,8,0),1,1) -> 30164600 | D142: =OFFSET(InputPriceData!C$15,CalculationsAndCharts!$A142+$A$11,IF($C$7,8,0),1,1) -> 9.57 | E142: =OFFSET(InputPriceData!D$15,CalculationsAndCharts!$A142+$A$11,IF($C$7,8,0),1,1) -> 9.91 | F142: =OFFSET(InputPriceData!E$15,CalculationsAndCharts!$A142+$A$11,IF($C$7,8,0),1,1) -> 9.54 | G142: =OFFSET(InputPriceData!F$15,CalculationsAndCharts!$A142+$A$11,IF($C$7,8,0),1,1) -> 9.84 | H142: 9.949435757 | I142: 10.40429902 | J142: -0.4548632636 | K142: -0.4095983293 | L142: 0 | M142: 0.37 | N142: 0.22 | O142: 0 | P142: 0.334672852 | Q142: 0.0435566715 | R142: 0.1050422033 | S142: 13.01470114 | T142: 31.38653244 | U142: 18.3718313 | V142: 44.40123358 | W142: 41.37684882 | X142: 47.75152 | Y142: 10.06928571 | Z142: FALSE | AA142: FALSE | AB142: FALSE | AC142: TRUE | AD142: 0 | AE142: 0 | AF142: 0 | AG142: 12.3 | AH142: 9.763333333 | AI142: 10.0752381 | AJ142: 0.42 | AK142: -49.50869237 | AL142: 0 | AM142: -49.50869237 | AO142: 30164600
A143: 111 | B143: =OFFSET(InputPriceData!B$15,CalculationsAndCharts!$A143+$A$11,0,1,1) -> 2016-08-03 | C143: =OFFSET(InputPriceData!G$15,CalculationsAndCharts!$A143+$A$11,IF($C$7,8,0),1,1) -> 36429700 | D143: =OFFSET(InputPriceData!C$15,CalculationsAndCharts!$A143+$A$11,IF($C$7,8,0),1,1) -> 9.35 | E143: =OFFSET(InputPriceData!D$15,CalculationsAndCharts!$A143+$A$11,IF($C$7,8,0),1,1) -> 9.69 | F143: =OFFSET(InputPriceData!E$15,CalculationsAndCharts!$A143+$A$11,IF($C$7,8,0),1,1) -> 9.23 | G143: =OFFSET(InputPriceData!F$15,CalculationsAndCharts!$A143+$A$11,IF($C$7,8,0),1,1) -> 9.69 | H143: 9.969333167 | I143: 10.44944294 | J143: -0.4801097749 | K143: -0.3982820958 | L143: 0 | M143: 0.46 | N143: 0.06 | O143: 0 | P143: 0.3307476133 | Q143: 0.02395185722 | R143: 0.1167135592 | S143: 7.241732443 | T143: 35.28780087 | U143: 28.04606843 | V143: 42.52953331 | W143: 65.94492402 | X143: 48.45982 | Y143: 10.15142857 | Z143: TRUE | AA143: FALSE | AB143: FALSE | AC143: FALSE | AD143: 12.3 | AE143: 0 | AF143: 0 | AG143: 0 | AH143: 9.536666667 | AI143: 10.16261905 | AJ143: 0.4615646259 | AK143: -90.41021862 | AL143: 0 | AM143: -90.41021862 | AO143: 36429700
A144: 112 | B144: =OFFSET(InputPriceData!B$15,CalculationsAndCharts!$A144+$A$11,0,1,1) -> 2016-08-02 | C144: =OFFSET(InputPriceData!G$15,CalculationsAndCharts!$A144+$A$11,IF($C$7,8,0),1,1) -> 30293900 | D144: =OFFSET(InputPriceData!C$15,CalculationsAndCharts!$A144+$A$11,IF($C$7,8,0),1,1) -> 9.59 | E144: =OFFSET(InputPriceData!D$15,CalculationsAndCharts!$A144+$A$11,IF($C$7,8,0),1,1) -> 9.63 | F144: =OFFSET(InputPriceData!E$15,CalculationsAndCharts!$A144+$A$11,IF($C$7,8,0),1,1) -> 9.24 | G144: =OFFSET(InputPriceData!F$15,CalculationsAndCharts!$A144+$A$11,IF($C$7,8,0),1,1) -> 9.33 | H144: 10.02012102 | I144: 10.51019838 | J144: -0.4900773617 | K144: -0.377825176 | L144: 0 | M144: 0.39 | N144: 0 | O144: 0.14 | P144: 0.316386237 | Q144: 0.01994650802 | R144: 0.1296817324 | S144: 6.304480311 | T144: 40.98842403 | U144: 34.68394372 | V144: 47.29290435 | W144: 73.33857838 | X144: 46.51703 | Y144: 10.23571429 | Z144: FALSE | AA144: FALSE | AB144: TRUE | AC144: FALSE | AD144: 0 | AE144: 0 | AF144: 12.3 | AG144: 0 | AH144: 9.4 | AI144: 10.25714286 | AJ144: 0.4666666667 | AK144: -122.4489796 | AL144: 0 | AM144: -122.4489796 | AP144: 30293900
A145: 113 | B145: =OFFSET(InputPriceData!B$15,CalculationsAndCharts!$A145+$A$11,0,1,1) -> 2016-08-01 | C145: =OFFSET(InputPriceData!G$15,CalculationsAndCharts!$A145+$A$11,IF($C$7,8,0),1,1) -> 37967800 | D145: =OFFSET(InputPriceData!C$15,CalculationsAndCharts!$A145+$A$11,IF($C$7,8,0),1,1) -> 9.62 | E145: =OFFSET(InputPriceData!D$15,CalculationsAndCharts!$A145+$A$11,IF($C$7,8,0),1,1) -> 9.65 | F145: =OFFSET(InputPriceData!E$15,CalculationsAndCharts!$A145+$A$11,IF($C$7,8,0),1,1) -> 9.38 | G145: =OFFSET(InputPriceData!F$15,CalculationsAndCharts!$A145+$A$11,IF($C$7,8,0),1,1) -> 9.41 | H145: 10.14559756 | I145: 10.60461425 | J145: -0.4590166836 | K145: -0.3497621295 | L145: 0 | M145: 0.38 | N145: 0 | O145: 0.17 | P145: 0.30820693 | Q145: 0.02216278669 | R145: 0.1285352582 | S145: 7.190878767 | T145: 41.7042077 | U145: 34.51332893 | V145: 48.89508647 | W145: 70.58649739 | X145: 43.53686 | Y145: 10.33714286 | Z145: FALSE | AA145: FALSE | AB145: TRUE | AC145: FALSE | AD145: 0 | AE145: 0 | AF145: 12.3 | AG145: 0 | AH145: 9.48 | AI145: 10.36071429 | AJ145: 0.4329931973 | AK145: -135.6009427 | AL145: 0 | AM145: -135.6009427 | AP145: 37967800
A146: 114 | B146: =OFFSET(InputPriceData!B$15,CalculationsAndCharts!$A146+$A$11,0,1,1) -> 2016-07-29 | C146: =OFFSET(InputPriceData!G$15,CalculationsAndCharts!$A146+$A$11,IF($C$7,8,0),1,1) -> 25507500 | D146: =OFFSET(InputPriceData!C$15,CalculationsAndCharts!$A146+$A$11,IF($C$7,8,0),1,1) -> 9.63 | E146: =OFFSET(InputPriceData!D$15,CalculationsAndCharts!$A146+$A$11,IF($C$7,8,0),1,1) -> 9.81 | F146: =OFFSET(InputPriceData!E$15,CalculationsAndCharts!$A146+$A$11,IF($C$7,8,0),1,1) -> 9.55 | G146: =OFFSET(InputPriceData!F$15,CalculationsAndCharts!$A146+$A$11,IF($C$7,8,0),1,1) -> 9.76 | H146: 10.27934258 | I146: 10.70018339 | J146: -0.4208408118 | K146: -0.322448491 | L146: 0 | M146: 0.26 | N146: 0 | O146: 0.11 | P146: 0.3002299222 | Q146: 0.02462531854 | R146: 0.1239280647 | S146: 8.202153323 | T146: 41.27771935 | U146: 33.07556603 | V146: 49.47987267 | W146: 66.84650594 | X146: 40.53135 | Y146: 10.46428571 | Z146: FALSE | AA146: FALSE | AB146: TRUE | AC146: FALSE | AD146: 0 | AE146: 0 | AF146: 12.3 | AG146: 0 | AH146: 9.706666667 | AI146: 10.47666667 | AJ146: 0.4 | AK146: -128.3333333 | AL146: 0 | AM146: -128.3333333 | AO146: 25507500
A147: 115 | B147: =OFFSET(InputPriceData!B$15,CalculationsAndCharts!$A147+$A$11,0,1,1) -> 2016-07-28 | C147: =OFFSET(InputPriceData!G$15,CalculationsAndCharts!$A147+$A$11,IF($C$7,8,0),1,1) -> 28370400 | D147: =OFFSET(InputPriceData!C$15,CalculationsAndCharts!$A147+$A$11,IF($C$7,8,0),1,1) -> 9.85 | E147: =OFFSET(InputPriceData!D$15,CalculationsAndCharts!$A147+$A$11,IF($C$7,8,0),1,1) -> 9.89 | F147: =OFFSET(InputPriceData!E$15,CalculationsAndCharts!$A147+$A$11,IF($C$7,8,0),1,1) -> 9.66 | G147: =OFFSET(InputPriceData!F$15,CalculationsAndCharts!$A147+$A$11,IF($C$7,8,0),1,1) -> 9.67 | H147: 10.3737685 | I147: 10.77539806 | J147: -0.4016295599 | K147: -0.2978504108 | L147: 0 | M147: 0.24 | N147: 0 | O147: 0.15 | P147: 0.3046999136 | Q147: 0.02736146505 | R147: 0.1254756275 | S147: 8.979807288 | T147: 41.18006663 | U147: 32.20025935 | V147: 50.15987392 | W147: 64.19525575 | X147: 37.60744 | Y147: 10.52785714 | Z147: FALSE | AA147: FALSE | AB147: TRUE | AC147: FALSE | AD147: 0 | AE147: 0 | AF147: 12.3 | AG147: 0 | AH147: 9.74 | AI147: 10.55095238 | AJ147: 0.3430612245 | AK147: -157.5913808 | AL147: 0 | AM147: -157.5913808 | AP147: 28370400
A148: 116 | B148: =OFFSET(InputPriceData!B$15,CalculationsAndCharts!$A148+$A$11,0,1,1) -> 2016-07-27 | C148: =OFFSET(InputPriceData!G$15,CalculationsAndCharts!$A148+$A$11,IF($C$7,8,0),1,1) -> 28714900 | D148: =OFFSET(InputPriceData!C$15,CalculationsAndCharts!$A148+$A$11,IF($C$7,8,0),1,1) -> 10.1 | E148: =OFFSET(InputPriceData!D$15,CalculationsAndCharts!$A148+$A$11,IF($C$7,8,0),1,1) -> 10.17 | F148: =OFFSET(InputPriceData!E$15,CalculationsAndCharts!$A148+$A$11,IF($C$7,8,0),1,1) -> 9.81 | G148: =OFFSET(InputPriceData!F$15,CalculationsAndCharts!$A148+$A$11,IF($C$7,8,0),1,1) -> 9.9 | H148: 10.50172641 | I148: 10.8638299 | J148: -0.3621034958 | K148: -0.2719056236 | L148: 0 | M148: 0.36 | N148: 0 | O148: 0.21 | P148: 0.3118887929 | Q148: 0.03040162783 | R148: 0.1227506972 | S148: 9.747585846 | T148: 39.35720038 | U148: 29.60961453 | V148: 49.10478622 | W148: 60.29883604 | X148: 34.65324 | Y148: 10.61071429 | Z148: FALSE | AA148: FALSE | AB148: TRUE | AC148: FALSE | AD148: 0 | AE148: 0 | AF148: 12.3 | AG148: 0 | AH148: 9.96 | AI148: 10.62880952 | AJ148: 0.2791496599 | AK148: -159.7254376 | AL148: 0 | AM148: -159.7254376 | AP148: 28714900
A149: 117 | B149: =OFFSET(InputPriceData!B$15,CalculationsAndCharts!$A149+$A$11,0,1,1) -> 2016-07-26 | C149: =OFFSET(InputPriceData!G$15,CalculationsAndCharts!$A149+$A$11,IF($C$7,8,0),1,1) -> 23818200 | D149: =OFFSET(InputPriceData!C$15,CalculationsAndCharts!$A149+$A$11,IF($C$7,8,0),1,1) -> 10.1 | E149: =OFFSET(InputPriceData!D$15,CalculationsAndCharts!$A149+$A$11,IF($C$7,8,0),1,1) -> 10.17 | F149: =OFFSET(InputPriceData!E$15,CalculationsAndCharts!$A149+$A$11,IF($C$7,8,0),1,1) -> 10.02 | G149: =OFFSET(InputPriceData!F$15,CalculationsAndCharts!$A149+$A$11,IF($C$7,8,0),1,1) -> 10.08 | H149: 10.61113121 | I149: 10.9409363 | J149: -0.3298050867 | K149: -0.2493561555 | L149: 0 | M149: 0.15 | N149: 0 | O149: 0.09 | P149: 0.3065431032 | Q149: 0.03377958648 | R149: 0.1130563302 | S149: 11.01952258 | T149: 36.8810549 | U149: 25.86153232 | V149: 47.90057748 | W149: 53.990022 | X149: 31.80373 | Y149: 10.67642857 | Z149: FALSE | AA149: FALSE | AB149: TRUE | AC149: FALSE | AD149: 0 | AE149: 0 | AF149: 12.3 | AG149: 0 | AH149: 10.09 | AI149: 10.70547619 | AJ149: 0.2286734694 | AK149: -179.4337845 | AL149: 0 | AM149: -179.4337845 | AP149: 23818200
A150: 118 | B150: =OFFSET(InputPriceData!B$15,CalculationsAndCharts!$A150+$A$11,0,1,1) -> 2016-07-25 | C150: =OFFSET(InputPriceData!G$15,CalculationsAndCharts!$A150+$A$11,IF($C$7,8,0),1,1) -> 24337300 | D150: =OFFSET(InputPriceData!C$15,CalculationsAndCharts!$A150+$A$11,IF($C$7,8,0),1,1) -> 10.2 | E150: =OFFSET(InputPriceData!D$15,CalculationsAndCharts!$A150+$A$11,IF($C$7,8,0),1,1) -> 10.23 | F150: =OFFSET(InputPriceData!E$15,CalculationsAndCharts!$A150+$A$11,IF($C$7,8,0),1,1) -> 10.11 | G150: =OFFSET(InputPriceData!F$15,CalculationsAndCharts!$A150+$A$11,IF($C$7,8,0),1,1) -> 10.13 | H150: 10.70770052 | I150: 11.0098112 | J150: -0.3021106796 | K150: -0.2292439227 | L150: 0 | M150: 0.31 | N150: 0 | O150: 0.19 | P150: 0.3239367813 | Q150: 0.03753287386 | R150: 0.1156181447 | S150: 11.58648107 | T150: 35.69157666 | U150: 24.10509559 | V150: 47.27805774 | W150: 50.98579921 | X150: 29.33859 | Y150: 10.76571429 | Z150: FALSE | AA150: FALSE | AB150: TRUE | AC150: FALSE | AD150: 0 | AE150: 0 | AF150: 12.3 | AG150: 0 | AH150: 10.15666667 | AI150: 10.78833333 | AJ150: 0.2019047619 | AK150: -208.5691824 | AL150: 0 | AM150: -208.5691824 | AP150: 24337300
A151: 119 | B151: =OFFSET(InputPriceData!B$15,CalculationsAndCharts!$A151+$A$11,0,1,1) -> 2016-07-22 | C151: =OFFSET(InputPriceData!G$15,CalculationsAndCharts!$A151+$A$11,IF($C$7,8,0),1,1) -> 22494200 | D151: =OFFSET(InputPriceData!C$15,CalculationsAndCharts!$A151+$A$11,IF($C$7,8,0),1,1) -> 10.49 | E151: =OFFSET(InputPriceData!D$15,CalculationsAndCharts!$A151+$A$11,IF($C$7,8,0),1,1) -> 10.5 | F151: =OFFSET(InputPriceData!E$15,CalculationsAndCharts!$A151+$A$11,IF($C$7,8,0),1,1) -> 10.3 | G151: =OFFSET(InputPriceData!F$15,CalculationsAndCharts!$A151+$A$11,IF($C$7,8,0),1,1) -> 10.42 | H151: 10.81273698 | I151: 11.08019609 | J151: -0.2674591175 | K151: -0.2110272335 | L151: 0 | M151: 0.2 | N151: 0 | O151: 0.19 | P151: 0.3254853126 | Q151: 0.04170319318 | R151: 0.1073534941 | S151: 12.81261905 | T151: 32.98259243 | U151: 20.16997337 | V151: 45.79521148 | W151: 44.04384808 | X151: 26.93334 | Y151: 10.84071429 | Z151: FALSE | AA151: FALSE | AB151: TRUE | AC151: FALSE | AD151: 0 | AE151: 0 | AF151: 12.3 | AG151: 0 | AH151: 10.40666667 | AI151: 10.86380952 | AJ151: 0.1810884354 | AK151: -168.2945154 | AL151: 0 | AM151: -168.2945154 | AP151: 22494200
A152: 120 | B152: =OFFSET(InputPriceData!B$15,CalculationsAndCharts!$A152+$A$11,0,1,1) -> 2016-07-21 | C152: =OFFSET(InputPriceData!G$15,CalculationsAndCharts!$A152+$A$11,IF($C$7,8,0),1,1) -> 20343800 | D152: =OFFSET(InputPriceData!C$15,CalculationsAndCharts!$A152+$A$11,IF($C$7,8,0),1,1) -> 10.68 | E152: =OFFSET(InputPriceData!D$15,CalculationsAndCharts!$A152+$A$11,IF($C$7,8,0),1,1) -> 10.75 | F152: =OFFSET(InputPriceData!E$15,CalculationsAndCharts!$A152+$A$11,IF($C$7,8,0),1,1) -> 10.49 | G152: =OFFSET(InputPriceData!F$15,CalculationsAndCharts!$A152+$A$11,IF($C$7,8,0),1,1) -> 10.49 | H152: 10.8841437 | I152: 11.13301178 | J152: -0.2488680819 | K152: -0.1969192625 | L152: 0 | M152: 0.26 | N152: 0 | O152: 0.02 | P152: 0.3394281251 | Q152: 0.04633688131 | R152: 0.09817054896 | S152: 13.65145605 | T152: 28.92233781 | U152: 15.27088176 | V152: 42.57379385 | W152: 35.86920586 | X152: 25.03217 | Y152: 10.93785714 | Z152: FALSE | AA152: FALSE | AB152: TRUE | AC152: FALSE | AD152: 0 | AE152: 0 | AF152: 12.3 | AG152: 0 | AH152: 10.57666667 | AI152: 10.9552381 | AJ152: 0.2202721088 | AK152: -114.5768993 | AL152: 0 | AM152: -114.5768993 | AP152: 20343800
A153: 121 | B153: =OFFSET(InputPriceData!B$15,CalculationsAndCharts!$A153+$A$11,0,1,1) -> 2016-07-20 | C153: =OFFSET(InputPriceData!G$15,CalculationsAndCharts!$A153+$A$11,IF($C$7,8,0),1,1) -> 26551900 | D153: =OFFSET(InputPriceData!C$15,CalculationsAndCharts!$A153+$A$11,IF($C$7,8,0),1,1) -> 10.55 | E153: =OFFSET(InputPriceData!D$15,CalculationsAndCharts!$A153+$A$11,IF($C$7,8,0),1,1) -> 10.85 | F153: =OFFSET(InputPriceData!E$15,CalculationsAndCharts!$A153+$A$11,IF($C$7,8,0),1,1) -> 10.51 | G153: =OFFSET(InputPriceData!F$15,CalculationsAndCharts!$A153+$A$11,IF($C$7,8,0),1,1) -> 10.73 | H153: 10.95580619 | I153: 11.18445273 | J153: -0.2286465335 | K153: -0.1839320576 | L153: 0 | M153: 0.34 | N153: 0 | O153: 0.17 | P153: 0.3482534723 | Q153: 0.05148542368 | R153: 0.1068561655 | S153: 14.78389385 | T153: 30.68344582 | U153: 15.89955197 | V153: 45.46733967 | W153: 34.96917146 | X153: 23.82806 | Y153: 11.015 | Z153: FALSE | AA153: FALSE | AB153: TRUE | AC153: FALSE | AD153: 0 | AE153: 0 | AF153: 12.3 | AG153: 0 | AH153: 10.69666667 | AI153: 11.0302381 | AJ153: 0.247414966 | AK153: -89.88177069 | AL153: 0 | AM153: -89.88177069 | AO153: 26551900
A154: 122 | B154: =OFFSET(InputPriceData!B$15,CalculationsAndCharts!$A154+$A$11,0,1,1) -> 2016-07-19 | C154: =OFFSET(InputPriceData!G$15,CalculationsAndCharts!$A154+$A$11,IF($C$7,8,0),1,1) -> 17785400 | D154: =OFFSET(InputPriceData!C$15,CalculationsAndCharts!$A154+$A$11,IF($C$7,8,0),1,1) -> 10.79 | E154: =OFFSET(InputPriceData!D$15,CalculationsAndCharts!$A154+$A$11,IF($C$7,8,0),1,1) -> 10.82 | F154: =OFFSET(InputPriceData!E$15,CalculationsAndCharts!$A154+$A$11,IF($C$7,8,0),1,1) -> 10.68 | G154: =OFFSET(InputPriceData!F$15,CalculationsAndCharts!$A154+$A$11,IF($C$7,8,0),1,1) -> 10.7 | H154: 10.99686186 | I154: 11.22080894 | J154: -0.2239470804 | K154: -0.1727534387 | L154: 0 | M154: 0.14 | N154: 0 | O154: 0.04 | P154: 0.3491705248 | Q154: 0.05720602631 | R154: 0.0998401839 | S154: 16.38340646 | T154: 28.59353147 | U154: 12.21012501 | V154: 44.97693793 | W154: 27.14752398 | X154: 22.59016 | Y154: 11.09071429 | Z154: FALSE | AA154: FALSE | AB154: TRUE | AC154: FALSE | AD154: 0 | AE154: 0 | AF154: 12.3 | AG154: 0 | AH154: 10.73333333 | AI154: 11.10547619 | AJ154: 0.2856122449 | AK154: -86.86435632 | AL154: 0 | AM154: -86.86435632 | AP154: 17785400
A155: 123 | B155: =OFFSET(InputPriceData!B$15,CalculationsAndCharts!$A155+$A$11,0,1,1) -> 2016-07-18 | C155: =OFFSET(InputPriceData!G$15,CalculationsAndCharts!$A155+$A$11,IF($C$7,8,0),1,1) -> 19842200 | D155: =OFFSET(InputPriceData!C$15,CalculationsAndCharts!$A155+$A$11,IF($C$7,8,0),1,1) -> 10.79 | E155: =OFFSET(InputPriceData!D$15,CalculationsAndCharts!$A155+$A$11,IF($C$7,8,0),1,1) -> 10.88 | F155: =OFFSET(InputPriceData!E$15,CalculationsAndCharts!$A155+$A$11,IF($C$7,8,0),1,1) -> 10.72 | G155: =OFFSET(InputPriceData!F$15,CalculationsAndCharts!$A155+$A$11,IF($C$7,8,0),1,1) -> 10.82 | H155: 11.05083675 | I155: 11.26247366 | J155: -0.2116369117 | K155: -0.1599550282 | L155: 0 | M155: 0.27 | N155: 0 | O155: 0.17 | P155: 0.3724116943 | Q155: 0.06356225146 | R155: 0.1064890932 | S155: 17.06773779 | T155: 28.5944547 | U155: 11.52671692 | V155: 45.66219249 | W155: 25.24345917 | X155: 22.08379 | Y155: 11.14571429 | Z155: FALSE | AA155: FALSE | AB155: TRUE | AC155: FALSE | AD155: 0 | AE155: 0 | AF155: 12.3 | AG155: 0 | AH155: 10.80666667 | AI155: 11.15166667 | AJ155: 0.2852380952 | AK155: -80.63439065 | AL155: 0 | AM155: -80.63439065 | AO155: 19842200
A156: 124 | B156: =OFFSET(InputPriceData!B$15,CalculationsAndCharts!$A156+$A$11,0,1,1) -> 2016-07-15 | C156: =OFFSET(InputPriceData!G$15,CalculationsAndCharts!$A156+$A$11,IF($C$7,8,0),1,1) -> 23656100 | D156: =OFFSET(InputPriceData!C$15,CalculationsAndCharts!$A156+$A$11,IF($C$7,8,0),1,1) -> 10.99 | E156: =OFFSET(InputPriceData!D$15,CalculationsAndCharts!$A156+$A$11,IF($C$7,8,0),1,1) -> 11.08 | F156: =OFFSET(InputPriceData!E$15,CalculationsAndCharts!$A156+$A$11,IF($C$7,8,0),1,1) -> 10.89 | G156: =OFFSET(InputPriceData!F$15,CalculationsAndCharts!$A156+$A$11,IF($C$7,8,0),1,1) -> 10.99 | H156: 11.09280706 | I156: 11.29787155 | J156: -0.2050644868 | K156: -0.1470345574 | L156: 0 | M156: 0.21 | N156: 0.13 | O156: 0 | P156: 0.3837907714 | Q156: 0.07062472385 | R156: 0.0994323258 | S156: 18.40188173 | T156: 25.90795121 | U156: 7.506069478 | V156: 44.30983294 | W156: 16.93996339 | X156: 21.73272 | Y156: 11.17214286 | Z156: FALSE | AA156: FALSE | AB156: FALSE | AC156: TRUE | AD156: 0 | AE156: 0 | AF156: 0 | AG156: 12.3 | AH156: 10.98666667 | AI156: 11.17428571 | AJ156: 0.2658503401 | AK156: -47.04878881 | AL156: 0 | AM156: -47.04878881 | AO156: 23656100
A157: 125 | B157: =OFFSET(InputPriceData!B$15,CalculationsAndCharts!$A157+$A$11,0,1,1) -> 2016-07-14 | C157: =OFFSET(InputPriceData!G$15,CalculationsAndCharts!$A157+$A$11,IF($C$7,8,0),1,1) -> 21465900 | D157: =OFFSET(InputPriceData!C$15,CalculationsAndCharts!$A157+$A$11,IF($C$7,8,0),1,1) -> 10.86 | E157: =OFFSET(InputPriceData!D$15,CalculationsAndCharts!$A157+$A$11,IF($C$7,8,0),1,1) -> 10.95 | F157: =OFFSET(InputPriceData!E$15,CalculationsAndCharts!$A157+$A$11,IF($C$7,8,0),1,1) -> 10.76 | G157: =OFFSET(InputPriceData!F$15,CalculationsAndCharts!$A157+$A$11,IF($C$7,8,0),1,1) -> 10.87 | H157: 11.11149926 | I157: 11.32250128 | J157: -0.2110020174 | K157: -0.132527075 | L157: 0 | M157: 0.2 | N157: 0 | O157: 0 | P157: 0.4031008571 | Q157: 0.06402747094 | R157: 0.110480362 | S157: 15.88373476 | T157: 27.40762269 | U157: 11.52388794 | V157: 43.29135745 | W157: 26.61937305 | X157: 22.26525 | Y157: 11.20142857 | Z157: FALSE | AA157: FALSE | AB157: TRUE | AC157: FALSE | AD157: 0 | AE157: 0 | AF157: 12.3 | AG157: 0 | AH157: 10.86 | AI157: 11.20714286 | AJ157: 0.2719047619 | AK157: -85.11383538 | AL157: 0 | AM157: -85.11383538 | AO157: 21465900
A158: 126 | B158: =OFFSET(InputPriceData!B$15,CalculationsAndCharts!$A158+$A$11,0,1,1) -> 2016-07-13 | C158: =OFFSET(InputPriceData!G$15,CalculationsAndCharts!$A158+$A$11,IF($C$7,8,0),1,1) -> 34345300 | D158: =OFFSET(InputPriceData!C$15,CalculationsAndCharts!$A158+$A$11,IF($C$7,8,0),1,1) -> 11.07 | E158: =OFFSET(InputPriceData!D$15,CalculationsAndCharts!$A158+$A$11,IF($C$7,8,0),1,1) -> 11.15 | F158: =OFFSET(InputPriceData!E$15,CalculationsAndCharts!$A158+$A$11,IF($C$7,8,0),1,1) -> 10.65 | G158: =OFFSET(InputPriceData!F$15,CalculationsAndCharts!$A158+$A$11,IF($C$7,8,0),1,1) -> 10.75 | H158: 11.15540821 | I158: 11.35870138 | J158: -0.2032931634 | K158: -0.1129083395 | L158: 0 | M158: 0.54 | N158: 0 | O158: 0.24 | P158: 0.425667619 | Q158: 0.07114163438 | R158: 0.1227559578 | S158: 16.71295424 | T158: 28.83845336 | U158: 12.12549912 | V158: 45.5514076 | W158: 26.61937305 | X158: 21.78146 | Y158: 11.28071429 | Z158: FALSE | AA158: FALSE | AB158: TRUE | AC158: FALSE | AD158: 0 | AE158: 0 | AF158: 12.3 | AG158: 0 | AH158: 10.85 | AI158: 11.28285714 | AJ158: 0.3018367347 | AK158: -95.60513861 | AL158: 0 | AM158: -95.60513861 | AP158: 34345300
A159: 127 | B159: =OFFSET(InputPriceData!B$15,CalculationsAndCharts!$A159+$A$11,0,1,1) -> 2016-07-12 | C159: =OFFSET(InputPriceData!G$15,CalculationsAndCharts!$A159+$A$11,IF($C$7,8,0),1,1) -> 30624700 | D159: =OFFSET(InputPriceData!C$15,CalculationsAndCharts!$A159+$A$11,IF($C$7,8,0),1,1) -> 11.04 | E159: =OFFSET(InputPriceData!D$15,CalculationsAndCharts!$A159+$A$11,IF($C$7,8,0),1,1) -> 11.23 | F159: =OFFSET(InputPriceData!E$15,CalculationsAndCharts!$A159+$A$11,IF($C$7,8,0),1,1) -> 10.89 | G159: =OFFSET(InputPriceData!F$15,CalculationsAndCharts!$A159+$A$11,IF($C$7,8,0),1,1) -> 11.19 | H159: 11.2291188 | I159: 11.40739749 | J159: -0.1782786892 | K159: -0.09031213348 | L159: 0 | M159: 0.58 | N159: 0.28 | O159: 0 | P159: 0.4129640211 | Q159: 0.07904626042 | R159: 0.109728842 | S159: 19.14119787 | T159: 26.57104163 | U159: 7.429843759 | V159: 45.7122395 | W159: 16.25351075 | X159: 21.24391 | Y159: 11.35142857 | Z159: FALSE | AA159: FALSE | AB159: FALSE | AC159: TRUE | AD159: 0 | AE159: 0 | AF159: 0 | AG159: 12.3 | AH159: 11.10333333 | AI159: 11.3497619 | AJ159: 0.3069047619 | AK159: -53.52986811 | AL159: 0 | AM159: -53.52986811 | AO159: 30624700
A160: 128 | B160: =OFFSET(InputPriceData!B$15,CalculationsAndCharts!$A160+$A$11,0,1,1) -> 2016-07-11 | C160: =OFFSET(InputPriceData!G$15,CalculationsAndCharts!$A160+$A$11,IF($C$7,8,0),1,1) -> 16805900 | D160: =OFFSET(InputPriceData!C$15,CalculationsAndCharts!$A160+$A$11,IF($C$7,8,0),1,1) -> 10.91 | E160: =OFFSET(InputPriceData!D$15,CalculationsAndCharts!$A160+$A$11,IF($C$7,8,0),1,1) -> 10.95 | F160: =OFFSET(InputPriceData!E$15,CalculationsAndCharts!$A160+$A$11,IF($C$7,8,0),1,1) -> 10.64 | G160: =OFFSET(InputPriceData!F$15,CalculationsAndCharts!$A160+$A$11,IF($C$7,8,0),1,1) -> 10.65 | H160: 11.23623131 | I160: 11.42478929 | J160: -0.1885579795 | K160: -0.06832049454 | L160: 0 | M160: 0.31 | N160: 0 | O160: 0.07 | P160: 0.3944044679 | Q160: 0.05671806713 | R160: 0.1219209355 | S160: 14.38068575 | T160: 30.91266592 | U160: 16.53198016 | V160: 45.29335167 | W160: 36.49979423 | X160: 21.7984 | Y160: 11.40142857 | Z160: FALSE | AA160: FALSE | AB160: TRUE | AC160: FALSE | AD160: 0 | AE160: 0 | AF160: 12.3 | AG160: 0 | AH160: 10.74666667 | AI160: 11.40238095 | AJ160: 0.32 | AK160: -136.6071429 | AL160: 0 | AM160: -136.6071429 | AP160: 16805900
A161: 129 | B161: =OFFSET(InputPriceData!B$15,CalculationsAndCharts!$A161+$A$11,0,1,1) -> 2016-07-08 | C161: =OFFSET(InputPriceData!G$15,CalculationsAndCharts!$A161+$A$11,IF($C$7,8,0),1,1) -> 21540700 | D161: =OFFSET(InputPriceData!C$15,CalculationsAndCharts!$A161+$A$11,IF($C$7,8,0),1,1) -> 10.91 | E161: =OFFSET(InputPriceData!D$15,CalculationsAndCharts!$A161+$A$11,IF($C$7,8,0),1,1) -> 10.95 | F161: =OFFSET(InputPriceData!E$15,CalculationsAndCharts!$A161+$A$11,IF($C$7,8,0),1,1) -> 10.71 | G161: =OFFSET(InputPriceData!F$15,CalculationsAndCharts!$A161+$A$11,IF($C$7,8,0),1,1) -> 10.83 | H161: 11.34281882 | I161: =IF($A161>$A$8,NA(),IF($A161=$A$8,$G161,$G161*$C$21+I162*$D$21)) -> 11.48677243 | J161: -0.143953612 | K161: -0.0382611233 | L161: 0 | M161: =IF($A161<$A$8,MAX($E161-$F161,ABS($E161-$G162),ABS($F161-$G162)),"") -> 0.24 | N161: =IF($A161<$A$8,IF($E161-$E162>$F162-$F161,MAX($E161-$E162,0),0),"") -> 0 | O161: =IF($A161<$A$8,IF($F162-$F161>$E161-$E162,MAX($F162-$F161,0),0),"") -> 0.03 | P161: =IF(($A$8-$A161)<$B$17,"",IF(($A$8-$A161)=$B$17,AVERAGE(OFFSET(M161,0,0,$B$17,1)),P162*$D$17+M161*$C$17)) -> 0.4037827421 | Q161: =IF(($A$8-$A161)<$B$17,"",IF(($A$8-$A161)=$B$17,AVERAGE(OFFSET(N161,0,0,$B$17,1)),Q162*$D$17+N161*$C$17)) -> 0.06302007459 | R161: =IF(($A$8-$A161)<$B$17,"",IF(($A$8-$A161)=$B$17,AVERAGE(OFFSET(O161,0,0,$B$17,1)),R162*$D$17+O161*$C$17)) -> 0.1276899284 | S161: =IF(($A$8-$A161)<$B$17,"",Q161/P161*100) -> 15.60742152 | T161: =IF(($A$8-$A161)<$B$17,"",R161/P161*100) -> 31.62342394 | U161: =IF(($A$8-$A161)<$B$17,"",ABS(S161-T161)) -> 16.01600242 | V161: =IF(($A$8-$A161)<$B$17,"",S161+T161) -> 47.23084547 | W161: =IF(($A$8-$A161)<$B$17,"",U161/V161*100) -> 33.91004812 | X161: 20.16491 | Y161: 11.49142857 | Z161: =IF(($A$8-$A161)<(2*$B$17+1),NA(),AND(X161>=X162,J161>J162)) -> FALSE | AA161: FALSE | AB161: TRUE | AC161: FALSE | AD161: 0 | AE161: 0 | AF161: 12.3 | AG161: 0 | AH161: 10.83 | AI161: 11.48309524 | AJ161: 0.3007142857 | AK161: -144.7875429 | AL161: 0 | AM161: -144.7875429 | AO161: =IF(G161>=D161,C161,NA()) ->  | AP161: =IF(G161<D161,C161,NA()) -> 21540700
A162: 130 | B162: =OFFSET(InputPriceData!B$15,CalculationsAndCharts!$A162+$A$11,0,1,1) -> 2016-07-07 | C162: =OFFSET(InputPriceData!G$15,CalculationsAndCharts!$A162+$A$11,IF($C$7,8,0),1,1) -> 36199100 | D162: =OFFSET(InputPriceData!C$15,CalculationsAndCharts!$A162+$A$11,IF($C$7,8,0),1,1) -> 11.5 | E162: =OFFSET(InputPriceData!D$15,CalculationsAndCharts!$A162+$A$11,IF($C$7,8,0),1,1) -> 11.54 | F162: =OFFSET(InputPriceData!E$15,CalculationsAndCharts!$A162+$A$11,IF($C$7,8,0),1,1) -> 10.74 | G162: =OFFSET(InputPriceData!F$15,CalculationsAndCharts!$A162+$A$11,IF($C$7,8,0),1,1) -> 10.82 | H162: =IF($A162>$A$8,NA(),IF(A162=$A$8,G162,G162*$C$20+H163*$D$20)) -> 11.4360586 | I162: 11.53931422 | J162: -0.1032556214 | K162: =IF($A162>$A$8,NA(),IF($A162=$A$8,$G162,$J162*$C$22+K163*$D$22)) -> -0.01183800112 | L162: 0 | M162: 0.8 | N162: 0 | O162: 0.27 | P162: 0.4219808246 | Q162: 0.0700223051 | R162: 0.1385443648 | S162: 16.5937173 | T162: 32.83191007 | U162: 16.23819277 | V162: 49.42562737 | W162: 32.85379191 | X162: =IF(($A$8-$A162)<(2*$B$17),"",ROUND(IF(($A$8-$A162)=(2*$B$17),AVERAGE(OFFSET(W162,0,0,$B$17,1)),(X163*$D$17+W162*$C$17)),$X$28)) -> 18.63767 | Y162: =IF($A162>$A$8,NA(),IF($A162=$A$8,$G162,AVERAGE(OFFSET(G162,0,0,$F$17,1)))) -> 11.55071429 | Z162: FALSE | AA162: =IF(($A$8-$A162)<(2*$B$17+1),NA(),AND(X162<=X163,J162<J163)) -> FALSE | AB162: =IF(($A$8-$A162)<(2*$B$17+1),NA(),AND(X162>=X163,J162<J163)) -> TRUE | AC162: =IF(($A$8-$A162)<(2*$B$17+1),NA(),AND(X162<=X163,J162>J163)) -> FALSE | AD162: =IF($Q$4,IF(Z162,$AZ$34,0),NA()) -> 0 | AE162: =IF($Q$4,IF(AA162,$AZ$34,0),NA()) -> 0 | AF162: =IF($Q$4,IF(AB162,$AZ$34,0),NA()) -> 12.3 | AG162: =IF($Q$4,IF(AC162,$AZ$34,0),NA()) -> 0 | AH162: =AVERAGE(E162:G162) -> 11.03333333 | AI162: =IF(($A$8-$A162)<($F$21-1),NA(),AVERAGE(OFFSET(AH162,0,0,$F$21,1))) -> 11.53619048 | AJ162: =IF(($A$8-$A162)<($F$21-1),NA(),AVEDEV(OFFSET(AH162,0,0,$F$21,1))) -> 0.2529251701 | AK162: =IF(($A$8-$A162)<($F$21-1),NA(),(AH162-AI162)/(0.015*AJ162)) -> -132.5443787 | AL162: =IF(AK162>=0,AK162,0) -> 0 | AM162: =IF(AK162<0,AK162,0) -> -132.5443787 | AP162: 36199100
A163: 131 | B163: =OFFSET(InputPriceData!B$15,CalculationsAndCharts!$A163+$A$11,0,1,1) -> 2016-07-06 | C163: =OFFSET(InputPriceData!G$15,CalculationsAndCharts!$A163+$A$11,IF($C$7,8,0),1,1) -> 17436200 | D163: =OFFSET(InputPriceData!C$15,CalculationsAndCharts!$A163+$A$11,IF($C$7,8,0),1,1) -> 11.09 | E163: =OFFSET(InputPriceData!D$15,CalculationsAndCharts!$A163+$A$11,IF($C$7,8,0),1,1) -> 11.41 | F163: =OFFSET(InputPriceData!E$15,CalculationsAndCharts!$A163+$A$11,IF($C$7,8,0),1,1) -> 11.01 | G163: =OFFSET(InputPriceData!F$15,CalculationsAndCharts!$A163+$A$11,IF($C$7,8,0),1,1) -> 11.33 | H163: 11.54806926 | I163: 11.59685936 | J163: -0.04879010436 | K163: 0.01101640395 | L163: 0 | M163: 0.4 | N163: 0 | O163: 0.08 | P163: 0.379978694 | Q163: 0.07780256122 | R163: 0.1239381832 | S163: 20.47550625 | T163: 32.61714015 | U163: 12.1416339 | V163: 53.0926464 | W163: 22.86876757 | X163: 17.0581 | Y163: 11.57357143 | Z163: FALSE | AA163: FALSE | AB163: TRUE | AC163: FALSE | AD163: 0 | AE163: 0 | AF163: 12.3 | AG163: 0 | AH163: 11.25 | AI163: 11.5497619 | AJ163: 0.237414966 | AK163: -84.17382999 | AL163: 0 | AM163: -84.17382999 | AO163: 17436200
A164: 132 | B164: =OFFSET(InputPriceData!B$15,CalculationsAndCharts!$A164+$A$11,0,1,1) -> 2016-07-05 | C164: =OFFSET(InputPriceData!G$15,CalculationsAndCharts!$A164+$A$11,IF($C$7,8,0),1,1) -> 30162300 | D164: =OFFSET(InputPriceData!C$15,CalculationsAndCharts!$A164+$A$11,IF($C$7,8,0),1,1) -> 11.35 | E164: =OFFSET(InputPriceData!D$15,CalculationsAndCharts!$A164+$A$11,IF($C$7,8,0),1,1) -> 11.37 | F164: =OFFSET(InputPriceData!E$15,CalculationsAndCharts!$A164+$A$11,IF($C$7,8,0),1,1) -> 11.09 | G164: =OFFSET(InputPriceData!F$15,CalculationsAndCharts!$A164+$A$11,IF($C$7,8,0),1,1) -> 11.18 | H164: 11.58771821 | I164: 11.61820811 | J164: -0.03048989743 | K164: 0.02596803103 | L164: 0 | M164: 0.69 | N164: 0 | O164: 0.41 | P164: 0.3777541044 | Q164: 0.08644729025 | R164: 0.1288202035 | S164: 22.8845403 | T164: 34.1016026 | U164: 11.21706231 | V164: 56.9861429 | W164: 19.68384196 | X164: 16.41247 | Y164: 11.58357143 | Z164: FALSE | AA164: FALSE | AB164: TRUE | AC164: FALSE | AD164: 0 | AE164: 0 | AF164: 12.3 | AG164: 0 | AH164: 11.21333333 | AI164: 11.57190476 | AJ164: 0.2121088435 | AK164: -112.700449 | AL164: 0 | AM164: -112.700449 | AP164: 30162300
A165: 133 | B165: =OFFSET(InputPriceData!B$15,CalculationsAndCharts!$A165+$A$11,0,1,1) -> 2016-07-01 | C165: =OFFSET(InputPriceData!G$15,CalculationsAndCharts!$A165+$A$11,IF($C$7,8,0),1,1) -> 20567100 | D165: =OFFSET(InputPriceData!C$15,CalculationsAndCharts!$A165+$A$11,IF($C$7,8,0),1,1) -> 11.52 | E165: =OFFSET(InputPriceData!D$15,CalculationsAndCharts!$A165+$A$11,IF($C$7,8,0),1,1) -> 11.78 | F165: =OFFSET(InputPriceData!E$15,CalculationsAndCharts!$A165+$A$11,IF($C$7,8,0),1,1) -> 11.5 | G165: =OFFSET(InputPriceData!F$15,CalculationsAndCharts!$A165+$A$11,IF($C$7,8,0),1,1) -> 11.78 | H165: 11.6618488 | I165: 11.65326476 | J165: 0.008584037923 | K165: 0.04008251315 | L165: 0 | M165: 0.28 | N165: 0 | O165: 0.02 | P165: 0.343060116 | Q165: 0.09605254472 | R165: 0.0975780039 | S165: 27.99875014 | T165: 28.44341249 | U165: 0.4446623519 | V165: 56.44216263 | W165: 0.7878194796 | X165: 16.04898 | Y165: 11.62285714 | Z165: FALSE | AA165: FALSE | AB165: FALSE | AC165: TRUE | AD165: 0 | AE165: 0 | AF165: 0 | AG165: 12.3 | AH165: 11.68666667 | AI165: 11.60857143 | AJ165: 0.1921088435 | AK165: 27.10103872 | AL165: 27.10103872 | AM165: 0 | AO165: 20567100
A166: 134 | B166: =OFFSET(InputPriceData!B$15,CalculationsAndCharts!$A166+$A$11,0,1,1) -> 2016-06-30 | C166: =OFFSET(InputPriceData!G$15,CalculationsAndCharts!$A166+$A$11,IF($C$7,8,0),1,1) -> 22048700 | D166: =OFFSET(InputPriceData!C$15,CalculationsAndCharts!$A166+$A$11,IF($C$7,8,0),1,1) -> 11.66 | E166: =OFFSET(InputPriceData!D$15,CalculationsAndCharts!$A166+$A$11,IF($C$7,8,0),1,1) -> 11.79 | F166: =OFFSET(InputPriceData!E$15,CalculationsAndCharts!$A166+$A$11,IF($C$7,8,0),1,1) -> 11.52 | G166: =OFFSET(InputPriceData!F$15,CalculationsAndCharts!$A166+$A$11,IF($C$7,8,0),1,1) -> 11.57 | H166: 11.64036676 | I166: 11.64312594 | J166: -0.002759179688 | K166: 0.04795713195 | L166: 0 | M166: 0.27 | N166: 0 | O166: 0 | P166: 0.3500667956 | Q166: 0.1067250497 | R166: 0.1061977821 | S166: 30.48705305 | T166: 30.33643392 | U166: 0.1506191344 | V166: 60.82348697 | W166: 0.247633179 | X166: 17.74467 | Y166: 11.62142857 | Z166: FALSE | AA166: TRUE | AB166: FALSE | AC166: FALSE | AD166: 0 | AE166: 12.3 | AF166: 0 | AG166: 0 | AH166: 11.62666667 | AI166: 11.61666667 | AJ166: 0.199047619 | AK166: 3.349282297 | AL166: 3.349282297 | AM166: 0 | AP166: 22048700
A167: 135 | B167: =OFFSET(InputPriceData!B$15,CalculationsAndCharts!$A167+$A$11,0,1,1) -> 2016-06-29 | C167: =OFFSET(InputPriceData!G$15,CalculationsAndCharts!$A167+$A$11,IF($C$7,8,0),1,1) -> 24821700 | D167: =OFFSET(InputPriceData!C$15,CalculationsAndCharts!$A167+$A$11,IF($C$7,8,0),1,1) -> 11.55 | E167: =OFFSET(InputPriceData!D$15,CalculationsAndCharts!$A167+$A$11,IF($C$7,8,0),1,1) -> 11.96 | F167: =OFFSET(InputPriceData!E$15,CalculationsAndCharts!$A167+$A$11,IF($C$7,8,0),1,1) -> 11.5 | G167: =OFFSET(InputPriceData!F$15,CalculationsAndCharts!$A167+$A$11,IF($C$7,8,0),1,1) -> 11.79 | H167: 11.65316072 | I167: 11.64897602 | J167: 0.004184701538 | K167: 0.06063620986 | L167: 0 | M167: 0.49 | N167: 0.49 | O167: 0 | P167: 0.3589631062 | Q167: 0.1185833885 | R167: 0.1179975357 | S167: 33.0349795 | T167: 32.87177251 | U167: 0.1632069852 | V167: 65.90675201 | W167: 0.247633179 | X167: 19.68878 | Y167: 11.64285714 | Z167: FALSE | AA167: FALSE | AB167: FALSE | AC167: TRUE | AD167: 0 | AE167: 0 | AF167: 0 | AG167: 12.3 | AH167: 11.75 | AI167: 11.63857143 | AJ167: 0.2178231293 | AK167: 34.1036852 | AL167: 34.1036852 | AM167: 0 | AO167: 24821700
A168: 136 | B168: =OFFSET(InputPriceData!B$15,CalculationsAndCharts!$A168+$A$11,0,1,1) -> 2016-06-28 | C168: =OFFSET(InputPriceData!G$15,CalculationsAndCharts!$A168+$A$11,IF($C$7,8,0),1,1) -> 23383000 | D168: =OFFSET(InputPriceData!C$15,CalculationsAndCharts!$A168+$A$11,IF($C$7,8,0),1,1) -> 11.4 | E168: =OFFSET(InputPriceData!D$15,CalculationsAndCharts!$A168+$A$11,IF($C$7,8,0),1,1) -> 11.47 | F168: =OFFSET(InputPriceData!E$15,CalculationsAndCharts!$A168+$A$11,IF($C$7,8,0),1,1) -> 11.2 | G168: =OFFSET(InputPriceData!F$15,CalculationsAndCharts!$A168+$A$11,IF($C$7,8,0),1,1) -> 11.47 | H168: 11.62828085 | I168: 11.6376941 | J168: -0.009413249355 | K168: 0.07474908694 | L168: 0 | M168: 0.28 | N168: 0.25 | O168: 0 | P168: 0.3444034513 | Q168: 0.07731487616 | R168: 0.131108373 | S168: 22.44892607 | T168: 38.06825177 | U168: 15.61932571 | V168: 60.51717784 | W168: 25.8097391 | X168: 21.84891 | Y168: 11.67571429 | Z168: FALSE | AA168: FALSE | AB168: TRUE | AC168: FALSE | AD168: 0 | AE168: 0 | AF168: 12.3 | AG168: 0 | AH168: 11.38 | AI168: 11.67452381 | AJ168: 0.2486394558 | AK168: -78.96944824 | AL168: 0 | AM168: -78.96944824 | AO168: 23383000
A169: 137 | B169: =OFFSET(InputPriceData!B$15,CalculationsAndCharts!$A169+$A$11,0,1,1) -> 2016-06-27 | C169: =OFFSET(InputPriceData!G$15,CalculationsAndCharts!$A169+$A$11,IF($C$7,8,0),1,1) -> 24678900 | D169: =OFFSET(InputPriceData!C$15,CalculationsAndCharts!$A169+$A$11,IF($C$7,8,0),1,1) -> 11.22 | E169: =OFFSET(InputPriceData!D$15,CalculationsAndCharts!$A169+$A$11,IF($C$7,8,0),1,1) -> 11.22 | F169: =OFFSET(InputPriceData!E$15,CalculationsAndCharts!$A169+$A$11,IF($C$7,8,0),1,1) -> 10.96 | G169: =OFFSET(InputPriceData!F$15,CalculationsAndCharts!$A169+$A$11,IF($C$7,8,0),1,1) -> 11.19 | H169: 11.65705918 | I169: 11.65110962 | J169: 0.005949558768 | K169: 0.09578967102 | L169: 0 | M169: 0.44 | N169: 0 | O169: 0.4 | P169: 0.3515593904 | Q169: 0.05812764018 | R169: 0.14567597 | S169: 16.53423056 | T169: 41.43708686 | U169: 24.9028563 | V169: 57.97131743 | W169: 42.95720264 | X169: 21.40882 | Y169: 11.74428571 | Z169: FALSE | AA169: FALSE | AB169: TRUE | AC169: FALSE | AD169: 0 | AE169: 0 | AF169: 12.3 | AG169: 0 | AH169: 11.12333333 | AI169: 11.74642857 | AJ169: 0.2607482993 | AK169: -159.3095052 | AL169: 0 | AM169: -159.3095052 | AP169: 24678900
A170: 138 | B170: =OFFSET(InputPriceData!B$15,CalculationsAndCharts!$A170+$A$11,0,1,1) -> 2016-06-24 | C170: =OFFSET(InputPriceData!G$15,CalculationsAndCharts!$A170+$A$11,IF($C$7,8,0),1,1) -> 32784500 | D170: =OFFSET(InputPriceData!C$15,CalculationsAndCharts!$A170+$A$11,IF($C$7,8,0),1,1) -> 11.38 | E170: =OFFSET(InputPriceData!D$15,CalculationsAndCharts!$A170+$A$11,IF($C$7,8,0),1,1) -> 11.58 | F170: =OFFSET(InputPriceData!E$15,CalculationsAndCharts!$A170+$A$11,IF($C$7,8,0),1,1) -> 11.36 | G170: =OFFSET(InputPriceData!F$15,CalculationsAndCharts!$A170+$A$11,IF($C$7,8,0),1,1) -> 11.4 | H170: 11.74197903 | I170: 11.68799839 | J170: 0.05398064028 | K170: 0.1182496991 | L170: 0 | M170: 0.62 | N170: 0 | O170: 0.42 | P170: 0.341732656 | Q170: 0.06458626686 | R170: 0.1174177444 | S170: 18.89964735 | T170: 34.35953292 | U170: 15.45988557 | V170: 53.25918027 | W170: 29.0276446 | X170: 19.01456 | Y170: 11.81785714 | Z170: FALSE | AA170: FALSE | AB170: TRUE | AC170: FALSE | AD170: 0 | AE170: 0 | AF170: 12.3 | AG170: 0 | AH170: 11.44666667 | AI170: 11.82166667 | AJ170: 0.2335714286 | AK170: -107.0336391 | AL170: 0 | AM170: -107.0336391 | AO170: 32784500
A171: 139 | B171: =OFFSET(InputPriceData!B$15,CalculationsAndCharts!$A171+$A$11,0,1,1) -> 2016-06-23 | C171: =OFFSET(InputPriceData!G$15,CalculationsAndCharts!$A171+$A$11,IF($C$7,8,0),1,1) -> 18947500 | D171: =OFFSET(InputPriceData!C$15,CalculationsAndCharts!$A171+$A$11,IF($C$7,8,0),1,1) -> 11.92 | E171: =OFFSET(InputPriceData!D$15,CalculationsAndCharts!$A171+$A$11,IF($C$7,8,0),1,1) -> 12 | F171: =OFFSET(InputPriceData!E$15,CalculationsAndCharts!$A171+$A$11,IF($C$7,8,0),1,1) -> 11.78 | G171: =OFFSET(InputPriceData!F$15,CalculationsAndCharts!$A171+$A$11,IF($C$7,8,0),1,1) -> 11.98 | H171: 11.80415704 | I171: 11.71103827 | J171: =H171-I171 -> 0.09311877501 | K171: 0.1343169638 | L171: 0 | M171: 0.26 | N171: 0 | O171: 0 | P171: 0.3108140622 | Q171: 0.07176251874 | R171: 0.0837974938 | S171: 23.08856885 | T171: 26.96065075 | U171: 3.872081905 | V171: 50.0492196 | W171: 7.736548013 | X171: 17.902 | Y171: 11.86357143 | Z171: FALSE | AA171: FALSE | AB171: FALSE | AC171: TRUE | AD171: 0 | AE171: 0 | AF171: 0 | AG171: 12.3 | AH171: 11.92 | AI171: 11.86166667 | AJ171: 0.2173809524 | AK171: 17.88974078 | AL171: 17.88974078 | AM171: 0 | AO171: 18947500
A172: 140 | B172: =OFFSET(InputPriceData!B$15,CalculationsAndCharts!$A172+$A$11,0,1,1) -> 2016-06-22 | C172: =OFFSET(InputPriceData!G$15,CalculationsAndCharts!$A172+$A$11,IF($C$7,8,0),1,1) -> 26056700 | D172: =OFFSET(InputPriceData!C$15,CalculationsAndCharts!$A172+$A$11,IF($C$7,8,0),1,1) -> 11.99 | E172: =OFFSET(InputPriceData!D$15,CalculationsAndCharts!$A172+$A$11,IF($C$7,8,0),1,1) -> 12.04 | F172: =OFFSET(InputPriceData!E$15,CalculationsAndCharts!$A172+$A$11,IF($C$7,8,0),1,1) -> 11.58 | G172: =OFFSET(InputPriceData!F$15,CalculationsAndCharts!$A172+$A$11,IF($C$7,8,0),1,1) -> 11.74 | H172: 11.77218559 | I172: 11.68952133 | J172: 0.08266426661 | K172: 0.144616511 | L172: 0 | M172: 0.46 | N172: 0 | O172: 0.11 | P172: 0.3164600691 | Q172: 0.07973613193 | R172: 0.09310832644 | S172: 25.19626952 | T172: 29.42182459 | U172: 4.225555075 | V172: 54.61809411 | W172: 7.736548013 | X172: 19.0315 | Y172: 11.85214286 | Z172: FALSE | AA172: TRUE | AB172: FALSE | AC172: FALSE | AD172: 0 | AE172: 12.3 | AF172: 0 | AG172: 0 | AH172: 11.78666667 | AI172: 11.85333333 | AJ172: 0.2161904762 | AK172: -20.55800294 | AL172: 0 | AM172: -20.55800294 | AP172: 26056700
A173: 141 | B173: =OFFSET(InputPriceData!B$15,CalculationsAndCharts!$A173+$A$11,0,1,1) -> 2016-06-21 | C173: =OFFSET(InputPriceData!G$15,CalculationsAndCharts!$A173+$A$11,IF($C$7,8,0),1,1) -> 21823000 | D173: =OFFSET(InputPriceData!C$15,CalculationsAndCharts!$A173+$A$11,IF($C$7,8,0),1,1) -> 11.76 | E173: =OFFSET(InputPriceData!D$15,CalculationsAndCharts!$A173+$A$11,IF($C$7,8,0),1,1) -> 11.94 | F173: =OFFSET(InputPriceData!E$15,CalculationsAndCharts!$A173+$A$11,IF($C$7,8,0),1,1) -> 11.69 | G173: =OFFSET(InputPriceData!F$15,CalculationsAndCharts!$A173+$A$11,IF($C$7,8,0),1,1) -> 11.89 | H173: 11.77803752 | I173: 11.68548303 | J173: 0.09255448655 | K173: 0.1601045721 | L173: 0 | M173: 0.25 | N173: 0 | O173: 0.07 | P173: 0.3005111879 | Q173: 0.08859570214 | R173: 0.09123147382 | S173: 29.48166515 | T173: 30.35876117 | U173: 0.8770960232 | V173: 59.84042632 | W173: 1.465724891 | X173: 20.28649 | Y173: 11.86071429 | Z173: FALSE | AA173: FALSE | AB173: FALSE | AC173: TRUE | AD173: 0 | AE173: 0 | AF173: 0 | AG173: 12.3 | AH173: 11.84 | AI173: 11.85595238 | AJ173: 0.2139455782 | AK173: -4.970853206 | AL173: 0 | AM173: -4.970853206 | AO173: 21823000
A174: 142 | B174: =OFFSET(InputPriceData!B$15,CalculationsAndCharts!$A174+$A$11,0,1,1) -> 2016-06-20 | C174: =OFFSET(InputPriceData!G$15,CalculationsAndCharts!$A174+$A$11,IF($C$7,8,0),1,1) -> 26077300 | D174: =OFFSET(InputPriceData!C$15,CalculationsAndCharts!$A174+$A$11,IF($C$7,8,0),1,1) -> 11.82 | E174: =OFFSET(InputPriceData!D$15,CalculationsAndCharts!$A174+$A$11,IF($C$7,8,0),1,1) -> 11.96 | F174: =OFFSET(InputPriceData!E$15,CalculationsAndCharts!$A174+$A$11,IF($C$7,8,0),1,1) -> 11.76 | G174: =OFFSET(InputPriceData!F$15,CalculationsAndCharts!$A174+$A$11,IF($C$7,8,0),1,1) -> 11.91 | H174: 11.75768071 | I174: 11.66912168 | J174: 0.08855902929 | K174: 0.1769920934 | L174: 0 | M174: 0.3 | N174: 0.29 | O174: 0 | P174: 0.3061235421 | Q174: 0.09843966905 | R174: 0.09359052647 | S174: 32.15684373 | T174: 30.57279614 | U174: 1.584047586 | V174: 62.72963987 | W174: 2.52519796 | X174: 22.37769 | Y174: 11.86357143 | Z174: FALSE | AA174: FALSE | AB174: FALSE | AC174: TRUE | AD174: 0 | AE174: 0 | AF174: 0 | AG174: 12.3 | AH174: 11.87666667 | AI174: 11.85357143 | AJ174: 0.2159863946 | AK174: 7.128608924 | AL174: 7.128608924 | AM174: 0 | AO174: 26077300
A175: 143 | B175: =OFFSET(InputPriceData!B$15,CalculationsAndCharts!$A175+$A$11,0,1,1) -> 2016-06-17 | C175: =OFFSET(InputPriceData!G$15,CalculationsAndCharts!$A175+$A$11,IF($C$7,8,0),1,1) -> 34921800 | D175: =OFFSET(InputPriceData!C$15,CalculationsAndCharts!$A175+$A$11,IF($C$7,8,0),1,1) -> 11.45 | E175: =OFFSET(InputPriceData!D$15,CalculationsAndCharts!$A175+$A$11,IF($C$7,8,0),1,1) -> 11.67 | F175: =OFFSET(InputPriceData!E$15,CalculationsAndCharts!$A175+$A$11,IF($C$7,8,0),1,1) -> 11.39 | G175: =OFFSET(InputPriceData!F$15,CalculationsAndCharts!$A175+$A$11,IF($C$7,8,0),1,1) -> 11.66 | H175: 11.72998629 | I175: 11.64985141 | J175: 0.08013487796 | K175: 0.1991003595 | L175: 0 | M175: 0.53 | N175: 0.25 | O175: 0 | P175: 0.3068039357 | Q175: 0.07715518783 | R175: 0.1039894739 | S175: 25.1480437 | T175: 33.89443933 | U175: 8.74639563 | V175: 59.04248304 | W175: 14.81373272 | X175: 24.58352 | Y175: 11.86071429 | Z175: FALSE | AA175: TRUE | AB175: FALSE | AC175: FALSE | AD175: 0 | AE175: 12.3 | AF175: 0 | AG175: 0 | AH175: 11.57333333 | AI175: 11.85809524 | AJ175: 0.2211564626 | AK175: -85.84025428 | AL175: 0 | AM175: -85.84025428 | AO175: 34921800
A176: 144 | B176: =OFFSET(InputPriceData!B$15,CalculationsAndCharts!$A176+$A$11,0,1,1) -> 2016-06-16 | C176: =OFFSET(InputPriceData!G$15,CalculationsAndCharts!$A176+$A$11,IF($C$7,8,0),1,1) -> 31068700 | D176: =OFFSET(InputPriceData!C$15,CalculationsAndCharts!$A176+$A$11,IF($C$7,8,0),1,1) -> 11.4 | E176: =OFFSET(InputPriceData!D$15,CalculationsAndCharts!$A176+$A$11,IF($C$7,8,0),1,1) -> 11.42 | F176: =OFFSET(InputPriceData!E$15,CalculationsAndCharts!$A176+$A$11,IF($C$7,8,0),1,1) -> 11.11 | G176: =OFFSET(InputPriceData!F$15,CalculationsAndCharts!$A176+$A$11,IF($C$7,8,0),1,1) -> 11.14 | H176: 11.74271107 | I176: 11.64903952 | J176: 0.09367154477 | K176: 0.2288417299 | L176: 0 | M176: 0.36 | N176: 0 | O176: 0.32 | P176: 0.282004373 | Q176: 0.0579502087 | R176: 0.1155438598 | S176: 20.54940074 | T176: 40.97236458 | U176: 20.42296385 | V176: 61.52176532 | W176: 33.19632286 | X176: 25.66905 | Y176: 11.88357143 | Z176: FALSE | AA176: FALSE | AB176: TRUE | AC176: FALSE | AD176: 0 | AE176: 0 | AF176: 12.3 | AG176: 0 | AH176: 11.22333333 | AI176: 11.88309524 | AJ176: 0.2054761905 | AK176: -214.0594824 | AL176: 0 | AM176: -214.0594824 | AP176: 31068700
A177: 145 | B177: =OFFSET(InputPriceData!B$15,CalculationsAndCharts!$A177+$A$11,0,1,1) -> 2016-06-15 | C177: =OFFSET(InputPriceData!G$15,CalculationsAndCharts!$A177+$A$11,IF($C$7,8,0),1,1) -> 23350400 | D177: =OFFSET(InputPriceData!C$15,CalculationsAndCharts!$A177+$A$11,IF($C$7,8,0),1,1) -> 11.57 | E177: =OFFSET(InputPriceData!D$15,CalculationsAndCharts!$A177+$A$11,IF($C$7,8,0),1,1) -> 11.78 | F177: =OFFSET(InputPriceData!E$15,CalculationsAndCharts!$A177+$A$11,IF($C$7,8,0),1,1) -> 11.43 | G177: =OFFSET(InputPriceData!F$15,CalculationsAndCharts!$A177+$A$11,IF($C$7,8,0),1,1) -> 11.47 | H177: 11.8522949 | I177: 11.68976268 | J177: 0.1625322134 | K177: 0.2626342761 | L177: 0 | M177: 0.35 | N177: 0 | O177: 0.23 | P177: 0.2733381922 | Q177: 0.06438912078 | R177: 0.09282651093 | S177: 23.55657666 | T177: 33.96031494 | U177: 10.40373829 | V177: 57.5168916 | W177: 18.08814419 | X177: 24.83269 | Y177: 11.94142857 | Z177: FALSE | AA177: TRUE | AB177: FALSE | AC177: FALSE | AD177: 0 | AE177: 12.3 | AF177: 0 | AG177: 0 | AH177: 11.56 | AI177: 11.93833333 | AJ177: 0.1614285714 | AK177: -156.2438545 | AL177: 0 | AM177: -156.2438545 | AP177: 23350400
A178: 146 | B178: =OFFSET(InputPriceData!B$15,CalculationsAndCharts!$A178+$A$11,0,1,1) -> 2016-06-14 | C178: =OFFSET(InputPriceData!G$15,CalculationsAndCharts!$A178+$A$11,IF($C$7,8,0),1,1) -> 15842400 | D178: =OFFSET(InputPriceData!C$15,CalculationsAndCharts!$A178+$A$11,IF($C$7,8,0),1,1) -> 11.73 | E178: =OFFSET(InputPriceData!D$15,CalculationsAndCharts!$A178+$A$11,IF($C$7,8,0),1,1) -> 11.79 | F178: =OFFSET(InputPriceData!E$15,CalculationsAndCharts!$A178+$A$11,IF($C$7,8,0),1,1) -> 11.66 | G178: =OFFSET(InputPriceData!F$15,CalculationsAndCharts!$A178+$A$11,IF($C$7,8,0),1,1) -> 11.73 | H178: 11.92180306 | I178: 11.7073437 | J178: 0.2144593619 | K178: 0.2876597918 | L178: 0 | M178: 0.13 | N178: 0 | O178: 0.04 | P178: 0.2648202136 | Q178: 0.07154346753 | R178: 0.07758501215 | S178: 27.01586354 | T178: 29.29723948 | U178: 2.281375931 | V178: 56.31310302 | W178: 4.05123463 | X178: 25.58208 | Y178: 11.98142857 | Z178: FALSE | AA178: TRUE | AB178: FALSE | AC178: FALSE | AD178: 0 | AE178: 12.3 | AF178: 0 | AG178: 0 | AH178: 11.72666667 | AI178: 11.96666667 | AJ178: 0.140952381 | AK178: -113.5135135 | AL178: 0 | AM178: -113.5135135 | AO178: 15842400
A179: 147 | B179: =OFFSET(InputPriceData!B$15,CalculationsAndCharts!$A179+$A$11,0,1,1) -> 2016-06-13 | C179: =OFFSET(InputPriceData!G$15,CalculationsAndCharts!$A179+$A$11,IF($C$7,8,0),1,1) -> 18163900 | D179: =OFFSET(InputPriceData!C$15,CalculationsAndCharts!$A179+$A$11,IF($C$7,8,0),1,1) -> 11.71 | E179: =OFFSET(InputPriceData!D$15,CalculationsAndCharts!$A179+$A$11,IF($C$7,8,0),1,1) -> 11.94 | F179: =OFFSET(InputPriceData!E$15,CalculationsAndCharts!$A179+$A$11,IF($C$7,8,0),1,1) -> 11.7 | G179: =OFFSET(InputPriceData!F$15,CalculationsAndCharts!$A179+$A$11,IF($C$7,8,0),1,1) -> 11.76 | H179: 11.95667634 | I179: 11.7055312 | J179: 0.2511451498 | K179: 0.3059598993 | L179: 0 | M179: 0.24 | N179: 0 | O179: 0.13 | P179: 0.2798002373 | Q179: 0.0794927417 | R179: 0.08176112461 | S179: 28.41053406 | T179: 29.2212492 | U179: 0.8107151462 | V179: 57.63178326 | W179: 1.406715358 | X179: 27.9744 | Y179: 11.98785714 | Z179: FALSE | AA179: TRUE | AB179: FALSE | AC179: FALSE | AD179: 0 | AE179: 12.3 | AF179: 0 | AG179: 0 | AH179: 11.8 | AI179: 11.9702381 | AJ179: 0.1384013605 | AK179: -82.00212993 | AL179: 0 | AM179: -82.00212993 | AO179: 18163900
A180: 148 | B180: =OFFSET(InputPriceData!B$15,CalculationsAndCharts!$A180+$A$11,0,1,1) -> 2016-06-10 | C180: =OFFSET(InputPriceData!G$15,CalculationsAndCharts!$A180+$A$11,IF($C$7,8,0),1,1) -> 21021400 | D180: =OFFSET(InputPriceData!C$15,CalculationsAndCharts!$A180+$A$11,IF($C$7,8,0),1,1) -> 12.02 | E180: =OFFSET(InputPriceData!D$15,CalculationsAndCharts!$A180+$A$11,IF($C$7,8,0),1,1) -> 12.1 | F180: =OFFSET(InputPriceData!E$15,CalculationsAndCharts!$A180+$A$11,IF($C$7,8,0),1,1) -> 11.83 | G180: =OFFSET(InputPriceData!F$15,CalculationsAndCharts!$A180+$A$11,IF($C$7,8,0),1,1) -> 11.87 | H180: 11.99243568 | I180: 11.70117369 | J180: 0.2912619896 | K180: 0.3196635867 | L180: 0 | M180: 0.42 | N180: 0 | O180: 0.36 | P180: 0.2842224859 | Q180: 0.08832526856 | R180: 0.07640124956 | S180: 31.07610163 | T180: 26.88079 | U180: 4.195311627 | V180: 57.95689163 | W180: 7.238676039 | X180: 30.92636 | Y180: 11.98071429 | Z180: FALSE | AA180: TRUE | AB180: FALSE | AC180: FALSE | AD180: 0 | AE180: 12.3 | AF180: 0 | AG180: 0 | AH180: 11.93333333 | AI180: 11.95690476 | AJ180: 0.1479251701 | AK180: -10.62313175 | AL180: 0 | AM180: -10.62313175 | AP180: 21021400
A181: 149 | B181: =OFFSET(InputPriceData!B$15,CalculationsAndCharts!$A181+$A$11,0,1,1) -> 2016-06-09 | C181: =OFFSET(InputPriceData!G$15,CalculationsAndCharts!$A181+$A$11,IF($C$7,8,0),1,1) -> 18027700 | D181: =OFFSET(InputPriceData!C$15,CalculationsAndCharts!$A181+$A$11,IF($C$7,8,0),1,1) -> 12.19 | E181: =OFFSET(InputPriceData!D$15,CalculationsAndCharts!$A181+$A$11,IF($C$7,8,0),1,1) -> 12.32 | F181: =OFFSET(InputPriceData!E$15,CalculationsAndCharts!$A181+$A$11,IF($C$7,8,0),1,1) -> 12.19 | G181: =OFFSET(InputPriceData!F$15,CalculationsAndCharts!$A181+$A$11,IF($C$7,8,0),1,1) -> 12.25 | H181: 12.01469671 | I181: 11.68766759 | J181: 0.3270291271 | K181: 0.326763986 | L181: 0 | M181: 0.24 | N181: 0 | O181: 0.09 | P181: 0.2691360954 | Q181: 0.09813918729 | R181: 0.04489027729 | S181: 36.46452072 | T181: 16.6793968 | U181: 19.78512392 | V181: 53.14391753 | W181: 37.22932904 | X181: 33.55833 | Y181: 11.97214286 | Z181: FALSE | AA181: FALSE | AB181: TRUE | AC181: FALSE | AD181: 0 | AE181: 0 | AF181: 12.3 | AG181: 0 | AH181: 12.25333333 | AI181: 11.94309524 | AJ181: 0.1597278912 | AK181: 129.4860875 | AL181: 129.4860875 | AM181: 0 | AO181: 18027700
A182: 150 | B182: =OFFSET(InputPriceData!B$15,CalculationsAndCharts!$A182+$A$11,0,1,1) -> 2016-06-08 | C182: =OFFSET(InputPriceData!G$15,CalculationsAndCharts!$A182+$A$11,IF($C$7,8,0),1,1) -> 26500300 | D182: =OFFSET(InputPriceData!C$15,CalculationsAndCharts!$A182+$A$11,IF($C$7,8,0),1,1) -> 12.34 | E182: =OFFSET(InputPriceData!D$15,CalculationsAndCharts!$A182+$A$11,IF($C$7,8,0),1,1) -> 12.45 | F182: =OFFSET(InputPriceData!E$15,CalculationsAndCharts!$A182+$A$11,IF($C$7,8,0),1,1) -> 12.28 | G182: =OFFSET(InputPriceData!F$15,CalculationsAndCharts!$A182+$A$11,IF($C$7,8,0),1,1) -> 12.43 | H182: 11.9719143 | I182: 11.64268099 | J182: 0.3292333044 | K182: 0.3266977007 | L182: 0 | M182: 0.23 | N182: 0.21 | O182: 0 | P182: 0.2723734394 | Q182: 0.1090435414 | R182: 0.03987808588 | S182: 40.03457227 | T182: 14.64095984 | U182: 25.39361243 | V182: 54.67553212 | W182: 46.44419807 | X182: 33.15044 | Y182: 11.93928571 | Z182: TRUE | AA182: FALSE | AB182: FALSE | AC182: FALSE | AD182: 12.3 | AE182: 0 | AF182: 0 | AG182: 0 | AH182: 12.38666667 | AI182: 11.90190476 | AJ182: 0.1533333333 | AK182: 210.7660455 | AL182: 210.7660455 | AM182: 0 | AO182: 26500300
A183: 151 | B183: =OFFSET(InputPriceData!B$15,CalculationsAndCharts!$A183+$A$11,0,1,1) -> 2016-06-07 | C183: =OFFSET(InputPriceData!G$15,CalculationsAndCharts!$A183+$A$11,IF($C$7,8,0),1,1) -> 18247700 | D183: =OFFSET(InputPriceData!C$15,CalculationsAndCharts!$A183+$A$11,IF($C$7,8,0),1,1) -> 12.1 | E183: =OFFSET(InputPriceData!D$15,CalculationsAndCharts!$A183+$A$11,IF($C$7,8,0),1,1) -> 12.24 | F183: =OFFSET(InputPriceData!E$15,CalculationsAndCharts!$A183+$A$11,IF($C$7,8,0),1,1) -> 12.07 | G183: =OFFSET(InputPriceData!F$15,CalculationsAndCharts!$A183+$A$11,IF($C$7,8,0),1,1) -> 12.22 | H183: 11.88862599 | I183: 11.57969547 | J183: 0.3089305154 | K183: 0.3260637998 | L183: 0 | M183: 0.2 | N183: 0.16 | O183: 0 | P183: 0.2770815993 | Q183: 0.09782615715 | R183: 0.04430898431 | S183: 35.30590173 | T183: 15.99131246 | U183: 19.31458927 | V183: 51.29721419 | W183: 37.65231616 | X183: 31.67336 | Y183: 11.88714286 | Z183: TRUE | AA183: FALSE | AB183: FALSE | AC183: FALSE | AD183: 12.3 | AE183: 0 | AF183: 0 | AG183: 0 | AH183: 12.17666667 | AI183: 11.86 | AJ183: 0.12 | AK183: 175.9259259 | AL183: 175.9259259 | AM183: 0 | AO183: 18247700
A184: 152 | B184: =OFFSET(InputPriceData!B$15,CalculationsAndCharts!$A184+$A$11,0,1,1) -> 2016-06-06 | C184: =OFFSET(InputPriceData!G$15,CalculationsAndCharts!$A184+$A$11,IF($C$7,8,0),1,1) -> 23410200 | D184: =OFFSET(InputPriceData!C$15,CalculationsAndCharts!$A184+$A$11,IF($C$7,8,0),1,1) -> 12.01 | E184: =OFFSET(InputPriceData!D$15,CalculationsAndCharts!$A184+$A$11,IF($C$7,8,0),1,1) -> 12.08 | F184: =OFFSET(InputPriceData!E$15,CalculationsAndCharts!$A184+$A$11,IF($C$7,8,0),1,1) -> 11.9 | G184: =OFFSET(InputPriceData!F$15,CalculationsAndCharts!$A184+$A$11,IF($C$7,8,0),1,1) -> 12.04 | H184: 11.82837617 | I184: 11.52847111 | J184: 0.2999050571 | K184: 0.3303471209 | L184: 0 | M184: 0.26 | N184: 0.19 | O184: 0 | P184: 0.2856462214 | Q184: 0.09091795239 | R184: 0.04923220479 | S184: 31.82886577 | T184: 17.23537758 | U184: 14.59348819 | V184: 49.06424334 | W184: 29.74363243 | X184: 31.00903 | Y184: 11.86571429 | Z184: FALSE | AA184: TRUE | AB184: FALSE | AC184: FALSE | AD184: 0 | AE184: 12.3 | AF184: 0 | AG184: 0 | AH184: 12.00666667 | AI184: 11.83690476 | AJ184: 0.09360544218 | AK184: 120.9060078 | AL184: 120.9060078 | AM184: 0 | AO184: 23410200
A185: 153 | B185: =OFFSET(InputPriceData!B$15,CalculationsAndCharts!$A185+$A$11,0,1,1) -> 2016-06-03 | C185: =OFFSET(InputPriceData!G$15,CalculationsAndCharts!$A185+$A$11,IF($C$7,8,0),1,1) -> 19169900 | D185: =OFFSET(InputPriceData!C$15,CalculationsAndCharts!$A185+$A$11,IF($C$7,8,0),1,1) -> 11.89 | E185: =OFFSET(InputPriceData!D$15,CalculationsAndCharts!$A185+$A$11,IF($C$7,8,0),1,1) -> 11.89 | F185: =OFFSET(InputPriceData!E$15,CalculationsAndCharts!$A185+$A$11,IF($C$7,8,0),1,1) -> 11.7 | G185: =OFFSET(InputPriceData!F$15,CalculationsAndCharts!$A185+$A$11,IF($C$7,8,0),1,1) -> 11.82 | H185: 11.78989911 | I185: 11.4875488 | J185: 0.3023503078 | K185: 0.3379576368 | L185: 0 | M185: 0.19 | N185: 0 | O185: 0 | P185: 0.2884958016 | Q185: 0.07990883599 | R185: 0.05470244977 | S185: 27.69843982 | T185: 18.96126372 | U185: 8.737176097 | V185: 46.65970354 | W185: 18.72531421 | X185: 31.14963 | Y185: 11.84571429 | Z185: FALSE | AA185: TRUE | AB185: FALSE | AC185: FALSE | AD185: 0 | AE185: 12.3 | AF185: 0 | AG185: 0 | AH185: 11.80333333 | AI185: 11.81690476 | AJ185: 0.08455782313 | AK185: -10.69991955 | AL185: 0 | AM185: -10.69991955 | AP185: 19169900
A186: 154 | B186: =OFFSET(InputPriceData!B$15,CalculationsAndCharts!$A186+$A$11,0,1,1) -> 2016-06-02 | C186: =OFFSET(InputPriceData!G$15,CalculationsAndCharts!$A186+$A$11,IF($C$7,8,0),1,1) -> 22253200 | D186: =OFFSET(InputPriceData!C$15,CalculationsAndCharts!$A186+$A$11,IF($C$7,8,0),1,1) -> 11.67 | E186: =OFFSET(InputPriceData!D$15,CalculationsAndCharts!$A186+$A$11,IF($C$7,8,0),1,1) -> 11.96 | F186: =OFFSET(InputPriceData!E$15,CalculationsAndCharts!$A186+$A$11,IF($C$7,8,0),1,1) -> 11.65 | G186: =OFFSET(InputPriceData!F$15,CalculationsAndCharts!$A186+$A$11,IF($C$7,8,0),1,1) -> 11.86 | H186: 11.78442622 | I186: 11.4609527 | J186: 0.3234735142 | K186: 0.3468594691 | L186: 0 | M186: 0.31 | N186: 0.03 | O186: 0 | P186: 0.2994397795 | Q186: 0.08878759554 | R186: 0.06078049974 | S186: 29.65123594 | T186: 20.29807123 | U186: 9.353164713 | V186: 49.94930717 | W186: 18.72531421 | X186: 32.53011 | Y186: 11.81357143 | Z186: FALSE | AA186: TRUE | AB186: FALSE | AC186: FALSE | AD186: 0 | AE186: 12.3 | AF186: 0 | AG186: 0 | AH186: 11.82333333 | AI186: 11.785 | AJ186: 0.1171428571 | AK186: 21.81571816 | AL186: 21.81571816 | AM186: 0 | AO186: 22253200
A187: 155 | B187: =OFFSET(InputPriceData!B$15,CalculationsAndCharts!$A187+$A$11,0,1,1) -> 2016-06-01 | C187: =OFFSET(InputPriceData!G$15,CalculationsAndCharts!$A187+$A$11,IF($C$7,8,0),1,1) -> 25553100 | D187: =OFFSET(InputPriceData!C$15,CalculationsAndCharts!$A187+$A$11,IF($C$7,8,0),1,1) -> 11.62 | E187: =OFFSET(InputPriceData!D$15,CalculationsAndCharts!$A187+$A$11,IF($C$7,8,0),1,1) -> 11.93 | F187: =OFFSET(InputPriceData!E$15,CalculationsAndCharts!$A187+$A$11,IF($C$7,8,0),1,1) -> 11.56 | G187: =OFFSET(InputPriceData!F$15,CalculationsAndCharts!$A187+$A$11,IF($C$7,8,0),1,1) -> 11.93 | H187: 11.77068553 | I187: 11.42902892 | J187: 0.3416566101 | K187: 0.3527059578 | L187: 0 | M187: 0.37 | N187: 0 | O187: 0.26 | P187: 0.2982664217 | Q187: 0.0953195506 | R187: 0.0675338886 | S187: 31.95785501 | T187: 22.64213592 | U187: 9.315719093 | V187: 54.59999093 | W187: 17.06175941 | X187: 34.06398 | Y187: 11.78428571 | Z187: FALSE | AA187: TRUE | AB187: FALSE | AC187: FALSE | AD187: 0 | AE187: 12.3 | AF187: 0 | AG187: 0 | AH187: 11.80666667 | AI187: 11.7547619 | AJ187: 0.1450340136 | AK187: 23.85866166 | AL187: 23.85866166 | AM187: 0 | AO187: 25553100
A188: 156 | B188: =OFFSET(InputPriceData!B$15,CalculationsAndCharts!$A188+$A$11,0,1,1) -> 2016-05-31 | C188: =OFFSET(InputPriceData!G$15,CalculationsAndCharts!$A188+$A$11,IF($C$7,8,0),1,1) -> 16850700 | D188: =OFFSET(InputPriceData!C$15,CalculationsAndCharts!$A188+$A$11,IF($C$7,8,0),1,1) -> 11.98 | E188: =OFFSET(InputPriceData!D$15,CalculationsAndCharts!$A188+$A$11,IF($C$7,8,0),1,1) -> 12.13 | F188: =OFFSET(InputPriceData!E$15,CalculationsAndCharts!$A188+$A$11,IF($C$7,8,0),1,1) -> 11.82 | G188: =OFFSET(InputPriceData!F$15,CalculationsAndCharts!$A188+$A$11,IF($C$7,8,0),1,1) -> 11.87 | H188: 11.74171926 | I188: 11.38895123 | J188: 0.3527680292 | K188: 0.3554682947 | L188: 0 | M188: 0.31 | N188: 0.14 | O188: 0 | P188: 0.2902960241 | Q188: 0.1059106118 | R188: 0.04614876511 | S188: 36.48365909 | T188: 15.89713991 | U188: 20.58651917 | V188: 52.380799 | W188: 39.30165169 | X188: 35.95312 | Y188: 11.74214286 | Z188: FALSE | AA188: FALSE | AB188: TRUE | AC188: FALSE | AD188: 0 | AE188: 0 | AF188: 12.3 | AG188: 0 | AH188: 11.94 | AI188: 11.71166667 | AJ188: 0.1869047619 | AK188: 81.44373673 | AL188: 81.44373673 | AM188: 0 | AP188: 16850700
A189: 157 | B189: =OFFSET(InputPriceData!B$15,CalculationsAndCharts!$A189+$A$11,0,1,1) -> 2016-05-27 | C189: =OFFSET(InputPriceData!G$15,CalculationsAndCharts!$A189+$A$11,IF($C$7,8,0),1,1) -> 14089100 | D189: =OFFSET(InputPriceData!C$15,CalculationsAndCharts!$A189+$A$11,IF($C$7,8,0),1,1) -> 11.84 | E189: =OFFSET(InputPriceData!D$15,CalculationsAndCharts!$A189+$A$11,IF($C$7,8,0),1,1) -> 11.99 | F189: =OFFSET(InputPriceData!E$15,CalculationsAndCharts!$A189+$A$11,IF($C$7,8,0),1,1) -> 11.8 | G189: =OFFSET(InputPriceData!F$15,CalculationsAndCharts!$A189+$A$11,IF($C$7,8,0),1,1) -> 11.98 | H189: 11.71839549 | I189: 11.35046733 | J189: 0.36792816 | K189: 0.3561433611 | L189: 0 | M189: 0.19 | N189: 0 | O189: 0.12 | P189: 0.2881066935 | Q189: 0.102122902 | R189: 0.05127640568 | S189: 35.44620944 | T189: 17.79771413 | U189: 17.64849531 | V189: 53.24392357 | W189: 33.1464966 | X189: 35.58106 | Y189: 11.67928571 | Z189: FALSE | AA189: TRUE | AB189: FALSE | AC189: FALSE | AD189: 0 | AE189: 12.3 | AF189: 0 | AG189: 0 | AH189: 11.92333333 | AI189: 11.63809524 | AJ189: 0.243877551 | AK189: 77.9730358 | AL189: 77.9730358 | AM189: 0 | AO189: 14089100
A190: 158 | B190: =OFFSET(InputPriceData!B$15,CalculationsAndCharts!$A190+$A$11,0,1,1) -> 2016-05-26 | C190: =OFFSET(InputPriceData!G$15,CalculationsAndCharts!$A190+$A$11,IF($C$7,8,0),1,1) -> 21603300 | D190: =OFFSET(InputPriceData!C$15,CalculationsAndCharts!$A190+$A$11,IF($C$7,8,0),1,1) -> 12.11 | E190: =OFFSET(InputPriceData!D$15,CalculationsAndCharts!$A190+$A$11,IF($C$7,8,0),1,1) -> 12.12 | F190: =OFFSET(InputPriceData!E$15,CalculationsAndCharts!$A190+$A$11,IF($C$7,8,0),1,1) -> 11.92 | G190: =OFFSET(InputPriceData!F$15,CalculationsAndCharts!$A190+$A$11,IF($C$7,8,0),1,1) -> 11.95 | H190: 11.67083103 | I190: 11.30010472 | J190: 0.3707263173 | K190: 0.3531971614 | L190: 0 | M190: 0.2 | N190: 0.07 | O190: 0 | P190: 0.2990074372 | Q190: 0.1134698911 | R190: 0.04364045076 | S190: 37.94885243 | T190: 14.59510545 | U190: 23.35374698 | V190: 52.54395788 | W190: 44.44611316 | X190: 35.85157 | Y190: 11.58642857 | Z190: FALSE | AA190: FALSE | AB190: TRUE | AC190: FALSE | AD190: 0 | AE190: 0 | AF190: 12.3 | AG190: 0 | AH190: 11.99666667 | AI190: 11.55380952 | AJ190: 0.3079591837 | AK190: 95.86922907 | AL190: 95.86922907 | AM190: 0 | AP190: 21603300
A191: 159 | B191: =OFFSET(InputPriceData!B$15,CalculationsAndCharts!$A191+$A$11,0,1,1) -> 2016-05-25 | C191: =OFFSET(InputPriceData!G$15,CalculationsAndCharts!$A191+$A$11,IF($C$7,8,0),1,1) -> 24984100 | D191: =OFFSET(InputPriceData!C$15,CalculationsAndCharts!$A191+$A$11,IF($C$7,8,0),1,1) -> 11.92 | E191: =OFFSET(InputPriceData!D$15,CalculationsAndCharts!$A191+$A$11,IF($C$7,8,0),1,1) -> 12.05 | F191: =OFFSET(InputPriceData!E$15,CalculationsAndCharts!$A191+$A$11,IF($C$7,8,0),1,1) -> 11.79 | G191: =OFFSET(InputPriceData!F$15,CalculationsAndCharts!$A191+$A$11,IF($C$7,8,0),1,1) -> 12.03 | H191: 11.62007304 | I191: 11.24811309 | J191: 0.3719599462 | K191: 0.3488148725 | L191: 0 | M191: 0.26 | N191: 0.2 | O191: 0 | P191: 0.3100082635 | Q191: 0.118299879 | R191: 0.04848938973 | S191: 38.16023406 | T191: 15.64132168 | U191: 22.51891238 | V191: 53.80155574 | W191: 41.85550413 | X191: 34.89662 | Y191: 11.51571429 | Z191: TRUE | AA191: FALSE | AB191: FALSE | AC191: FALSE | AD191: 12.3 | AE191: 0 | AF191: 0 | AG191: 0 | AH191: 11.95666667 | AI191: 11.48 | AJ191: 0.329047619 | AK191: 96.57501206 | AL191: 96.57501206 | AM191: 0 | AO191: 24984100
A192: 160 | B192: =OFFSET(InputPriceData!B$15,CalculationsAndCharts!$A192+$A$11,0,1,1) -> 2016-05-24 | C192: =OFFSET(InputPriceData!G$15,CalculationsAndCharts!$A192+$A$11,IF($C$7,8,0),1,1) -> 17092900 | D192: =OFFSET(InputPriceData!C$15,CalculationsAndCharts!$A192+$A$11,IF($C$7,8,0),1,1) -> 11.67 | E192: =OFFSET(InputPriceData!D$15,CalculationsAndCharts!$A192+$A$11,IF($C$7,8,0),1,1) -> 11.85 | F192: =OFFSET(InputPriceData!E$15,CalculationsAndCharts!$A192+$A$11,IF($C$7,8,0),1,1) -> 11.66 | G192: =OFFSET(InputPriceData!F$15,CalculationsAndCharts!$A192+$A$11,IF($C$7,8,0),1,1) -> 11.82 | H192: 11.54554087 | I192: 11.18556214 | J192: 0.3599787243 | K192: 0.343028604 | L192: 0 | M192: 0.19 | N192: 0.16 | O192: 0 | P192: 0.3155647373 | Q192: 0.1092220878 | R192: 0.0538770997 | S192: 34.61162635 | T192: 17.073232 | U192: 17.53839435 | V192: 51.68485835 | W192: 33.93333156 | X192: 34.12341 | Y192: 11.435 | Z192: FALSE | AA192: TRUE | AB192: FALSE | AC192: FALSE | AD192: 0 | AE192: 12.3 | AF192: 0 | AG192: 0 | AH192: 11.77666667 | AI192: 11.41047619 | AJ192: 0.3304761905 | AK192: 73.87127762 | AL192: 73.87127762 | AM192: 0 | AO192: 17092900
A193: 161 | B193: =OFFSET(InputPriceData!B$15,CalculationsAndCharts!$A193+$A$11,0,1,1) -> 2016-05-23 | C193: =OFFSET(InputPriceData!G$15,CalculationsAndCharts!$A193+$A$11,IF($C$7,8,0),1,1) -> 15395600 | D193: =OFFSET(InputPriceData!C$15,CalculationsAndCharts!$A193+$A$11,IF($C$7,8,0),1,1) -> 11.51 | E193: =OFFSET(InputPriceData!D$15,CalculationsAndCharts!$A193+$A$11,IF($C$7,8,0),1,1) -> 11.69 | F193: =OFFSET(InputPriceData!E$15,CalculationsAndCharts!$A193+$A$11,IF($C$7,8,0),1,1) -> 11.49 | G193: =OFFSET(InputPriceData!F$15,CalculationsAndCharts!$A193+$A$11,IF($C$7,8,0),1,1) -> 11.66 | H193: 11.49563921 | I193: 11.13480711 | J193: 0.3608320923 | K193: 0.3387910739 | L193: 0 | M193: 0.26 | N193: 0 | O193: 0.12 | P193: 0.3295163747 | Q193: 0.1035800975 | R193: 0.05986344411 | S193: 31.43397581 | T193: 18.16706201 | U193: 13.2669138 | V193: 49.60103781 | W193: 26.74725043 | X193: 34.14453 | Y193: 11.36142857 | Z193: FALSE | AA193: TRUE | AB193: FALSE | AC193: FALSE | AD193: 0 | AE193: 12.3 | AF193: 0 | AG193: 0 | AH193: 11.61333333 | AI193: 11.34214286 | AJ193: 0.3470748299 | AK193: 52.09068339 | AL193: 52.09068339 | AM193: 0 | AO193: 15395600
A194: 162 | B194: =OFFSET(InputPriceData!B$15,CalculationsAndCharts!$A194+$A$11,0,1,1) -> 2016-05-20 | C194: =OFFSET(InputPriceData!G$15,CalculationsAndCharts!$A194+$A$11,IF($C$7,8,0),1,1) -> 19220000 | D194: =OFFSET(InputPriceData!C$15,CalculationsAndCharts!$A194+$A$11,IF($C$7,8,0),1,1) -> 11.79 | E194: =OFFSET(InputPriceData!D$15,CalculationsAndCharts!$A194+$A$11,IF($C$7,8,0),1,1) -> 11.86 | F194: =OFFSET(InputPriceData!E$15,CalculationsAndCharts!$A194+$A$11,IF($C$7,8,0),1,1) -> 11.61 | G194: =OFFSET(InputPriceData!F$15,CalculationsAndCharts!$A194+$A$11,IF($C$7,8,0),1,1) -> 11.75 | H194: 11.46575543 | I194: 11.09279168 | J194: 0.3729637425 | K194: 0.3332808193 | L194: 0 | M194: 0.25 | N194: 0.06 | O194: 0 | P194: 0.3372404164 | Q194: 0.1150889972 | R194: 0.05318160457 | S194: 34.12669171 | T194: 15.76964148 | U194: 18.35705024 | V194: 49.89633319 | W194: 36.7903793 | X194: 34.96645 | Y194: 11.29571429 | Z194: FALSE | AA194: FALSE | AB194: TRUE | AC194: FALSE | AD194: 0 | AE194: 0 | AF194: 12.3 | AG194: 0 | AH194: 11.74 | AI194: 11.28119048 | AJ194: 0.3692857143 | AK194: 82.82828283 | AL194: 82.82828283 | AM194: 0 | AP194: 19220000
A195: 163 | B195: =OFFSET(InputPriceData!B$15,CalculationsAndCharts!$A195+$A$11,0,1,1) -> 2016-05-19 | C195: =OFFSET(InputPriceData!G$15,CalculationsAndCharts!$A195+$A$11,IF($C$7,8,0),1,1) -> 21902500 | D195: =OFFSET(InputPriceData!C$15,CalculationsAndCharts!$A195+$A$11,IF($C$7,8,0),1,1) -> 11.58 | E195: =OFFSET(InputPriceData!D$15,CalculationsAndCharts!$A195+$A$11,IF($C$7,8,0),1,1) -> 11.8 | F195: =OFFSET(InputPriceData!E$15,CalculationsAndCharts!$A195+$A$11,IF($C$7,8,0),1,1) -> 11.44 | G195: =OFFSET(InputPriceData!F$15,CalculationsAndCharts!$A195+$A$11,IF($C$7,8,0),1,1) -> 11.79 | H195: 11.41407459 | I195: 11.04021502 | J195: 0.3738595761 | K195: 0.3233600885 | L195: 0 | M195: 0.36 | N195: 0 | O195: 0.26 | P195: 0.346933796 | Q195: 0.1212099969 | R195: 0.05909067175 | S195: 34.93750056 | T195: 17.03226161 | U195: 17.90523895 | V195: 51.96976218 | W195: 34.45318624 | X195: 34.76379 | Y195: 11.24571429 | Z195: FALSE | AA195: FALSE | AB195: FALSE | AC195: TRUE | AD195: 0 | AE195: 0 | AF195: 0 | AG195: 12.3 | AH195: 11.67666667 | AI195: 11.23428571 | AJ195: 0.3439455782 | AK195: 85.74630802 | AL195: 85.74630802 | AM195: 0 | AO195: 21902500
A196: 164 | B196: =OFFSET(InputPriceData!B$15,CalculationsAndCharts!$A196+$A$11,0,1,1) -> 2016-05-18 | C196: =OFFSET(InputPriceData!G$15,CalculationsAndCharts!$A196+$A$11,IF($C$7,8,0),1,1) -> 29425500 | D196: =OFFSET(InputPriceData!C$15,CalculationsAndCharts!$A196+$A$11,IF($C$7,8,0),1,1) -> 11.85 | E196: =OFFSET(InputPriceData!D$15,CalculationsAndCharts!$A196+$A$11,IF($C$7,8,0),1,1) -> 12 | F196: =OFFSET(InputPriceData!E$15,CalculationsAndCharts!$A196+$A$11,IF($C$7,8,0),1,1) -> 11.7 | G196: =OFFSET(InputPriceData!F$15,CalculationsAndCharts!$A196+$A$11,IF($C$7,8,0),1,1) -> 11.7 | H196: 11.34572452 | I196: 10.98023222 | J196: 0.3654923009 | K196: 0.3107352166 | L196: 0 | M196: 0.3 | N196: 0.07 | O196: 0 | P196: 0.3454819955 | Q196: 0.1346777744 | R196: 0.03676741305 | S196: 38.98257394 | T196: 10.64235287 | U196: 28.34022108 | V196: 49.62492681 | W196: 57.10884207 | X196: 34.7983 | Y196: 11.21071429 | Z196: TRUE | AA196: FALSE | AB196: FALSE | AC196: FALSE | AD196: 12.3 | AE196: 0 | AF196: 0 | AG196: 0 | AH196: 11.8 | AI196: 11.20785714 | AJ196: 0.3137414966 | AK196: 125.8239376 | AL196: 125.8239376 | AM196: 0 | AP196: 29425500
A197: 165 | B197: =OFFSET(InputPriceData!B$15,CalculationsAndCharts!$A197+$A$11,0,1,1) -> 2016-05-17 | C197: =OFFSET(InputPriceData!G$15,CalculationsAndCharts!$A197+$A$11,IF($C$7,8,0),1,1) -> 22310900 | D197: =OFFSET(InputPriceData!C$15,CalculationsAndCharts!$A197+$A$11,IF($C$7,8,0),1,1) -> 11.75 | E197: =OFFSET(InputPriceData!D$15,CalculationsAndCharts!$A197+$A$11,IF($C$7,8,0),1,1) -> 11.93 | F197: =OFFSET(InputPriceData!E$15,CalculationsAndCharts!$A197+$A$11,IF($C$7,8,0),1,1) -> 11.71 | G197: =OFFSET(InputPriceData!F$15,CalculationsAndCharts!$A197+$A$11,IF($C$7,8,0),1,1) -> 11.92 | H197: 11.2813108 | I197: 10.9226508 | J197: 0.3586599997 | K197: 0.2970459456 | L197: 0 | M197: 0.22 | N197: 0.14 | O197: 0 | P197: 0.3505355506 | Q197: 0.1418641937 | R197: 0.04085268117 | S197: 40.47070076 | T197: 11.65436176 | U197: 28.816339 | V197: 52.12506252 | W197: 55.28307805 | X197: 32.31935 | Y197: 11.17642857 | Z197: TRUE | AA197: FALSE | AB197: FALSE | AC197: FALSE | AD197: 12.3 | AE197: 0 | AF197: 0 | AG197: 0 | AH197: 11.85333333 | AI197: 11.16642857 | AJ197: 0.2716666667 | AK197: 168.5655857 | AL197: 168.5655857 | AM197: 0 | AO197: 22310900
A198: 166 | B198: =OFFSET(InputPriceData!B$15,CalculationsAndCharts!$A198+$A$11,0,1,1) -> 2016-05-16 | C198: =OFFSET(InputPriceData!G$15,CalculationsAndCharts!$A198+$A$11,IF($C$7,8,0),1,1) -> 26713400 | D198: =OFFSET(InputPriceData!C$15,CalculationsAndCharts!$A198+$A$11,IF($C$7,8,0),1,1) -> 11.68 | E198: =OFFSET(InputPriceData!D$15,CalculationsAndCharts!$A198+$A$11,IF($C$7,8,0),1,1) -> 11.79 | F198: =OFFSET(InputPriceData!E$15,CalculationsAndCharts!$A198+$A$11,IF($C$7,8,0),1,1) -> 11.63 | G198: =OFFSET(InputPriceData!F$15,CalculationsAndCharts!$A198+$A$11,IF($C$7,8,0),1,1) -> 11.76 | H198: 11.16518549 | I198: 10.84286286 | J198: 0.3223226262 | K198: 0.2816424321 | L198: 0 | M198: 0.42 | N198: 0.36 | O198: 0 | P198: 0.3650395006 | Q198: 0.1420713264 | R198: 0.04539186796 | S198: 38.91943916 | T198: 12.43478251 | U198: 26.48465666 | V198: 51.35422167 | W198: 51.57250134 | X198: 29.76783 | Y198: 11.12071429 | Z198: TRUE | AA198: FALSE | AB198: FALSE | AC198: FALSE | AD198: 12.3 | AE198: 0 | AF198: 0 | AG198: 0 | AH198: 11.72666667 | AI198: 11.10833333 | AJ198: 0.2233333333 | AK198: 184.5771144 | AL198: 184.5771144 | AM198: 0 | AO198: 26713400
A199: 167 | B199: =OFFSET(InputPriceData!B$15,CalculationsAndCharts!$A199+$A$11,0,1,1) -> 2016-05-13 | C199: =OFFSET(InputPriceData!G$15,CalculationsAndCharts!$A199+$A$11,IF($C$7,8,0),1,1) -> 15230000 | D199: =OFFSET(InputPriceData!C$15,CalculationsAndCharts!$A199+$A$11,IF($C$7,8,0),1,1) -> 11.35 | E199: =OFFSET(InputPriceData!D$15,CalculationsAndCharts!$A199+$A$11,IF($C$7,8,0),1,1) -> 11.43 | F199: =OFFSET(InputPriceData!E$15,CalculationsAndCharts!$A199+$A$11,IF($C$7,8,0),1,1) -> 11.27 | G199: =OFFSET(InputPriceData!F$15,CalculationsAndCharts!$A199+$A$11,IF($C$7,8,0),1,1) -> 11.37 | H199: 11.05703739 | I199: 10.76949189 | J199: 0.287545504 | K199: 0.2714723835 | L199: 0 | M199: 0.18 | N199: 0 | O199: 0 | P199: 0.3589327785 | Q199: 0.1178570293 | R199: 0.05043540885 | S199: 32.83540439 | T199: 14.0514915 | U199: 18.78391289 | V199: 46.88689589 | W199: 40.06218057 | X199: 27.34509 | Y199: 11.05285714 | Z199: TRUE | AA199: FALSE | AB199: FALSE | AC199: FALSE | AD199: 12.3 | AE199: 0 | AF199: 0 | AG199: 0 | AH199: 11.35666667 | AI199: 11.0397619 | AJ199: 0.1902380952 | AK199: 111.055486 | AL199: 111.055486 | AM199: 0 | AO199: 15230000
A200: 168 | B200: =OFFSET(InputPriceData!B$15,CalculationsAndCharts!$A200+$A$11,0,1,1) -> 2016-05-12 | C200: =OFFSET(InputPriceData!G$15,CalculationsAndCharts!$A200+$A$11,IF($C$7,8,0),1,1) -> 23946400 | D200: =OFFSET(InputPriceData!C$15,CalculationsAndCharts!$A200+$A$11,IF($C$7,8,0),1,1) -> 11.53 | E200: =OFFSET(InputPriceData!D$15,CalculationsAndCharts!$A200+$A$11,IF($C$7,8,0),1,1) -> 11.53 | F200: =OFFSET(InputPriceData!E$15,CalculationsAndCharts!$A200+$A$11,IF($C$7,8,0),1,1) -> 11.22 | G200: =OFFSET(InputPriceData!F$15,CalculationsAndCharts!$A200+$A$11,IF($C$7,8,0),1,1) -> 11.45 | H200: 11.0001351 | I200: 10.72145124 | J200: 0.2786838607 | K200: 0.2674541034 | L200: 0 | M200: 0.31 | N200: 0.11 | O200: 0 | P200: 0.3788141983 | Q200: 0.1309522548 | R200: 0.05603934316 | S200: 34.56899328 | T200: 14.7933587 | U200: 19.77563458 | V200: 49.36235198 | W200: 40.06218057 | X200: 25.93208 | Y200: 10.99428571 | Z200: TRUE | AA200: FALSE | AB200: FALSE | AC200: FALSE | AD200: 12.3 | AE200: 0 | AF200: 0 | AG200: 0 | AH200: 11.4 | AI200: 10.98642857 | AJ200: 0.1906802721 | AK200: 144.5950767 | AL200: 144.5950767 | AM200: 0 | AP200: 23946400
A201: 169 | B201: =OFFSET(InputPriceData!B$15,CalculationsAndCharts!$A201+$A$11,0,1,1) -> 2016-05-11 | C201: =OFFSET(InputPriceData!G$15,CalculationsAndCharts!$A201+$A$11,IF($C$7,8,0),1,1) -> 29338200 | D201: =OFFSET(InputPriceData!C$15,CalculationsAndCharts!$A201+$A$11,IF($C$7,8,0),1,1) -> 10.91 | E201: =OFFSET(InputPriceData!D$15,CalculationsAndCharts!$A201+$A$11,IF($C$7,8,0),1,1) -> 11.42 | F201: =OFFSET(InputPriceData!E$15,CalculationsAndCharts!$A201+$A$11,IF($C$7,8,0),1,1) -> 10.85 | G201: =OFFSET(InputPriceData!F$15,CalculationsAndCharts!$A201+$A$11,IF($C$7,8,0),1,1) -> 11.34 | H201: 10.91834148 | I201: 10.66316734 | J201: 0.2551741435 | K201: 0.2646466641 | L201: 0 | M201: 0.57 | N201: 0.4 | O201: 0 | P201: 0.3864602203 | Q201: 0.1332802831 | R201: 0.06226593685 | S201: 34.48745202 | T201: 16.11186186 | U201: 18.37559016 | V201: 50.59931388 | W201: 36.31588801 | X201: 24.36207 | Y201: 10.945 | Z201: TRUE | AA201: FALSE | AB201: FALSE | AC201: FALSE | AD201: 12.3 | AE201: 0 | AF201: 0 | AG201: 0 | AH201: 11.20333333 | AI201: 10.94309524 | AJ201: 0.1711904762 | AK201: 101.3444599 | AL201: 101.3444599 | AM201: 0 | AO201: 29338200
A202: 170 | B202: =OFFSET(InputPriceData!B$15,CalculationsAndCharts!$A202+$A$11,0,1,1) -> 2016-05-10 | C202: =OFFSET(InputPriceData!G$15,CalculationsAndCharts!$A202+$A$11,IF($C$7,8,0),1,1) -> 20448300 | D202: =OFFSET(InputPriceData!C$15,CalculationsAndCharts!$A202+$A$11,IF($C$7,8,0),1,1) -> 10.75 | E202: =OFFSET(InputPriceData!D$15,CalculationsAndCharts!$A202+$A$11,IF($C$7,8,0),1,1) -> 11.02 | F202: =OFFSET(InputPriceData!E$15,CalculationsAndCharts!$A202+$A$11,IF($C$7,8,0),1,1) -> 10.72 | G202: =OFFSET(InputPriceData!F$15,CalculationsAndCharts!$A202+$A$11,IF($C$7,8,0),1,1) -> 10.99 | H202: 10.8416763 | I202: 10.60902073 | J202: 0.2326555714 | K202: 0.2670147942 | L202: 0 | M202: 0.34 | N202: 0.11 | O202: 0 | P202: 0.3660669115 | Q202: 0.103644759 | R202: 0.06918437428 | S202: 28.31306401 | T202: 18.89937935 | U202: 9.413684663 | V202: 47.21244336 | W202: 19.93899064 | X202: 23.03387 | Y202: 10.90071429 | Z202: FALSE | AA202: TRUE | AB202: FALSE | AC202: FALSE | AD202: 0 | AE202: 12.3 | AF202: 0 | AG202: 0 | AH202: 10.91 | AI202: 10.90761905 | AJ202: 0.1647619048 | AK202: 0.9633911368 | AL202: 0.9633911368 | AM202: 0 | AO202: 20448300
A203: 171 | B203: =OFFSET(InputPriceData!B$15,CalculationsAndCharts!$A203+$A$11,0,1,1) -> 2016-05-09 | C203: =OFFSET(InputPriceData!G$15,CalculationsAndCharts!$A203+$A$11,IF($C$7,8,0),1,1) -> 22143100 | D203: =OFFSET(InputPriceData!C$15,CalculationsAndCharts!$A203+$A$11,IF($C$7,8,0),1,1) -> 10.86 | E203: =OFFSET(InputPriceData!D$15,CalculationsAndCharts!$A203+$A$11,IF($C$7,8,0),1,1) -> 10.91 | F203: =OFFSET(InputPriceData!E$15,CalculationsAndCharts!$A203+$A$11,IF($C$7,8,0),1,1) -> 10.64 | G203: =OFFSET(InputPriceData!F$15,CalculationsAndCharts!$A203+$A$11,IF($C$7,8,0),1,1) -> 10.68 | H203: 10.81470835 | I203: 10.57854238 | J203: 0.2361659674 | K203: 0.2756045999 | L203: 0 | M203: 0.32 | N203: 0 | O203: 0.14 | P203: 0.368963235 | Q203: 0.1029386211 | R203: 0.07687152698 | S203: 27.89942502 | T203: 20.83446796 | U203: 7.064957058 | V203: 48.73389298 | W203: 14.49700943 | X203: 23.37775 | Y203: 10.88428571 | Z203: FALSE | AA203: TRUE | AB203: FALSE | AC203: FALSE | AD203: 0 | AE203: 12.3 | AF203: 0 | AG203: 0 | AH203: 10.74333333 | AI203: 10.88642857 | AJ203: 0.182585034 | AK203: -52.24788872 | AL203: 0 | AM203: -52.24788872 | AP203: 22143100
A204: 172 | B204: =OFFSET(InputPriceData!B$15,CalculationsAndCharts!$A204+$A$11,0,1,1) -> 2016-05-06 | C204: =OFFSET(InputPriceData!G$15,CalculationsAndCharts!$A204+$A$11,IF($C$7,8,0),1,1) -> 26396700 | D204: =OFFSET(InputPriceData!C$15,CalculationsAndCharts!$A204+$A$11,IF($C$7,8,0),1,1) -> 10.81 | E204: =OFFSET(InputPriceData!D$15,CalculationsAndCharts!$A204+$A$11,IF($C$7,8,0),1,1) -> 11.15 | F204: =OFFSET(InputPriceData!E$15,CalculationsAndCharts!$A204+$A$11,IF($C$7,8,0),1,1) -> 10.78 | G204: =OFFSET(InputPriceData!F$15,CalculationsAndCharts!$A204+$A$11,IF($C$7,8,0),1,1) -> 10.96 | H204: 10.83920078 | I204: 10.57042578 | J204: 0.2687750043 | K204: 0.285464258 | L204: 0 | M204: 0.37 | N204: 0 | O204: 0.03 | P204: 0.3744035944 | Q204: 0.1143762457 | R204: 0.06985725219 | S204: 30.54891763 | T204: 18.65827498 | U204: 11.89064264 | V204: 49.20719261 | W204: 24.16444022 | X204: 24.3645 | Y204: 10.86714286 | Z204: FALSE | AA204: TRUE | AB204: FALSE | AC204: FALSE | AD204: 0 | AE204: 12.3 | AF204: 0 | AG204: 0 | AH204: 10.96333333 | AI204: 10.86190476 | AJ204: 0.2036054422 | AK204: 33.21082526 | AL204: 33.21082526 | AM204: 0 | AO204: 26396700
A205: 173 | B205: =OFFSET(InputPriceData!B$15,CalculationsAndCharts!$A205+$A$11,0,1,1) -> 2016-05-05 | C205: =OFFSET(InputPriceData!G$15,CalculationsAndCharts!$A205+$A$11,IF($C$7,8,0),1,1) -> 34159000 | D205: =OFFSET(InputPriceData!C$15,CalculationsAndCharts!$A205+$A$11,IF($C$7,8,0),1,1) -> 11.23 | E205: =OFFSET(InputPriceData!D$15,CalculationsAndCharts!$A205+$A$11,IF($C$7,8,0),1,1) -> 11.24 | F205: =OFFSET(InputPriceData!E$15,CalculationsAndCharts!$A205+$A$11,IF($C$7,8,0),1,1) -> 10.81 | G205: =OFFSET(InputPriceData!F$15,CalculationsAndCharts!$A205+$A$11,IF($C$7,8,0),1,1) -> 10.9 | H205: 10.81723729 | I205: 10.53925984 | J205: 0.2779774477 | K205: 0.2896365715 | L205: 0 | M205: 0.45 | N205: 0.2 | O205: 0 | P205: 0.3748928827 | Q205: 0.1270847174 | R205: 0.07428583577 | S205: 33.89894107 | T205: 19.81521635 | U205: 14.08372473 | V205: 53.71415742 | W205: 26.21976292 | X205: 24.38673 | Y205: 10.81071429 | Z205: FALSE | AA205: FALSE | AB205: TRUE | AC205: FALSE | AD205: 0 | AE205: 0 | AF205: 12.3 | AG205: 0 | AH205: 10.98333333 | AI205: 10.79785714 | AJ205: 0.2380272109 | AK205: 51.94817567 | AL205: 51.94817567 | AM205: 0 | AP205: 34159000
... 2045 more rows

Sheet Follow
A1: Stocks and Indexes I wish to follow
A3: To ease following a stock, enter a Yahoo Finance acceptable symbol in column "A" anywhere below cell "A9".
A4: Thereafter you may doubleclick the cell containing a symbol of interest to initiate data retrieval and charting for that symbol.
A7: Symbol
A8: To | B8: Description | C8: Last Trade as of most recent check
A9: Follow | C9: Date | D9: Time | E9: Open | F9: High | G9: Low | H9: Close | I9: Volume | J9: Change
A10: A | B10: Agilent Technolog (A) -NYSE (Daily) | C10: 2015-02-02 | D10: 16:03:00 | E10: 37.9 | F10: 38.76 | G10: 37.71 | H10: 38.69 | I10: 2508493 | J10: 0.92
A11: AAL | B11: American Airlines (AAL) -NasdaqNM (Daily) | C11: 2015-02-19 | D11: 16:00:00 | E11: 50.73 | F11: 50.8 | G11: 49.59 | H11: 49.78 | I11: 11462722 | J11: 0.47
A12: ADM | B12: Archer-Daniels-Midland Company (ADM) -NYQ (Daily) | C12: 2016-03-07 | D12: 13:18:00 | E12: 37.17 | F12: 37.29 | G12: 36.85 | H12: 37.09 | I12: 2069198 | J12: -0.56
A13: AMC | B13: AMC Entertainment Holdings, Inc (AMC) -NYQ (Daily) | C13: 2015-09-04 | D13: 16:00:00 | E13: 27.14 | F13: 27.95 | G13: 26.99 | H13: 27.71 | I13: 167990 | J13: 0.28
A14: BSX | B14: Boston Scientific Corporation C (BSX) -NYQ (Daily) | C14: 2015-03-13 | D14: 16:01:00 | E14: 16.84 | F14: 16.91 | G14: 16.44 | H14: 16.61 | I14: 7262460 | J14: -0.28
A15: CASY | B15: Casey&#x27;s General Stores, Inc. (CASY) -NasdaqGS (Daily) | C15: 2017-10-13 | D15: 16:00:00 | E15: 113.339996 | F15: 115.339996 | G15: 112.93 | H15: 114.400002 | I15: 460800 | J15: 1.680001
A16: CSCO | B16: Cisco Systems, In (CSCO) -NasdaqNM (Daily) | C16: 2015-02-19 | D16: 16:00:00 | E16: 29.32 | F16: 29.39 | G16: 29.13 | H16: 29.31 | I16: 21469012 | J16: -0.18
A17: CVS | B17: CVS Health Corpor (CVS) -NYSE (Daily) | C17: 2015-02-02 | D17: 16:01:00 | E17: 98.34 | F17: 99.22 | G17: 97.06 | H17: 99.11 | I17: 4416094 | J17: 0.95
A18: DIS | B18: Walt Disney Compa (DIS) -NYSE (Daily) | C18: 2015-02-26 | D18: 16:00:00 | E18: 105.5 | F18: 105.71 | G18: 104.14 | H18: 104.56 | I18: 5044969 | J18: -1.01
A19: EMC | B19: EMC Corporation C (EMC) -NYSE (Daily) | C19: 2015-02-19 | D19: 16:00:00 | E19: 28.26 | F19: 28.83 | G19: 28.19 | H19: 28.72 | I19: 11049079 | J19: 0.52
A20: F | B20: Ford Motor Company (F) -NYSE (Daily) | C20: 2017-10-13 | D20: 16:01:00 | E20: 12.06 | F20: 12.17 | G20: 11.87 | H20: 12.05 | I20: 44563400 | J20: -0.07
A21: FAS | B21: Direxion Daily Financial Bull 3X ETF (FAS) -NYSEArca (Daily) | C21: 2017-10-13 | D21: 16:00:00 | E21: 58.099998 | F21: 58.939999 | G21: 57.43 | H21: 58.450001 | I21: 1709300 | J21: 0.07
A22: GSK | B22: GlaxoSmithKline P (GSK) -NYSE (Daily) | C22: 2015-02-02 | D22: 16:01:00 | E22: 44.11 | F22: 44.12 | G22: 43.71 | H22: 43.96 | I22: 3654466 | J22: -0.04
A23: GDX | B23: VanEck Vectors Gold Miners ETF (GDX) -PCX (Daily) | C23: 2017-02-10 | D23: 20:00:00 | E23: 24.67 | F23: 25.36 | G23: 24.6 | H23: 25.29 | I23: 65396107 | J23: 0.38
A24: HSY | B24: The Hershey Compa (HSY) -NYSE (Daily) | C24: 2015-02-19 | D24: 16:02:00 | E24: 106.97 | F24: 107.31 | G24: 105.42 | H24: 105.95 | I24: 1448321 | J24: -1
A25: HTLD | B25: Heartland Express (HTLD) -NasdaqNM (Daily) | C25: 2015-02-02 | D25: 16:00:00 | E25: 25.68 | F25: 25.81 | G25: 25.36 | H25: 25.62 | I25: 542510 | J25: -0.07
A26: IBM | B26: International Bus (IBM) -NYSE (Daily) | C26: 2015-02-02 | D26: 16:01:00 | E26: 154 | F26: 154.66 | G26: 151.51 | H26: 154.66 | I26: 4712247 | J26: 1.35
A27: INTC | B27: Intel Corporation (INTC) -NasdaqNM (Daily) | C27: 2015-02-19 | D27: 16:00:00 | E27: 34.25 | F27: 34.42 | G27: 34.05 | H27: 34.21 | I27: 11017541 | J27: -0.055
A28: JAH | B28: Jarden Corporation Common Stock (JAH) -NYQ (Daily) | C28: 2016-01-08 | D28: 16:02:00 | E28: 53.82 | F28: 53.88 | G28: 52.65 | H28: 52.73 | I28: 4519480 | J28: -0.81
A29: JNJ | B29: Johnson & Johnson Common Stock (JNJ) -NYQ (Daily) | C29: 2016-01-08 | D29: 11:37:00 | E29: 99.88 | F29: 99.94 | G29: 98.87 | H29: 98.88 | I29: 2448879 | J29: -0.34
A30: KO | B30: Coca-Cola Company (The) Common (KO) -NYQ (Daily) | C30: 2015-08-10 | D30: 16:00:00 | E30: 41.89 | F30: 41.99 | G30: 41.58 | H30: 41.68 | I30: 9501875 | J30: -0.09
A31: LHO | B31: LaSalle Hotel Pro (LHO) -NYSE (Daily) | C31: 2015-02-02 | D31: 16:06:00 | E31: 40.51 | F31: 40.74 | G31: 39.46 | H31: 40.26 | I31: 1034675 | J31: -0.2
A32: LINE | B32: Linn Energy, LLC (LINE) -NasdaqNM (Daily) | C32: 2015-02-02 | D32: 16:00:00 | E32: 10.4 | F32: 10.78 | G32: 10.25 | H32: 10.77 | I32: 3766537 | J32: 0.51
A33: LO | B33: Lorillard, Inc Co (LO) -NYSE (Daily) | C33: 2015-02-02 | D33: 16:03:00 | E33: 65.71 | F33: 66.29 | G33: 65.43 | H33: 66.29 | I33: 1563618 | J33: 0.68
A34: MCD | B34: McDonald's Corporation Common S (MCD) -NYQ (Daily) | C34: 2016-04-07 | D34: 16:10:00 | E34: 127.37 | F34: 128.52 | G34: 127.02 | H34: 128.14 | I34: 4720711 | J34: 0.62
A35: MDT | B35: Medtronic plc. Or (MDT) -NYSE (Daily) | C35: 2015-02-19 | D35: 16:01:00 | E35: 78.59 | F35: 78.59 | G35: 77.85 | H35: 78.13 | I35: 6900528 | J35: -0.37
A36: MGM | B36: MGM Resorts Inter (MGM) -NYSE (Daily) | C36: 2015-02-02 | D36: 16:00:00 | E36: 19.44 | F36: 19.75 | G36: 19.12 | H36: 19.74 | I36: 7570281 | J36: 0.26
A37: MO | B37: Altria Group, Inc (MO) -NYSE (Daily) | C37: 2015-02-02 | D37: 16:01:00 | E37: 53.25 | F37: 53.84 | G37: 52.98 | H37: 53.8 | I37: 9183582 | J37: 0.7
A38: MSFT | B38: Microsoft Corpora (MSFT) -NasdaqNM (Daily) | C38: 2015-02-20 | D38: 16:00:00 | E38: 43.51 | F38: 43.88 | G38: 43.29 | H38: 43.855 | I38: 29721132 | J38: 0.355
A39: NUGT | B39: Direxion Daily Gold Miners Inde (NUGT) -PCX (Daily) | C39: 2016-04-13 | D39: 14:18:00 | E39: 81.48 | F39: 84.97 | G39: 79.59 | H39: 80.5352 | I39: 4380827 | J39: -5.6148
A40: NVS | B40: Novartis AG Common Stock (NVS) -NYQ (Daily) | C40: 2016-01-08 | D40: 11:38:00 | E40: 83.38 | F40: 83.5 | G40: 82.37 | H40: 82.42 | I40: 979446 | J40: -1.52
A41: NVDA | B41: NVIDIA Corporation (NVDA) -NasdaqGS (Daily) | C41: 2017-10-13 | D41: 16:00:00 | E41: 193.550003 | F41: 195 | G41: 191.649994 | H41: 194.589996 | I41: 15674800 | J41: 3.559997
A42: PRU | B42: Prudential Financ (PRU) -NYSE (Daily) | C42: 2015-02-23 | D42: 12:22:00 | E42: 80.25 | F42: 80.4499 | G42: 79.8 | H42: 80.12 | I42: 1604052 | J42: -0.69
A43: PSEC | B43: Prospect Capital Corporation (PSEC) -NMS (Daily) | C43: 2016-04-07 | D43: 16:00:00 | E43: 7.18 | F43: 7.25 | G43: 7.15 | H43: 7.21 | I43: 1116195 | J43: 0.02
A44: RAI | B44: Reynolds American (RAI) -NYSE (Daily) | C44: 2015-02-02 | D44: 16:03:00 | E44: 68.12 | F44: 69.06 | G44: 67.4346 | H44: 69.05 | I44: 1822013 | J44: 1.1
A45: RPM | B45: RPM International Inc. Common S (RPM) -NYQ (Daily) | C45: 2016-04-13 | D45: 12:43:00 | E45: 49.9 | F45: 50.21 | G45: 49.71 | H45: 49.97 | I45: 408337 | J45: 0.19 | K45: Owns the Rust-Oleum brand
A46: RSP | B46: Guggenheim S&P 500 Equal Weight (RSP) -PCX (Daily) | C46: 2016-01-08 | D46: 11:33:00 | E46: 73.24 | F46: 73.47 | G46: 72.41 | H46: 72.41 | I46: 754279 | J46: -0.48
A47: SONC | B47: Sonic Corp. (SONC) -NasdaqGS (Daily) | C47: 2017-11-03 | D47: 16:00:00 | E47: 25.5 | F47: 25.57 | G47: 24.9 | H47: 24.950001 | I47: 800200 | J47: -0.509998
A48: SPR | B48: Spirit Aerosystems Holdings, In (SPR) -NYQ (Daily) | C48: 2017-02-08 | D48: 16:02:00 | E48: 56.31 | F48: 56.53 | G48: 55.13 | H48: 56.41 | I48: 849196 | J48: 0.06
A49: SWKS | B49: Skyworks Solution (SWKS) -NasdaqNM (Daily) | C49: 2015-02-02 | D49: 16:00:00 | E49: 83.07 | F49: 83.73 | G49: 80.15 | H49: 82.02 | I49: 4119001 | J49: -1.03
A50: TOL | B50: Toll Brothers, Inc. (TOL) -NYSE (Daily) | C50: 2017-11-03 | D50: 16:02:00 | E50: 44.040001 | F50: 44.639999 | G50: 43.57 | H50: 43.900002 | I50: 2940600 | J50: 0.110001
A51: TRV | B51: The Travelers Companies, Inc. (TRV) -NYSE (Daily) | C51: 2017-11-03 | D51: 16:00:00 | E51: 134.449997 | F51: 134.729996 | G51: 132.869995 | H51: 133.320007 | I51: 1048200 | J51: -1.369995
A52: UNP | B52: Union Pacific Cor (UNP) -NYSE (Daily) | C52: 2015-02-02 | D52: 16:10:00 | E52: 118.13 | F52: 119.06 | G52: 116.7 | H52: 119.01 | I52: 3259594 | J52: 1.8
A53: USO | B53: United States Oil (USO) -NYSEArca (Daily) | C53: 2017-11-03 | D53: 16:00:00 | E53: 11 | F53: 11.2 | G53: 10.93 | H53: 11.18 | I53: 18453900 | J53: 0.19
A54: VZ | B54: Verizon Communica (VZ) -NYSE (Daily) | C54: 2015-02-23 | D54: 12:22:00 | E54: 48.94 | F54: 49 | G54: 48.54 | H54: 48.825 | I54: 4204644 | J54: -0.145
A55: WBA | B55: (WBA) -NasdaqNM (Daily) | C55: 2015-02-02 | D55: 16:00:00 | E55: 73.06 | F55: 74.98 | G55: 73 | H55: 74.89 | I55: 4247395 | J55: 1.14
A56: WMT | B56: Wal-Mart Stores, Inc. (WMT) -NYSE (Daily) | C56: 2017-10-13 | D56: 16:00:00 | E56: 86.239998 | F56: 86.949997 | G56: 86.239998 | H56: 86.620003 | I56: 9382000 | J56: 0.520005
A58: ^NDX | B58: NASDAQ-100 (^NDX) -NIM (Daily) | C58: 2015-08-10 | D58: 17:15:00 | E58: 4558.68 | F58: 4583.63 | G58: 4554.63 | H58: 4573.11 | I58: 0 | J58: 53.03
A59: ^DJI | B59: Dow Jones Industrial Average (^DJI) -DJI (Daily) | C59: 2017-10-13 | D59: 16:55:00 | E59: 22876.42969 | F59: 22905.33008 | G59: 22855.92969 | H59: 22871.7207 | I59: 259560000 | J59: 30.710937
A60: SPY | B60: SPDR S&P 500 (SPY) -PCX (Daily) | C60: 2016-05-05 | D60: 16:00:00 | E60: 205.56 | F60: 205.98 | G60: 204.47 | H60: 204.97 | I60: 67619222 | J60: -0.04
A61: ^GSPC | B61: S&P 500 (^GSPC) -SNP (Daily) | C61: 2017-10-13 | D61: 16:55:00 | E61: 2555.659912 | F61: 2557.649902 | G61: 2552.090088 | H61: 2553.169922 | I61: 3149440000 | J61: 2.23999
A62: ^RUT | B62: RUSSELL 2000 INDEX (^RUT) -Chicago Options (Daily) | C62: 2017-10-13 | D62: 16:30:00 | E62: 1505.459961 | F62: 1508.219971 | G62: 1502.22998 | H62: 1502.660034 | I62: 31494400 | J62: -2.5
A63: ^VIX | B63: VOLATILITY S&P 500 (^VIX) -WCB (Daily) | C63: 2015-12-04 | D63: 16:14:00 | E63: 17.43 | F63: 17.65 | G63: 14.69 | H63: 14.81 | I63: 0 | J63: -3.3
A64: ^NYA | B64: NYSE COMPOSITE (DJ) (^NYA) -NYSE (Daily) | C64: 2017-10-13 | D64: 17:38:00 | E64: 12360.87012 | F64: 12377.88965 | G64: 12350.03027 | H64: 12352.01953 | I64: 3149440000 | J64: 13.279297
A66: ACAD | B66: ACADIA Pharmaceut (ACAD) -NasdaqNM (Daily) | C66: 2014-07-21 | D66: 16:00:00 | E66: 20.13 | F66: 20.55 | G66: 19.8101 | H66: 20.31 | I66: 691016
A67: CLDX | B67: Celldex Therapeut (CLDX) -NasdaqNM (Daily) | C67: 2015-02-02 | D67: 16:00:00 | E67: 21.47 | F67: 21.69 | G67: 20.11 | H67: 21.02 | I67: 1570418 | J67: -0.4
A68: ICPT | B68: Intercept Pharmac (ICPT) -NasdaqNM (Daily) | C68: 2014-07-21 | D68: 16:00:00 | E68: 215.97 | F68: 218.43 | G68: 213.05 | H68: 218.14 | I68: 191276
A69: INO | B69: Inovio Pharmaceut (INO) -AMEX (Daily) | C69: 2014-07-21 | D69: 16:00:00 | E69: 10.3 | F69: 11.08 | G69: 10.1 | H69: 11.01 | I69: 1800796
A70: JCP | B70: J.C. Penney Compa (JCP) -NYSE (Daily) | C70: 2015-02-02 | D70: 16:01:00 | E70: 7.16 | F70: 7.44 | G70: 7.01 | H70: 7.43 | I70: 12772679 | J70: 0.16
A71: LCI | B71: Lannett Co Inc Co (LCI) -NYSE (Daily) | C71: 2014-07-21 | D71: 16:02:00 | E71: 38.09 | F71: 38.803 | G71: 36.5101 | H71: 37.76 | I71: 611367
A72: NPSP | B72: NPS Pharmaceutica (NPSP) -NasdaqNM (Daily) | C72: 2014-07-21 | D72: 15:59:00 | E72: 28.75 | F72: 29.43 | G72: 28.31 | H72: 29.29 | I72: 1126758
A73: PBYI | B73: Puma Biotechnolog (PBYI) -NYSE (Daily) | C73: 2014-07-21 | D73: 16:02:00 | E73: 58.27 | F73: 59.46 | G73: 57.39 | H73: 58.98 | I73: 348030
